Workbook

Sheet PainelControle
C2: Análise de Viabilidade Econômico-Financeira referente ao Edital de Chamamento Público n° 05/2017 Sessões I, II, III e IV do Modelo Econômico-Financeiro
C3: Concessão administrativa contemplando os serviços de administração, manutenção, conservação, exploração comercial e requalificação de 24 (vinte e quatro) terminais de ônibus do sistema de transporte coletivo urbano de passageiros e 6 (seis) estações de transferência do Expresso Tiradentes, seus empreendimentos associados e seus perímetros de abrangência.
C5: PREMISSAS GERAIS
C6: DATA DA ORDEM DE INÍCIO | D6: 2019-01-01
C7: PRAZO TOTAL DA CONCESSÃO | D7: 35 | E7: anos | F7: NTN-B | G7: spread | H7: Taxa a.a.
C8: TAXA DE DESCONTO DO PROJETO | D8: =(1+$H$8)^(1/12)-1 -> 0.009169192048 | E8: a.m. | F8: 0.05 | G8: =H8-F8 -> 0.06575234092 | H8: 0.1157523409
C9: TAXA DESCONTO PODER PÚBLICO | D9: =(1+$H$9)^(1/12)-1 -> 0.004074123784 | E9: a.m. | F9: 0.05 | G9: 0 | H9: =F9+G9 -> 0.05
C10: APORTE (% do investimento) | D10: =FluxoCaixa!D16 -> 0 | E10: 0 | F10: % sobre CAPEX de Obras, PIU e TI inicial
C11: INVESTIMENTO (R$) | D11: =SUM(D32,D34,D37)*1000000 -> 238508902.9 | E11: Encargos da Concessionária | H11: Concessão por Lotes: | I11: 0 | J11: se SIM = 1
B12: 1 | C12: PARCELA (A) | D12: =Lote!I35 -> 15756078 | H12: Desconto na Parcela A para Equilibrar Lote: | I12: 0 | J12: (negativo para acréscimos)
B13: 1 | C13: PARCELA (B) | D13: =FluxoCaixa!DN15 -> 2968185.482
C14: CONTRAPRESTAÇÃO MENSAL MÁXIMA | D14: =SUM(D12:D13) -> 18724263.48
C16: RESULTADOS DA AVALIAÇÃO | D16: PROJETO | E16: ACIONISTA | H16: Saldo do Ativo
C17: TIR (a.a.) | D17: =FluxoCaixa!E90 -> 0.1157503559 | E17: =FluxoCaixa!E91 -> 0.1500675111 | G17: financeiro | H17: =TRUNC(BENS!$D$23,2) -> 0
C18: VPL (R$MM) | D18: =FluxoCaixa!D92/1000000 -> -0.01580796124 | E18: =FluxoCaixa!E81/1000000 -> 158.5517127 | G18: intangível | H18: =TRUNC(BENS!$D$34,2) -> 0
C19: PAYBACK (anos) | D19: =COUNTIF(FluxoCaixa!J73:PM73,"<0")/12 -> 10.75 | E19: =COUNTIF(FluxoCaixa!J82:PM82,"<0")/12 -> 10.16666667 | G19: imobilizado | H19: =TRUNC(BENS!$D$45,2) -> 0
C20: EXPOSIÇÃO MÁXIMA (R$MM) | D20: =FluxoCaixa!$D$94/1000000 -> -1318.724121 | E20: =MIN(FluxoCaixa!J82:PM82)/1000000 -> -663.83267 | G20: outorga fixa | H20: =TRUNC(BENS!$D$57,2) -> 0
C21: DATA DE EXPOSIÇÃO | D21: =SUMIF(FluxoCaixa!J73:PM73,PainelControle!D20*1000000,FluxoCaixa!J2:PM2) -> 2022 | E21: =SUMIF(FluxoCaixa!J82:PM82,PainelControle!E20*1000000,FluxoCaixa!J2:PM2) -> 2022
C22: ICSD MÍNIMO | E22: =FluxoCaixa.ANUAL!$D$87 -> 1.404658135
C24: RESULTADOS QUALIFICAÇÃO ECONÔMICA
D25: CONTRATO
C26: VALOR DO CONTRATO (R$MM) | D26: =FluxoCaixa!E13 -> 1545216050 | E26: somatório das CPMM ao longo da concessão, a valor presente.
C27: PATRIMÔNIO LÍQUIDO (R$MM) | D27: =$D$26*E27 -> 20087808.65 | E27: 0.013
C28: GARANTIA DE CONTRATO (R$MM) | D28: =$D$26*E28 -> 30904321 | E28: 0.02
C29: GARANTIA DE PROPOSTA (R$MM) | D29: =$D$26*E29 -> 15452160.5 | E29: 0.01
C31: INVESTIMENTOS | D31: =SUM(D32:D37) -> 1596.06196
B32: 1 | C32: CAPEX OBRAS | D32: =FluxoCaixa!D47/1000000-D37 -> 179.5210797
B33: 1 | C33: CAPEX COMERCIAL | D33: =FluxoCaixa!D48/1000000 -> 1331.345606 | F33: Reinvestimento TI | G33: % reinvestimento
C34: CAPEX TI | D34: =CAPEX!G175/1000000 -> 34.98782325 | F34: =(FluxoCaixa!D51/1000000)-D34 -> 104.9634698 | G34: 0.5
C35: CAPEX MOBILIÁRIO/ AR | D35: =FluxoCaixa!D49/1000000 -> 17.10386097
C36: CAPEX EQUIP e VEÍCULOS | D36: =FluxoCaixa!D50/1000000 -> 9.10359008
C37: CAPEX PIU | D37: =E37*Lote!E3/1000000 -> 24 | E37: 1000000 | F37: por Terminal | Q37: Redução da Contraprestação
Q38: [Parcela A]
C39: PREMISSAS DE CUSTOS CONTRATUAIS | Q39: anos | R39: f (-) P(A)
C40: Ressarcimento por Estudos | D40: =23953000 -> 23953000 | Q40: 1 | S40: =R40+S39 -> 0
C41: % Compartilhamento de Receitas | D41: =100000000/12 -> 8333333.333 | E41: 0.15 | F41: banda mês/ % compartilhamento (a partir do ano 5) | Q41: 5 | S41: 0
C42: Formatação da SPE | D42: 100000 | E42: inicial | Q42: =Q41+1 -> 6 | R42: =1/COUNTA($Q$42:$Q$61) -> 0.05 | S42: 0.05
C43: Programa de Gerenciamento de Resíduos Sólidos | D43: =Lote!E3*20000 -> 480000 | E43: inicial | Q43: 7 | R43: 0.05 | S43: 0.1
C44: Contabilidade, Jurídico e Fiscal | D44: =(20000+20000+10000)*12 -> 600000 | E44: ano | Q44: 8 | R44: 0.05 | S44: 0.15
C45: Assessoria de Imprensa | D45: =10000*12 -> 120000 | E45: ano | Q45: 9 | R45: 0.05 | S45: 0.2
C46: Gestão da Folha de Pagamentos | D46: 40 | E46: por funcionário/mês | Q46: 10 | R46: 0.05 | S46: 0.25
C47: Publicações S/A | D47: 80000 | E47: ano | Q47: 11 | R47: 0.05 | S47: 0.3
C48: Garantia de Execução do Contrato | D48: =D28 -> 30904321 | E48: 0.01 | F48: 0.2 | G48: 0.1 | H48: 0.3 | Q48: 12 | R48: 0.05 | S48: 0.35
E49: prêmio | F49: liberação na entrega | G49: redução a cada 3 anos | H49: mínimo | Q49: 13 | R49: 0.05 | S49: 0.4
Q50: 14 | R50: 0.05 | S50: 0.45
Q51: 15 | R51: 0.05 | S51: 0.5
Q52: 16 | R52: 0.05 | S52: 0.55
C53: ANÁLISES DE SENSIBILIDADE | Q53: 17 | R53: 0.05 | S53: 0.6
C54: Choque no OPEX | E54: =100%*(1-PainelControle!$I$11)+120%*PainelControle!$I$11 -> 1 | Q54: 18 | R54: 0.05 | S54: 0.65
C55: Choque nas RECEITAS ASSESSÓRIAS | E55: 1 | Q55: 19 | R55: 0.05 | S55: 0.7
C56: Atraso na Conclusão dos Empreendimentos (meses) | E56: 0 | Q56: 20 | R56: 0.05 | S56: 0.75
C57: Choque no custo do CAPEX OBRAS | E57: 1 | Q57: 21 | R57: 0.05 | S57: 0.8
C58: Choque no custo do CAPEX COMERCIAL | E58: =E57 -> 1 | Q58: 22 | R58: 0.05 | S58: 0.85
C59: Choque no custo do CAPEX TI | E59: =E57 -> 1 | Q59: 23 | R59: 0.05 | S59: 0.9
Q60: 24 | R60: 0.05 | S60: 0.95
Q61: 25 | R61: 0.05 | S61: 1
I62: meses | Q62: 26 | S62: 1
C63: EMPREENDIMENTO RESIDENCIAIS | D63: Área Privativa | E63: CAPEX (R$) | F63: OPEX (R$/m2) | G63: Aluguel (R$/m2) | I63: Inicio | J63: Prazo | K63: Fim | Q63: 27 | S63: 1
C64: Pinheiros | D64: 58517.3 | E64: =239920930-20000 -> 239900930 | F64: 10 | G64: 85 | I64: =CAPEX!D78 -> 24 | J64: 18 | K64: =I64+J64 -> 42 | Q64: 28 | S64: 1
C65: Santo Amaro | D65: 14186.34 | E65: 58163994 | F65: 10 | G65: 70 | I65: =CAPEX!D80 -> 18 | J65: 18 | K65: =I65+J65 -> 36 | Q65: 29 | S65: 1
C66: Sacomã | D66: 16666.8 | E66: 68334880 | F66: 10 | G66: 70 | I66: =CAPEX!D79 -> 12 | J66: 18 | K66: =I66+J66 -> 30 | Q66: 30 | S66: 1
C67: Lapa | D67: 17863.56 | E67: 86662000 | F67: 10 | G67: 75 | I67: =CAPEX!D77 -> 18 | J67: 18 | K67: =I67+J67 -> 36 | R67: =SUM(R40:R66) -> 1
C68: Bandeira | D68: 42372.46 | E68: 173727086 | F68: 10 | G68: 75 | I68: =CAPEX!D74 -> 30 | J68: 18 | K68: =I68+J68 -> 48
C70: PREMISSAS TRIBUTÁRIAS
D71: Contraprestação | E71: Área Comercial | F71: Estacionamento | G71: Publicidade | H71: Empreendimentos Imobiliários
C72: ISS | D72: 0.05 | E72: 0 | F72: 0.05 | G72: 0 | H72: 0
C73: PIS (Débito - Crédito) | D73: 0.0165 | E73: 0.0165 | F73: 0.0165 | G73: 0.0165 | H73: 0.0165
C74: COFINS (Débito - Crédito) | D74: 0.076 | E74: 0.076 | F74: 0.076 | G74: 0.076 | H74: 0.076
C75: CPRB | D75: =2%*0 -> 0 | E75: =2%*0 -> 0 | F75: =2%*0 -> 0 | G75: =2%*0 -> 0 | H75: =2%*0 -> 0
C77: PREMISSA DE CAPITAL DE GIRO
C78: Prazo para Saídas de Caixa (meses) | D78: 0.2
C79: Prazo para Entradas de Caixa (meses) | D79: 1
C81: PLANO DE FINANCIAMENTO
C82: Alavancagem Marginal | D82: 0.5
C83: Prazo Amortização (anos) | D83: 10
C84: Prazo Carência (anos) | D84: 2
C85: Período Máximo para Captação (anos) | D85: 20
C86: Custo real do financiamento (curto/longo) | D86: 0.085 | E86: 0.07

Sheet Lote
E3: =SUM(E6:E32) -> 24 | F3: =SUM(F6:F32) -> 9 | G3: =SUM(G6:G32) -> 5 | N3: mês de conclusão: | O3: =INDEX(FluxoCaixa!$J$7:$PM$7,1,MATCH(O4,FluxoCaixa!$J$10:$PM$10,0)) -> 61
E4: Inclui | F4: Executa | G4: Executa | H4: base: 08/2017 | N4: conclusão da modernização e requalificação integral dos TERMINAIS: | O4: =MAX(O6:O34) -> 2024-01-31
D5: Terminal | E5: Terminal | F5: Comercial | G5: Residencial | H5: O.S. (R$ mês) | I5: Nova CP | J5: Potencial | K5: PARCELAS | L5: Impacto | M5: FASE 1 | N5: FASE 2 | O5: FASE 3 | P5: FASE 1 | Q5: FASE 2 | R5: FASE 3
D6: A.E. Carvalho | E6: 1 | F6: 1 | H6: 443428 | I6: =IF(E6=0,0,H6*(1-PainelControle!$I$12)) -> 443428 | J6: =SUMIF(RECEITAS!$C$690:$C$716,$D6,RECEITAS!$G$690:$G$716) -> 123563238.5 | K6: 24 | L6: =PainelControle!$E$55 -> 1 | M6: =PainelControle!$D$6 -> 2019-01-01 | N6: =EOMONTH($M6,VLOOKUP($D6,CAPEX!$B$39:$F$65,3,FALSE)) -> 2019-12-31 | O6: =IF($F6=1,EOMONTH($M6,VLOOKUP($D6,CAPEX!$B$73:$F$99,5,FALSE)),EOMONTH($M6,VLOOKUP($D6,CAPEX!$B$39:$F$65,5,FALSE))) -> 2022-01-31 | P6: =MATCH(M6,FluxoCaixa!$J$10:$PM$10,0) -> 1 | Q6: =MATCH(N6,FluxoCaixa!$J$10:$PM$10,0) -> 12 | R6: =MATCH(O6,FluxoCaixa!$J$10:$PM$10,0) -> 37
D7: Amaral Gurgel | E7: 1 | H7: 363287 | I7: =IF(E7=0,0,H7*(1-PainelControle!$I$12)) -> 363287 | J7: =SUMIF(RECEITAS!$C$690:$C$716,$D7,RECEITAS!$G$690:$G$716) -> 1918442.165 | K7: 24 | M7: =PainelControle!$D$6 -> 2019-01-01 | N7: =EOMONTH($M7,VLOOKUP($D7,CAPEX!$B$39:$F$65,3,FALSE)) -> 2021-07-31 | O7: =IF($F7=1,EOMONTH($M7,VLOOKUP($D7,CAPEX!$B$73:$F$99,5,FALSE)),EOMONTH($M7,VLOOKUP($D7,CAPEX!$B$39:$F$65,5,FALSE))) -> 2022-04-30 | P7: =MATCH(M7,FluxoCaixa!$J$10:$PM$10,0) -> 1 | Q7: =MATCH(N7,FluxoCaixa!$J$10:$PM$10,0) -> 31 | R7: =MATCH(O7,FluxoCaixa!$J$10:$PM$10,0) -> 40
D8: Aricanduva | E8: 1 | H8: 182957 | I8: =IF(E8=0,0,H8*(1-PainelControle!$I$12)) -> 182957 | J8: =SUMIF(RECEITAS!$C$690:$C$716,$D8,RECEITAS!$G$690:$G$716) -> 816802.237 | K8: 24 | M8: =PainelControle!$D$6 -> 2019-01-01 | N8: =EOMONTH($M8,VLOOKUP($D8,CAPEX!$B$39:$F$65,3,FALSE)) -> 2019-12-31 | O8: =IF($F8=1,EOMONTH($M8,VLOOKUP($D8,CAPEX!$B$73:$F$99,5,FALSE)),EOMONTH($M8,VLOOKUP($D8,CAPEX!$B$39:$F$65,5,FALSE))) -> 2020-09-30 | P8: =MATCH(M8,FluxoCaixa!$J$10:$PM$10,0) -> 1 | Q8: =MATCH(N8,FluxoCaixa!$J$10:$PM$10,0) -> 12 | R8: =MATCH(O8,FluxoCaixa!$J$10:$PM$10,0) -> 21
D9: Bandeira | E9: 1 | F9: 1 | G9: 1 | H9: 865477 | I9: =IF(E9=0,0,H9*(1-PainelControle!$I$12)) -> 865477 | J9: =SUMIF(RECEITAS!$C$690:$C$716,$D9,RECEITAS!$G$690:$G$716) -> 293026635.7 | K9: 24 | L9: =PainelControle!$E$55 -> 1 | M9: =PainelControle!$D$6 -> 2019-01-01 | N9: =EOMONTH($M9,VLOOKUP($D9,CAPEX!$B$39:$F$65,3,FALSE)) -> 2021-07-31 | O9: =IF($F9=1,EOMONTH($M9,VLOOKUP($D9,CAPEX!$B$73:$F$99,5,FALSE)),EOMONTH($M9,VLOOKUP($D9,CAPEX!$B$39:$F$65,5,FALSE))) -> 2023-07-31 | P9: =MATCH(M9,FluxoCaixa!$J$10:$PM$10,0) -> 1 | Q9: =MATCH(N9,FluxoCaixa!$J$10:$PM$10,0) -> 31 | R9: =MATCH(O9,FluxoCaixa!$J$10:$PM$10,0) -> 55
D10: Campo Limpo | E10: 0 | H10: 724315 | I10: =IF(E10=0,0,H10*(1-PainelControle!$I$12)) -> 0 | J10: =SUMIF(RECEITAS!$C$690:$C$716,$D10,RECEITAS!$G$690:$G$716) -> 0 | K10: 24 | M10: =PainelControle!$D$6 -> 2019-01-01 | N10: =EOMONTH($M10,VLOOKUP($D10,CAPEX!$B$39:$F$65,3,FALSE)) -> 2021-02-28 | O10: =IF($F10=1,EOMONTH($M10,VLOOKUP($D10,CAPEX!$B$73:$F$99,5,FALSE)),EOMONTH($M10,VLOOKUP($D10,CAPEX!$B$39:$F$65,5,FALSE))) -> 2021-11-30 | P10: =MATCH(M10,FluxoCaixa!$J$10:$PM$10,0) -> 1 | Q10: =MATCH(N10,FluxoCaixa!$J$10:$PM$10,0) -> 26 | R10: =MATCH(O10,FluxoCaixa!$J$10:$PM$10,0) -> 35
D11: Capelinha | E11: 0 | H11: 1008599 | I11: =IF(E11=0,0,H11*(1-PainelControle!$I$12)) -> 0 | J11: =SUMIF(RECEITAS!$C$690:$C$716,$D11,RECEITAS!$G$690:$G$716) -> 0 | K11: 24 | M11: =PainelControle!$D$6 -> 2019-01-01 | N11: =EOMONTH($M11,VLOOKUP($D11,CAPEX!$B$39:$F$65,3,FALSE)) -> 2021-02-28 | O11: =IF($F11=1,EOMONTH($M11,VLOOKUP($D11,CAPEX!$B$73:$F$99,5,FALSE)),EOMONTH($M11,VLOOKUP($D11,CAPEX!$B$39:$F$65,5,FALSE))) -> 2021-11-30 | P11: =MATCH(M11,FluxoCaixa!$J$10:$PM$10,0) -> 1 | Q11: =MATCH(N11,FluxoCaixa!$J$10:$PM$10,0) -> 26 | R11: =MATCH(O11,FluxoCaixa!$J$10:$PM$10,0) -> 35
D12: Casa Verde | E12: 1 | H12: 125699 | I12: =IF(E12=0,0,H12*(1-PainelControle!$I$12)) -> 125699 | J12: =SUMIF(RECEITAS!$C$690:$C$716,$D12,RECEITAS!$G$690:$G$716) -> 1072031.247 | K12: 24 | M12: =PainelControle!$D$6 -> 2019-01-01 | N12: =EOMONTH($M12,VLOOKUP($D12,CAPEX!$B$39:$F$65,3,FALSE)) -> 2020-07-31 | O12: =IF($F12=1,EOMONTH($M12,VLOOKUP($D12,CAPEX!$B$73:$F$99,5,FALSE)),EOMONTH($M12,VLOOKUP($D12,CAPEX!$B$39:$F$65,5,FALSE))) -> 2021-04-30 | P12: =MATCH(M12,FluxoCaixa!$J$10:$PM$10,0) -> 1 | Q12: =MATCH(N12,FluxoCaixa!$J$10:$PM$10,0) -> 19 | R12: =MATCH(O12,FluxoCaixa!$J$10:$PM$10,0) -> 28
D13: Cidade Tiradentes | E13: 1 | F13: 1 | H13: 622529 | I13: =IF(E13=0,0,H13*(1-PainelControle!$I$12)) -> 622529 | J13: =SUMIF(RECEITAS!$C$690:$C$716,$D13,RECEITAS!$G$690:$G$716) -> 295312226.4 | K13: 24 | L13: =PainelControle!$E$55 -> 1 | M13: =PainelControle!$D$6 -> 2019-01-01 | N13: =EOMONTH($M13,VLOOKUP($D13,CAPEX!$B$39:$F$65,3,FALSE)) -> 2019-12-31 | O13: =IF($F13=1,EOMONTH($M13,VLOOKUP($D13,CAPEX!$B$73:$F$99,5,FALSE)),EOMONTH($M13,VLOOKUP($D13,CAPEX!$B$39:$F$65,5,FALSE))) -> 2022-07-31 | P13: =MATCH(M13,FluxoCaixa!$J$10:$PM$10,0) -> 1 | Q13: =MATCH(N13,FluxoCaixa!$J$10:$PM$10,0) -> 12 | R13: =MATCH(O13,FluxoCaixa!$J$10:$PM$10,0) -> 43
D14: Grajaú | E14: 1 | F14: 1 | H14: 758622 | I14: =IF(E14=0,0,H14*(1-PainelControle!$I$12)) -> 758622 | J14: =SUMIF(RECEITAS!$C$690:$C$716,$D14,RECEITAS!$G$690:$G$716) -> 196892245.6 | K14: 24 | L14: =PainelControle!$E$55 -> 1 | M14: =PainelControle!$D$6 -> 2019-01-01 | N14: =EOMONTH($M14,VLOOKUP($D14,CAPEX!$B$39:$F$65,3,FALSE)) -> 2021-02-28 | O14: =IF($F14=1,EOMONTH($M14,VLOOKUP($D14,CAPEX!$B$73:$F$99,5,FALSE)),EOMONTH($M14,VLOOKUP($D14,CAPEX!$B$39:$F$65,5,FALSE))) -> 2024-01-31 | P14: =MATCH(M14,FluxoCaixa!$J$10:$PM$10,0) -> 1 | Q14: =MATCH(N14,FluxoCaixa!$J$10:$PM$10,0) -> 26 | R14: =MATCH(O14,FluxoCaixa!$J$10:$PM$10,0) -> 61
D15: Guarapiranga | E15: 1 | H15: 495985 | I15: =IF(E15=0,0,H15*(1-PainelControle!$I$12)) -> 495985 | J15: =SUMIF(RECEITAS!$C$690:$C$716,$D15,RECEITAS!$G$690:$G$716) -> 2677290.517 | K15: 24 | M15: =PainelControle!$D$6 -> 2019-01-01 | N15: =EOMONTH($M15,VLOOKUP($D15,CAPEX!$B$39:$F$65,3,FALSE)) -> 2021-02-28 | O15: =IF($F15=1,EOMONTH($M15,VLOOKUP($D15,CAPEX!$B$73:$F$99,5,FALSE)),EOMONTH($M15,VLOOKUP($D15,CAPEX!$B$39:$F$65,5,FALSE))) -> 2021-11-30 | P15: =MATCH(M15,FluxoCaixa!$J$10:$PM$10,0) -> 1 | Q15: =MATCH(N15,FluxoCaixa!$J$10:$PM$10,0) -> 26 | R15: =MATCH(O15,FluxoCaixa!$J$10:$PM$10,0) -> 35
D16: Jardim Ângela | E16: 1 | H16: 534683 | I16: =IF(E16=0,0,H16*(1-PainelControle!$I$12)) -> 534683 | J16: =SUMIF(RECEITAS!$C$690:$C$716,$D16,RECEITAS!$G$690:$G$716) -> 3841320.246 | K16: 24 | M16: =PainelControle!$D$6 -> 2019-01-01 | N16: =EOMONTH($M16,VLOOKUP($D16,CAPEX!$B$39:$F$65,3,FALSE)) -> 2021-02-28 | O16: =IF($F16=1,EOMONTH($M16,VLOOKUP($D16,CAPEX!$B$73:$F$99,5,FALSE)),EOMONTH($M16,VLOOKUP($D16,CAPEX!$B$39:$F$65,5,FALSE))) -> 2021-11-30 | P16: =MATCH(M16,FluxoCaixa!$J$10:$PM$10,0) -> 1 | Q16: =MATCH(N16,FluxoCaixa!$J$10:$PM$10,0) -> 26 | R16: =MATCH(O16,FluxoCaixa!$J$10:$PM$10,0) -> 35
D17: João Dias | E17: 1 | H17: 653577 | I17: =IF(E17=0,0,H17*(1-PainelControle!$I$12)) -> 653577 | J17: =SUMIF(RECEITAS!$C$690:$C$716,$D17,RECEITAS!$G$690:$G$716) -> 9545065.919 | K17: 24 | M17: =PainelControle!$D$6 -> 2019-01-01 | N17: =EOMONTH($M17,VLOOKUP($D17,CAPEX!$B$39:$F$65,3,FALSE)) -> 2021-02-28 | O17: =IF($F17=1,EOMONTH($M17,VLOOKUP($D17,CAPEX!$B$73:$F$99,5,FALSE)),EOMONTH($M17,VLOOKUP($D17,CAPEX!$B$39:$F$65,5,FALSE))) -> 2021-11-30 | P17: =MATCH(M17,FluxoCaixa!$J$10:$PM$10,0) -> 1 | Q17: =MATCH(N17,FluxoCaixa!$J$10:$PM$10,0) -> 26 | R17: =MATCH(O17,FluxoCaixa!$J$10:$PM$10,0) -> 35
D18: Lapa | E18: 1 | F18: 1 | G18: 1 | H18: 572282 | I18: =IF(E18=0,0,H18*(1-PainelControle!$I$12)) -> 572282 | J18: =SUMIF(RECEITAS!$C$690:$C$716,$D18,RECEITAS!$G$690:$G$716) -> 148474427.8 | K18: 24 | L18: =PainelControle!$E$55 -> 1 | M18: =PainelControle!$D$6 -> 2019-01-01 | N18: =EOMONTH($M18,VLOOKUP($D18,CAPEX!$B$39:$F$65,3,FALSE)) -> 2020-07-31 | O18: =IF($F18=1,EOMONTH($M18,VLOOKUP($D18,CAPEX!$B$73:$F$99,5,FALSE)),EOMONTH($M18,VLOOKUP($D18,CAPEX!$B$39:$F$65,5,FALSE))) -> 2022-07-31 | P18: =MATCH(M18,FluxoCaixa!$J$10:$PM$10,0) -> 1 | Q18: =MATCH(N18,FluxoCaixa!$J$10:$PM$10,0) -> 19 | R18: =MATCH(O18,FluxoCaixa!$J$10:$PM$10,0) -> 43
D19: Mercado | E19: 1 | H19: 1081497 | I19: =IF(E19=0,0,H19*(1-PainelControle!$I$12)) -> 1081497 | J19: =SUMIF(RECEITAS!$C$690:$C$716,$D19,RECEITAS!$G$690:$G$716) -> 2620927.288 | K19: 24 | M19: =PainelControle!$D$6 -> 2019-01-01 | N19: =EOMONTH($M19,VLOOKUP($D19,CAPEX!$B$39:$F$65,3,FALSE)) -> 2021-07-31 | O19: =IF($F19=1,EOMONTH($M19,VLOOKUP($D19,CAPEX!$B$73:$F$99,5,FALSE)),EOMONTH($M19,VLOOKUP($D19,CAPEX!$B$39:$F$65,5,FALSE))) -> 2022-04-30 | P19: =MATCH(M19,FluxoCaixa!$J$10:$PM$10,0) -> 1 | Q19: =MATCH(N19,FluxoCaixa!$J$10:$PM$10,0) -> 31 | R19: =MATCH(O19,FluxoCaixa!$J$10:$PM$10,0) -> 40
D20: Parelheiros | E20: 1 | H20: 345131 | I20: =IF(E20=0,0,H20*(1-PainelControle!$I$12)) -> 345131 | J20: =SUMIF(RECEITAS!$C$690:$C$716,$D20,RECEITAS!$G$690:$G$716) -> 1303724.367 | K20: 24 | M20: =PainelControle!$D$6 -> 2019-01-01 | N20: =EOMONTH($M20,VLOOKUP($D20,CAPEX!$B$39:$F$65,3,FALSE)) -> 2021-02-28 | O20: =IF($F20=1,EOMONTH($M20,VLOOKUP($D20,CAPEX!$B$73:$F$99,5,FALSE)),EOMONTH($M20,VLOOKUP($D20,CAPEX!$B$39:$F$65,5,FALSE))) -> 2021-11-30 | P20: =MATCH(M20,FluxoCaixa!$J$10:$PM$10,0) -> 1 | Q20: =MATCH(N20,FluxoCaixa!$J$10:$PM$10,0) -> 26 | R20: =MATCH(O20,FluxoCaixa!$J$10:$PM$10,0) -> 35
D21: Parque Dom Pedro II | E21: 1 | F21: 1 | H21: 1405301 | I21: =IF(E21=0,0,H21*(1-PainelControle!$I$12)) -> 1405301 | J21: =SUMIF(RECEITAS!$C$690:$C$716,$D21,RECEITAS!$G$690:$G$716) -> 210611474.5 | K21: 24 | L21: =PainelControle!$E$55 -> 1 | M21: =PainelControle!$D$6 -> 2019-01-01 | N21: =EOMONTH($M21,VLOOKUP($D21,CAPEX!$B$39:$F$65,3,FALSE)) -> 2021-07-31 | O21: =IF($F21=1,EOMONTH($M21,VLOOKUP($D21,CAPEX!$B$73:$F$99,5,FALSE)),EOMONTH($M21,VLOOKUP($D21,CAPEX!$B$39:$F$65,5,FALSE))) -> 2022-07-31 | P21: =MATCH(M21,FluxoCaixa!$J$10:$PM$10,0) -> 1 | Q21: =MATCH(N21,FluxoCaixa!$J$10:$PM$10,0) -> 31 | R21: =MATCH(O21,FluxoCaixa!$J$10:$PM$10,0) -> 43
D22: Penha | E22: 1 | H22: 247848 | I22: =IF(E22=0,0,H22*(1-PainelControle!$I$12)) -> 247848 | J22: =SUMIF(RECEITAS!$C$690:$C$716,$D22,RECEITAS!$G$690:$G$716) -> 1939647.623 | K22: 24 | M22: =PainelControle!$D$6 -> 2019-01-01 | N22: =EOMONTH($M22,VLOOKUP($D22,CAPEX!$B$39:$F$65,3,FALSE)) -> 2019-12-31 | O22: =IF($F22=1,EOMONTH($M22,VLOOKUP($D22,CAPEX!$B$73:$F$99,5,FALSE)),EOMONTH($M22,VLOOKUP($D22,CAPEX!$B$39:$F$65,5,FALSE))) -> 2020-09-30 | P22: =MATCH(M22,FluxoCaixa!$J$10:$PM$10,0) -> 1 | Q22: =MATCH(N22,FluxoCaixa!$J$10:$PM$10,0) -> 12 | R22: =MATCH(O22,FluxoCaixa!$J$10:$PM$10,0) -> 21
D23: Pinheiros | E23: 1 | F23: 1 | G23: 1 | H23: 836319 | I23: =IF(E23=0,0,H23*(1-PainelControle!$I$12)) -> 836319 | J23: =SUMIF(RECEITAS!$C$690:$C$716,$D23,RECEITAS!$G$690:$G$716) -> 411928946.5 | K23: 24 | L23: =PainelControle!$E$55 -> 1 | M23: =PainelControle!$D$6 -> 2019-01-01 | N23: =EOMONTH($M23,VLOOKUP($D23,CAPEX!$B$39:$F$65,3,FALSE)) -> 2021-02-28 | O23: =IF($F23=1,EOMONTH($M23,VLOOKUP($D23,CAPEX!$B$73:$F$99,5,FALSE)),EOMONTH($M23,VLOOKUP($D23,CAPEX!$B$39:$F$65,5,FALSE))) -> 2023-01-31 | P23: =MATCH(M23,FluxoCaixa!$J$10:$PM$10,0) -> 1 | Q23: =MATCH(N23,FluxoCaixa!$J$10:$PM$10,0) -> 26 | R23: =MATCH(O23,FluxoCaixa!$J$10:$PM$10,0) -> 49
D24: Pirituba | E24: 1 | H24: 611288 | I24: =IF(E24=0,0,H24*(1-PainelControle!$I$12)) -> 611288 | J24: =SUMIF(RECEITAS!$C$690:$C$716,$D24,RECEITAS!$G$690:$G$716) -> 11323430.49 | K24: 24 | M24: =PainelControle!$D$6 -> 2019-01-01 | N24: =EOMONTH($M24,VLOOKUP($D24,CAPEX!$B$39:$F$65,3,FALSE)) -> 2020-07-31 | O24: =IF($F24=1,EOMONTH($M24,VLOOKUP($D24,CAPEX!$B$73:$F$99,5,FALSE)),EOMONTH($M24,VLOOKUP($D24,CAPEX!$B$39:$F$65,5,FALSE))) -> 2021-04-30 | P24: =MATCH(M24,FluxoCaixa!$J$10:$PM$10,0) -> 1 | Q24: =MATCH(N24,FluxoCaixa!$J$10:$PM$10,0) -> 19 | R24: =MATCH(O24,FluxoCaixa!$J$10:$PM$10,0) -> 28
D25: Princesa Isabel | E25: 0 | H25: 593833 | I25: =IF(E25=0,0,H25*(1-PainelControle!$I$12)) -> 0 | J25: =SUMIF(RECEITAS!$C$690:$C$716,$D25,RECEITAS!$G$690:$G$716) -> 0 | K25: 24 | M25: =PainelControle!$D$6 -> 2019-01-01 | N25: =EOMONTH($M25,VLOOKUP($D25,CAPEX!$B$39:$F$65,3,FALSE)) -> 2021-07-31 | O25: =IF($F25=1,EOMONTH($M25,VLOOKUP($D25,CAPEX!$B$73:$F$99,5,FALSE)),EOMONTH($M25,VLOOKUP($D25,CAPEX!$B$39:$F$65,5,FALSE))) -> 2022-04-30 | P25: =MATCH(M25,FluxoCaixa!$J$10:$PM$10,0) -> 1 | Q25: =MATCH(N25,FluxoCaixa!$J$10:$PM$10,0) -> 31 | R25: =MATCH(O25,FluxoCaixa!$J$10:$PM$10,0) -> 40
D26: Sacomã | E26: 1 | F26: 1 | G26: 1 | H26: 1512027 | I26: =IF(E26=0,0,H26*(1-PainelControle!$I$12)) -> 1512027 | J26: =SUMIF(RECEITAS!$C$690:$C$716,$D26,RECEITAS!$G$690:$G$716) -> 213201542.7 | K26: 24 | L26: =PainelControle!$E$55 -> 1 | M26: =PainelControle!$D$6 -> 2019-01-01 | N26: =EOMONTH($M26,VLOOKUP($D26,CAPEX!$B$39:$F$65,3,FALSE)) -> 2021-07-31 | O26: =IF($F26=1,EOMONTH($M26,VLOOKUP($D26,CAPEX!$B$73:$F$99,5,FALSE)),EOMONTH($M26,VLOOKUP($D26,CAPEX!$B$39:$F$65,5,FALSE))) -> 2022-01-31 | P26: =MATCH(M26,FluxoCaixa!$J$10:$PM$10,0) -> 1 | Q26: =MATCH(N26,FluxoCaixa!$J$10:$PM$10,0) -> 31 | R26: =MATCH(O26,FluxoCaixa!$J$10:$PM$10,0) -> 37
D27: Santo Amaro | E27: 1 | F27: 1 | G27: 1 | H27: 1361177 | I27: =IF(E27=0,0,H27*(1-PainelControle!$I$12)) -> 1361177 | J27: =SUMIF(RECEITAS!$C$690:$C$716,$D27,RECEITAS!$G$690:$G$716) -> 186483204.9 | K27: 24 | L27: =PainelControle!$E$55 -> 1 | M27: =PainelControle!$D$6 -> 2019-01-01 | N27: =EOMONTH($M27,VLOOKUP($D27,CAPEX!$B$39:$F$65,3,FALSE)) -> 2021-02-28 | O27: =IF($F27=1,EOMONTH($M27,VLOOKUP($D27,CAPEX!$B$73:$F$99,5,FALSE)),EOMONTH($M27,VLOOKUP($D27,CAPEX!$B$39:$F$65,5,FALSE))) -> 2022-07-31 | P27: =MATCH(M27,FluxoCaixa!$J$10:$PM$10,0) -> 1 | Q27: =MATCH(N27,FluxoCaixa!$J$10:$PM$10,0) -> 26 | R27: =MATCH(O27,FluxoCaixa!$J$10:$PM$10,0) -> 43
D28: São Miguel | E28: 1 | H28: 292005 | I28: =IF(E28=0,0,H28*(1-PainelControle!$I$12)) -> 292005 | J28: =SUMIF(RECEITAS!$C$690:$C$716,$D28,RECEITAS!$G$690:$G$716) -> 1773621.93 | K28: 24 | M28: =PainelControle!$D$6 -> 2019-01-01 | N28: =EOMONTH($M28,VLOOKUP($D28,CAPEX!$B$39:$F$65,3,FALSE)) -> 2019-12-31 | O28: =IF($F28=1,EOMONTH($M28,VLOOKUP($D28,CAPEX!$B$73:$F$99,5,FALSE)),EOMONTH($M28,VLOOKUP($D28,CAPEX!$B$39:$F$65,5,FALSE))) -> 2020-09-30 | P28: =MATCH(M28,FluxoCaixa!$J$10:$PM$10,0) -> 1 | Q28: =MATCH(N28,FluxoCaixa!$J$10:$PM$10,0) -> 12 | R28: =MATCH(O28,FluxoCaixa!$J$10:$PM$10,0) -> 21
D29: Sapopemba | E29: 1 | H29: =466384+145814 -> 612198 | I29: =IF(E29=0,0,H29*(1-PainelControle!$I$12)) -> 612198 | J29: =SUMIF(RECEITAS!$C$690:$C$716,$D29,RECEITAS!$G$690:$G$716) -> 2684324.09 | K29: 24 | M29: =PainelControle!$D$6 -> 2019-01-01 | N29: =EOMONTH($M29,VLOOKUP($D29,CAPEX!$B$39:$F$65,3,FALSE)) -> 2019-12-31 | O29: =IF($F29=1,EOMONTH($M29,VLOOKUP($D29,CAPEX!$B$73:$F$99,5,FALSE)),EOMONTH($M29,VLOOKUP($D29,CAPEX!$B$39:$F$65,5,FALSE))) -> 2020-09-30 | P29: =MATCH(M29,FluxoCaixa!$J$10:$PM$10,0) -> 1 | Q29: =MATCH(N29,FluxoCaixa!$J$10:$PM$10,0) -> 12 | R29: =MATCH(O29,FluxoCaixa!$J$10:$PM$10,0) -> 21
D30: Varginha | E30: 1 | H30: 728915 | I30: =IF(E30=0,0,H30*(1-PainelControle!$I$12)) -> 728915 | J30: =SUMIF(RECEITAS!$C$690:$C$716,$D30,RECEITAS!$G$690:$G$716) -> 6383561.175 | K30: 24 | M30: =PainelControle!$D$6 -> 2019-01-01 | N30: =EOMONTH($M30,VLOOKUP($D30,CAPEX!$B$39:$F$65,3,FALSE)) -> 2021-02-28 | O30: =IF($F30=1,EOMONTH($M30,VLOOKUP($D30,CAPEX!$B$73:$F$99,5,FALSE)),EOMONTH($M30,VLOOKUP($D30,CAPEX!$B$39:$F$65,5,FALSE))) -> 2021-11-30 | P30: =MATCH(M30,FluxoCaixa!$J$10:$PM$10,0) -> 1 | Q30: =MATCH(N30,FluxoCaixa!$J$10:$PM$10,0) -> 26 | R30: =MATCH(O30,FluxoCaixa!$J$10:$PM$10,0) -> 35
D31: Vila Carrão | E31: 1 | H31: 347104 | I31: =IF(E31=0,0,H31*(1-PainelControle!$I$12)) -> 347104 | J31: =SUMIF(RECEITAS!$C$690:$C$716,$D31,RECEITAS!$G$690:$G$716) -> 3936370.413 | K31: 24 | M31: =PainelControle!$D$6 -> 2019-01-01 | N31: =EOMONTH($M31,VLOOKUP($D31,CAPEX!$B$39:$F$65,3,FALSE)) -> 2019-12-31 | O31: =IF($F31=1,EOMONTH($M31,VLOOKUP($D31,CAPEX!$B$73:$F$99,5,FALSE)),EOMONTH($M31,VLOOKUP($D31,CAPEX!$B$39:$F$65,5,FALSE))) -> 2020-09-30 | P31: =MATCH(M31,FluxoCaixa!$J$10:$PM$10,0) -> 1 | Q31: =MATCH(N31,FluxoCaixa!$J$10:$PM$10,0) -> 12 | R31: =MATCH(O31,FluxoCaixa!$J$10:$PM$10,0) -> 21
D32: Vila Nova Cachoeirinha | E32: 1 | H32: 756742 | I32: =IF(E32=0,0,H32*(1-PainelControle!$I$12)) -> 756742 | J32: =SUMIF(RECEITAS!$C$690:$C$716,$D32,RECEITAS!$G$690:$G$716) -> 8579650.226 | K32: 24 | M32: =PainelControle!$D$6 -> 2019-01-01 | N32: =EOMONTH($M32,VLOOKUP($D32,CAPEX!$B$39:$F$65,3,FALSE)) -> 2020-07-31 | O32: =IF($F32=1,EOMONTH($M32,VLOOKUP($D32,CAPEX!$B$73:$F$99,5,FALSE)),EOMONTH($M32,VLOOKUP($D32,CAPEX!$B$39:$F$65,5,FALSE))) -> 2021-04-30 | P32: =MATCH(M32,FluxoCaixa!$J$10:$PM$10,0) -> 1 | Q32: =MATCH(N32,FluxoCaixa!$J$10:$PM$10,0) -> 19 | R32: =MATCH(O32,FluxoCaixa!$J$10:$PM$10,0) -> 28
D33: CCT | E33: =1*(1-PainelControle!$I$11)+(1/2*1.5)*PainelControle!$I$11 -> 1 | H33: 0 | I33: 0 | K33: - | M33: =PainelControle!$D$6 -> 2019-01-01 | N33: =EOMONTH($M33,CAPEX!D$66) -> 2019-12-31 | O33: =EOMONTH($M33,CAPEX!F$66) -> 2020-09-30 | P33: =MATCH(M33,FluxoCaixa!$J$10:$PM$10,0) -> 1 | Q33: =MATCH(N33,FluxoCaixa!$J$10:$PM$10,0) -> 12 | R33: =MATCH(O33,FluxoCaixa!$J$10:$PM$10,0) -> 21
D34: Administração | E34: =1*(1-PainelControle!$I$11)+(1/2*1.5)*PainelControle!$I$11 -> 1 | M34: =PainelControle!$D$6 -> 2019-01-01 | N34: =EOMONTH($M34,CAPEX!D$66) -> 2019-12-31 | O34: =MAX(N6:N33) -> 2021-07-31 | P34: =MATCH(M34,FluxoCaixa!$J$10:$PM$10,0) -> 1 | Q34: =MATCH(N34,FluxoCaixa!$J$10:$PM$10,0) -> 12 | R34: =MATCH(O34,FluxoCaixa!$J$10:$PM$10,0) -> 31
H35: =SUM(H6:H34) -> 18082825 | I35: =SUM(I6:I34) -> 15756078 | J35: =SUM(J6:J34) -> 2139910153

Sheet FluxoCaixa
A1: Aux | J1: =IF(J$3>PainelControle!$D$7,0,1) -> 1 | K1: =IF(K$3>PainelControle!$D$7,0,1) -> 1 | L1: =IF(L$3>PainelControle!$D$7,0,1) -> 1 | M1: =IF(M$3>PainelControle!$D$7,0,1) -> 1 | N1: =IF(N$3>PainelControle!$D$7,0,1) -> 1 | O1: =IF(O$3>PainelControle!$D$7,0,1) -> 1 | P1: =IF(P$3>PainelControle!$D$7,0,1) -> 1 | Q1: =IF(Q$3>PainelControle!$D$7,0,1) -> 1 | R1: =IF(R$3>PainelControle!$D$7,0,1) -> 1 | S1: =IF(S$3>PainelControle!$D$7,0,1) -> 1 | T1: =IF(T$3>PainelControle!$D$7,0,1) -> 1 | U1: =IF(U$3>PainelControle!$D$7,0,1) -> 1 | V1: =IF(V$3>PainelControle!$D$7,0,1) -> 1 | W1: =IF(W$3>PainelControle!$D$7,0,1) -> 1 | X1: =IF(X$3>PainelControle!$D$7,0,1) -> 1 | Y1: =IF(Y$3>PainelControle!$D$7,0,1) -> 1 | Z1: =IF(Z$3>PainelControle!$D$7,0,1) -> 1 | AA1: =IF(AA$3>PainelControle!$D$7,0,1) -> 1 | AB1: =IF(AB$3>PainelControle!$D$7,0,1) -> 1 | AC1: =IF(AC$3>PainelControle!$D$7,0,1) -> 1 | AD1: =IF(AD$3>PainelControle!$D$7,0,1) -> 1 | AE1: =IF(AE$3>PainelControle!$D$7,0,1) -> 1 | AF1: =IF(AF$3>PainelControle!$D$7,0,1) -> 1 | AG1: =IF(AG$3>PainelControle!$D$7,0,1) -> 1 | AH1: =IF(AH$3>PainelControle!$D$7,0,1) -> 1 | AI1: =IF(AI$3>PainelControle!$D$7,0,1) -> 1 | AJ1: =IF(AJ$3>PainelControle!$D$7,0,1) -> 1 | AK1: =IF(AK$3>PainelControle!$D$7,0,1) -> 1 | AL1: =IF(AL$3>PainelControle!$D$7,0,1) -> 1 | AM1: =IF(AM$3>PainelControle!$D$7,0,1) -> 1 | AN1: =IF(AN$3>PainelControle!$D$7,0,1) -> 1 | AO1: =IF(AO$3>PainelControle!$D$7,0,1) -> 1 | AP1: =IF(AP$3>PainelControle!$D$7,0,1) -> 1 | AQ1: =IF(AQ$3>PainelControle!$D$7,0,1) -> 1 | AR1: =IF(AR$3>PainelControle!$D$7,0,1) -> 1 | AS1: =IF(AS$3>PainelControle!$D$7,0,1) -> 1 | AT1: =IF(AT$3>PainelControle!$D$7,0,1) -> 1 | AU1: =IF(AU$3>PainelControle!$D$7,0,1) -> 1 | AV1: =IF(AV$3>PainelControle!$D$7,0,1) -> 1
C2: Fluxo de Caixa do Projeto (R$) | I2: ano calendário: | J2: =YEAR(J10) -> 2019 | K2: 2019 | L2: 2019 | M2: 2019 | N2: 2019 | O2: 2019 | P2: 2019 | Q2: 2019 | R2: 2019 | S2: 2019 | T2: 2019 | U2: 2019 | V2: 2020 | W2: 2020 | X2: 2020 | Y2: 2020 | Z2: 2020 | AA2: 2020 | AB2: 2020 | AC2: 2020 | AD2: 2020 | AE2: 2020 | AF2: 2020 | AG2: 2020 | AH2: 2021 | AI2: 2021 | AJ2: 2021 | AK2: 2021 | AL2: 2021 | AM2: 2021 | AN2: 2021 | AO2: 2021 | AP2: 2021 | AQ2: 2021 | AR2: 2021 | AS2: 2021 | AT2: 2022 | AU2: 2022 | AV2: 2022 | AW2: 2022 | AX2: 2022 | AY2: 2022 | AZ2: 2022 | BA2: 2022 | BB2: 2022 | BC2: 2022 | BD2: 2022 | BE2: 2022 | BF2: 2023 | BG2: 2023 | BH2: 2023 | BI2: 2023 | BJ2: 2023 | BK2: 2023 | BL2: 2023 | BM2: 2023 | BN2: 2023 | BO2: 2023 | BP2: 2023 | BQ2: 2023 | BR2: 2024 | BS2: 2024 | BT2: 2024 | BU2: 2024 | BV2: =YEAR(BV10) -> 2024 | BW2: 2024 | BX2: 2024 | BY2: 2024 | BZ2: 2024 | CA2: 2024 | CB2: 2024 | CC2: 2024 | CD2: 2025 | CE2: 2025 | CF2: 2025 | CG2: 2025 | CH2: 2025 | CI2: 2025 | CJ2: 2025 | CK2: 2025 | CL2: 2025 | CM2: 2025 | CN2: 2025 | CO2: 2025 | CP2: 2026 | CQ2: 2026 | CR2: 2026 | CS2: 2026 | CT2: 2026 | CU2: 2026 | CV2: 2026 | CW2: 2026 | CX2: 2026 | CY2: 2026 | CZ2: 2026 | DA2: 2026 | DB2: 2027 | DC2: 2027 | DD2: 2027 | DE2: 2027 | DF2: 2027 | DG2: 2027 | DH2: 2027 | DI2: 2027 | DJ2: 2027 | DK2: 2027 | DL2: 2027 | DM2: 2027 | DN2: 2028 | DO2: 2028 | DP2: 2028 | DQ2: 2028 | DR2: 2028 | DS2: 2028 | DT2: 2028 | DU2: 2028 | DV2: 2028 | DW2: 2028 | DX2: 2028 | DY2: 2028 | DZ2: 2029 | EA2: 2029 | EB2: 2029 | EC2: 2029 | ED2: 2029 | EE2: 2029 | EF2: 2029 | EG2: 2029 | EH2: =YEAR(EH10) -> 2029 | EI2: 2029 | EJ2: 2029 | EK2: 2029 | EL2: 2030 | EM2: 2030 | EN2: 2030 | EO2: 2030 | EP2: 2030 | EQ2: 2030 | ER2: 2030 | ES2: 2030 | ET2: 2030 | EU2: 2030 | EV2: 2030 | EW2: 2030 | EX2: 2031 | EY2: 2031 | EZ2: 2031 | FA2: 2031 | FB2: 2031 | FC2: 2031 | FD2: 2031 | FE2: 2031 | FF2: 2031 | FG2: 2031 | FH2: 2031 | FI2: 2031 | FJ2: 2032 | FK2: 2032 | FL2: 2032 | FM2: 2032 | FN2: 2032 | FO2: 2032 | FP2: 2032 | FQ2: 2032 | FR2: 2032 | FS2: 2032 | FT2: 2032 | FU2: 2032 | FV2: 2033 | FW2: 2033 | FX2: 2033 | FY2: 2033 | FZ2: 2033 | GA2: 2033 | GB2: 2033 | GC2: 2033 | GD2: 2033 | GE2: 2033 | GF2: 2033 | GG2: 2033 | GH2: 2034 | GI2: 2034 | GJ2: 2034 | GK2: 2034 | GL2: 2034 | GM2: 2034 | GN2: 2034 | GO2: 2034 | GP2: 2034 | GQ2: 2034 | GR2: 2034 | GS2: 2034 | GT2: =YEAR(GT10) -> 2035 | GU2: 2035 | GV2: 2035 | GW2: 2035 | GX2: 2035 | GY2: 2035 | GZ2: 2035 | HA2: 2035 | HB2: 2035 | HC2: 2035 | HD2: 2035 | HE2: 2035 | HF2: 2036 | HG2: 2036 | HH2: 2036 | HI2: 2036 | HJ2: 2036 | HK2: 2036 | HL2: 2036 | HM2: 2036 | HN2: 2036 | HO2: 2036 | HP2: 2036 | HQ2: 2036 | HR2: 2037 | HS2: 2037 | HT2: 2037 | HU2: 2037 | HV2: 2037 | HW2: 2037 | HX2: 2037 | HY2: 2037 | HZ2: 2037 | IA2: 2037 | IB2: 2037 | IC2: 2037 | ID2: 2038 | IE2: 2038 | IF2: 2038 | IG2: 2038 | IH2: 2038 | II2: 2038 | IJ2: 2038 | IK2: 2038 | IL2: 2038 | IM2: 2038 | IN2: 2038 | IO2: 2038 | IP2: 2039 | IQ2: 2039 | IR2: 2039 | IS2: 2039 | IT2: 2039 | IU2: 2039 | IV2: 2039 | IW2: 2039 | IX2: 2039 | IY2: 2039 | IZ2: 2039 | JA2: 2039 | JB2: 2040 | JC2: 2040 | JD2: 2040 | JE2: 2040 | JF2: =YEAR(JF10) -> 2040 | JG2: 2040 | JH2: 2040 | JI2: 2040 | JJ2: 2040 | JK2: 2040 | JL2: 2040 | JM2: 2040 | JN2: 2041 | JO2: 2041 | JP2: 2041 | JQ2: 2041 | JR2: 2041 | JS2: 2041 | JT2: 2041 | JU2: 2041 | JV2: 2041 | JW2: 2041 | JX2: 2041 | JY2: 2041 | JZ2: 2042 | KA2: 2042 | KB2: 2042 | KC2: 2042 | KD2: 2042 | KE2: 2042 | KF2: 2042 | KG2: 2042 | KH2: 2042 | KI2: 2042 | KJ2: 2042 | KK2: 2042 | KL2: 2043 | KM2: 2043 | KN2: 2043 | KO2: 2043 | KP2: 2043 | KQ2: 2043 | KR2: 2043 | KS2: 2043 | KT2: 2043 | KU2: 2043 | KV2: 2043 | KW2: 2043 | KX2: 2044 | KY2: 2044 | KZ2: 2044 | LA2: 2044 | LB2: 2044 | LC2: 2044 | LD2: 2044 | LE2: 2044 | LF2: 2044 | LG2: 2044 | LH2: 2044 | LI2: 2044 | LJ2: 2045 | LK2: 2045 | LL2: 2045 | LM2: 2045 | LN2: 2045 | LO2: 2045 | LP2: 2045 | LQ2: 2045 | LR2: =YEAR(LR10) -> 2045 | LS2: 2045 | LT2: 2045 | LU2: 2045 | LV2: 2046 | LW2: 2046 | LX2: 2046 | LY2: 2046 | LZ2: 2046 | MA2: 2046 | MB2: 2046 | MC2: 2046 | MD2: 2046 | ME2: 2046 | MF2: 2046 | MG2: 2046 | MH2: 2047 | MI2: 2047 | MJ2: 2047 | MK2: 2047 | ML2: 2047 | MM2: 2047 | MN2: 2047 | MO2: 2047 | MP2: 2047 | MQ2: 2047 | MR2: 2047 | MS2: 2047 | MT2: 2048 | MU2: 2048 | MV2: 2048 | MW2: 2048 | MX2: 2048 | MY2: 2048 | MZ2: 2048 | NA2: 2048 | NB2: 2048 | NC2: 2048 | ND2: 2048 | NE2: 2048 | NF2: 2049 | NG2: 2049 | NH2: 2049 | NI2: 2049 | NJ2: 2049 | NK2: 2049 | NL2: 2049 | NM2: 2049 | NN2: 2049 | NO2: 2049 | NP2: 2049 | NQ2: 2049 | NR2: 2050 | NS2: 2050 | NT2: 2050 | NU2: 2050 | NV2: 2050 | NW2: 2050 | NX2: 2050 | NY2: 2050 | NZ2: 2050 | OA2: 2050 | OB2: 2050 | OC2: 2050 | OD2: =YEAR(OD10) -> 2051 | OE2: 2051 | OF2: 2051 | OG2: 2051 | OH2: 2051 | OI2: 2051 | OJ2: 2051 | OK2: 2051 | OL2: 2051 | OM2: 2051 | ON2: 2051 | OO2: 2051 | OP2: 2052 | OQ2: 2052 | OR2: 2052 | OS2: 2052 | OT2: 2052 | OU2: 2052 | OV2: 2052 | OW2: 2052 | OX2: 2052 | OY2: 2052 | OZ2: 2052 | PA2: 2052 | PB2: 2053 | PC2: 2053 | PD2: 2053 | PE2: 2053 | PF2: 2053 | PG2: 2053 | PH2: 2053 | PI2: 2053 | PJ2: 2053 | PK2: 2053 | PL2: 2053 | PM2: 2053 | PN2: 0
I3: ano de contrato: | J3: =ROUNDUP(J6/12,0) -> 1 | K3: 1 | L3: 1 | M3: 1 | N3: 1 | O3: 1 | P3: 1 | Q3: 1 | R3: 1 | S3: 1 | T3: 1 | U3: 1 | V3: 2 | W3: 2 | X3: 2 | Y3: 2 | Z3: 2 | AA3: 2 | AB3: 2 | AC3: 2 | AD3: 2 | AE3: 2 | AF3: 2 | AG3: 2 | AH3: 3 | AI3: 3 | AJ3: 3 | AK3: 3 | AL3: 3 | AM3: 3 | AN3: 3 | AO3: 3 | AP3: 3 | AQ3: 3 | AR3: 3 | AS3: 3 | AT3: 4 | AU3: 4 | AV3: 4 | AW3: 4 | AX3: 4 | AY3: 4 | AZ3: 4 | BA3: 4 | BB3: 4 | BC3: 4 | BD3: 4 | BE3: 4 | BF3: 5 | BG3: 5 | BH3: 5 | BI3: 5 | BJ3: 5 | BK3: 5 | BL3: 5 | BM3: 5 | BN3: 5 | BO3: 5 | BP3: 5 | BQ3: 5 | BR3: 6 | BS3: 6 | BT3: 6 | BU3: 6 | BV3: =ROUNDUP(BV6/12,0) -> 6 | BW3: 6 | BX3: 6 | BY3: 6 | BZ3: 6 | CA3: 6 | CB3: 6 | CC3: 6 | CD3: 7 | CE3: 7 | CF3: 7 | CG3: 7 | CH3: 7 | CI3: 7 | CJ3: 7 | CK3: 7 | CL3: 7 | CM3: 7 | CN3: 7 | CO3: 7 | CP3: 8 | CQ3: 8 | CR3: 8 | CS3: 8 | CT3: 8 | CU3: 8 | CV3: 8 | CW3: 8 | CX3: 8 | CY3: 8 | CZ3: 8 | DA3: 8 | DB3: 9 | DC3: 9 | DD3: 9 | DE3: 9 | DF3: 9 | DG3: 9 | DH3: 9 | DI3: 9 | DJ3: 9 | DK3: 9 | DL3: 9 | DM3: 9 | DN3: 10 | DO3: 10 | DP3: 10 | DQ3: 10 | DR3: 10 | DS3: 10 | DT3: 10 | DU3: 10 | DV3: 10 | DW3: 10 | DX3: 10 | DY3: 10 | DZ3: 11 | EA3: 11 | EB3: 11 | EC3: 11 | ED3: 11 | EE3: 11 | EF3: 11 | EG3: 11 | EH3: =ROUNDUP(EH6/12,0) -> 11 | EI3: 11 | EJ3: 11 | EK3: 11 | EL3: 12 | EM3: 12 | EN3: 12 | EO3: 12 | EP3: 12 | EQ3: 12 | ER3: 12 | ES3: 12 | ET3: 12 | EU3: 12 | EV3: 12 | EW3: 12 | EX3: 13 | EY3: 13 | EZ3: 13 | FA3: 13 | FB3: 13 | FC3: 13 | FD3: 13 | FE3: 13 | FF3: 13 | FG3: 13 | FH3: 13 | FI3: 13 | FJ3: 14 | FK3: 14 | FL3: 14 | FM3: 14 | FN3: 14 | FO3: 14 | FP3: 14 | FQ3: 14 | FR3: 14 | FS3: 14 | FT3: 14 | FU3: 14 | FV3: 15 | FW3: 15 | FX3: 15 | FY3: 15 | FZ3: 15 | GA3: 15 | GB3: 15 | GC3: 15 | GD3: 15 | GE3: 15 | GF3: 15 | GG3: 15 | GH3: 16 | GI3: 16 | GJ3: 16 | GK3: 16 | GL3: 16 | GM3: 16 | GN3: 16 | GO3: 16 | GP3: 16 | GQ3: 16 | GR3: 16 | GS3: 16 | GT3: =ROUNDUP(GT6/12,0) -> 17 | GU3: 17 | GV3: 17 | GW3: 17 | GX3: 17 | GY3: 17 | GZ3: 17 | HA3: 17 | HB3: 17 | HC3: 17 | HD3: 17 | HE3: 17 | HF3: 18 | HG3: 18 | HH3: 18 | HI3: 18 | HJ3: 18 | HK3: 18 | HL3: 18 | HM3: 18 | HN3: 18 | HO3: 18 | HP3: 18 | HQ3: 18 | HR3: 19 | HS3: 19 | HT3: 19 | HU3: 19 | HV3: 19 | HW3: 19 | HX3: 19 | HY3: 19 | HZ3: 19 | IA3: 19 | IB3: 19 | IC3: 19 | ID3: 20 | IE3: 20 | IF3: 20 | IG3: 20 | IH3: 20 | II3: 20 | IJ3: 20 | IK3: 20 | IL3: 20 | IM3: 20 | IN3: 20 | IO3: 20 | IP3: 21 | IQ3: 21 | IR3: 21 | IS3: 21 | IT3: 21 | IU3: 21 | IV3: 21 | IW3: 21 | IX3: 21 | IY3: 21 | IZ3: 21 | JA3: 21 | JB3: 22 | JC3: 22 | JD3: 22 | JE3: 22 | JF3: =ROUNDUP(JF6/12,0) -> 22 | JG3: 22 | JH3: 22 | JI3: 22 | JJ3: 22 | JK3: 22 | JL3: 22 | JM3: 22 | JN3: 23 | JO3: 23 | JP3: 23 | JQ3: 23 | JR3: 23 | JS3: 23 | JT3: 23 | JU3: 23 | JV3: 23 | JW3: 23 | JX3: 23 | JY3: 23 | JZ3: 24 | KA3: 24 | KB3: 24 | KC3: 24 | KD3: 24 | KE3: 24 | KF3: 24 | KG3: 24 | KH3: 24 | KI3: 24 | KJ3: 24 | KK3: 24 | KL3: 25 | KM3: 25 | KN3: 25 | KO3: 25 | KP3: 25 | KQ3: 25 | KR3: 25 | KS3: 25 | KT3: 25 | KU3: 25 | KV3: 25 | KW3: 25 | KX3: 26 | KY3: 26 | KZ3: 26 | LA3: 26 | LB3: 26 | LC3: 26 | LD3: 26 | LE3: 26 | LF3: 26 | LG3: 26 | LH3: 26 | LI3: 26 | LJ3: 27 | LK3: 27 | LL3: 27 | LM3: 27 | LN3: 27 | LO3: 27 | LP3: 27 | LQ3: 27 | LR3: =ROUNDUP(LR6/12,0) -> 27 | LS3: 27 | LT3: 27 | LU3: 27 | LV3: 28 | LW3: 28 | LX3: 28 | LY3: 28 | LZ3: 28 | MA3: 28 | MB3: 28 | MC3: 28 | MD3: 28 | ME3: 28 | MF3: 28 | MG3: 28 | MH3: 29 | MI3: 29 | MJ3: 29 | MK3: 29 | ML3: 29 | MM3: 29 | MN3: 29 | MO3: 29 | MP3: 29 | MQ3: 29 | MR3: 29 | MS3: 29 | MT3: 30 | MU3: 30 | MV3: 30 | MW3: 30 | MX3: 30 | MY3: 30 | MZ3: 30 | NA3: 30 | NB3: 30 | NC3: 30 | ND3: 30 | NE3: 30 | NF3: 31 | NG3: 31 | NH3: 31 | NI3: 31 | NJ3: 31 | NK3: 31 | NL3: 31 | NM3: 31 | NN3: 31 | NO3: 31 | NP3: 31 | NQ3: 31 | NR3: 32 | NS3: 32 | NT3: 32 | NU3: 32 | NV3: 32 | NW3: 32 | NX3: 32 | NY3: 32 | NZ3: 32 | OA3: 32 | OB3: 32 | OC3: 32 | OD3: =ROUNDUP(OD6/12,0) -> 33 | OE3: 33 | OF3: 33 | OG3: 33 | OH3: 33 | OI3: 33 | OJ3: 33 | OK3: 33 | OL3: 33 | OM3: 33 | ON3: 33 | OO3: 33 | OP3: 34 | OQ3: 34 | OR3: 34 | OS3: 34 | OT3: 34 | OU3: 34 | OV3: 34 | OW3: 34 | OX3: 34 | OY3: 34 | OZ3: 34 | PA3: 34 | PB3: 35 | PC3: 35 | PD3: 35 | PE3: 35 | PF3: 35 | PG3: 35 | PH3: 35 | PI3: 35 | PJ3: 35 | PK3: 35 | PL3: 35 | PM3: 35 | PN3: 0
I4: ano de vigência: | J4: =ROUNDUP(J7/12,0) -> 1 | K4: 1 | L4: 1 | M4: 1 | N4: 1 | O4: 1 | P4: 1 | Q4: 1 | R4: 1 | S4: 1 | T4: 1 | U4: 1 | V4: 2 | W4: 2 | X4: 2 | Y4: 2 | Z4: 2 | AA4: 2 | AB4: 2 | AC4: 2 | AD4: 2 | AE4: 2 | AF4: 2 | AG4: 2 | AH4: 3 | AI4: 3 | AJ4: 3 | AK4: 3 | AL4: 3 | AM4: 3 | AN4: 3 | AO4: 3 | AP4: 3 | AQ4: 3 | AR4: 3 | AS4: 3 | AT4: 4 | AU4: 4 | AV4: 4 | AW4: 4 | AX4: 4 | AY4: 4 | AZ4: 4 | BA4: 4 | BB4: 4 | BC4: 4 | BD4: 4 | BE4: 4 | BF4: 5 | BG4: 5 | BH4: 5 | BI4: 5 | BJ4: 5 | BK4: 5 | BL4: 5 | BM4: 5 | BN4: 5 | BO4: 5 | BP4: 5 | BQ4: 5 | BR4: 6 | BS4: 6 | BT4: 6 | BU4: 6 | BV4: =ROUNDUP(BV7/12,0) -> 6 | BW4: 6 | BX4: 6 | BY4: 6 | BZ4: 6 | CA4: 6 | CB4: 6 | CC4: 6 | CD4: 7 | CE4: 7 | CF4: 7 | CG4: 7 | CH4: 7 | CI4: 7 | CJ4: 7 | CK4: 7 | CL4: 7 | CM4: 7 | CN4: 7 | CO4: 7 | CP4: 8 | CQ4: 8 | CR4: 8 | CS4: 8 | CT4: 8 | CU4: 8 | CV4: 8 | CW4: 8 | CX4: 8 | CY4: 8 | CZ4: 8 | DA4: 8 | DB4: 9 | DC4: 9 | DD4: 9 | DE4: 9 | DF4: 9 | DG4: 9 | DH4: 9 | DI4: 9 | DJ4: 9 | DK4: 9 | DL4: 9 | DM4: 9 | DN4: 10 | DO4: 10 | DP4: 10 | DQ4: 10 | DR4: 10 | DS4: 10 | DT4: 10 | DU4: 10 | DV4: 10 | DW4: 10 | DX4: 10 | DY4: 10 | DZ4: 11 | EA4: 11 | EB4: 11 | EC4: 11 | ED4: 11 | EE4: 11 | EF4: 11 | EG4: 11 | EH4: =ROUNDUP(EH7/12,0) -> 11 | EI4: 11 | EJ4: 11 | EK4: 11 | EL4: 12 | EM4: 12 | EN4: 12 | EO4: 12 | EP4: 12 | EQ4: 12 | ER4: 12 | ES4: 12 | ET4: 12 | EU4: 12 | EV4: 12 | EW4: 12 | EX4: 13 | EY4: 13 | EZ4: 13 | FA4: 13 | FB4: 13 | FC4: 13 | FD4: 13 | FE4: 13 | FF4: 13 | FG4: 13 | FH4: 13 | FI4: 13 | FJ4: 14 | FK4: 14 | FL4: 14 | FM4: 14 | FN4: 14 | FO4: 14 | FP4: 14 | FQ4: 14 | FR4: 14 | FS4: 14 | FT4: 14 | FU4: 14 | FV4: 15 | FW4: 15 | FX4: 15 | FY4: 15 | FZ4: 15 | GA4: 15 | GB4: 15 | GC4: 15 | GD4: 15 | GE4: 15 | GF4: 15 | GG4: 15 | GH4: 16 | GI4: 16 | GJ4: 16 | GK4: 16 | GL4: 16 | GM4: 16 | GN4: 16 | GO4: 16 | GP4: 16 | GQ4: 16 | GR4: 16 | GS4: 16 | GT4: =ROUNDUP(GT7/12,0) -> 17 | GU4: 17 | GV4: 17 | GW4: 17 | GX4: 17 | GY4: 17 | GZ4: 17 | HA4: 17 | HB4: 17 | HC4: 17 | HD4: 17 | HE4: 17 | HF4: 18 | HG4: 18 | HH4: 18 | HI4: 18 | HJ4: 18 | HK4: 18 | HL4: 18 | HM4: 18 | HN4: 18 | HO4: 18 | HP4: 18 | HQ4: 18 | HR4: 19 | HS4: 19 | HT4: 19 | HU4: 19 | HV4: 19 | HW4: 19 | HX4: 19 | HY4: 19 | HZ4: 19 | IA4: 19 | IB4: 19 | IC4: 19 | ID4: 20 | IE4: 20 | IF4: 20 | IG4: 20 | IH4: 20 | II4: 20 | IJ4: 20 | IK4: 20 | IL4: 20 | IM4: 20 | IN4: 20 | IO4: 20 | IP4: 21 | IQ4: 21 | IR4: 21 | IS4: 21 | IT4: 21 | IU4: 21 | IV4: 21 | IW4: 21 | IX4: 21 | IY4: 21 | IZ4: 21 | JA4: 21 | JB4: 22 | JC4: 22 | JD4: 22 | JE4: 22 | JF4: =ROUNDUP(JF7/12,0) -> 22 | JG4: 22 | JH4: 22 | JI4: 22 | JJ4: 22 | JK4: 22 | JL4: 22 | JM4: 22 | JN4: 23 | JO4: 23 | JP4: 23 | JQ4: 23 | JR4: 23 | JS4: 23 | JT4: 23 | JU4: 23 | JV4: 23 | JW4: 23 | JX4: 23 | JY4: 23 | JZ4: 24 | KA4: 24 | KB4: 24 | KC4: 24 | KD4: 24 | KE4: 24 | KF4: 24 | KG4: 24 | KH4: 24 | KI4: 24 | KJ4: 24 | KK4: 24 | KL4: 25 | KM4: 25 | KN4: 25 | KO4: 25 | KP4: 25 | KQ4: 25 | KR4: 25 | KS4: 25 | KT4: 25 | KU4: 25 | KV4: 25 | KW4: 25 | KX4: 26 | KY4: 26 | KZ4: 26 | LA4: 26 | LB4: 26 | LC4: 26 | LD4: 26 | LE4: 26 | LF4: 26 | LG4: 26 | LH4: 26 | LI4: 26 | LJ4: 27 | LK4: 27 | LL4: 27 | LM4: 27 | LN4: 27 | LO4: 27 | LP4: 27 | LQ4: 27 | LR4: =ROUNDUP(LR7/12,0) -> 27 | LS4: 27 | LT4: 27 | LU4: 27 | LV4: 28 | LW4: 28 | LX4: 28 | LY4: 28 | LZ4: 28 | MA4: 28 | MB4: 28 | MC4: 28 | MD4: 28 | ME4: 28 | MF4: 28 | MG4: 28 | MH4: 29 | MI4: 29 | MJ4: 29 | MK4: 29 | ML4: 29 | MM4: 29 | MN4: 29 | MO4: 29 | MP4: 29 | MQ4: 29 | MR4: 29 | MS4: 29 | MT4: 30 | MU4: 30 | MV4: 30 | MW4: 30 | MX4: 30 | MY4: 30 | MZ4: 30 | NA4: 30 | NB4: 30 | NC4: 30 | ND4: 30 | NE4: 30 | NF4: 31 | NG4: 31 | NH4: 31 | NI4: 31 | NJ4: 31 | NK4: 31 | NL4: 31 | NM4: 31 | NN4: 31 | NO4: 31 | NP4: 31 | NQ4: 31 | NR4: 32 | NS4: 32 | NT4: 32 | NU4: 32 | NV4: 32 | NW4: 32 | NX4: 32 | NY4: 32 | NZ4: 32 | OA4: 32 | OB4: 32 | OC4: 32 | OD4: =ROUNDUP(OD7/12,0) -> 33 | OE4: 33 | OF4: 33 | OG4: 33 | OH4: 33 | OI4: 33 | OJ4: 33 | OK4: 33 | OL4: 33 | OM4: 33 | ON4: 33 | OO4: 33 | OP4: 34 | OQ4: 34 | OR4: 34 | OS4: 34 | OT4: 34 | OU4: 34 | OV4: 34 | OW4: 34 | OX4: 34 | OY4: 34 | OZ4: 34 | PA4: 34 | PB4: 35 | PC4: 35 | PD4: 35 | PE4: 35 | PF4: 35 | PG4: 35 | PH4: 35 | PI4: 35 | PJ4: 35 | PK4: 35 | PL4: 35 | PM4: 35 | PN4: 0
I5: mês calendário: | J5: 1 | K5: =IF(J5=12,1,J5+1) -> 2 | L5: 3 | M5: 4 | N5: 5 | O5: 6 | P5: 7 | Q5: 8 | R5: 9 | S5: 10 | T5: 11 | U5: 12 | V5: 1 | W5: 2 | X5: 3 | Y5: 4 | Z5: 5 | AA5: 6 | AB5: 7 | AC5: 8 | AD5: 9 | AE5: 10 | AF5: 11 | AG5: 12 | AH5: 1 | AI5: 2 | AJ5: 3 | AK5: 4 | AL5: 5 | AM5: 6 | AN5: 7 | AO5: 8 | AP5: 9 | AQ5: 10 | AR5: 11 | AS5: 12 | AT5: 1 | AU5: 2 | AV5: 3 | AW5: 4 | AX5: 5 | AY5: 6 | AZ5: 7 | BA5: 8 | BB5: 9 | BC5: 10 | BD5: 11 | BE5: 12 | BF5: 1 | BG5: 2 | BH5: 3 | BI5: 4 | BJ5: 5 | BK5: 6 | BL5: 7 | BM5: 8 | BN5: 9 | BO5: 10 | BP5: 11 | BQ5: 12 | BR5: 1 | BS5: 2 | BT5: 3 | BU5: 4 | BV5: 5 | BW5: =IF(BV5=12,1,BV5+1) -> 6 | BX5: 7 | BY5: 8 | BZ5: 9 | CA5: 10 | CB5: 11 | CC5: 12 | CD5: 1 | CE5: 2 | CF5: 3 | CG5: 4 | CH5: 5 | CI5: 6 | CJ5: 7 | CK5: 8 | CL5: 9 | CM5: 10 | CN5: 11 | CO5: 12 | CP5: 1 | CQ5: 2 | CR5: 3 | CS5: 4 | CT5: 5 | CU5: 6 | CV5: 7 | CW5: 8 | CX5: 9 | CY5: 10 | CZ5: 11 | DA5: 12 | DB5: 1 | DC5: 2 | DD5: 3 | DE5: 4 | DF5: 5 | DG5: 6 | DH5: 7 | DI5: 8 | DJ5: 9 | DK5: 10 | DL5: 11 | DM5: 12 | DN5: 1 | DO5: 2 | DP5: 3 | DQ5: 4 | DR5: 5 | DS5: 6 | DT5: 7 | DU5: 8 | DV5: 9 | DW5: 10 | DX5: 11 | DY5: 12 | DZ5: 1 | EA5: 2 | EB5: 3 | EC5: 4 | ED5: 5 | EE5: 6 | EF5: 7 | EG5: 8 | EH5: 9 | EI5: =IF(EH5=12,1,EH5+1) -> 10 | EJ5: 11 | EK5: 12 | EL5: 1 | EM5: 2 | EN5: 3 | EO5: 4 | EP5: 5 | EQ5: 6 | ER5: 7 | ES5: 8 | ET5: 9 | EU5: 10 | EV5: 11 | EW5: 12 | EX5: 1 | EY5: 2 | EZ5: 3 | FA5: 4 | FB5: 5 | FC5: 6 | FD5: 7 | FE5: 8 | FF5: 9 | FG5: 10 | FH5: 11 | FI5: 12 | FJ5: 1 | FK5: 2 | FL5: 3 | FM5: 4 | FN5: 5 | FO5: 6 | FP5: 7 | FQ5: 8 | FR5: 9 | FS5: 10 | FT5: 11 | FU5: 12 | FV5: 1 | FW5: 2 | FX5: 3 | FY5: 4 | FZ5: 5 | GA5: 6 | GB5: 7 | GC5: 8 | GD5: 9 | GE5: 10 | GF5: 11 | GG5: 12 | GH5: 1 | GI5: 2 | GJ5: 3 | GK5: 4 | GL5: 5 | GM5: 6 | GN5: 7 | GO5: 8 | GP5: 9 | GQ5: 10 | GR5: 11 | GS5: 12 | GT5: 1 | GU5: =IF(GT5=12,1,GT5+1) -> 2 | GV5: 3 | GW5: 4 | GX5: 5 | GY5: 6 | GZ5: 7 | HA5: 8 | HB5: 9 | HC5: 10 | HD5: 11 | HE5: 12 | HF5: 1 | HG5: 2 | HH5: 3 | HI5: 4 | HJ5: 5 | HK5: 6 | HL5: 7 | HM5: 8 | HN5: 9 | HO5: 10 | HP5: 11 | HQ5: 12 | HR5: 1 | HS5: 2 | HT5: 3 | HU5: 4 | HV5: 5 | HW5: 6 | HX5: 7 | HY5: 8 | HZ5: 9 | IA5: 10 | IB5: 11 | IC5: 12 | ID5: 1 | IE5: 2 | IF5: 3 | IG5: 4 | IH5: 5 | II5: 6 | IJ5: 7 | IK5: 8 | IL5: 9 | IM5: 10 | IN5: 11 | IO5: 12 | IP5: 1 | IQ5: 2 | IR5: 3 | IS5: 4 | IT5: 5 | IU5: 6 | IV5: 7 | IW5: 8 | IX5: 9 | IY5: 10 | IZ5: 11 | JA5: 12 | JB5: 1 | JC5: 2 | JD5: 3 | JE5: 4 | JF5: 5 | JG5: =IF(JF5=12,1,JF5+1) -> 6 | JH5: 7 | JI5: 8 | JJ5: 9 | JK5: 10 | JL5: 11 | JM5: 12 | JN5: 1 | JO5: 2 | JP5: 3 | JQ5: 4 | JR5: 5 | JS5: 6 | JT5: 7 | JU5: 8 | JV5: 9 | JW5: 10 | JX5: 11 | JY5: 12 | JZ5: 1 | KA5: 2 | KB5: 3 | KC5: 4 | KD5: 5 | KE5: 6 | KF5: 7 | KG5: 8 | KH5: 9 | KI5: 10 | KJ5: 11 | KK5: 12 | KL5: 1 | KM5: 2 | KN5: 3 | KO5: 4 | KP5: 5 | KQ5: 6 | KR5: 7 | KS5: 8 | KT5: 9 | KU5: 10 | KV5: 11 | KW5: 12 | KX5: 1 | KY5: 2 | KZ5: 3 | LA5: 4 | LB5: 5 | LC5: 6 | LD5: 7 | LE5: 8 | LF5: 9 | LG5: 10 | LH5: 11 | LI5: 12 | LJ5: 1 | LK5: 2 | LL5: 3 | LM5: 4 | LN5: 5 | LO5: 6 | LP5: 7 | LQ5: 8 | LR5: 9 | LS5: =IF(LR5=12,1,LR5+1) -> 10 | LT5: 11 | LU5: 12 | LV5: 1 | LW5: 2 | LX5: 3 | LY5: 4 | LZ5: 5 | MA5: 6 | MB5: 7 | MC5: 8 | MD5: 9 | ME5: 10 | MF5: 11 | MG5: 12 | MH5: 1 | MI5: 2 | MJ5: 3 | MK5: 4 | ML5: 5 | MM5: 6 | MN5: 7 | MO5: 8 | MP5: 9 | MQ5: 10 | MR5: 11 | MS5: 12 | MT5: 1 | MU5: 2 | MV5: 3 | MW5: 4 | MX5: 5 | MY5: 6 | MZ5: 7 | NA5: 8 | NB5: 9 | NC5: 10 | ND5: 11 | NE5: 12 | NF5: 1 | NG5: 2 | NH5: 3 | NI5: 4 | NJ5: 5 | NK5: 6 | NL5: 7 | NM5: 8 | NN5: 9 | NO5: 10 | NP5: 11 | NQ5: 12 | NR5: 1 | NS5: 2 | NT5: 3 | NU5: 4 | NV5: 5 | NW5: 6 | NX5: 7 | NY5: 8 | NZ5: 9 | OA5: 10 | OB5: 11 | OC5: 12 | OD5: 1 | OE5: =IF(OD5=12,1,OD5+1) -> 2 | OF5: 3 | OG5: 4 | OH5: 5 | OI5: 6 | OJ5: 7 | OK5: 8 | OL5: 9 | OM5: 10 | ON5: 11 | OO5: 12 | OP5: 1 | OQ5: 2 | OR5: 3 | OS5: 4 | OT5: 5 | OU5: 6 | OV5: 7 | OW5: 8 | OX5: 9 | OY5: 10 | OZ5: 11 | PA5: 12 | PB5: 1 | PC5: 2 | PD5: 3 | PE5: 4 | PF5: 5 | PG5: 6 | PH5: 7 | PI5: 8 | PJ5: 9 | PK5: 10 | PL5: 11 | PM5: 12 | PN5: 0
I6: mês de contrato: | J6: 1 | K6: =J6+1 -> 2 | L6: 3 | M6: 4 | N6: 5 | O6: 6 | P6: 7 | Q6: 8 | R6: 9 | S6: 10 | T6: 11 | U6: 12 | V6: 13 | W6: 14 | X6: 15 | Y6: 16 | Z6: 17 | AA6: 18 | AB6: 19 | AC6: 20 | AD6: 21 | AE6: 22 | AF6: 23 | AG6: 24 | AH6: 25 | AI6: 26 | AJ6: 27 | AK6: 28 | AL6: 29 | AM6: 30 | AN6: 31 | AO6: 32 | AP6: 33 | AQ6: 34 | AR6: 35 | AS6: 36 | AT6: 37 | AU6: 38 | AV6: 39 | AW6: 40 | AX6: 41 | AY6: 42 | AZ6: 43 | BA6: 44 | BB6: 45 | BC6: 46 | BD6: 47 | BE6: 48 | BF6: 49 | BG6: 50 | BH6: 51 | BI6: 52 | BJ6: 53 | BK6: 54 | BL6: 55 | BM6: 56 | BN6: 57 | BO6: 58 | BP6: 59 | BQ6: 60 | BR6: 61 | BS6: 62 | BT6: 63 | BU6: 64 | BV6: 65 | BW6: =BV6+1 -> 66 | BX6: 67 | BY6: 68 | BZ6: 69 | CA6: 70 | CB6: 71 | CC6: 72 | CD6: 73 | CE6: 74 | CF6: 75 | CG6: 76 | CH6: 77 | CI6: 78 | CJ6: 79 | CK6: 80 | CL6: 81 | CM6: 82 | CN6: 83 | CO6: 84 | CP6: 85 | CQ6: 86 | CR6: 87 | CS6: 88 | CT6: 89 | CU6: 90 | CV6: 91 | CW6: 92 | CX6: 93 | CY6: 94 | CZ6: 95 | DA6: 96 | DB6: 97 | DC6: 98 | DD6: 99 | DE6: 100 | DF6: 101 | DG6: 102 | DH6: 103 | DI6: 104 | DJ6: 105 | DK6: 106 | DL6: 107 | DM6: 108 | DN6: 109 | DO6: 110 | DP6: 111 | DQ6: 112 | DR6: 113 | DS6: 114 | DT6: 115 | DU6: 116 | DV6: 117 | DW6: 118 | DX6: 119 | DY6: 120 | DZ6: 121 | EA6: 122 | EB6: 123 | EC6: 124 | ED6: 125 | EE6: 126 | EF6: 127 | EG6: 128 | EH6: 129 | EI6: =EH6+1 -> 130 | EJ6: 131 | EK6: 132 | EL6: 133 | EM6: 134 | EN6: 135 | EO6: 136 | EP6: 137 | EQ6: 138 | ER6: 139 | ES6: 140 | ET6: 141 | EU6: 142 | EV6: 143 | EW6: 144 | EX6: 145 | EY6: 146 | EZ6: 147 | FA6: 148 | FB6: 149 | FC6: 150 | FD6: 151 | FE6: 152 | FF6: 153 | FG6: 154 | FH6: 155 | FI6: 156 | FJ6: 157 | FK6: 158 | FL6: 159 | FM6: 160 | FN6: 161 | FO6: 162 | FP6: 163 | FQ6: 164 | FR6: 165 | FS6: 166 | FT6: 167 | FU6: 168 | FV6: 169 | FW6: 170 | FX6: 171 | FY6: 172 | FZ6: 173 | GA6: 174 | GB6: 175 | GC6: 176 | GD6: 177 | GE6: 178 | GF6: 179 | GG6: 180 | GH6: 181 | GI6: 182 | GJ6: 183 | GK6: 184 | GL6: 185 | GM6: 186 | GN6: 187 | GO6: 188 | GP6: 189 | GQ6: 190 | GR6: 191 | GS6: 192 | GT6: 193 | GU6: =GT6+1 -> 194 | GV6: 195 | GW6: 196 | GX6: 197 | GY6: 198 | GZ6: 199 | HA6: 200 | HB6: 201 | HC6: 202 | HD6: 203 | HE6: 204 | HF6: 205 | HG6: 206 | HH6: 207 | HI6: 208 | HJ6: 209 | HK6: 210 | HL6: 211 | HM6: 212 | HN6: 213 | HO6: 214 | HP6: 215 | HQ6: 216 | HR6: 217 | HS6: 218 | HT6: 219 | HU6: 220 | HV6: 221 | HW6: 222 | HX6: 223 | HY6: 224 | HZ6: 225 | IA6: 226 | IB6: 227 | IC6: 228 | ID6: 229 | IE6: 230 | IF6: 231 | IG6: 232 | IH6: 233 | II6: 234 | IJ6: 235 | IK6: 236 | IL6: 237 | IM6: 238 | IN6: 239 | IO6: 240 | IP6: 241 | IQ6: 242 | IR6: 243 | IS6: 244 | IT6: 245 | IU6: 246 | IV6: 247 | IW6: 248 | IX6: 249 | IY6: 250 | IZ6: 251 | JA6: 252 | JB6: 253 | JC6: 254 | JD6: 255 | JE6: 256 | JF6: 257 | JG6: =JF6+1 -> 258 | JH6: 259 | JI6: 260 | JJ6: 261 | JK6: 262 | JL6: 263 | JM6: 264 | JN6: 265 | JO6: 266 | JP6: 267 | JQ6: 268 | JR6: 269 | JS6: 270 | JT6: 271 | JU6: 272 | JV6: 273 | JW6: 274 | JX6: 275 | JY6: 276 | JZ6: 277 | KA6: 278 | KB6: 279 | KC6: 280 | KD6: 281 | KE6: 282 | KF6: 283 | KG6: 284 | KH6: 285 | KI6: 286 | KJ6: 287 | KK6: 288 | KL6: 289 | KM6: 290 | KN6: 291 | KO6: 292 | KP6: 293 | KQ6: 294 | KR6: 295 | KS6: 296 | KT6: 297 | KU6: 298 | KV6: 299 | KW6: 300 | KX6: 301 | KY6: 302 | KZ6: 303 | LA6: 304 | LB6: 305 | LC6: 306 | LD6: 307 | LE6: 308 | LF6: 309 | LG6: 310 | LH6: 311 | LI6: 312 | LJ6: 313 | LK6: 314 | LL6: 315 | LM6: 316 | LN6: 317 | LO6: 318 | LP6: 319 | LQ6: 320 | LR6: 321 | LS6: =LR6+1 -> 322 | LT6: 323 | LU6: 324 | LV6: 325 | LW6: 326 | LX6: 327 | LY6: 328 | LZ6: 329 | MA6: 330 | MB6: 331 | MC6: 332 | MD6: 333 | ME6: 334 | MF6: 335 | MG6: 336 | MH6: 337 | MI6: 338 | MJ6: 339 | MK6: 340 | ML6: 341 | MM6: 342 | MN6: 343 | MO6: 344 | MP6: 345 | MQ6: 346 | MR6: 347 | MS6: 348 | MT6: 349 | MU6: 350 | MV6: 351 | MW6: 352 | MX6: 353 | MY6: 354 | MZ6: 355 | NA6: 356 | NB6: 357 | NC6: 358 | ND6: 359 | NE6: 360 | NF6: 361 | NG6: 362 | NH6: 363 | NI6: 364 | NJ6: 365 | NK6: 366 | NL6: 367 | NM6: 368 | NN6: 369 | NO6: 370 | NP6: 371 | NQ6: 372 | NR6: 373 | NS6: 374 | NT6: 375 | NU6: 376 | NV6: 377 | NW6: 378 | NX6: 379 | NY6: 380 | NZ6: 381 | OA6: 382 | OB6: 383 | OC6: 384 | OD6: 385 | OE6: =OD6+1 -> 386 | OF6: 387 | OG6: 388 | OH6: 389 | OI6: 390 | OJ6: 391 | OK6: 392 | OL6: 393 | OM6: 394 | ON6: 395 | OO6: 396 | OP6: 397 | OQ6: 398 | OR6: 399 | OS6: 400 | OT6: 401 | OU6: 402 | OV6: 403 | OW6: 404 | OX6: 405 | OY6: 406 | OZ6: 407 | PA6: 408 | PB6: 409 | PC6: 410 | PD6: 411 | PE6: 412 | PF6: 413 | PG6: 414 | PH6: 415 | PI6: 416 | PJ6: 417 | PK6: 418 | PL6: 419 | PM6: 420 | PN6: 0
I7: mês de vigência: | J7: 1 | K7: =J7+1 -> 2 | L7: 3 | M7: 4 | N7: 5 | O7: 6 | P7: 7 | Q7: 8 | R7: 9 | S7: 10 | T7: 11 | U7: 12 | V7: 13 | W7: 14 | X7: 15 | Y7: 16 | Z7: 17 | AA7: 18 | AB7: 19 | AC7: 20 | AD7: 21 | AE7: 22 | AF7: 23 | AG7: 24 | AH7: 25 | AI7: 26 | AJ7: 27 | AK7: 28 | AL7: 29 | AM7: 30 | AN7: 31 | AO7: 32 | AP7: 33 | AQ7: 34 | AR7: 35 | AS7: 36 | AT7: 37 | AU7: 38 | AV7: 39 | AW7: 40 | AX7: 41 | AY7: 42 | AZ7: 43 | BA7: 44 | BB7: 45 | BC7: 46 | BD7: 47 | BE7: 48 | BF7: 49 | BG7: 50 | BH7: 51 | BI7: 52 | BJ7: 53 | BK7: 54 | BL7: 55 | BM7: 56 | BN7: 57 | BO7: 58 | BP7: 59 | BQ7: 60 | BR7: 61 | BS7: 62 | BT7: 63 | BU7: 64 | BV7: 65 | BW7: =BV7+1 -> 66 | BX7: 67 | BY7: 68 | BZ7: 69 | CA7: 70 | CB7: 71 | CC7: 72 | CD7: 73 | CE7: 74 | CF7: 75 | CG7: 76 | CH7: 77 | CI7: 78 | CJ7: 79 | CK7: 80 | CL7: 81 | CM7: 82 | CN7: 83 | CO7: 84 | CP7: 85 | CQ7: 86 | CR7: 87 | CS7: 88 | CT7: 89 | CU7: 90 | CV7: 91 | CW7: 92 | CX7: 93 | CY7: 94 | CZ7: 95 | DA7: 96 | DB7: 97 | DC7: 98 | DD7: 99 | DE7: 100 | DF7: 101 | DG7: 102 | DH7: 103 | DI7: 104 | DJ7: 105 | DK7: 106 | DL7: 107 | DM7: 108 | DN7: 109 | DO7: 110 | DP7: 111 | DQ7: 112 | DR7: 113 | DS7: 114 | DT7: 115 | DU7: 116 | DV7: 117 | DW7: 118 | DX7: 119 | DY7: 120 | DZ7: 121 | EA7: 122 | EB7: 123 | EC7: 124 | ED7: 125 | EE7: 126 | EF7: 127 | EG7: 128 | EH7: 129 | EI7: =EH7+1 -> 130 | EJ7: 131 | EK7: 132 | EL7: 133 | EM7: 134 | EN7: 135 | EO7: 136 | EP7: 137 | EQ7: 138 | ER7: 139 | ES7: 140 | ET7: 141 | EU7: 142 | EV7: 143 | EW7: 144 | EX7: 145 | EY7: 146 | EZ7: 147 | FA7: 148 | FB7: 149 | FC7: 150 | FD7: 151 | FE7: 152 | FF7: 153 | FG7: 154 | FH7: 155 | FI7: 156 | FJ7: 157 | FK7: 158 | FL7: 159 | FM7: 160 | FN7: 161 | FO7: 162 | FP7: 163 | FQ7: 164 | FR7: 165 | FS7: 166 | FT7: 167 | FU7: 168 | FV7: 169 | FW7: 170 | FX7: 171 | FY7: 172 | FZ7: 173 | GA7: 174 | GB7: 175 | GC7: 176 | GD7: 177 | GE7: 178 | GF7: 179 | GG7: 180 | GH7: 181 | GI7: 182 | GJ7: 183 | GK7: 184 | GL7: 185 | GM7: 186 | GN7: 187 | GO7: 188 | GP7: 189 | GQ7: 190 | GR7: 191 | GS7: 192 | GT7: 193 | GU7: =GT7+1 -> 194 | GV7: 195 | GW7: 196 | GX7: 197 | GY7: 198 | GZ7: 199 | HA7: 200 | HB7: 201 | HC7: 202 | HD7: 203 | HE7: 204 | HF7: 205 | HG7: 206 | HH7: 207 | HI7: 208 | HJ7: 209 | HK7: 210 | HL7: 211 | HM7: 212 | HN7: 213 | HO7: 214 | HP7: 215 | HQ7: 216 | HR7: 217 | HS7: 218 | HT7: 219 | HU7: 220 | HV7: 221 | HW7: 222 | HX7: 223 | HY7: 224 | HZ7: 225 | IA7: 226 | IB7: 227 | IC7: 228 | ID7: 229 | IE7: 230 | IF7: 231 | IG7: 232 | IH7: 233 | II7: 234 | IJ7: 235 | IK7: 236 | IL7: 237 | IM7: 238 | IN7: 239 | IO7: 240 | IP7: 241 | IQ7: 242 | IR7: 243 | IS7: 244 | IT7: 245 | IU7: 246 | IV7: 247 | IW7: 248 | IX7: 249 | IY7: 250 | IZ7: 251 | JA7: 252 | JB7: 253 | JC7: 254 | JD7: 255 | JE7: 256 | JF7: 257 | JG7: =JF7+1 -> 258 | JH7: 259 | JI7: 260 | JJ7: 261 | JK7: 262 | JL7: 263 | JM7: 264 | JN7: 265 | JO7: 266 | JP7: 267 | JQ7: 268 | JR7: 269 | JS7: 270 | JT7: 271 | JU7: 272 | JV7: 273 | JW7: 274 | JX7: 275 | JY7: 276 | JZ7: 277 | KA7: 278 | KB7: 279 | KC7: 280 | KD7: 281 | KE7: 282 | KF7: 283 | KG7: 284 | KH7: 285 | KI7: 286 | KJ7: 287 | KK7: 288 | KL7: 289 | KM7: 290 | KN7: 291 | KO7: 292 | KP7: 293 | KQ7: 294 | KR7: 295 | KS7: 296 | KT7: 297 | KU7: 298 | KV7: 299 | KW7: 300 | KX7: 301 | KY7: 302 | KZ7: 303 | LA7: 304 | LB7: 305 | LC7: 306 | LD7: 307 | LE7: 308 | LF7: 309 | LG7: 310 | LH7: 311 | LI7: 312 | LJ7: 313 | LK7: 314 | LL7: 315 | LM7: 316 | LN7: 317 | LO7: 318 | LP7: 319 | LQ7: 320 | LR7: 321 | LS7: =LR7+1 -> 322 | LT7: 323 | LU7: 324 | LV7: 325 | LW7: 326 | LX7: 327 | LY7: 328 | LZ7: 329 | MA7: 330 | MB7: 331 | MC7: 332 | MD7: 333 | ME7: 334 | MF7: 335 | MG7: 336 | MH7: 337 | MI7: 338 | MJ7: 339 | MK7: 340 | ML7: 341 | MM7: 342 | MN7: 343 | MO7: 344 | MP7: 345 | MQ7: 346 | MR7: 347 | MS7: 348 | MT7: 349 | MU7: 350 | MV7: 351 | MW7: 352 | MX7: 353 | MY7: 354 | MZ7: 355 | NA7: 356 | NB7: 357 | NC7: 358 | ND7: 359 | NE7: 360 | NF7: 361 | NG7: 362 | NH7: 363 | NI7: 364 | NJ7: 365 | NK7: 366 | NL7: 367 | NM7: 368 | NN7: 369 | NO7: 370 | NP7: 371 | NQ7: 372 | NR7: 373 | NS7: 374 | NT7: 375 | NU7: 376 | NV7: 377 | NW7: 378 | NX7: 379 | NY7: 380 | NZ7: 381 | OA7: 382 | OB7: 383 | OC7: 384 | OD7: 385 | OE7: =OD7+1 -> 386 | OF7: 387 | OG7: 388 | OH7: 389 | OI7: 390 | OJ7: 391 | OK7: 392 | OL7: 393 | OM7: 394 | ON7: 395 | OO7: 396 | OP7: 397 | OQ7: 398 | OR7: 399 | OS7: 400 | OT7: 401 | OU7: 402 | OV7: 403 | OW7: 404 | OX7: 405 | OY7: 406 | OZ7: 407 | PA7: 408 | PB7: 409 | PC7: 410 | PD7: 411 | PE7: 412 | PF7: 413 | PG7: 414 | PH7: 415 | PI7: 416 | PJ7: 417 | PK7: 418 | PL7: 419 | PM7: 420 | PN7: 0
PN8: 0
B9: Valores em R$ | D9: Valor Nominal | E9: Valor Presente | J9: =IF(J$7>PainelControle!$D$7*12,0,1) -> 1 | K9: =IF(K$7>PainelControle!$D$7*12,0,1) -> 1 | L9: =IF(L$7>PainelControle!$D$7*12,0,1) -> 1 | M9: =IF(M$7>PainelControle!$D$7*12,0,1) -> 1 | N9: =IF(N$7>PainelControle!$D$7*12,0,1) -> 1 | O9: =IF(O$7>PainelControle!$D$7*12,0,1) -> 1 | P9: =IF(P$7>PainelControle!$D$7*12,0,1) -> 1 | Q9: =IF(Q$7>PainelControle!$D$7*12,0,1) -> 1 | R9: =IF(R$7>PainelControle!$D$7*12,0,1) -> 1 | S9: =IF(S$7>PainelControle!$D$7*12,0,1) -> 1 | T9: =IF(T$7>PainelControle!$D$7*12,0,1) -> 1 | U9: =IF(U$7>PainelControle!$D$7*12,0,1) -> 1 | V9: =IF(V$7>PainelControle!$D$7*12,0,1) -> 1 | W9: =IF(W$7>PainelControle!$D$7*12,0,1) -> 1 | X9: =IF(X$7>PainelControle!$D$7*12,0,1) -> 1 | Y9: =IF(Y$7>PainelControle!$D$7*12,0,1) -> 1 | Z9: =IF(Z$7>PainelControle!$D$7*12,0,1) -> 1 | AA9: =IF(AA$7>PainelControle!$D$7*12,0,1) -> 1 | AB9: =IF(AB$7>PainelControle!$D$7*12,0,1) -> 1 | AC9: =IF(AC$7>PainelControle!$D$7*12,0,1) -> 1 | AD9: =IF(AD$7>PainelControle!$D$7*12,0,1) -> 1 | AE9: =IF(AE$7>PainelControle!$D$7*12,0,1) -> 1 | AF9: =IF(AF$7>PainelControle!$D$7*12,0,1) -> 1 | AG9: =IF(AG$7>PainelControle!$D$7*12,0,1) -> 1 | AH9: =IF(AH$7>PainelControle!$D$7*12,0,1) -> 1 | AI9: =IF(AI$7>PainelControle!$D$7*12,0,1) -> 1 | AJ9: =IF(AJ$7>PainelControle!$D$7*12,0,1) -> 1 | AK9: =IF(AK$7>PainelControle!$D$7*12,0,1) -> 1 | AL9: =IF(AL$7>PainelControle!$D$7*12,0,1) -> 1 | AM9: =IF(AM$7>PainelControle!$D$7*12,0,1) -> 1 | AN9: =IF(AN$7>PainelControle!$D$7*12,0,1) -> 1 | AO9: =IF(AO$7>PainelControle!$D$7*12,0,1) -> 1 | AP9: =IF(AP$7>PainelControle!$D$7*12,0,1) -> 1 | AQ9: =IF(AQ$7>PainelControle!$D$7*12,0,1) -> 1 | AR9: =IF(AR$7>PainelControle!$D$7*12,0,1) -> 1 | AS9: =IF(AS$7>PainelControle!$D$7*12,0,1) -> 1 | AT9: =IF(AT$7>PainelControle!$D$7*12,0,1) -> 1 | AU9: =IF(AU$7>PainelControle!$D$7*12,0,1) -> 1 | AV9: =IF(AV$7>PainelControle!$D$7*12,0,1) -> 1 | AW9: =IF(AW$7>PainelControle!$D$7*12,0,1) -> 1 | AX9: =IF(AX$7>PainelControle!$D$7*12,0,1) -> 1 | AY9: =IF(AY$7>PainelControle!$D$7*12,0,1) -> 1 | AZ9: =IF(AZ$7>PainelControle!$D$7*12,0,1) -> 1 | BA9: =IF(BA$7>PainelControle!$D$7*12,0,1) -> 1 | BB9: =IF(BB$7>PainelControle!$D$7*12,0,1) -> 1 | BC9: =IF(BC$7>PainelControle!$D$7*12,0,1) -> 1 | BD9: =IF(BD$7>PainelControle!$D$7*12,0,1) -> 1 | BE9: =IF(BE$7>PainelControle!$D$7*12,0,1) -> 1 | BF9: =IF(BF$7>PainelControle!$D$7*12,0,1) -> 1 | BG9: =IF(BG$7>PainelControle!$D$7*12,0,1) -> 1 | BH9: =IF(BH$7>PainelControle!$D$7*12,0,1) -> 1 | BI9: =IF(BI$7>PainelControle!$D$7*12,0,1) -> 1 | BJ9: =IF(BJ$7>PainelControle!$D$7*12,0,1) -> 1 | BK9: =IF(BK$7>PainelControle!$D$7*12,0,1) -> 1 | BL9: =IF(BL$7>PainelControle!$D$7*12,0,1) -> 1 | BM9: =IF(BM$7>PainelControle!$D$7*12,0,1) -> 1 | BN9: =IF(BN$7>PainelControle!$D$7*12,0,1) -> 1 | BO9: =IF(BO$7>PainelControle!$D$7*12,0,1) -> 1 | BP9: =IF(BP$7>PainelControle!$D$7*12,0,1) -> 1 | BQ9: =IF(BQ$7>PainelControle!$D$7*12,0,1) -> 1 | BR9: =IF(BR$7>PainelControle!$D$7*12,0,1) -> 1 | BS9: =IF(BS$7>PainelControle!$D$7*12,0,1) -> 1 | BT9: =IF(BT$7>PainelControle!$D$7*12,0,1) -> 1 | BU9: =IF(BU$7>PainelControle!$D$7*12,0,1) -> 1 | BV9: =IF(BV$7>PainelControle!$D$7*12,0,1) -> 1 | BW9: =IF(BW$7>PainelControle!$D$7*12,0,1) -> 1 | BX9: =IF(BX$7>PainelControle!$D$7*12,0,1) -> 1 | BY9: =IF(BY$7>PainelControle!$D$7*12,0,1) -> 1 | BZ9: =IF(BZ$7>PainelControle!$D$7*12,0,1) -> 1 | CA9: =IF(CA$7>PainelControle!$D$7*12,0,1) -> 1 | CB9: =IF(CB$7>PainelControle!$D$7*12,0,1) -> 1 | CC9: =IF(CC$7>PainelControle!$D$7*12,0,1) -> 1 | CD9: =IF(CD$7>PainelControle!$D$7*12,0,1) -> 1 | CE9: =IF(CE$7>PainelControle!$D$7*12,0,1) -> 1 | CF9: =IF(CF$7>PainelControle!$D$7*12,0,1) -> 1 | CG9: =IF(CG$7>PainelControle!$D$7*12,0,1) -> 1 | CH9: =IF(CH$7>PainelControle!$D$7*12,0,1) -> 1 | CI9: =IF(CI$7>PainelControle!$D$7*12,0,1) -> 1 | CJ9: =IF(CJ$7>PainelControle!$D$7*12,0,1) -> 1 | CK9: =IF(CK$7>PainelControle!$D$7*12,0,1) -> 1 | CL9: =IF(CL$7>PainelControle!$D$7*12,0,1) -> 1 | CM9: =IF(CM$7>PainelControle!$D$7*12,0,1) -> 1 | CN9: =IF(CN$7>PainelControle!$D$7*12,0,1) -> 1 | CO9: =IF(CO$7>PainelControle!$D$7*12,0,1) -> 1 | CP9: =IF(CP$7>PainelControle!$D$7*12,0,1) -> 1 | CQ9: =IF(CQ$7>PainelControle!$D$7*12,0,1) -> 1 | CR9: =IF(CR$7>PainelControle!$D$7*12,0,1) -> 1 | CS9: =IF(CS$7>PainelControle!$D$7*12,0,1) -> 1 | CT9: =IF(CT$7>PainelControle!$D$7*12,0,1) -> 1 | CU9: =IF(CU$7>PainelControle!$D$7*12,0,1) -> 1 | CV9: =IF(CV$7>PainelControle!$D$7*12,0,1) -> 1 | CW9: =IF(CW$7>PainelControle!$D$7*12,0,1) -> 1 | CX9: =IF(CX$7>PainelControle!$D$7*12,0,1) -> 1 | CY9: =IF(CY$7>PainelControle!$D$7*12,0,1) -> 1 | CZ9: =IF(CZ$7>PainelControle!$D$7*12,0,1) -> 1 | DA9: =IF(DA$7>PainelControle!$D$7*12,0,1) -> 1 | DB9: =IF(DB$7>PainelControle!$D$7*12,0,1) -> 1 | DC9: =IF(DC$7>PainelControle!$D$7*12,0,1) -> 1 | DD9: =IF(DD$7>PainelControle!$D$7*12,0,1) -> 1 | DE9: =IF(DE$7>PainelControle!$D$7*12,0,1) -> 1 | DF9: =IF(DF$7>PainelControle!$D$7*12,0,1) -> 1 | DG9: =IF(DG$7>PainelControle!$D$7*12,0,1) -> 1 | DH9: =IF(DH$7>PainelControle!$D$7*12,0,1) -> 1 | DI9: =IF(DI$7>PainelControle!$D$7*12,0,1) -> 1 | DJ9: =IF(DJ$7>PainelControle!$D$7*12,0,1) -> 1 | DK9: =IF(DK$7>PainelControle!$D$7*12,0,1) -> 1 | DL9: =IF(DL$7>PainelControle!$D$7*12,0,1) -> 1 | DM9: =IF(DM$7>PainelControle!$D$7*12,0,1) -> 1 | DN9: =IF(DN$7>PainelControle!$D$7*12,0,1) -> 1 | DO9: =IF(DO$7>PainelControle!$D$7*12,0,1) -> 1 | DP9: =IF(DP$7>PainelControle!$D$7*12,0,1) -> 1 | DQ9: =IF(DQ$7>PainelControle!$D$7*12,0,1) -> 1 | DR9: =IF(DR$7>PainelControle!$D$7*12,0,1) -> 1 | DS9: =IF(DS$7>PainelControle!$D$7*12,0,1) -> 1 | DT9: =IF(DT$7>PainelControle!$D$7*12,0,1) -> 1 | DU9: =IF(DU$7>PainelControle!$D$7*12,0,1) -> 1 | DV9: =IF(DV$7>PainelControle!$D$7*12,0,1) -> 1 | DW9: =IF(DW$7>PainelControle!$D$7*12,0,1) -> 1 | DX9: =IF(DX$7>PainelControle!$D$7*12,0,1) -> 1 | DY9: =IF(DY$7>PainelControle!$D$7*12,0,1) -> 1 | DZ9: =IF(DZ$7>PainelControle!$D$7*12,0,1) -> 1 | EA9: =IF(EA$7>PainelControle!$D$7*12,0,1) -> 1 | EB9: =IF(EB$7>PainelControle!$D$7*12,0,1) -> 1 | EC9: =IF(EC$7>PainelControle!$D$7*12,0,1) -> 1 | ED9: =IF(ED$7>PainelControle!$D$7*12,0,1) -> 1 | EE9: =IF(EE$7>PainelControle!$D$7*12,0,1) -> 1 | EF9: =IF(EF$7>PainelControle!$D$7*12,0,1) -> 1 | EG9: =IF(EG$7>PainelControle!$D$7*12,0,1) -> 1 | EH9: =IF(EH$7>PainelControle!$D$7*12,0,1) -> 1 | EI9: =IF(EI$7>PainelControle!$D$7*12,0,1) -> 1 | EJ9: =IF(EJ$7>PainelControle!$D$7*12,0,1) -> 1 | EK9: =IF(EK$7>PainelControle!$D$7*12,0,1) -> 1 | EL9: =IF(EL$7>PainelControle!$D$7*12,0,1) -> 1 | EM9: =IF(EM$7>PainelControle!$D$7*12,0,1) -> 1 | EN9: =IF(EN$7>PainelControle!$D$7*12,0,1) -> 1 | EO9: =IF(EO$7>PainelControle!$D$7*12,0,1) -> 1 | EP9: =IF(EP$7>PainelControle!$D$7*12,0,1) -> 1 | EQ9: =IF(EQ$7>PainelControle!$D$7*12,0,1) -> 1 | ER9: =IF(ER$7>PainelControle!$D$7*12,0,1) -> 1 | ES9: =IF(ES$7>PainelControle!$D$7*12,0,1) -> 1 | ET9: =IF(ET$7>PainelControle!$D$7*12,0,1) -> 1 | EU9: =IF(EU$7>PainelControle!$D$7*12,0,1) -> 1 | EV9: =IF(EV$7>PainelControle!$D$7*12,0,1) -> 1 | EW9: =IF(EW$7>PainelControle!$D$7*12,0,1) -> 1 | EX9: =IF(EX$7>PainelControle!$D$7*12,0,1) -> 1 | EY9: =IF(EY$7>PainelControle!$D$7*12,0,1) -> 1 | EZ9: =IF(EZ$7>PainelControle!$D$7*12,0,1) -> 1 | FA9: =IF(FA$7>PainelControle!$D$7*12,0,1) -> 1 | FB9: =IF(FB$7>PainelControle!$D$7*12,0,1) -> 1 | FC9: =IF(FC$7>PainelControle!$D$7*12,0,1) -> 1 | FD9: =IF(FD$7>PainelControle!$D$7*12,0,1) -> 1 | FE9: =IF(FE$7>PainelControle!$D$7*12,0,1) -> 1 | FF9: =IF(FF$7>PainelControle!$D$7*12,0,1) -> 1 | FG9: =IF(FG$7>PainelControle!$D$7*12,0,1) -> 1 | FH9: =IF(FH$7>PainelControle!$D$7*12,0,1) -> 1 | FI9: =IF(FI$7>PainelControle!$D$7*12,0,1) -> 1 | FJ9: =IF(FJ$7>PainelControle!$D$7*12,0,1) -> 1 | FK9: =IF(FK$7>PainelControle!$D$7*12,0,1) -> 1 | FL9: =IF(FL$7>PainelControle!$D$7*12,0,1) -> 1 | FM9: =IF(FM$7>PainelControle!$D$7*12,0,1) -> 1 | FN9: =IF(FN$7>PainelControle!$D$7*12,0,1) -> 1 | FO9: =IF(FO$7>PainelControle!$D$7*12,0,1) -> 1 | FP9: =IF(FP$7>PainelControle!$D$7*12,0,1) -> 1 | FQ9: =IF(FQ$7>PainelControle!$D$7*12,0,1) -> 1 | FR9: =IF(FR$7>PainelControle!$D$7*12,0,1) -> 1 | FS9: =IF(FS$7>PainelControle!$D$7*12,0,1) -> 1 | FT9: =IF(FT$7>PainelControle!$D$7*12,0,1) -> 1 | FU9: =IF(FU$7>PainelControle!$D$7*12,0,1) -> 1 | FV9: =IF(FV$7>PainelControle!$D$7*12,0,1) -> 1 | FW9: =IF(FW$7>PainelControle!$D$7*12,0,1) -> 1 | FX9: =IF(FX$7>PainelControle!$D$7*12,0,1) -> 1 | FY9: =IF(FY$7>PainelControle!$D$7*12,0,1) -> 1 | FZ9: =IF(FZ$7>PainelControle!$D$7*12,0,1) -> 1 | GA9: =IF(GA$7>PainelControle!$D$7*12,0,1) -> 1 | GB9: =IF(GB$7>PainelControle!$D$7*12,0,1) -> 1 | GC9: =IF(GC$7>PainelControle!$D$7*12,0,1) -> 1 | GD9: =IF(GD$7>PainelControle!$D$7*12,0,1) -> 1 | GE9: =IF(GE$7>PainelControle!$D$7*12,0,1) -> 1 | GF9: =IF(GF$7>PainelControle!$D$7*12,0,1) -> 1 | GG9: =IF(GG$7>PainelControle!$D$7*12,0,1) -> 1 | GH9: =IF(GH$7>PainelControle!$D$7*12,0,1) -> 1 | GI9: =IF(GI$7>PainelControle!$D$7*12,0,1) -> 1 | GJ9: =IF(GJ$7>PainelControle!$D$7*12,0,1) -> 1 | GK9: =IF(GK$7>PainelControle!$D$7*12,0,1) -> 1 | GL9: =IF(GL$7>PainelControle!$D$7*12,0,1) -> 1 | GM9: =IF(GM$7>PainelControle!$D$7*12,0,1) -> 1 | GN9: =IF(GN$7>PainelControle!$D$7*12,0,1) -> 1 | GO9: =IF(GO$7>PainelControle!$D$7*12,0,1) -> 1 | GP9: =IF(GP$7>PainelControle!$D$7*12,0,1) -> 1 | GQ9: =IF(GQ$7>PainelControle!$D$7*12,0,1) -> 1 | GR9: =IF(GR$7>PainelControle!$D$7*12,0,1) -> 1 | GS9: =IF(GS$7>PainelControle!$D$7*12,0,1) -> 1 | GT9: =IF(GT$7>PainelControle!$D$7*12,0,1) -> 1 | GU9: =IF(GU$7>PainelControle!$D$7*12,0,1) -> 1 | GV9: =IF(GV$7>PainelControle!$D$7*12,0,1) -> 1 | GW9: =IF(GW$7>PainelControle!$D$7*12,0,1) -> 1 | GX9: =IF(GX$7>PainelControle!$D$7*12,0,1) -> 1 | GY9: =IF(GY$7>PainelControle!$D$7*12,0,1) -> 1 | GZ9: =IF(GZ$7>PainelControle!$D$7*12,0,1) -> 1 | HA9: =IF(HA$7>PainelControle!$D$7*12,0,1) -> 1 | HB9: =IF(HB$7>PainelControle!$D$7*12,0,1) -> 1 | HC9: =IF(HC$7>PainelControle!$D$7*12,0,1) -> 1 | HD9: =IF(HD$7>PainelControle!$D$7*12,0,1) -> 1 | HE9: =IF(HE$7>PainelControle!$D$7*12,0,1) -> 1 | HF9: =IF(HF$7>PainelControle!$D$7*12,0,1) -> 1 | HG9: =IF(HG$7>PainelControle!$D$7*12,0,1) -> 1 | HH9: =IF(HH$7>PainelControle!$D$7*12,0,1) -> 1 | HI9: =IF(HI$7>PainelControle!$D$7*12,0,1) -> 1 | HJ9: =IF(HJ$7>PainelControle!$D$7*12,0,1) -> 1 | HK9: =IF(HK$7>PainelControle!$D$7*12,0,1) -> 1 | HL9: =IF(HL$7>PainelControle!$D$7*12,0,1) -> 1 | HM9: =IF(HM$7>PainelControle!$D$7*12,0,1) -> 1 | HN9: =IF(HN$7>PainelControle!$D$7*12,0,1) -> 1 | HO9: =IF(HO$7>PainelControle!$D$7*12,0,1) -> 1 | HP9: =IF(HP$7>PainelControle!$D$7*12,0,1) -> 1 | HQ9: =IF(HQ$7>PainelControle!$D$7*12,0,1) -> 1 | HR9: =IF(HR$7>PainelControle!$D$7*12,0,1) -> 1 | HS9: =IF(HS$7>PainelControle!$D$7*12,0,1) -> 1 | HT9: =IF(HT$7>PainelControle!$D$7*12,0,1) -> 1 | HU9: =IF(HU$7>PainelControle!$D$7*12,0,1) -> 1 | HV9: =IF(HV$7>PainelControle!$D$7*12,0,1) -> 1 | HW9: =IF(HW$7>PainelControle!$D$7*12,0,1) -> 1 | HX9: =IF(HX$7>PainelControle!$D$7*12,0,1) -> 1 | HY9: =IF(HY$7>PainelControle!$D$7*12,0,1) -> 1 | HZ9: =IF(HZ$7>PainelControle!$D$7*12,0,1) -> 1 | IA9: =IF(IA$7>PainelControle!$D$7*12,0,1) -> 1 | IB9: =IF(IB$7>PainelControle!$D$7*12,0,1) -> 1 | IC9: =IF(IC$7>PainelControle!$D$7*12,0,1) -> 1 | ID9: =IF(ID$7>PainelControle!$D$7*12,0,1) -> 1 | IE9: =IF(IE$7>PainelControle!$D$7*12,0,1) -> 1 | IF9: =IF(IF$7>PainelControle!$D$7*12,0,1) -> 1 | IG9: =IF(IG$7>PainelControle!$D$7*12,0,1) -> 1 | IH9: =IF(IH$7>PainelControle!$D$7*12,0,1) -> 1 | II9: =IF(II$7>PainelControle!$D$7*12,0,1) -> 1 | IJ9: =IF(IJ$7>PainelControle!$D$7*12,0,1) -> 1 | IK9: =IF(IK$7>PainelControle!$D$7*12,0,1) -> 1 | IL9: =IF(IL$7>PainelControle!$D$7*12,0,1) -> 1 | IM9: =IF(IM$7>PainelControle!$D$7*12,0,1) -> 1 | IN9: =IF(IN$7>PainelControle!$D$7*12,0,1) -> 1 | IO9: =IF(IO$7>PainelControle!$D$7*12,0,1) -> 1 | IP9: =IF(IP$7>PainelControle!$D$7*12,0,1) -> 1 | IQ9: =IF(IQ$7>PainelControle!$D$7*12,0,1) -> 1 | IR9: =IF(IR$7>PainelControle!$D$7*12,0,1) -> 1 | IS9: =IF(IS$7>PainelControle!$D$7*12,0,1) -> 1 | IT9: =IF(IT$7>PainelControle!$D$7*12,0,1) -> 1 | IU9: =IF(IU$7>PainelControle!$D$7*12,0,1) -> 1 | IV9: =IF(IV$7>PainelControle!$D$7*12,0,1) -> 1 | IW9: =IF(IW$7>PainelControle!$D$7*12,0,1) -> 1 | IX9: =IF(IX$7>PainelControle!$D$7*12,0,1) -> 1 | IY9: =IF(IY$7>PainelControle!$D$7*12,0,1) -> 1 | IZ9: =IF(IZ$7>PainelControle!$D$7*12,0,1) -> 1 | JA9: =IF(JA$7>PainelControle!$D$7*12,0,1) -> 1 | JB9: =IF(JB$7>PainelControle!$D$7*12,0,1) -> 1 | JC9: =IF(JC$7>PainelControle!$D$7*12,0,1) -> 1 | JD9: =IF(JD$7>PainelControle!$D$7*12,0,1) -> 1 | JE9: =IF(JE$7>PainelControle!$D$7*12,0,1) -> 1 | JF9: =IF(JF$7>PainelControle!$D$7*12,0,1) -> 1 | JG9: =IF(JG$7>PainelControle!$D$7*12,0,1) -> 1 | JH9: =IF(JH$7>PainelControle!$D$7*12,0,1) -> 1 | JI9: =IF(JI$7>PainelControle!$D$7*12,0,1) -> 1 | JJ9: =IF(JJ$7>PainelControle!$D$7*12,0,1) -> 1 | JK9: =IF(JK$7>PainelControle!$D$7*12,0,1) -> 1 | JL9: =IF(JL$7>PainelControle!$D$7*12,0,1) -> 1 | JM9: =IF(JM$7>PainelControle!$D$7*12,0,1) -> 1 | JN9: =IF(JN$7>PainelControle!$D$7*12,0,1) -> 1 | JO9: =IF(JO$7>PainelControle!$D$7*12,0,1) -> 1 | JP9: =IF(JP$7>PainelControle!$D$7*12,0,1) -> 1 | JQ9: =IF(JQ$7>PainelControle!$D$7*12,0,1) -> 1 | JR9: =IF(JR$7>PainelControle!$D$7*12,0,1) -> 1 | JS9: =IF(JS$7>PainelControle!$D$7*12,0,1) -> 1 | JT9: =IF(JT$7>PainelControle!$D$7*12,0,1) -> 1 | JU9: =IF(JU$7>PainelControle!$D$7*12,0,1) -> 1 | JV9: =IF(JV$7>PainelControle!$D$7*12,0,1) -> 1 | JW9: =IF(JW$7>PainelControle!$D$7*12,0,1) -> 1 | JX9: =IF(JX$7>PainelControle!$D$7*12,0,1) -> 1 | JY9: =IF(JY$7>PainelControle!$D$7*12,0,1) -> 1 | JZ9: =IF(JZ$7>PainelControle!$D$7*12,0,1) -> 1 | KA9: =IF(KA$7>PainelControle!$D$7*12,0,1) -> 1 | KB9: =IF(KB$7>PainelControle!$D$7*12,0,1) -> 1 | KC9: =IF(KC$7>PainelControle!$D$7*12,0,1) -> 1 | KD9: =IF(KD$7>PainelControle!$D$7*12,0,1) -> 1 | KE9: =IF(KE$7>PainelControle!$D$7*12,0,1) -> 1 | KF9: =IF(KF$7>PainelControle!$D$7*12,0,1) -> 1 | KG9: =IF(KG$7>PainelControle!$D$7*12,0,1) -> 1 | KH9: =IF(KH$7>PainelControle!$D$7*12,0,1) -> 1 | KI9: =IF(KI$7>PainelControle!$D$7*12,0,1) -> 1 | KJ9: =IF(KJ$7>PainelControle!$D$7*12,0,1) -> 1 | KK9: =IF(KK$7>PainelControle!$D$7*12,0,1) -> 1 | KL9: =IF(KL$7>PainelControle!$D$7*12,0,1) -> 1 | KM9: =IF(KM$7>PainelControle!$D$7*12,0,1) -> 1 | KN9: =IF(KN$7>PainelControle!$D$7*12,0,1) -> 1 | KO9: =IF(KO$7>PainelControle!$D$7*12,0,1) -> 1 | KP9: =IF(KP$7>PainelControle!$D$7*12,0,1) -> 1 | KQ9: =IF(KQ$7>PainelControle!$D$7*12,0,1) -> 1 | KR9: =IF(KR$7>PainelControle!$D$7*12,0,1) -> 1 | KS9: =IF(KS$7>PainelControle!$D$7*12,0,1) -> 1 | KT9: =IF(KT$7>PainelControle!$D$7*12,0,1) -> 1 | KU9: =IF(KU$7>PainelControle!$D$7*12,0,1) -> 1 | KV9: =IF(KV$7>PainelControle!$D$7*12,0,1) -> 1 | KW9: =IF(KW$7>PainelControle!$D$7*12,0,1) -> 1 | KX9: =IF(KX$7>PainelControle!$D$7*12,0,1) -> 1 | KY9: =IF(KY$7>PainelControle!$D$7*12,0,1) -> 1 | KZ9: =IF(KZ$7>PainelControle!$D$7*12,0,1) -> 1 | LA9: =IF(LA$7>PainelControle!$D$7*12,0,1) -> 1 | LB9: =IF(LB$7>PainelControle!$D$7*12,0,1) -> 1 | LC9: =IF(LC$7>PainelControle!$D$7*12,0,1) -> 1 | LD9: =IF(LD$7>PainelControle!$D$7*12,0,1) -> 1 | LE9: =IF(LE$7>PainelControle!$D$7*12,0,1) -> 1 | LF9: =IF(LF$7>PainelControle!$D$7*12,0,1) -> 1 | LG9: =IF(LG$7>PainelControle!$D$7*12,0,1) -> 1 | LH9: =IF(LH$7>PainelControle!$D$7*12,0,1) -> 1 | LI9: =IF(LI$7>PainelControle!$D$7*12,0,1) -> 1 | LJ9: =IF(LJ$7>PainelControle!$D$7*12,0,1) -> 1 | LK9: =IF(LK$7>PainelControle!$D$7*12,0,1) -> 1 | LL9: =IF(LL$7>PainelControle!$D$7*12,0,1) -> 1 | LM9: =IF(LM$7>PainelControle!$D$7*12,0,1) -> 1 | LN9: =IF(LN$7>PainelControle!$D$7*12,0,1) -> 1 | LO9: =IF(LO$7>PainelControle!$D$7*12,0,1) -> 1 | LP9: =IF(LP$7>PainelControle!$D$7*12,0,1) -> 1 | LQ9: =IF(LQ$7>PainelControle!$D$7*12,0,1) -> 1 | LR9: =IF(LR$7>PainelControle!$D$7*12,0,1) -> 1 | LS9: =IF(LS$7>PainelControle!$D$7*12,0,1) -> 1 | LT9: =IF(LT$7>PainelControle!$D$7*12,0,1) -> 1 | LU9: =IF(LU$7>PainelControle!$D$7*12,0,1) -> 1 | LV9: =IF(LV$7>PainelControle!$D$7*12,0,1) -> 1 | LW9: =IF(LW$7>PainelControle!$D$7*12,0,1) -> 1 | LX9: =IF(LX$7>PainelControle!$D$7*12,0,1) -> 1 | LY9: =IF(LY$7>PainelControle!$D$7*12,0,1) -> 1 | LZ9: =IF(LZ$7>PainelControle!$D$7*12,0,1) -> 1 | MA9: =IF(MA$7>PainelControle!$D$7*12,0,1) -> 1 | MB9: =IF(MB$7>PainelControle!$D$7*12,0,1) -> 1 | MC9: =IF(MC$7>PainelControle!$D$7*12,0,1) -> 1 | MD9: =IF(MD$7>PainelControle!$D$7*12,0,1) -> 1 | ME9: =IF(ME$7>PainelControle!$D$7*12,0,1) -> 1 | MF9: =IF(MF$7>PainelControle!$D$7*12,0,1) -> 1 | MG9: =IF(MG$7>PainelControle!$D$7*12,0,1) -> 1 | MH9: =IF(MH$7>PainelControle!$D$7*12,0,1) -> 1 | MI9: =IF(MI$7>PainelControle!$D$7*12,0,1) -> 1 | MJ9: =IF(MJ$7>PainelControle!$D$7*12,0,1) -> 1 | MK9: =IF(MK$7>PainelControle!$D$7*12,0,1) -> 1 | ML9: =IF(ML$7>PainelControle!$D$7*12,0,1) -> 1 | MM9: =IF(MM$7>PainelControle!$D$7*12,0,1) -> 1 | MN9: =IF(MN$7>PainelControle!$D$7*12,0,1) -> 1 | MO9: =IF(MO$7>PainelControle!$D$7*12,0,1) -> 1 | MP9: =IF(MP$7>PainelControle!$D$7*12,0,1) -> 1 | MQ9: =IF(MQ$7>PainelControle!$D$7*12,0,1) -> 1 | MR9: =IF(MR$7>PainelControle!$D$7*12,0,1) -> 1 | MS9: =IF(MS$7>PainelControle!$D$7*12,0,1) -> 1 | MT9: =IF(MT$7>PainelControle!$D$7*12,0,1) -> 1 | MU9: =IF(MU$7>PainelControle!$D$7*12,0,1) -> 1 | MV9: =IF(MV$7>PainelControle!$D$7*12,0,1) -> 1 | MW9: =IF(MW$7>PainelControle!$D$7*12,0,1) -> 1 | MX9: =IF(MX$7>PainelControle!$D$7*12,0,1) -> 1 | MY9: =IF(MY$7>PainelControle!$D$7*12,0,1) -> 1 | MZ9: =IF(MZ$7>PainelControle!$D$7*12,0,1) -> 1 | NA9: =IF(NA$7>PainelControle!$D$7*12,0,1) -> 1 | NB9: =IF(NB$7>PainelControle!$D$7*12,0,1) -> 1 | NC9: =IF(NC$7>PainelControle!$D$7*12,0,1) -> 1 | ND9: =IF(ND$7>PainelControle!$D$7*12,0,1) -> 1 | NE9: =IF(NE$7>PainelControle!$D$7*12,0,1) -> 1 | NF9: =IF(NF$7>PainelControle!$D$7*12,0,1) -> 1 | NG9: =IF(NG$7>PainelControle!$D$7*12,0,1) -> 1 | NH9: =IF(NH$7>PainelControle!$D$7*12,0,1) -> 1 | NI9: =IF(NI$7>PainelControle!$D$7*12,0,1) -> 1 | NJ9: =IF(NJ$7>PainelControle!$D$7*12,0,1) -> 1 | NK9: =IF(NK$7>PainelControle!$D$7*12,0,1) -> 1 | NL9: =IF(NL$7>PainelControle!$D$7*12,0,1) -> 1 | NM9: =IF(NM$7>PainelControle!$D$7*12,0,1) -> 1 | NN9: =IF(NN$7>PainelControle!$D$7*12,0,1) -> 1 | NO9: =IF(NO$7>PainelControle!$D$7*12,0,1) -> 1 | NP9: =IF(NP$7>PainelControle!$D$7*12,0,1) -> 1 | NQ9: =IF(NQ$7>PainelControle!$D$7*12,0,1) -> 1 | NR9: =IF(NR$7>PainelControle!$D$7*12,0,1) -> 1 | NS9: =IF(NS$7>PainelControle!$D$7*12,0,1) -> 1 | NT9: =IF(NT$7>PainelControle!$D$7*12,0,1) -> 1 | NU9: =IF(NU$7>PainelControle!$D$7*12,0,1) -> 1 | NV9: =IF(NV$7>PainelControle!$D$7*12,0,1) -> 1 | NW9: =IF(NW$7>PainelControle!$D$7*12,0,1) -> 1 | NX9: =IF(NX$7>PainelControle!$D$7*12,0,1) -> 1 | NY9: =IF(NY$7>PainelControle!$D$7*12,0,1) -> 1 | NZ9: =IF(NZ$7>PainelControle!$D$7*12,0,1) -> 1 | OA9: =IF(OA$7>PainelControle!$D$7*12,0,1) -> 1 | OB9: =IF(OB$7>PainelControle!$D$7*12,0,1) -> 1 | OC9: =IF(OC$7>PainelControle!$D$7*12,0,1) -> 1 | OD9: =IF(OD$7>PainelControle!$D$7*12,0,1) -> 1 | OE9: =IF(OE$7>PainelControle!$D$7*12,0,1) -> 1 | OF9: =IF(OF$7>PainelControle!$D$7*12,0,1) -> 1 | OG9: =IF(OG$7>PainelControle!$D$7*12,0,1) -> 1 | OH9: =IF(OH$7>PainelControle!$D$7*12,0,1) -> 1 | OI9: =IF(OI$7>PainelControle!$D$7*12,0,1) -> 1 | OJ9: =IF(OJ$7>PainelControle!$D$7*12,0,1) -> 1 | OK9: =IF(OK$7>PainelControle!$D$7*12,0,1) -> 1 | OL9: =IF(OL$7>PainelControle!$D$7*12,0,1) -> 1 | OM9: =IF(OM$7>PainelControle!$D$7*12,0,1) -> 1 | ON9: =IF(ON$7>PainelControle!$D$7*12,0,1) -> 1 | OO9: =IF(OO$7>PainelControle!$D$7*12,0,1) -> 1 | OP9: =IF(OP$7>PainelControle!$D$7*12,0,1) -> 1 | OQ9: =IF(OQ$7>PainelControle!$D$7*12,0,1) -> 1 | OR9: =IF(OR$7>PainelControle!$D$7*12,0,1) -> 1 | OS9: =IF(OS$7>PainelControle!$D$7*12,0,1) -> 1 | OT9: =IF(OT$7>PainelControle!$D$7*12,0,1) -> 1 | OU9: =IF(OU$7>PainelControle!$D$7*12,0,1) -> 1 | OV9: =IF(OV$7>PainelControle!$D$7*12,0,1) -> 1 | OW9: =IF(OW$7>PainelControle!$D$7*12,0,1) -> 1 | OX9: =IF(OX$7>PainelControle!$D$7*12,0,1) -> 1 | OY9: =IF(OY$7>PainelControle!$D$7*12,0,1) -> 1 | OZ9: =IF(OZ$7>PainelControle!$D$7*12,0,1) -> 1 | PA9: =IF(PA$7>PainelControle!$D$7*12,0,1) -> 1 | PB9: =IF(PB$7>PainelControle!$D$7*12,0,1) -> 1 | PC9: =IF(PC$7>PainelControle!$D$7*12,0,1) -> 1 | PD9: =IF(PD$7>PainelControle!$D$7*12,0,1) -> 1 | PE9: =IF(PE$7>PainelControle!$D$7*12,0,1) -> 1 | PF9: =IF(PF$7>PainelControle!$D$7*12,0,1) -> 1 | PG9: =IF(PG$7>PainelControle!$D$7*12,0,1) -> 1 | PH9: =IF(PH$7>PainelControle!$D$7*12,0,1) -> 1 | PI9: =IF(PI$7>PainelControle!$D$7*12,0,1) -> 1 | PJ9: =IF(PJ$7>PainelControle!$D$7*12,0,1) -> 1 | PK9: =IF(PK$7>PainelControle!$D$7*12,0,1) -> 1 | PL9: =IF(PL$7>PainelControle!$D$7*12,0,1) -> 1 | PM9: =IF(PM$7>PainelControle!$D$7*12,0,1) -> 1 | PN9: 0
J10: =PainelControle!$D$6 -> 2019-01-01 | K10: =EOMONTH(J10,1) -> 2019-02-28 | L10: 2019-03-31 | M10: 2019-04-30 | N10: 2019-05-31 | O10: 2019-06-30 | P10: 2019-07-31 | Q10: 2019-08-31 | R10: 2019-09-30 | S10: 2019-10-31 | T10: 2019-11-30 | U10: 2019-12-31 | V10: 2020-01-31 | W10: 2020-02-29 | X10: 2020-03-31 | Y10: 2020-04-30 | Z10: 2020-05-31 | AA10: 2020-06-30 | AB10: 2020-07-31 | AC10: 2020-08-31 | AD10: 2020-09-30 | AE10: 2020-10-31 | AF10: 2020-11-30 | AG10: 2020-12-31 | AH10: 2021-01-31 | AI10: 2021-02-28 | AJ10: 2021-03-31 | AK10: 2021-04-30 | AL10: 2021-05-31 | AM10: 2021-06-30 | AN10: 2021-07-31 | AO10: 2021-08-31 | AP10: 2021-09-30 | AQ10: 2021-10-31 | AR10: 2021-11-30 | AS10: 2021-12-31 | AT10: 2022-01-31 | AU10: 2022-02-28 | AV10: 2022-03-31 | AW10: 2022-04-30 | AX10: 2022-05-31 | AY10: 2022-06-30 | AZ10: 2022-07-31 | BA10: 2022-08-31 | BB10: 2022-09-30 | BC10: 2022-10-31 | BD10: 2022-11-30 | BE10: 2022-12-31 | BF10: 2023-01-31 | BG10: 2023-02-28 | BH10: 2023-03-31 | BI10: 2023-04-30 | BJ10: 2023-05-31 | BK10: 2023-06-30 | BL10: 2023-07-31 | BM10: 2023-08-31 | BN10: 2023-09-30 | BO10: 2023-10-31 | BP10: 2023-11-30 | BQ10: 2023-12-31 | BR10: 2024-01-31 | BS10: 2024-02-29 | BT10: 2024-03-31 | BU10: 2024-04-30 | BV10: 2024-05-31 | BW10: =EOMONTH(BV10,1) -> 2024-06-30 | BX10: 2024-07-31 | BY10: 2024-08-31 | BZ10: 2024-09-30 | CA10: 2024-10-31 | CB10: 2024-11-30 | CC10: 2024-12-31 | CD10: 2025-01-31 | CE10: 2025-02-28 | CF10: 2025-03-31 | CG10: 2025-04-30 | CH10: 2025-05-31 | CI10: 2025-06-30 | CJ10: 2025-07-31 | CK10: 2025-08-31 | CL10: 2025-09-30 | CM10: 2025-10-31 | CN10: 2025-11-30 | CO10: 2025-12-31 | CP10: 2026-01-31 | CQ10: 2026-02-28 | CR10: 2026-03-31 | CS10: 2026-04-30 | CT10: 2026-05-31 | CU10: 2026-06-30 | CV10: 2026-07-31 | CW10: 2026-08-31 | CX10: 2026-09-30 | CY10: 2026-10-31 | CZ10: 2026-11-30 | DA10: 2026-12-31 | DB10: 2027-01-31 | DC10: 2027-02-28 | DD10: 2027-03-31 | DE10: 2027-04-30 | DF10: 2027-05-31 | DG10: 2027-06-30 | DH10: 2027-07-31 | DI10: 2027-08-31 | DJ10: 2027-09-30 | DK10: 2027-10-31 | DL10: 2027-11-30 | DM10: 2027-12-31 | DN10: 2028-01-31 | DO10: 2028-02-29 | DP10: 2028-03-31 | DQ10: 2028-04-30 | DR10: 2028-05-31 | DS10: 2028-06-30 | DT10: 2028-07-31 | DU10: 2028-08-31 | DV10: 2028-09-30 | DW10: 2028-10-31 | DX10: 2028-11-30 | DY10: 2028-12-31 | DZ10: 2029-01-31 | EA10: 2029-02-28 | EB10: 2029-03-31 | EC10: 2029-04-30 | ED10: 2029-05-31 | EE10: 2029-06-30 | EF10: 2029-07-31 | EG10: 2029-08-31 | EH10: 2029-09-30 | EI10: =EOMONTH(EH10,1) -> 2029-10-31 | EJ10: 2029-11-30 | EK10: 2029-12-31 | EL10: 2030-01-31 | EM10: 2030-02-28 | EN10: 2030-03-31 | EO10: 2030-04-30 | EP10: 2030-05-31 | EQ10: 2030-06-30 | ER10: 2030-07-31 | ES10: 2030-08-31 | ET10: 2030-09-30 | EU10: 2030-10-31 | EV10: 2030-11-30 | EW10: 2030-12-31 | EX10: 2031-01-31 | EY10: 2031-02-28 | EZ10: 2031-03-31 | FA10: 2031-04-30 | FB10: 2031-05-31 | FC10: 2031-06-30 | FD10: 2031-07-31 | FE10: 2031-08-31 | FF10: 2031-09-30 | FG10: 2031-10-31 | FH10: 2031-11-30 | FI10: 2031-12-31 | FJ10: 2032-01-31 | FK10: 2032-02-29 | FL10: 2032-03-31 | FM10: 2032-04-30 | FN10: 2032-05-31 | FO10: 2032-06-30 | FP10: 2032-07-31 | FQ10: 2032-08-31 | FR10: 2032-09-30 | FS10: 2032-10-31 | FT10: 2032-11-30 | FU10: 2032-12-31 | FV10: 2033-01-31 | FW10: 2033-02-28 | FX10: 2033-03-31 | FY10: 2033-04-30 | FZ10: 2033-05-31 | GA10: 2033-06-30 | GB10: 2033-07-31 | GC10: 2033-08-31 | GD10: 2033-09-30 | GE10: 2033-10-31 | GF10: 2033-11-30 | GG10: 2033-12-31 | GH10: 2034-01-31 | GI10: 2034-02-28 | GJ10: 2034-03-31 | GK10: 2034-04-30 | GL10: 2034-05-31 | GM10: 2034-06-30 | GN10: 2034-07-31 | GO10: 2034-08-31 | GP10: 2034-09-30 | GQ10: 2034-10-31 | GR10: 2034-11-30 | GS10: 2034-12-31 | GT10: 2035-01-31 | GU10: =EOMONTH(GT10,1) -> 2035-02-28 | GV10: 2035-03-31 | GW10: 2035-04-30 | GX10: 2035-05-31 | GY10: 2035-06-30 | GZ10: 2035-07-31 | HA10: 2035-08-31 | HB10: 2035-09-30 | HC10: 2035-10-31 | HD10: 2035-11-30 | HE10: 2035-12-31 | HF10: 2036-01-31 | HG10: 2036-02-29 | HH10: 2036-03-31 | HI10: 2036-04-30 | HJ10: 2036-05-31 | HK10: 2036-06-30 | HL10: 2036-07-31 | HM10: 2036-08-31 | HN10: 2036-09-30 | HO10: 2036-10-31 | HP10: 2036-11-30 | HQ10: 2036-12-31 | HR10: 2037-01-31 | HS10: 2037-02-28 | HT10: 2037-03-31 | HU10: 2037-04-30 | HV10: 2037-05-31 | HW10: 2037-06-30 | HX10: 2037-07-31 | HY10: 2037-08-31 | HZ10: 2037-09-30 | IA10: 2037-10-31 | IB10: 2037-11-30 | IC10: 2037-12-31 | ID10: 2038-01-31 | IE10: 2038-02-28 | IF10: 2038-03-31 | IG10: 2038-04-30 | IH10: 2038-05-31 | II10: 2038-06-30 | IJ10: 2038-07-31 | IK10: 2038-08-31 | IL10: 2038-09-30 | IM10: 2038-10-31 | IN10: 2038-11-30 | IO10: 2038-12-31 | IP10: 2039-01-31 | IQ10: 2039-02-28 | IR10: 2039-03-31 | IS10: 2039-04-30 | IT10: 2039-05-31 | IU10: 2039-06-30 | IV10: 2039-07-31 | IW10: 2039-08-31 | IX10: 2039-09-30 | IY10: 2039-10-31 | IZ10: 2039-11-30 | JA10: 2039-12-31 | JB10: 2040-01-31 | JC10: 2040-02-29 | JD10: 2040-03-31 | JE10: 2040-04-30 | JF10: 2040-05-31 | JG10: =EOMONTH(JF10,1) -> 2040-06-30 | JH10: 2040-07-31 | JI10: 2040-08-31 | JJ10: 2040-09-30 | JK10: 2040-10-31 | JL10: 2040-11-30 | JM10: 2040-12-31 | JN10: 2041-01-31 | JO10: 2041-02-28 | JP10: 2041-03-31 | JQ10: 2041-04-30 | JR10: 2041-05-31 | JS10: 2041-06-30 | JT10: 2041-07-31 | JU10: 2041-08-31 | JV10: 2041-09-30 | JW10: 2041-10-31 | JX10: 2041-11-30 | JY10: 2041-12-31 | JZ10: 2042-01-31 | KA10: 2042-02-28 | KB10: 2042-03-31 | KC10: 2042-04-30 | KD10: 2042-05-31 | KE10: 2042-06-30 | KF10: 2042-07-31 | KG10: 2042-08-31 | KH10: 2042-09-30 | KI10: 2042-10-31 | KJ10: 2042-11-30 | KK10: 2042-12-31 | KL10: 2043-01-31 | KM10: 2043-02-28 | KN10: 2043-03-31 | KO10: 2043-04-30 | KP10: 2043-05-31 | KQ10: 2043-06-30 | KR10: 2043-07-31 | KS10: 2043-08-31 | KT10: 2043-09-30 | KU10: 2043-10-31 | KV10: 2043-11-30 | KW10: 2043-12-31 | KX10: 2044-01-31 | KY10: 2044-02-29 | KZ10: 2044-03-31 | LA10: 2044-04-30 | LB10: 2044-05-31 | LC10: 2044-06-30 | LD10: 2044-07-31 | LE10: 2044-08-31 | LF10: 2044-09-30 | LG10: 2044-10-31 | LH10: 2044-11-30 | LI10: 2044-12-31 | LJ10: 2045-01-31 | LK10: 2045-02-28 | LL10: 2045-03-31 | LM10: 2045-04-30 | LN10: 2045-05-31 | LO10: 2045-06-30 | LP10: 2045-07-31 | LQ10: 2045-08-31 | LR10: 2045-09-30 | LS10: =EOMONTH(LR10,1) -> 2045-10-31 | LT10: 2045-11-30 | LU10: 2045-12-31 | LV10: 2046-01-31 | LW10: 2046-02-28 | LX10: 2046-03-31 | LY10: 2046-04-30 | LZ10: 2046-05-31 | MA10: 2046-06-30 | MB10: 2046-07-31 | MC10: 2046-08-31 | MD10: 2046-09-30 | ME10: 2046-10-31 | MF10: 2046-11-30 | MG10: 2046-12-31 | MH10: 2047-01-31 | MI10: 2047-02-28 | MJ10: 2047-03-31 | MK10: 2047-04-30 | ML10: 2047-05-31 | MM10: 2047-06-30 | MN10: 2047-07-31 | MO10: 2047-08-31 | MP10: 2047-09-30 | MQ10: 2047-10-31 | MR10: 2047-11-30 | MS10: 2047-12-31 | MT10: 2048-01-31 | MU10: 2048-02-29 | MV10: 2048-03-31 | MW10: 2048-04-30 | MX10: 2048-05-31 | MY10: 2048-06-30 | MZ10: 2048-07-31 | NA10: 2048-08-31 | NB10: 2048-09-30 | NC10: 2048-10-31 | ND10: 2048-11-30 | NE10: 2048-12-31 | NF10: 2049-01-31 | NG10: 2049-02-28 | NH10: 2049-03-31 | NI10: 2049-04-30 | NJ10: 2049-05-31 | NK10: 2049-06-30 | NL10: 2049-07-31 | NM10: 2049-08-31 | NN10: 2049-09-30 | NO10: 2049-10-31 | NP10: 2049-11-30 | NQ10: 2049-12-31 | NR10: 2050-01-31 | NS10: 2050-02-28 | NT10: 2050-03-31 | NU10: 2050-04-30 | NV10: 2050-05-31 | NW10: 2050-06-30 | NX10: 2050-07-31 | NY10: 2050-08-31 | NZ10: 2050-09-30 | OA10: 2050-10-31 | OB10: 2050-11-30 | OC10: 2050-12-31 | OD10: 2051-01-31 | OE10: =EOMONTH(OD10,1) -> 2051-02-28 | OF10: 2051-03-31 | OG10: 2051-04-30 | OH10: 2051-05-31 | OI10: 2051-06-30 | OJ10: 2051-07-31 | OK10: 2051-08-31 | OL10: 2051-09-30 | OM10: 2051-10-31 | ON10: 2051-11-30 | OO10: 2051-12-31 | OP10: 2052-01-31 | OQ10: 2052-02-29 | OR10: 2052-03-31 | OS10: 2052-04-30 | OT10: 2052-05-31 | OU10: 2052-06-30 | OV10: 2052-07-31 | OW10: 2052-08-31 | OX10: 2052-09-30 | OY10: 2052-10-31 | OZ10: 2052-11-30 | PA10: 2052-12-31 | PB10: 2053-01-31 | PC10: 2053-02-28 | PD10: 2053-03-31 | PE10: 2053-04-30 | PF10: 2053-05-31 | PG10: 2053-06-30 | PH10: 2053-07-31 | PI10: 2053-08-31 | PJ10: 2053-09-30 | PK10: 2053-10-31 | PL10: 2053-11-30 | PM10: 2053-12-31 | PN10: 0
PN11: 0
B12: (+) ENTRADAS DE CAIXA | D12: =SUM(J12:PM12) -> 1.507701882e+10 | E12: =NPV(PainelControle!$D$8,$K12:$PM12)+J12 -> 3704747450 | J12: =J13+J16+J17 -> 16855742 | K12: 16855742 | L12: 16855742 | M12: 16855742 | N12: 16855742 | O12: 16855742 | P12: 16855742 | Q12: 16855742 | R12: 16855742 | S12: 16855742 | T12: 16855742 | U12: 16855742 | V12: 16855742 | W12: 16855742 | X12: 16855742 | Y12: 16855742 | Z12: 16855742 | AA12: 16855742 | AB12: 16855742 | AC12: 16855742 | AD12: 17732429.3 | AE12: 17732429.3 | AF12: 17732429.3 | AG12: 17732429.3 | AH12: 17732429.3 | AI12: 17732429.3 | AJ12: 17732429.3 | AK12: 18177187.94 | AL12: 18177187.94 | AM12: 18177187.94 | AN12: 19343863.94 | AO12: 19343863.94 | AP12: 19343863.94 | AQ12: 19343863.94 | AR12: 20492761.41 | AS12: 20492761.41 | AT12: 25712151.91 | AU12: 25712151.91 | AV12: 25712151.91 | AW12: 26513209.98 | AX12: 26513209.98 | AY12: 26513209.98 | AZ12: 39823304.08 | BA12: 39823304.08 | BB12: 39823304.08 | BC12: 39823304.08 | BD12: 39823304.08 | BE12: 39823304.08 | BF12: 43867552.78 | BG12: 43867552.78 | BH12: 43867552.78 | BI12: 43867552.78 | BJ12: 43867552.78 | BK12: 43867552.78 | BL12: 44930831.28 | BM12: 44930831.28 | BN12: 44930831.28 | BO12: 44930831.28 | BP12: 44930831.28 | BQ12: 44930831.28 | BR12: 47519066.68 | BS12: 47519066.68 | BT12: 47519066.68 | BU12: 47519066.68 | BV12: =BV13+BV16+BV17 -> 47519066.68 | BW12: 47519066.68 | BX12: 47519066.68 | BY12: 47519066.68 | BZ12: 47519066.68 | CA12: 47519066.68 | CB12: 47519066.68 | CC12: 47519066.68 | CD12: 46731262.78 | CE12: 46731262.78 | CF12: 46731262.78 | CG12: 46731262.78 | CH12: 46731262.78 | CI12: 46731262.78 | CJ12: 46731262.78 | CK12: 46731262.78 | CL12: 46731262.78 | CM12: 46731262.78 | CN12: 46731262.78 | CO12: 46731262.78 | CP12: 45943458.88 | CQ12: 45943458.88 | CR12: 45943458.88 | CS12: 45943458.88 | CT12: 45943458.88 | CU12: 45943458.88 | CV12: 45943458.88 | CW12: 45943458.88 | CX12: 45943458.88 | CY12: 45943458.88 | CZ12: 45943458.88 | DA12: 45943458.88 | DB12: 45155654.98 | DC12: 45155654.98 | DD12: 45155654.98 | DE12: 45155654.98 | DF12: 45155654.98 | DG12: 45155654.98 | DH12: 45155654.98 | DI12: 45155654.98 | DJ12: 45155654.98 | DK12: 45155654.98 | DL12: 45155654.98 | DM12: 45155654.98 | DN12: 44367851.08 | DO12: 44367851.08 | DP12: 44367851.08 | DQ12: 44367851.08 | DR12: 44367851.08 | DS12: 44367851.08 | DT12: 44367851.08 | DU12: 44367851.08 | DV12: 44367851.08 | DW12: 44367851.08 | DX12: 44367851.08 | DY12: 44367851.08 | DZ12: 43580047.18 | EA12: 43580047.18 | EB12: 43580047.18 | EC12: 43580047.18 | ED12: 43580047.18 | EE12: 43580047.18 | EF12: 43580047.18 | EG12: 43580047.18 | EH12: =EH13+EH16+EH17 -> 43580047.18 | EI12: 43580047.18 | EJ12: 43580047.18 | EK12: 43580047.18 | EL12: 42792243.28 | EM12: 42792243.28 | EN12: 42792243.28 | EO12: 42792243.28 | EP12: 42792243.28 | EQ12: 42792243.28 | ER12: 42792243.28 | ES12: 42792243.28 | ET12: 42792243.28 | EU12: 42792243.28 | EV12: 42792243.28 | EW12: 42792243.28 | EX12: 42004439.38 | EY12: 42004439.38 | EZ12: 42004439.38 | FA12: 42004439.38 | FB12: 42004439.38 | FC12: 42004439.38 | FD12: 42004439.38 | FE12: 42004439.38 | FF12: 42004439.38 | FG12: 42004439.38 | FH12: 42004439.38 | FI12: 42004439.38 | FJ12: 41216635.48 | FK12: 41216635.48 | FL12: 41216635.48 | FM12: 41216635.48 | FN12: 41216635.48 | FO12: 41216635.48 | FP12: 41216635.48 | FQ12: 41216635.48 | FR12: 41216635.48 | FS12: 41216635.48 | FT12: 41216635.48 | FU12: 41216635.48 | FV12: 40428831.58 | FW12: 40428831.58 | FX12: 40428831.58 | FY12: 40428831.58 | FZ12: 40428831.58 | GA12: 40428831.58 | GB12: 40428831.58 | GC12: 40428831.58 | GD12: 40428831.58 | GE12: 40428831.58 | GF12: 40428831.58 | GG12: 40428831.58 | GH12: 39641027.68 | GI12: 39641027.68 | GJ12: 39641027.68 | GK12: 39641027.68 | GL12: 39641027.68 | GM12: 39641027.68 | GN12: 39641027.68 | GO12: 39641027.68 | GP12: 39641027.68 | GQ12: 39641027.68 | GR12: 39641027.68 | GS12: 39641027.68 | GT12: =GT13+GT16+GT17 -> 38853223.78 | GU12: 38853223.78 | GV12: 38853223.78 | GW12: 38853223.78 | GX12: 38853223.78 | GY12: 38853223.78 | GZ12: 38853223.78 | HA12: 38853223.78 | HB12: 38853223.78 | HC12: 38853223.78 | HD12: 38853223.78 | HE12: 38853223.78 | HF12: 38065419.88 | HG12: 38065419.88 | HH12: 38065419.88 | HI12: 38065419.88 | HJ12: 38065419.88 | HK12: 38065419.88 | HL12: 38065419.88 | HM12: 38065419.88 | HN12: 38065419.88 | HO12: 38065419.88 | HP12: 38065419.88 | HQ12: 38065419.88 | HR12: 37277615.98 | HS12: 37277615.98 | HT12: 37277615.98 | HU12: 37277615.98 | HV12: 37277615.98 | HW12: 37277615.98 | HX12: 37277615.98 | HY12: 37277615.98 | HZ12: 37277615.98 | IA12: 37277615.98 | IB12: 37277615.98 | IC12: 37277615.98 | ID12: 36489812.08 | IE12: 36489812.08 | IF12: 36489812.08 | IG12: 36489812.08 | IH12: 36489812.08 | II12: 36489812.08 | IJ12: 36489812.08 | IK12: 36489812.08 | IL12: 36489812.08 | IM12: 36489812.08 | IN12: 36489812.08 | IO12: 36489812.08 | IP12: 35702008.18 | IQ12: 35702008.18 | IR12: 35702008.18 | IS12: 35702008.18 | IT12: 35702008.18 | IU12: 35702008.18 | IV12: 35702008.18 | IW12: 35702008.18 | IX12: 35702008.18 | IY12: 35702008.18 | IZ12: 35702008.18 | JA12: 35702008.18 | JB12: 34914204.28 | JC12: 34914204.28 | JD12: 34914204.28 | JE12: 34914204.28 | JF12: =JF13+JF16+JF17 -> 34914204.28 | JG12: 34914204.28 | JH12: 34914204.28 | JI12: 34914204.28 | JJ12: 34914204.28 | JK12: 34914204.28 | JL12: 34914204.28 | JM12: 34914204.28 | JN12: 34126400.38 | JO12: 34126400.38 | JP12: 34126400.38 | JQ12: 34126400.38 | JR12: 34126400.38 | JS12: 34126400.38 | JT12: 34126400.38 | JU12: 34126400.38 | JV12: 34126400.38 | JW12: 34126400.38 | JX12: 34126400.38 | JY12: 34126400.38 | JZ12: 33338596.48 | KA12: 33338596.48 | KB12: 33338596.48 | KC12: 33338596.48 | KD12: 33338596.48 | KE12: 33338596.48 | KF12: 33338596.48 | KG12: 33338596.48 | KH12: 33338596.48 | KI12: 33338596.48 | KJ12: 33338596.48 | KK12: 33338596.48 | KL12: 32550792.58 | KM12: 32550792.58 | KN12: 32550792.58 | KO12: 32550792.58 | KP12: 32550792.58 | KQ12: 32550792.58 | KR12: 32550792.58 | KS12: 32550792.58 | KT12: 32550792.58 | KU12: 32550792.58 | KV12: 32550792.58 | KW12: 32550792.58 | KX12: 32550792.58 | KY12: 32550792.58 | KZ12: 32550792.58 | LA12: 32550792.58 | LB12: 32550792.58 | LC12: 32550792.58 | LD12: 32550792.58 | LE12: 32550792.58 | LF12: 32550792.58 | LG12: 32550792.58 | LH12: 32550792.58 | LI12: 32550792.58 | LJ12: 32550792.58 | LK12: 32550792.58 | LL12: 32550792.58 | LM12: 32550792.58 | LN12: 32550792.58 | LO12: 32550792.58 | LP12: 32550792.58 | LQ12: 32550792.58 | LR12: =LR13+LR16+LR17 -> 32550792.58 | LS12: 32550792.58 | LT12: 32550792.58 | LU12: 32550792.58 | LV12: 32550792.58 | LW12: 32550792.58 | LX12: 32550792.58 | LY12: 32550792.58 | LZ12: 32550792.58 | MA12: 32550792.58 | MB12: 32550792.58 | MC12: 32550792.58 | MD12: 32550792.58 | ME12: 32550792.58 | MF12: 32550792.58 | MG12: 32550792.58 | MH12: 32550792.58 | MI12: 32550792.58 | MJ12: 32550792.58 | MK12: 32550792.58 | ML12: 32550792.58 | MM12: 32550792.58 | MN12: 32550792.58 | MO12: 32550792.58 | MP12: 32550792.58 | MQ12: 32550792.58 | MR12: 32550792.58 | MS12: 32550792.58 | MT12: 32550792.58 | MU12: 32550792.58 | MV12: 32550792.58 | MW12: 32550792.58 | MX12: 32550792.58 | MY12: 32550792.58 | MZ12: 32550792.58 | NA12: 32550792.58 | NB12: 32550792.58 | NC12: 32550792.58 | ND12: 32550792.58 | NE12: 32550792.58 | NF12: 32550792.58 | NG12: 32550792.58 | NH12: 32550792.58 | NI12: 32550792.58 | NJ12: 32550792.58 | NK12: 32550792.58 | NL12: 32550792.58 | NM12: 32550792.58 | NN12: 32550792.58 | NO12: 32550792.58 | NP12: 32550792.58 | NQ12: 32550792.58 | NR12: 32550792.58 | NS12: 32550792.58 | NT12: 32550792.58 | NU12: 32550792.58 | NV12: 32550792.58 | NW12: 32550792.58 | NX12: 32550792.58 | NY12: 32550792.58 | NZ12: 32550792.58 | OA12: 32550792.58 | OB12: 32550792.58 | OC12: 32550792.58 | OD12: =OD13+OD16+OD17 -> 32550792.58 | OE12: 32550792.58 | OF12: 32550792.58 | OG12: 32550792.58 | OH12: 32550792.58 | OI12: 32550792.58 | OJ12: 32550792.58 | OK12: 32550792.58 | OL12: 32550792.58 | OM12: 32550792.58 | ON12: 32550792.58 | OO12: 32550792.58 | OP12: 32550792.58 | OQ12: 32550792.58 | OR12: 32550792.58 | OS12: 32550792.58 | OT12: 32550792.58 | OU12: 32550792.58 | OV12: 32550792.58 | OW12: 32550792.58 | OX12: 32550792.58 | OY12: 32550792.58 | OZ12: 32550792.58 | PA12: 32550792.58 | PB12: 32550792.58 | PC12: 32550792.58 | PD12: 32550792.58 | PE12: 32550792.58 | PF12: 32550792.58 | PG12: 32550792.58 | PH12: 32550792.58 | PI12: 32550792.58 | PJ12: 32550792.58 | PK12: 32550792.58 | PL12: 32550792.58 | PM12: 32550792.58 | PN12: 0
C13: Contraprestação Pecuniária (Lei 11.079/04) | D13: 3897097390 | E13: =NPV(PainelControle!$D$8,$K13:$PM13)+J13 -> 1545216050 | J13: =SUM(J14:J15) -> 15756078 | K13: 15756078 | L13: 15756078 | M13: 15756078 | N13: 15756078 | O13: 15756078 | P13: 15756078 | Q13: 15756078 | R13: 15756078 | S13: 15756078 | T13: 15756078 | U13: 15756078 | V13: 15756078 | W13: 15756078 | X13: 15756078 | Y13: 15756078 | Z13: 15756078 | AA13: 15756078 | AB13: 15756078 | AC13: 15756078 | AD13: 16554805.3 | AE13: 16554805.3 | AF13: 16554805.3 | AG13: 16554805.3 | AH13: 16554805.3 | AI13: 16554805.3 | AJ13: 16554805.3 | AK13: 16912923.94 | AL13: 16912923.94 | AM13: 16912923.94 | AN13: 16912923.94 | AO13: 16912923.94 | AP13: 16912923.94 | AQ13: 16912923.94 | AR13: 17950505.41 | AS13: 17950505.41 | AT13: 17950505.41 | AU13: 17950505.41 | AV13: 17950505.41 | AW13: 18724263.48 | AX13: 18724263.48 | AY13: 18724263.48 | AZ13: 18724263.48 | BA13: 18724263.48 | BB13: 18724263.48 | BC13: 18724263.48 | BD13: 18724263.48 | BE13: 18724263.48 | BF13: 18724263.48 | BG13: 18724263.48 | BH13: 18724263.48 | BI13: 18724263.48 | BJ13: 18724263.48 | BK13: 18724263.48 | BL13: 18724263.48 | BM13: 18724263.48 | BN13: 18724263.48 | BO13: 18724263.48 | BP13: 18724263.48 | BQ13: 18724263.48 | BR13: 17936459.58 | BS13: 17936459.58 | BT13: 17936459.58 | BU13: 17936459.58 | BV13: =SUM(BV14:BV15) -> 17936459.58 | BW13: 17936459.58 | BX13: 17936459.58 | BY13: 17936459.58 | BZ13: 17936459.58 | CA13: 17936459.58 | CB13: 17936459.58 | CC13: 17936459.58 | CD13: 17148655.68 | CE13: 17148655.68 | CF13: 17148655.68 | CG13: 17148655.68 | CH13: 17148655.68 | CI13: 17148655.68 | CJ13: 17148655.68 | CK13: 17148655.68 | CL13: 17148655.68 | CM13: 17148655.68 | CN13: 17148655.68 | CO13: 17148655.68 | CP13: 16360851.78 | CQ13: 16360851.78 | CR13: 16360851.78 | CS13: 16360851.78 | CT13: 16360851.78 | CU13: 16360851.78 | CV13: 16360851.78 | CW13: 16360851.78 | CX13: 16360851.78 | CY13: 16360851.78 | CZ13: 16360851.78 | DA13: 16360851.78 | DB13: 15573047.88 | DC13: 15573047.88 | DD13: 15573047.88 | DE13: 15573047.88 | DF13: 15573047.88 | DG13: 15573047.88 | DH13: 15573047.88 | DI13: 15573047.88 | DJ13: 15573047.88 | DK13: 15573047.88 | DL13: 15573047.88 | DM13: 15573047.88 | DN13: 14785243.98 | DO13: 14785243.98 | DP13: 14785243.98 | DQ13: 14785243.98 | DR13: 14785243.98 | DS13: 14785243.98 | DT13: 14785243.98 | DU13: 14785243.98 | DV13: 14785243.98 | DW13: 14785243.98 | DX13: 14785243.98 | DY13: 14785243.98 | DZ13: 13997440.08 | EA13: 13997440.08 | EB13: 13997440.08 | EC13: 13997440.08 | ED13: 13997440.08 | EE13: 13997440.08 | EF13: 13997440.08 | EG13: 13997440.08 | EH13: =SUM(EH14:EH15) -> 13997440.08 | EI13: 13997440.08 | EJ13: 13997440.08 | EK13: 13997440.08 | EL13: 13209636.18 | EM13: 13209636.18 | EN13: 13209636.18 | EO13: 13209636.18 | EP13: 13209636.18 | EQ13: 13209636.18 | ER13: 13209636.18 | ES13: 13209636.18 | ET13: 13209636.18 | EU13: 13209636.18 | EV13: 13209636.18 | EW13: 13209636.18 | EX13: 12421832.28 | EY13: 12421832.28 | EZ13: 12421832.28 | FA13: 12421832.28 | FB13: 12421832.28 | FC13: 12421832.28 | FD13: 12421832.28 | FE13: 12421832.28 | FF13: 12421832.28 | FG13: 12421832.28 | FH13: 12421832.28 | FI13: 12421832.28 | FJ13: 11634028.38 | FK13: 11634028.38 | FL13: 11634028.38 | FM13: 11634028.38 | FN13: 11634028.38 | FO13: 11634028.38 | FP13: 11634028.38 | FQ13: 11634028.38 | FR13: 11634028.38 | FS13: 11634028.38 | FT13: 11634028.38 | FU13: 11634028.38 | FV13: 10846224.48 | FW13: 10846224.48 | FX13: 10846224.48 | FY13: 10846224.48 | FZ13: 10846224.48 | GA13: 10846224.48 | GB13: 10846224.48 | GC13: 10846224.48 | GD13: 10846224.48 | GE13: 10846224.48 | GF13: 10846224.48 | GG13: 10846224.48 | GH13: 10058420.58 | GI13: 10058420.58 | GJ13: 10058420.58 | GK13: 10058420.58 | GL13: 10058420.58 | GM13: 10058420.58 | GN13: 10058420.58 | GO13: 10058420.58 | GP13: 10058420.58 | GQ13: 10058420.58 | GR13: 10058420.58 | GS13: 10058420.58 | GT13: =SUM(GT14:GT15) -> 9270616.682 | GU13: 9270616.682 | GV13: 9270616.682 | GW13: 9270616.682 | GX13: 9270616.682 | GY13: 9270616.682 | GZ13: 9270616.682 | HA13: 9270616.682 | HB13: 9270616.682 | HC13: 9270616.682 | HD13: 9270616.682 | HE13: 9270616.682 | HF13: 8482812.782 | HG13: 8482812.782 | HH13: 8482812.782 | HI13: 8482812.782 | HJ13: 8482812.782 | HK13: 8482812.782 | HL13: 8482812.782 | HM13: 8482812.782 | HN13: 8482812.782 | HO13: 8482812.782 | HP13: 8482812.782 | HQ13: 8482812.782 | HR13: 7695008.882 | HS13: 7695008.882 | HT13: 7695008.882 | HU13: 7695008.882 | HV13: 7695008.882 | HW13: 7695008.882 | HX13: 7695008.882 | HY13: 7695008.882 | HZ13: 7695008.882 | IA13: 7695008.882 | IB13: 7695008.882 | IC13: 7695008.882 | ID13: 6907204.982 | IE13: 6907204.982 | IF13: 6907204.982 | IG13: 6907204.982 | IH13: 6907204.982 | II13: 6907204.982 | IJ13: 6907204.982 | IK13: 6907204.982 | IL13: 6907204.982 | IM13: 6907204.982 | IN13: 6907204.982 | IO13: 6907204.982 | IP13: 6119401.082 | IQ13: 6119401.082 | IR13: 6119401.082 | IS13: 6119401.082 | IT13: 6119401.082 | IU13: 6119401.082 | IV13: 6119401.082 | IW13: 6119401.082 | IX13: 6119401.082 | IY13: 6119401.082 | IZ13: 6119401.082 | JA13: 6119401.082 | JB13: 5331597.182 | JC13: 5331597.182 | JD13: 5331597.182 | JE13: 5331597.182 | JF13: =SUM(JF14:JF15) -> 5331597.182 | JG13: 5331597.182 | JH13: 5331597.182 | JI13: 5331597.182 | JJ13: 5331597.182 | JK13: 5331597.182 | JL13: 5331597.182 | JM13: 5331597.182 | JN13: 4543793.282 | JO13: 4543793.282 | JP13: 4543793.282 | JQ13: 4543793.282 | JR13: 4543793.282 | JS13: 4543793.282 | JT13: 4543793.282 | JU13: 4543793.282 | JV13: 4543793.282 | JW13: 4543793.282 | JX13: 4543793.282 | JY13: 4543793.282 | JZ13: 3755989.382 | KA13: 3755989.382 | KB13: 3755989.382 | KC13: 3755989.382 | KD13: 3755989.382 | KE13: 3755989.382 | KF13: 3755989.382 | KG13: 3755989.382 | KH13: 3755989.382 | KI13: 3755989.382 | KJ13: 3755989.382 | KK13: 3755989.382 | KL13: 2968185.482 | KM13: 2968185.482 | KN13: 2968185.482 | KO13: 2968185.482 | KP13: 2968185.482 | KQ13: 2968185.482 | KR13: 2968185.482 | KS13: 2968185.482 | KT13: 2968185.482 | KU13: 2968185.482 | KV13: 2968185.482 | KW13: 2968185.482 | KX13: 2968185.482 | KY13: 2968185.482 | KZ13: 2968185.482 | LA13: 2968185.482 | LB13: 2968185.482 | LC13: 2968185.482 | LD13: 2968185.482 | LE13: 2968185.482 | LF13: 2968185.482 | LG13: 2968185.482 | LH13: 2968185.482 | LI13: 2968185.482 | LJ13: 2968185.482 | LK13: 2968185.482 | LL13: 2968185.482 | LM13: 2968185.482 | LN13: 2968185.482 | LO13: 2968185.482 | LP13: 2968185.482 | LQ13: 2968185.482 | LR13: =SUM(LR14:LR15) -> 2968185.482 | LS13: 2968185.482 | LT13: 2968185.482 | LU13: 2968185.482 | LV13: 2968185.482 | LW13: 2968185.482 | LX13: 2968185.482 | LY13: 2968185.482 | LZ13: 2968185.482 | MA13: 2968185.482 | MB13: 2968185.482 | MC13: 2968185.482 | MD13: 2968185.482 | ME13: 2968185.482 | MF13: 2968185.482 | MG13: 2968185.482 | MH13: 2968185.482 | MI13: 2968185.482 | MJ13: 2968185.482 | MK13: 2968185.482 | ML13: 2968185.482 | MM13: 2968185.482 | MN13: 2968185.482 | MO13: 2968185.482 | MP13: 2968185.482 | MQ13: 2968185.482 | MR13: 2968185.482 | MS13: 2968185.482 | MT13: 2968185.482 | MU13: 2968185.482 | MV13: 2968185.482 | MW13: 2968185.482 | MX13: 2968185.482 | MY13: 2968185.482 | MZ13: 2968185.482 | NA13: 2968185.482 | NB13: 2968185.482 | NC13: 2968185.482 | ND13: 2968185.482 | NE13: 2968185.482 | NF13: 2968185.482 | NG13: 2968185.482 | NH13: 2968185.482 | NI13: 2968185.482 | NJ13: 2968185.482 | NK13: 2968185.482 | NL13: 2968185.482 | NM13: 2968185.482 | NN13: 2968185.482 | NO13: 2968185.482 | NP13: 2968185.482 | NQ13: 2968185.482 | NR13: 2968185.482 | NS13: 2968185.482 | NT13: 2968185.482 | NU13: 2968185.482 | NV13: 2968185.482 | NW13: 2968185.482 | NX13: 2968185.482 | NY13: 2968185.482 | NZ13: 2968185.482 | OA13: 2968185.482 | OB13: 2968185.482 | OC13: 2968185.482 | OD13: =SUM(OD14:OD15) -> 2968185.482 | OE13: 2968185.482 | OF13: 2968185.482 | OG13: 2968185.482 | OH13: 2968185.482 | OI13: 2968185.482 | OJ13: 2968185.482 | OK13: 2968185.482 | OL13: 2968185.482 | OM13: 2968185.482 | ON13: 2968185.482 | OO13: 2968185.482 | OP13: 2968185.482 | OQ13: 2968185.482 | OR13: 2968185.482 | OS13: 2968185.482 | OT13: 2968185.482 | OU13: 2968185.482 | OV13: 2968185.482 | OW13: 2968185.482 | OX13: 2968185.482 | OY13: 2968185.482 | OZ13: 2968185.482 | PA13: 2968185.482 | PB13: 2968185.482 | PC13: 2968185.482 | PD13: 2968185.482 | PE13: 2968185.482 | PF13: 2968185.482 | PG13: 2968185.482 | PH13: 2968185.482 | PI13: 2968185.482 | PJ13: 2968185.482 | PK13: 2968185.482 | PL13: 2968185.482 | PM13: 2968185.482 | PN13: 0
C14: =PainelControle!C12 -> PARCELA (A) | D14: 2741557572 | E14: =NPV(PainelControle!$D$8,$K14:$PM14)+J14 -> 1304852780 | F14: =PainelControle!B12 -> 1 | J14: =Contraprestação!J14*$F14 -> 15756078 | K14: =Contraprestação!K14*$F14 -> 15756078 | L14: =Contraprestação!L14*$F14 -> 15756078 | M14: =Contraprestação!M14*$F14 -> 15756078 | N14: =Contraprestação!N14*$F14 -> 15756078 | O14: =Contraprestação!O14*$F14 -> 15756078 | P14: =Contraprestação!P14*$F14 -> 15756078 | Q14: =Contraprestação!Q14*$F14 -> 15756078 | R14: =Contraprestação!R14*$F14 -> 15756078 | S14: =Contraprestação!S14*$F14 -> 15756078 | T14: =Contraprestação!T14*$F14 -> 15756078 | U14: =Contraprestação!U14*$F14 -> 15756078 | V14: =Contraprestação!V14*$F14 -> 15756078 | W14: =Contraprestação!W14*$F14 -> 15756078 | X14: =Contraprestação!X14*$F14 -> 15756078 | Y14: =Contraprestação!Y14*$F14 -> 15756078 | Z14: =Contraprestação!Z14*$F14 -> 15756078 | AA14: =Contraprestação!AA14*$F14 -> 15756078 | AB14: =Contraprestação!AB14*$F14 -> 15756078 | AC14: =Contraprestação!AC14*$F14 -> 15756078 | AD14: =Contraprestação!AD14*$F14 -> 15756078 | AE14: =Contraprestação!AE14*$F14 -> 15756078 | AF14: =Contraprestação!AF14*$F14 -> 15756078 | AG14: =Contraprestação!AG14*$F14 -> 15756078 | AH14: =Contraprestação!AH14*$F14 -> 15756078 | AI14: =Contraprestação!AI14*$F14 -> 15756078 | AJ14: =Contraprestação!AJ14*$F14 -> 15756078 | AK14: =Contraprestação!AK14*$F14 -> 15756078 | AL14: =Contraprestação!AL14*$F14 -> 15756078 | AM14: =Contraprestação!AM14*$F14 -> 15756078 | AN14: =Contraprestação!AN14*$F14 -> 15756078 | AO14: =Contraprestação!AO14*$F14 -> 15756078 | AP14: =Contraprestação!AP14*$F14 -> 15756078 | AQ14: =Contraprestação!AQ14*$F14 -> 15756078 | AR14: =Contraprestação!AR14*$F14 -> 15756078 | AS14: =Contraprestação!AS14*$F14 -> 15756078 | AT14: =Contraprestação!AT14*$F14 -> 15756078 | AU14: =Contraprestação!AU14*$F14 -> 15756078 | AV14: =Contraprestação!AV14*$F14 -> 15756078 | AW14: =Contraprestação!AW14*$F14 -> 15756078 | AX14: =Contraprestação!AX14*$F14 -> 15756078 | AY14: =Contraprestação!AY14*$F14 -> 15756078 | AZ14: =Contraprestação!AZ14*$F14 -> 15756078 | BA14: =Contraprestação!BA14*$F14 -> 15756078 | BB14: =Contraprestação!BB14*$F14 -> 15756078 | BC14: =Contraprestação!BC14*$F14 -> 15756078 | BD14: =Contraprestação!BD14*$F14 -> 15756078 | BE14: =Contraprestação!BE14*$F14 -> 15756078 | BF14: =Contraprestação!BF14*$F14 -> 15756078 | BG14: =Contraprestação!BG14*$F14 -> 15756078 | BH14: =Contraprestação!BH14*$F14 -> 15756078 | BI14: =Contraprestação!BI14*$F14 -> 15756078 | BJ14: =Contraprestação!BJ14*$F14 -> 15756078 | BK14: =Contraprestação!BK14*$F14 -> 15756078 | BL14: =Contraprestação!BL14*$F14 -> 15756078 | BM14: =Contraprestação!BM14*$F14 -> 15756078 | BN14: =Contraprestação!BN14*$F14 -> 15756078 | BO14: =Contraprestação!BO14*$F14 -> 15756078 | BP14: =Contraprestação!BP14*$F14 -> 15756078 | BQ14: =Contraprestação!BQ14*$F14 -> 15756078 | BR14: =Contraprestação!BR14*$F14 -> 14968274.1 | BS14: =Contraprestação!BS14*$F14 -> 14968274.1 | BT14: =Contraprestação!BT14*$F14 -> 14968274.1 | BU14: =Contraprestação!BU14*$F14 -> 14968274.1 | BV14: =Contraprestação!BV14*$F14 -> 14968274.1 | BW14: =Contraprestação!BW14*$F14 -> 14968274.1 | BX14: =Contraprestação!BX14*$F14 -> 14968274.1 | BY14: =Contraprestação!BY14*$F14 -> 14968274.1 | BZ14: =Contraprestação!BZ14*$F14 -> 14968274.1 | CA14: =Contraprestação!CA14*$F14 -> 14968274.1 | CB14: =Contraprestação!CB14*$F14 -> 14968274.1 | CC14: =Contraprestação!CC14*$F14 -> 14968274.1 | CD14: =Contraprestação!CD14*$F14 -> 14180470.2 | CE14: =Contraprestação!CE14*$F14 -> 14180470.2 | CF14: =Contraprestação!CF14*$F14 -> 14180470.2 | CG14: =Contraprestação!CG14*$F14 -> 14180470.2 | CH14: =Contraprestação!CH14*$F14 -> 14180470.2 | CI14: =Contraprestação!CI14*$F14 -> 14180470.2 | CJ14: =Contraprestação!CJ14*$F14 -> 14180470.2 | CK14: =Contraprestação!CK14*$F14 -> 14180470.2 | CL14: =Contraprestação!CL14*$F14 -> 14180470.2 | CM14: =Contraprestação!CM14*$F14 -> 14180470.2 | CN14: =Contraprestação!CN14*$F14 -> 14180470.2 | CO14: =Contraprestação!CO14*$F14 -> 14180470.2 | CP14: =Contraprestação!CP14*$F14 -> 13392666.3 | CQ14: =Contraprestação!CQ14*$F14 -> 13392666.3 | CR14: =Contraprestação!CR14*$F14 -> 13392666.3 | CS14: =Contraprestação!CS14*$F14 -> 13392666.3 | CT14: =Contraprestação!CT14*$F14 -> 13392666.3 | CU14: =Contraprestação!CU14*$F14 -> 13392666.3 | CV14: =Contraprestação!CV14*$F14 -> 13392666.3 | CW14: =Contraprestação!CW14*$F14 -> 13392666.3 | CX14: =Contraprestação!CX14*$F14 -> 13392666.3 | CY14: =Contraprestação!CY14*$F14 -> 13392666.3 | CZ14: =Contraprestação!CZ14*$F14 -> 13392666.3 | DA14: =Contraprestação!DA14*$F14 -> 13392666.3 | DB14: =Contraprestação!DB14*$F14 -> 12604862.4 | DC14: =Contraprestação!DC14*$F14 -> 12604862.4 | DD14: =Contraprestação!DD14*$F14 -> 12604862.4 | DE14: =Contraprestação!DE14*$F14 -> 12604862.4 | DF14: =Contraprestação!DF14*$F14 -> 12604862.4 | DG14: =Contraprestação!DG14*$F14 -> 12604862.4 | DH14: =Contraprestação!DH14*$F14 -> 12604862.4 | DI14: =Contraprestação!DI14*$F14 -> 12604862.4 | DJ14: =Contraprestação!DJ14*$F14 -> 12604862.4 | DK14: =Contraprestação!DK14*$F14 -> 12604862.4 | DL14: =Contraprestação!DL14*$F14 -> 12604862.4 | DM14: =Contraprestação!DM14*$F14 -> 12604862.4 | DN14: =Contraprestação!DN14*$F14 -> 11817058.5 | DO14: =Contraprestação!DO14*$F14 -> 11817058.5 | DP14: =Contraprestação!DP14*$F14 -> 11817058.5 | DQ14: =Contraprestação!DQ14*$F14 -> 11817058.5 | DR14: =Contraprestação!DR14*$F14 -> 11817058.5 | DS14: =Contraprestação!DS14*$F14 -> 11817058.5 | DT14: =Contraprestação!DT14*$F14 -> 11817058.5 | DU14: =Contraprestação!DU14*$F14 -> 11817058.5 | DV14: =Contraprestação!DV14*$F14 -> 11817058.5 | DW14: =Contraprestação!DW14*$F14 -> 11817058.5 | DX14: =Contraprestação!DX14*$F14 -> 11817058.5 | DY14: =Contraprestação!DY14*$F14 -> 11817058.5 | DZ14: =Contraprestação!DZ14*$F14 -> 11029254.6 | EA14: =Contraprestação!EA14*$F14 -> 11029254.6 | EB14: =Contraprestação!EB14*$F14 -> 11029254.6 | EC14: =Contraprestação!EC14*$F14 -> 11029254.6 | ED14: =Contraprestação!ED14*$F14 -> 11029254.6 | EE14: =Contraprestação!EE14*$F14 -> 11029254.6 | EF14: =Contraprestação!EF14*$F14 -> 11029254.6 | EG14: =Contraprestação!EG14*$F14 -> 11029254.6 | EH14: =Contraprestação!EH14*$F14 -> 11029254.6 | EI14: =Contraprestação!EI14*$F14 -> 11029254.6 | EJ14: =Contraprestação!EJ14*$F14 -> 11029254.6 | EK14: =Contraprestação!EK14*$F14 -> 11029254.6 | EL14: =Contraprestação!EL14*$F14 -> 10241450.7 | EM14: =Contraprestação!EM14*$F14 -> 10241450.7 | EN14: =Contraprestação!EN14*$F14 -> 10241450.7 | EO14: =Contraprestação!EO14*$F14 -> 10241450.7 | EP14: =Contraprestação!EP14*$F14 -> 10241450.7 | EQ14: =Contraprestação!EQ14*$F14 -> 10241450.7 | ER14: =Contraprestação!ER14*$F14 -> 10241450.7 | ES14: =Contraprestação!ES14*$F14 -> 10241450.7 | ET14: =Contraprestação!ET14*$F14 -> 10241450.7 | EU14: =Contraprestação!EU14*$F14 -> 10241450.7 | EV14: =Contraprestação!EV14*$F14 -> 10241450.7 | EW14: =Contraprestação!EW14*$F14 -> 10241450.7 | EX14: =Contraprestação!EX14*$F14 -> 9453646.8 | EY14: =Contraprestação!EY14*$F14 -> 9453646.8 | EZ14: =Contraprestação!EZ14*$F14 -> 9453646.8 | FA14: =Contraprestação!FA14*$F14 -> 9453646.8 | FB14: =Contraprestação!FB14*$F14 -> 9453646.8 | FC14: =Contraprestação!FC14*$F14 -> 9453646.8 | FD14: =Contraprestação!FD14*$F14 -> 9453646.8 | FE14: =Contraprestação!FE14*$F14 -> 9453646.8 | FF14: =Contraprestação!FF14*$F14 -> 9453646.8 | FG14: =Contraprestação!FG14*$F14 -> 9453646.8 | FH14: =Contraprestação!FH14*$F14 -> 9453646.8 | FI14: =Contraprestação!FI14*$F14 -> 9453646.8 | FJ14: =Contraprestação!FJ14*$F14 -> 8665842.9 | FK14: =Contraprestação!FK14*$F14 -> 8665842.9 | FL14: =Contraprestação!FL14*$F14 -> 8665842.9 | FM14: =Contraprestação!FM14*$F14 -> 8665842.9 | FN14: =Contraprestação!FN14*$F14 -> 8665842.9 | FO14: =Contraprestação!FO14*$F14 -> 8665842.9 | FP14: =Contraprestação!FP14*$F14 -> 8665842.9 | FQ14: =Contraprestação!FQ14*$F14 -> 8665842.9 | FR14: =Contraprestação!FR14*$F14 -> 8665842.9 | FS14: =Contraprestação!FS14*$F14 -> 8665842.9 | FT14: =Contraprestação!FT14*$F14 -> 8665842.9 | FU14: =Contraprestação!FU14*$F14 -> 8665842.9 | FV14: =Contraprestação!FV14*$F14 -> 7878039 | FW14: =Contraprestação!FW14*$F14 -> 7878039 | FX14: =Contraprestação!FX14*$F14 -> 7878039 | FY14: =Contraprestação!FY14*$F14 -> 7878039 | FZ14: =Contraprestação!FZ14*$F14 -> 7878039 | GA14: =Contraprestação!GA14*$F14 -> 7878039 | GB14: =Contraprestação!GB14*$F14 -> 7878039 | GC14: =Contraprestação!GC14*$F14 -> 7878039 | GD14: =Contraprestação!GD14*$F14 -> 7878039 | GE14: =Contraprestação!GE14*$F14 -> 7878039 | GF14: =Contraprestação!GF14*$F14 -> 7878039 | GG14: =Contraprestação!GG14*$F14 -> 7878039 | GH14: =Contraprestação!GH14*$F14 -> 7090235.1 | GI14: =Contraprestação!GI14*$F14 -> 7090235.1 | GJ14: =Contraprestação!GJ14*$F14 -> 7090235.1 | GK14: =Contraprestação!GK14*$F14 -> 7090235.1 | GL14: =Contraprestação!GL14*$F14 -> 7090235.1 | GM14: =Contraprestação!GM14*$F14 -> 7090235.1 | GN14: =Contraprestação!GN14*$F14 -> 7090235.1 | GO14: =Contraprestação!GO14*$F14 -> 7090235.1 | GP14: =Contraprestação!GP14*$F14 -> 7090235.1 | GQ14: =Contraprestação!GQ14*$F14 -> 7090235.1 | GR14: =Contraprestação!GR14*$F14 -> 7090235.1 | GS14: =Contraprestação!GS14*$F14 -> 7090235.1 | GT14: =Contraprestação!GT14*$F14 -> 6302431.2 | GU14: =Contraprestação!GU14*$F14 -> 6302431.2 | GV14: =Contraprestação!GV14*$F14 -> 6302431.2 | GW14: =Contraprestação!GW14*$F14 -> 6302431.2 | GX14: =Contraprestação!GX14*$F14 -> 6302431.2 | GY14: =Contraprestação!GY14*$F14 -> 6302431.2 | GZ14: =Contraprestação!GZ14*$F14 -> 6302431.2 | HA14: =Contraprestação!HA14*$F14 -> 6302431.2 | HB14: =Contraprestação!HB14*$F14 -> 6302431.2 | HC14: =Contraprestação!HC14*$F14 -> 6302431.2 | HD14: =Contraprestação!HD14*$F14 -> 6302431.2 | HE14: =Contraprestação!HE14*$F14 -> 6302431.2 | HF14: =Contraprestação!HF14*$F14 -> 5514627.3 | HG14: =Contraprestação!HG14*$F14 -> 5514627.3 | HH14: =Contraprestação!HH14*$F14 -> 5514627.3 | HI14: =Contraprestação!HI14*$F14 -> 5514627.3 | HJ14: =Contraprestação!HJ14*$F14 -> 5514627.3 | HK14: =Contraprestação!HK14*$F14 -> 5514627.3 | HL14: =Contraprestação!HL14*$F14 -> 5514627.3 | HM14: =Contraprestação!HM14*$F14 -> 5514627.3 | HN14: =Contraprestação!HN14*$F14 -> 5514627.3 | HO14: =Contraprestação!HO14*$F14 -> 5514627.3 | HP14: =Contraprestação!HP14*$F14 -> 5514627.3 | HQ14: =Contraprestação!HQ14*$F14 -> 5514627.3 | HR14: =Contraprestação!HR14*$F14 -> 4726823.4 | HS14: =Contraprestação!HS14*$F14 -> 4726823.4 | HT14: =Contraprestação!HT14*$F14 -> 4726823.4 | HU14: =Contraprestação!HU14*$F14 -> 4726823.4 | HV14: =Contraprestação!HV14*$F14 -> 4726823.4 | HW14: =Contraprestação!HW14*$F14 -> 4726823.4 | HX14: =Contraprestação!HX14*$F14 -> 4726823.4 | HY14: =Contraprestação!HY14*$F14 -> 4726823.4 | HZ14: =Contraprestação!HZ14*$F14 -> 4726823.4 | IA14: =Contraprestação!IA14*$F14 -> 4726823.4 | IB14: =Contraprestação!IB14*$F14 -> 4726823.4 | IC14: =Contraprestação!IC14*$F14 -> 4726823.4 | ID14: =Contraprestação!ID14*$F14 -> 3939019.5 | IE14: =Contraprestação!IE14*$F14 -> 3939019.5 | IF14: =Contraprestação!IF14*$F14 -> 3939019.5 | IG14: =Contraprestação!IG14*$F14 -> 3939019.5 | IH14: =Contraprestação!IH14*$F14 -> 3939019.5 | II14: =Contraprestação!II14*$F14 -> 3939019.5 | IJ14: =Contraprestação!IJ14*$F14 -> 3939019.5 | IK14: =Contraprestação!IK14*$F14 -> 3939019.5 | IL14: =Contraprestação!IL14*$F14 -> 3939019.5 | IM14: =Contraprestação!IM14*$F14 -> 3939019.5 | IN14: =Contraprestação!IN14*$F14 -> 3939019.5 | IO14: =Contraprestação!IO14*$F14 -> 3939019.5 | IP14: =Contraprestação!IP14*$F14 -> 3151215.6 | IQ14: =Contraprestação!IQ14*$F14 -> 3151215.6 | IR14: =Contraprestação!IR14*$F14 -> 3151215.6 | IS14: =Contraprestação!IS14*$F14 -> 3151215.6 | IT14: =Contraprestação!IT14*$F14 -> 3151215.6 | IU14: =Contraprestação!IU14*$F14 -> 3151215.6 | IV14: =Contraprestação!IV14*$F14 -> 3151215.6 | IW14: =Contraprestação!IW14*$F14 -> 3151215.6 | IX14: =Contraprestação!IX14*$F14 -> 3151215.6 | IY14: =Contraprestação!IY14*$F14 -> 3151215.6 | IZ14: =Contraprestação!IZ14*$F14 -> 3151215.6 | JA14: =Contraprestação!JA14*$F14 -> 3151215.6 | JB14: =Contraprestação!JB14*$F14 -> 2363411.7 | JC14: =Contraprestação!JC14*$F14 -> 2363411.7 | JD14: =Contraprestação!JD14*$F14 -> 2363411.7 | JE14: =Contraprestação!JE14*$F14 -> 2363411.7 | JF14: =Contraprestação!JF14*$F14 -> 2363411.7 | JG14: =Contraprestação!JG14*$F14 -> 2363411.7 | JH14: =Contraprestação!JH14*$F14 -> 2363411.7 | JI14: =Contraprestação!JI14*$F14 -> 2363411.7 | JJ14: =Contraprestação!JJ14*$F14 -> 2363411.7 | JK14: =Contraprestação!JK14*$F14 -> 2363411.7 | JL14: =Contraprestação!JL14*$F14 -> 2363411.7 | JM14: =Contraprestação!JM14*$F14 -> 2363411.7 | JN14: =Contraprestação!JN14*$F14 -> 1575607.8 | JO14: =Contraprestação!JO14*$F14 -> 1575607.8 | JP14: =Contraprestação!JP14*$F14 -> 1575607.8 | JQ14: =Contraprestação!JQ14*$F14 -> 1575607.8 | JR14: =Contraprestação!JR14*$F14 -> 1575607.8 | JS14: =Contraprestação!JS14*$F14 -> 1575607.8 | JT14: =Contraprestação!JT14*$F14 -> 1575607.8 | JU14: =Contraprestação!JU14*$F14 -> 1575607.8 | JV14: =Contraprestação!JV14*$F14 -> 1575607.8 | JW14: =Contraprestação!JW14*$F14 -> 1575607.8 | JX14: =Contraprestação!JX14*$F14 -> 1575607.8 | JY14: =Contraprestação!JY14*$F14 -> 1575607.8 | JZ14: =Contraprestação!JZ14*$F14 -> 787803.9 | KA14: =Contraprestação!KA14*$F14 -> 787803.9 | KB14: =Contraprestação!KB14*$F14 -> 787803.9 | KC14: =Contraprestação!KC14*$F14 -> 787803.9 | KD14: =Contraprestação!KD14*$F14 -> 787803.9 | KE14: =Contraprestação!KE14*$F14 -> 787803.9 | KF14: =Contraprestação!KF14*$F14 -> 787803.9 | KG14: =Contraprestação!KG14*$F14 -> 787803.9 | KH14: =Contraprestação!KH14*$F14 -> 787803.9 | KI14: =Contraprestação!KI14*$F14 -> 787803.9 | KJ14: =Contraprestação!KJ14*$F14 -> 787803.9 | KK14: =Contraprestação!KK14*$F14 -> 787803.9 | KL14: =Contraprestação!KL14*$F14 -> -3.498552115e-09 | KM14: =Contraprestação!KM14*$F14 -> -3.498552115e-09 | KN14: =Contraprestação!KN14*$F14 -> -3.498552115e-09 | KO14: =Contraprestação!KO14*$F14 -> -3.498552115e-09 | KP14: =Contraprestação!KP14*$F14 -> -3.498552115e-09 | KQ14: =Contraprestação!KQ14*$F14 -> -3.498552115e-09 | KR14: =Contraprestação!KR14*$F14 -> -3.498552115e-09 | KS14: =Contraprestação!KS14*$F14 -> -3.498552115e-09 | KT14: =Contraprestação!KT14*$F14 -> -3.498552115e-09 | KU14: =Contraprestação!KU14*$F14 -> -3.498552115e-09 | KV14: =Contraprestação!KV14*$F14 -> -3.498552115e-09 | KW14: =Contraprestação!KW14*$F14 -> -3.498552115e-09 | KX14: =Contraprestação!KX14*$F14 -> -3.498552115e-09 | KY14: =Contraprestação!KY14*$F14 -> -3.498552115e-09 | KZ14: =Contraprestação!KZ14*$F14 -> -3.498552115e-09 | LA14: =Contraprestação!LA14*$F14 -> -3.498552115e-09 | LB14: =Contraprestação!LB14*$F14 -> -3.498552115e-09 | LC14: =Contraprestação!LC14*$F14 -> -3.498552115e-09 | LD14: =Contraprestação!LD14*$F14 -> -3.498552115e-09 | LE14: =Contraprestação!LE14*$F14 -> -3.498552115e-09 | LF14: =Contraprestação!LF14*$F14 -> -3.498552115e-09 | LG14: =Contraprestação!LG14*$F14 -> -3.498552115e-09 | LH14: =Contraprestação!LH14*$F14 -> -3.498552115e-09 | LI14: =Contraprestação!LI14*$F14 -> -3.498552115e-09 | LJ14: =Contraprestação!LJ14*$F14 -> -3.498552115e-09 | LK14: =Contraprestação!LK14*$F14 -> -3.498552115e-09 | LL14: =Contraprestação!LL14*$F14 -> -3.498552115e-09 | LM14: =Contraprestação!LM14*$F14 -> -3.498552115e-09 | LN14: =Contraprestação!LN14*$F14 -> -3.498552115e-09 | LO14: =Contraprestação!LO14*$F14 -> -3.498552115e-09 | LP14: =Contraprestação!LP14*$F14 -> -3.498552115e-09 | LQ14: =Contraprestação!LQ14*$F14 -> -3.498552115e-09 | LR14: =Contraprestação!LR14*$F14 -> -3.498552115e-09 | LS14: =Contraprestação!LS14*$F14 -> -3.498552115e-09 | LT14: =Contraprestação!LT14*$F14 -> -3.498552115e-09 | LU14: =Contraprestação!LU14*$F14 -> -3.498552115e-09 | LV14: =Contraprestação!LV14*$F14 -> -3.498552115e-09 | LW14: =Contraprestação!LW14*$F14 -> -3.498552115e-09 | LX14: =Contraprestação!LX14*$F14 -> -3.498552115e-09 | LY14: =Contraprestação!LY14*$F14 -> -3.498552115e-09 | LZ14: =Contraprestação!LZ14*$F14 -> -3.498552115e-09 | MA14: =Contraprestação!MA14*$F14 -> -3.498552115e-09 | MB14: =Contraprestação!MB14*$F14 -> -3.498552115e-09 | MC14: =Contraprestação!MC14*$F14 -> -3.498552115e-09 | MD14: =Contraprestação!MD14*$F14 -> -3.498552115e-09 | ME14: =Contraprestação!ME14*$F14 -> -3.498552115e-09 | MF14: =Contraprestação!MF14*$F14 -> -3.498552115e-09 | MG14: =Contraprestação!MG14*$F14 -> -3.498552115e-09 | MH14: =Contraprestação!MH14*$F14 -> -3.498552115e-09 | MI14: =Contraprestação!MI14*$F14 -> -3.498552115e-09 | MJ14: =Contraprestação!MJ14*$F14 -> -3.498552115e-09 | MK14: =Contraprestação!MK14*$F14 -> -3.498552115e-09 | ML14: =Contraprestação!ML14*$F14 -> -3.498552115e-09 | MM14: =Contraprestação!MM14*$F14 -> -3.498552115e-09 | MN14: =Contraprestação!MN14*$F14 -> -3.498552115e-09 | MO14: =Contraprestação!MO14*$F14 -> -3.498552115e-09 | MP14: =Contraprestação!MP14*$F14 -> -3.498552115e-09 | MQ14: =Contraprestação!MQ14*$F14 -> -3.498552115e-09 | MR14: =Contraprestação!MR14*$F14 -> -3.498552115e-09 | MS14: =Contraprestação!MS14*$F14 -> -3.498552115e-09 | MT14: =Contraprestação!MT14*$F14 -> -3.498552115e-09 | MU14: =Contraprestação!MU14*$F14 -> -3.498552115e-09 | MV14: =Contraprestação!MV14*$F14 -> -3.498552115e-09 | MW14: =Contraprestação!MW14*$F14 -> -3.498552115e-09 | MX14: =Contraprestação!MX14*$F14 -> -3.498552115e-09 | MY14: =Contraprestação!MY14*$F14 -> -3.498552115e-09 | MZ14: =Contraprestação!MZ14*$F14 -> -3.498552115e-09 | NA14: =Contraprestação!NA14*$F14 -> -3.498552115e-09 | NB14: =Contraprestação!NB14*$F14 -> -3.498552115e-09 | NC14: =Contraprestação!NC14*$F14 -> -3.498552115e-09 | ND14: =Contraprestação!ND14*$F14 -> -3.498552115e-09 | NE14: =Contraprestação!NE14*$F14 -> -3.498552115e-09 | NF14: =Contraprestação!NF14*$F14 -> -3.498552115e-09 | NG14: =Contraprestação!NG14*$F14 -> -3.498552115e-09 | NH14: =Contraprestação!NH14*$F14 -> -3.498552115e-09 | NI14: =Contraprestação!NI14*$F14 -> -3.498552115e-09 | NJ14: =Contraprestação!NJ14*$F14 -> -3.498552115e-09 | NK14: =Contraprestação!NK14*$F14 -> -3.498552115e-09 | NL14: =Contraprestação!NL14*$F14 -> -3.498552115e-09 | NM14: =Contraprestação!NM14*$F14 -> -3.498552115e-09 | NN14: =Contraprestação!NN14*$F14 -> -3.498552115e-09 | NO14: =Contraprestação!NO14*$F14 -> -3.498552115e-09 | NP14: =Contraprestação!NP14*$F14 -> -3.498552115e-09 | NQ14: =Contraprestação!NQ14*$F14 -> -3.498552115e-09 | NR14: =Contraprestação!NR14*$F14 -> -3.498552115e-09 | NS14: =Contraprestação!NS14*$F14 -> -3.498552115e-09 | NT14: =Contraprestação!NT14*$F14 -> -3.498552115e-09 | NU14: =Contraprestação!NU14*$F14 -> -3.498552115e-09 | NV14: =Contraprestação!NV14*$F14 -> -3.498552115e-09 | NW14: =Contraprestação!NW14*$F14 -> -3.498552115e-09 | NX14: =Contraprestação!NX14*$F14 -> -3.498552115e-09 | NY14: =Contraprestação!NY14*$F14 -> -3.498552115e-09 | NZ14: =Contraprestação!NZ14*$F14 -> -3.498552115e-09 | OA14: =Contraprestação!OA14*$F14 -> -3.498552115e-09 | OB14: =Contraprestação!OB14*$F14 -> -3.498552115e-09 | OC14: =Contraprestação!OC14*$F14 -> -3.498552115e-09 | OD14: =Contraprestação!OD14*$F14 -> -3.498552115e-09 | OE14: =Contraprestação!OE14*$F14 -> -3.498552115e-09 | OF14: =Contraprestação!OF14*$F14 -> -3.498552115e-09 | OG14: =Contraprestação!OG14*$F14 -> -3.498552115e-09 | OH14: =Contraprestação!OH14*$F14 -> -3.498552115e-09 | OI14: =Contraprestação!OI14*$F14 -> -3.498552115e-09 | OJ14: =Contraprestação!OJ14*$F14 -> -3.498552115e-09 | OK14: =Contraprestação!OK14*$F14 -> -3.498552115e-09 | OL14: =Contraprestação!OL14*$F14 -> -3.498552115e-09 | OM14: =Contraprestação!OM14*$F14 -> -3.498552115e-09 | ON14: =Contraprestação!ON14*$F14 -> -3.498552115e-09 | OO14: =Contraprestação!OO14*$F14 -> -3.498552115e-09 | OP14: =Contraprestação!OP14*$F14 -> -3.498552115e-09 | OQ14: =Contraprestação!OQ14*$F14 -> -3.498552115e-09 | OR14: =Contraprestação!OR14*$F14 -> -3.498552115e-09 | OS14: =Contraprestação!OS14*$F14 -> -3.498552115e-09 | OT14: =Contraprestação!OT14*$F14 -> -3.498552115e-09 | OU14: =Contraprestação!OU14*$F14 -> -3.498552115e-09 | OV14: =Contraprestação!OV14*$F14 -> -3.498552115e-09 | OW14: =Contraprestação!OW14*$F14 -> -3.498552115e-09 | OX14: =Contraprestação!OX14*$F14 -> -3.498552115e-09 | OY14: =Contraprestação!OY14*$F14 -> -3.498552115e-09 | OZ14: =Contraprestação!OZ14*$F14 -> -3.498552115e-09 | PA14: =Contraprestação!PA14*$F14 -> -3.498552115e-09 | PB14: =Contraprestação!PB14*$F14 -> -3.498552115e-09 | PC14: =Contraprestação!PC14*$F14 -> -3.498552115e-09 | PD14: =Contraprestação!PD14*$F14 -> -3.498552115e-09 | PE14: =Contraprestação!PE14*$F14 -> -3.498552115e-09 | PF14: =Contraprestação!PF14*$F14 -> -3.498552115e-09 | PG14: =Contraprestação!PG14*$F14 -> -3.498552115e-09 | PH14: =Contraprestação!PH14*$F14 -> -3.498552115e-09 | PI14: =Contraprestação!PI14*$F14 -> -3.498552115e-09 | PJ14: =Contraprestação!PJ14*$F14 -> -3.498552115e-09 | PK14: =Contraprestação!PK14*$F14 -> -3.498552115e-09 | PL14: =Contraprestação!PL14*$F14 -> -3.498552115e-09 | PM14: =Contraprestação!PM14*$F14 -> -3.498552115e-09 | PN14: 0
C15: =PainelControle!C13 -> PARCELA (B) | D15: 1155539818 | E15: =NPV(PainelControle!$D$8,$K15:$PM15)+J15 -> 240363269.7 | F15: =PainelControle!B13 -> 1 | G15: =1-PainelControle!E10 -> 1 | J15: =Contraprestação!J45*$F15*$G15 -> 0 | K15: =Contraprestação!K45*$F15*$G15 -> 0 | L15: =Contraprestação!L45*$F15*$G15 -> 0 | M15: =Contraprestação!M45*$F15*$G15 -> 0 | N15: =Contraprestação!N45*$F15*$G15 -> 0 | O15: =Contraprestação!O45*$F15*$G15 -> 0 | P15: =Contraprestação!P45*$F15*$G15 -> 0 | Q15: =Contraprestação!Q45*$F15*$G15 -> 0 | R15: =Contraprestação!R45*$F15*$G15 -> 0 | S15: =Contraprestação!S45*$F15*$G15 -> 0 | T15: =Contraprestação!T45*$F15*$G15 -> 0 | U15: =Contraprestação!U45*$F15*$G15 -> 0 | V15: =Contraprestação!V45*$F15*$G15 -> 0 | W15: =Contraprestação!W45*$F15*$G15 -> 0 | X15: =Contraprestação!X45*$F15*$G15 -> 0 | Y15: =Contraprestação!Y45*$F15*$G15 -> 0 | Z15: =Contraprestação!Z45*$F15*$G15 -> 0 | AA15: =Contraprestação!AA45*$F15*$G15 -> 0 | AB15: =Contraprestação!AB45*$F15*$G15 -> 0 | AC15: =Contraprestação!AC45*$F15*$G15 -> 0 | AD15: =Contraprestação!AD45*$F15*$G15 -> 798727.2979 | AE15: =Contraprestação!AE45*$F15*$G15 -> 798727.2979 | AF15: =Contraprestação!AF45*$F15*$G15 -> 798727.2979 | AG15: =Contraprestação!AG45*$F15*$G15 -> 798727.2979 | AH15: =Contraprestação!AH45*$F15*$G15 -> 798727.2979 | AI15: =Contraprestação!AI45*$F15*$G15 -> 798727.2979 | AJ15: =Contraprestação!AJ45*$F15*$G15 -> 798727.2979 | AK15: =Contraprestação!AK45*$F15*$G15 -> 1156845.936 | AL15: =Contraprestação!AL45*$F15*$G15 -> 1156845.936 | AM15: =Contraprestação!AM45*$F15*$G15 -> 1156845.936 | AN15: =Contraprestação!AN45*$F15*$G15 -> 1156845.936 | AO15: =Contraprestação!AO45*$F15*$G15 -> 1156845.936 | AP15: =Contraprestação!AP45*$F15*$G15 -> 1156845.936 | AQ15: =Contraprestação!AQ45*$F15*$G15 -> 1156845.936 | AR15: =Contraprestação!AR45*$F15*$G15 -> 2194427.415 | AS15: =Contraprestação!AS45*$F15*$G15 -> 2194427.415 | AT15: =Contraprestação!AT45*$F15*$G15 -> 2194427.415 | AU15: =Contraprestação!AU45*$F15*$G15 -> 2194427.415 | AV15: =Contraprestação!AV45*$F15*$G15 -> 2194427.415 | AW15: =Contraprestação!AW45*$F15*$G15 -> 2968185.482 | AX15: =Contraprestação!AX45*$F15*$G15 -> 2968185.482 | AY15: =Contraprestação!AY45*$F15*$G15 -> 2968185.482 | AZ15: =Contraprestação!AZ45*$F15*$G15 -> 2968185.482 | BA15: =Contraprestação!BA45*$F15*$G15 -> 2968185.482 | BB15: =Contraprestação!BB45*$F15*$G15 -> 2968185.482 | BC15: =Contraprestação!BC45*$F15*$G15 -> 2968185.482 | BD15: =Contraprestação!BD45*$F15*$G15 -> 2968185.482 | BE15: =Contraprestação!BE45*$F15*$G15 -> 2968185.482 | BF15: =Contraprestação!BF45*$F15*$G15 -> 2968185.482 | BG15: =Contraprestação!BG45*$F15*$G15 -> 2968185.482 | BH15: =Contraprestação!BH45*$F15*$G15 -> 2968185.482 | BI15: =Contraprestação!BI45*$F15*$G15 -> 2968185.482 | BJ15: =Contraprestação!BJ45*$F15*$G15 -> 2968185.482 | BK15: =Contraprestação!BK45*$F15*$G15 -> 2968185.482 | BL15: =Contraprestação!BL45*$F15*$G15 -> 2968185.482 | BM15: =Contraprestação!BM45*$F15*$G15 -> 2968185.482 | BN15: =Contraprestação!BN45*$F15*$G15 -> 2968185.482 | BO15: =Contraprestação!BO45*$F15*$G15 -> 2968185.482 | BP15: =Contraprestação!BP45*$F15*$G15 -> 2968185.482 | BQ15: =Contraprestação!BQ45*$F15*$G15 -> 2968185.482 | BR15: =Contraprestação!BR45*$F15*$G15 -> 2968185.482 | BS15: =Contraprestação!BS45*$F15*$G15 -> 2968185.482 | BT15: =Contraprestação!BT45*$F15*$G15 -> 2968185.482 | BU15: =Contraprestação!BU45*$F15*$G15 -> 2968185.482 | BV15: =Contraprestação!BV45*$F15*$G15 -> 2968185.482 | BW15: =Contraprestação!BW45*$F15*$G15 -> 2968185.482 | BX15: =Contraprestação!BX45*$F15*$G15 -> 2968185.482 | BY15: =Contraprestação!BY45*$F15*$G15 -> 2968185.482 | BZ15: =Contraprestação!BZ45*$F15*$G15 -> 2968185.482 | CA15: =Contraprestação!CA45*$F15*$G15 -> 2968185.482 | CB15: =Contraprestação!CB45*$F15*$G15 -> 2968185.482 | CC15: =Contraprestação!CC45*$F15*$G15 -> 2968185.482 | CD15: =Contraprestação!CD45*$F15*$G15 -> 2968185.482 | CE15: =Contraprestação!CE45*$F15*$G15 -> 2968185.482 | CF15: =Contraprestação!CF45*$F15*$G15 -> 2968185.482 | CG15: =Contraprestação!CG45*$F15*$G15 -> 2968185.482 | CH15: =Contraprestação!CH45*$F15*$G15 -> 2968185.482 | CI15: =Contraprestação!CI45*$F15*$G15 -> 2968185.482 | CJ15: =Contraprestação!CJ45*$F15*$G15 -> 2968185.482 | CK15: =Contraprestação!CK45*$F15*$G15 -> 2968185.482 | CL15: =Contraprestação!CL45*$F15*$G15 -> 2968185.482 | CM15: =Contraprestação!CM45*$F15*$G15 -> 2968185.482 | CN15: =Contraprestação!CN45*$F15*$G15 -> 2968185.482 | CO15: =Contraprestação!CO45*$F15*$G15 -> 2968185.482 | CP15: =Contraprestação!CP45*$F15*$G15 -> 2968185.482 | CQ15: =Contraprestação!CQ45*$F15*$G15 -> 2968185.482 | CR15: =Contraprestação!CR45*$F15*$G15 -> 2968185.482 | CS15: =Contraprestação!CS45*$F15*$G15 -> 2968185.482 | CT15: =Contraprestação!CT45*$F15*$G15 -> 2968185.482 | CU15: =Contraprestação!CU45*$F15*$G15 -> 2968185.482 | CV15: =Contraprestação!CV45*$F15*$G15 -> 2968185.482 | CW15: =Contraprestação!CW45*$F15*$G15 -> 2968185.482 | CX15: =Contraprestação!CX45*$F15*$G15 -> 2968185.482 | CY15: =Contraprestação!CY45*$F15*$G15 -> 2968185.482 | CZ15: =Contraprestação!CZ45*$F15*$G15 -> 2968185.482 | DA15: =Contraprestação!DA45*$F15*$G15 -> 2968185.482 | DB15: =Contraprestação!DB45*$F15*$G15 -> 2968185.482 | DC15: =Contraprestação!DC45*$F15*$G15 -> 2968185.482 | DD15: =Contraprestação!DD45*$F15*$G15 -> 2968185.482 | DE15: =Contraprestação!DE45*$F15*$G15 -> 2968185.482 | DF15: =Contraprestação!DF45*$F15*$G15 -> 2968185.482 | DG15: =Contraprestação!DG45*$F15*$G15 -> 2968185.482 | DH15: =Contraprestação!DH45*$F15*$G15 -> 2968185.482 | DI15: =Contraprestação!DI45*$F15*$G15 -> 2968185.482 | DJ15: =Contraprestação!DJ45*$F15*$G15 -> 2968185.482 | DK15: =Contraprestação!DK45*$F15*$G15 -> 2968185.482 | DL15: =Contraprestação!DL45*$F15*$G15 -> 2968185.482 | DM15: =Contraprestação!DM45*$F15*$G15 -> 2968185.482 | DN15: =Contraprestação!DN45*$F15*$G15 -> 2968185.482 | DO15: =Contraprestação!DO45*$F15*$G15 -> 2968185.482 | DP15: =Contraprestação!DP45*$F15*$G15 -> 2968185.482 | DQ15: =Contraprestação!DQ45*$F15*$G15 -> 2968185.482 | DR15: =Contraprestação!DR45*$F15*$G15 -> 2968185.482 | DS15: =Contraprestação!DS45*$F15*$G15 -> 2968185.482 | DT15: =Contraprestação!DT45*$F15*$G15 -> 2968185.482 | DU15: =Contraprestação!DU45*$F15*$G15 -> 2968185.482 | DV15: =Contraprestação!DV45*$F15*$G15 -> 2968185.482 | DW15: =Contraprestação!DW45*$F15*$G15 -> 2968185.482 | DX15: =Contraprestação!DX45*$F15*$G15 -> 2968185.482 | DY15: =Contraprestação!DY45*$F15*$G15 -> 2968185.482 | DZ15: =Contraprestação!DZ45*$F15*$G15 -> 2968185.482 | EA15: =Contraprestação!EA45*$F15*$G15 -> 2968185.482 | EB15: =Contraprestação!EB45*$F15*$G15 -> 2968185.482 | EC15: =Contraprestação!EC45*$F15*$G15 -> 2968185.482 | ED15: =Contraprestação!ED45*$F15*$G15 -> 2968185.482 | EE15: =Contraprestação!EE45*$F15*$G15 -> 2968185.482 | EF15: =Contraprestação!EF45*$F15*$G15 -> 2968185.482 | EG15: =Contraprestação!EG45*$F15*$G15 -> 2968185.482 | EH15: =Contraprestação!EH45*$F15*$G15 -> 2968185.482 | EI15: =Contraprestação!EI45*$F15*$G15 -> 2968185.482 | EJ15: =Contraprestação!EJ45*$F15*$G15 -> 2968185.482 | EK15: =Contraprestação!EK45*$F15*$G15 -> 2968185.482 | EL15: =Contraprestação!EL45*$F15*$G15 -> 2968185.482 | EM15: =Contraprestação!EM45*$F15*$G15 -> 2968185.482 | EN15: =Contraprestação!EN45*$F15*$G15 -> 2968185.482 | EO15: =Contraprestação!EO45*$F15*$G15 -> 2968185.482 | EP15: =Contraprestação!EP45*$F15*$G15 -> 2968185.482 | EQ15: =Contraprestação!EQ45*$F15*$G15 -> 2968185.482 | ER15: =Contraprestação!ER45*$F15*$G15 -> 2968185.482 | ES15: =Contraprestação!ES45*$F15*$G15 -> 2968185.482 | ET15: =Contraprestação!ET45*$F15*$G15 -> 2968185.482 | EU15: =Contraprestação!EU45*$F15*$G15 -> 2968185.482 | EV15: =Contraprestação!EV45*$F15*$G15 -> 2968185.482 | EW15: =Contraprestação!EW45*$F15*$G15 -> 2968185.482 | EX15: =Contraprestação!EX45*$F15*$G15 -> 2968185.482 | EY15: =Contraprestação!EY45*$F15*$G15 -> 2968185.482 | EZ15: =Contraprestação!EZ45*$F15*$G15 -> 2968185.482 | FA15: =Contraprestação!FA45*$F15*$G15 -> 2968185.482 | FB15: =Contraprestação!FB45*$F15*$G15 -> 2968185.482 | FC15: =Contraprestação!FC45*$F15*$G15 -> 2968185.482 | FD15: =Contraprestação!FD45*$F15*$G15 -> 2968185.482 | FE15: =Contraprestação!FE45*$F15*$G15 -> 2968185.482 | FF15: =Contraprestação!FF45*$F15*$G15 -> 2968185.482 | FG15: =Contraprestação!FG45*$F15*$G15 -> 2968185.482 | FH15: =Contraprestação!FH45*$F15*$G15 -> 2968185.482 | FI15: =Contraprestação!FI45*$F15*$G15 -> 2968185.482 | FJ15: =Contraprestação!FJ45*$F15*$G15 -> 2968185.482 | FK15: =Contraprestação!FK45*$F15*$G15 -> 2968185.482 | FL15: =Contraprestação!FL45*$F15*$G15 -> 2968185.482 | FM15: =Contraprestação!FM45*$F15*$G15 -> 2968185.482 | FN15: =Contraprestação!FN45*$F15*$G15 -> 2968185.482 | FO15: =Contraprestação!FO45*$F15*$G15 -> 2968185.482 | FP15: =Contraprestação!FP45*$F15*$G15 -> 2968185.482 | FQ15: =Contraprestação!FQ45*$F15*$G15 -> 2968185.482 | FR15: =Contraprestação!FR45*$F15*$G15 -> 2968185.482 | FS15: =Contraprestação!FS45*$F15*$G15 -> 2968185.482 | FT15: =Contraprestação!FT45*$F15*$G15 -> 2968185.482 | FU15: =Contraprestação!FU45*$F15*$G15 -> 2968185.482 | FV15: =Contraprestação!FV45*$F15*$G15 -> 2968185.482 | FW15: =Contraprestação!FW45*$F15*$G15 -> 2968185.482 | FX15: =Contraprestação!FX45*$F15*$G15 -> 2968185.482 | FY15: =Contraprestação!FY45*$F15*$G15 -> 2968185.482 | FZ15: =Contraprestação!FZ45*$F15*$G15 -> 2968185.482 | GA15: =Contraprestação!GA45*$F15*$G15 -> 2968185.482 | GB15: =Contraprestação!GB45*$F15*$G15 -> 2968185.482 | GC15: =Contraprestação!GC45*$F15*$G15 -> 2968185.482 | GD15: =Contraprestação!GD45*$F15*$G15 -> 2968185.482 | GE15: =Contraprestação!GE45*$F15*$G15 -> 2968185.482 | GF15: =Contraprestação!GF45*$F15*$G15 -> 2968185.482 | GG15: =Contraprestação!GG45*$F15*$G15 -> 2968185.482 | GH15: =Contraprestação!GH45*$F15*$G15 -> 2968185.482 | GI15: =Contraprestação!GI45*$F15*$G15 -> 2968185.482 | GJ15: =Contraprestação!GJ45*$F15*$G15 -> 2968185.482 | GK15: =Contraprestação!GK45*$F15*$G15 -> 2968185.482 | GL15: =Contraprestação!GL45*$F15*$G15 -> 2968185.482 | GM15: =Contraprestação!GM45*$F15*$G15 -> 2968185.482 | GN15: =Contraprestação!GN45*$F15*$G15 -> 2968185.482 | GO15: =Contraprestação!GO45*$F15*$G15 -> 2968185.482 | GP15: =Contraprestação!GP45*$F15*$G15 -> 2968185.482 | GQ15: =Contraprestação!GQ45*$F15*$G15 -> 2968185.482 | GR15: =Contraprestação!GR45*$F15*$G15 -> 2968185.482 | GS15: =Contraprestação!GS45*$F15*$G15 -> 2968185.482 | GT15: =Contraprestação!GT45*$F15*$G15 -> 2968185.482 | GU15: =Contraprestação!GU45*$F15*$G15 -> 2968185.482 | GV15: =Contraprestação!GV45*$F15*$G15 -> 2968185.482 | GW15: =Contraprestação!GW45*$F15*$G15 -> 2968185.482 | GX15: =Contraprestação!GX45*$F15*$G15 -> 2968185.482 | GY15: =Contraprestação!GY45*$F15*$G15 -> 2968185.482 | GZ15: =Contraprestação!GZ45*$F15*$G15 -> 2968185.482 | HA15: =Contraprestação!HA45*$F15*$G15 -> 2968185.482 | HB15: =Contraprestação!HB45*$F15*$G15 -> 2968185.482 | HC15: =Contraprestação!HC45*$F15*$G15 -> 2968185.482 | HD15: =Contraprestação!HD45*$F15*$G15 -> 2968185.482 | HE15: =Contraprestação!HE45*$F15*$G15 -> 2968185.482 | HF15: =Contraprestação!HF45*$F15*$G15 -> 2968185.482 | HG15: =Contraprestação!HG45*$F15*$G15 -> 2968185.482 | HH15: =Contraprestação!HH45*$F15*$G15 -> 2968185.482 | HI15: =Contraprestação!HI45*$F15*$G15 -> 2968185.482 | HJ15: =Contraprestação!HJ45*$F15*$G15 -> 2968185.482 | HK15: =Contraprestação!HK45*$F15*$G15 -> 2968185.482 | HL15: =Contraprestação!HL45*$F15*$G15 -> 2968185.482 | HM15: =Contraprestação!HM45*$F15*$G15 -> 2968185.482 | HN15: =Contraprestação!HN45*$F15*$G15 -> 2968185.482 | HO15: =Contraprestação!HO45*$F15*$G15 -> 2968185.482 | HP15: =Contraprestação!HP45*$F15*$G15 -> 2968185.482 | HQ15: =Contraprestação!HQ45*$F15*$G15 -> 2968185.482 | HR15: =Contraprestação!HR45*$F15*$G15 -> 2968185.482 | HS15: =Contraprestação!HS45*$F15*$G15 -> 2968185.482 | HT15: =Contraprestação!HT45*$F15*$G15 -> 2968185.482 | HU15: =Contraprestação!HU45*$F15*$G15 -> 2968185.482 | HV15: =Contraprestação!HV45*$F15*$G15 -> 2968185.482 | HW15: =Contraprestação!HW45*$F15*$G15 -> 2968185.482 | HX15: =Contraprestação!HX45*$F15*$G15 -> 2968185.482 | HY15: =Contraprestação!HY45*$F15*$G15 -> 2968185.482 | HZ15: =Contraprestação!HZ45*$F15*$G15 -> 2968185.482 | IA15: =Contraprestação!IA45*$F15*$G15 -> 2968185.482 | IB15: =Contraprestação!IB45*$F15*$G15 -> 2968185.482 | IC15: =Contraprestação!IC45*$F15*$G15 -> 2968185.482 | ID15: =Contraprestação!ID45*$F15*$G15 -> 2968185.482 | IE15: =Contraprestação!IE45*$F15*$G15 -> 2968185.482 | IF15: =Contraprestação!IF45*$F15*$G15 -> 2968185.482 | IG15: =Contraprestação!IG45*$F15*$G15 -> 2968185.482 | IH15: =Contraprestação!IH45*$F15*$G15 -> 2968185.482 | II15: =Contraprestação!II45*$F15*$G15 -> 2968185.482 | IJ15: =Contraprestação!IJ45*$F15*$G15 -> 2968185.482 | IK15: =Contraprestação!IK45*$F15*$G15 -> 2968185.482 | IL15: =Contraprestação!IL45*$F15*$G15 -> 2968185.482 | IM15: =Contraprestação!IM45*$F15*$G15 -> 2968185.482 | IN15: =Contraprestação!IN45*$F15*$G15 -> 2968185.482 | IO15: =Contraprestação!IO45*$F15*$G15 -> 2968185.482 | IP15: =Contraprestação!IP45*$F15*$G15 -> 2968185.482 | IQ15: =Contraprestação!IQ45*$F15*$G15 -> 2968185.482 | IR15: =Contraprestação!IR45*$F15*$G15 -> 2968185.482 | IS15: =Contraprestação!IS45*$F15*$G15 -> 2968185.482 | IT15: =Contraprestação!IT45*$F15*$G15 -> 2968185.482 | IU15: =Contraprestação!IU45*$F15*$G15 -> 2968185.482 | IV15: =Contraprestação!IV45*$F15*$G15 -> 2968185.482 | IW15: =Contraprestação!IW45*$F15*$G15 -> 2968185.482 | IX15: =Contraprestação!IX45*$F15*$G15 -> 2968185.482 | IY15: =Contraprestação!IY45*$F15*$G15 -> 2968185.482 | IZ15: =Contraprestação!IZ45*$F15*$G15 -> 2968185.482 | JA15: =Contraprestação!JA45*$F15*$G15 -> 2968185.482 | JB15: =Contraprestação!JB45*$F15*$G15 -> 2968185.482 | JC15: =Contraprestação!JC45*$F15*$G15 -> 2968185.482 | JD15: =Contraprestação!JD45*$F15*$G15 -> 2968185.482 | JE15: =Contraprestação!JE45*$F15*$G15 -> 2968185.482 | JF15: =Contraprestação!JF45*$F15*$G15 -> 2968185.482 | JG15: =Contraprestação!JG45*$F15*$G15 -> 2968185.482 | JH15: =Contraprestação!JH45*$F15*$G15 -> 2968185.482 | JI15: =Contraprestação!JI45*$F15*$G15 -> 2968185.482 | JJ15: =Contraprestação!JJ45*$F15*$G15 -> 2968185.482 | JK15: =Contraprestação!JK45*$F15*$G15 -> 2968185.482 | JL15: =Contraprestação!JL45*$F15*$G15 -> 2968185.482 | JM15: =Contraprestação!JM45*$F15*$G15 -> 2968185.482 | JN15: =Contraprestação!JN45*$F15*$G15 -> 2968185.482 | JO15: =Contraprestação!JO45*$F15*$G15 -> 2968185.482 | JP15: =Contraprestação!JP45*$F15*$G15 -> 2968185.482 | JQ15: =Contraprestação!JQ45*$F15*$G15 -> 2968185.482 | JR15: =Contraprestação!JR45*$F15*$G15 -> 2968185.482 | JS15: =Contraprestação!JS45*$F15*$G15 -> 2968185.482 | JT15: =Contraprestação!JT45*$F15*$G15 -> 2968185.482 | JU15: =Contraprestação!JU45*$F15*$G15 -> 2968185.482 | JV15: =Contraprestação!JV45*$F15*$G15 -> 2968185.482 | JW15: =Contraprestação!JW45*$F15*$G15 -> 2968185.482 | JX15: =Contraprestação!JX45*$F15*$G15 -> 2968185.482 | JY15: =Contraprestação!JY45*$F15*$G15 -> 2968185.482 | JZ15: =Contraprestação!JZ45*$F15*$G15 -> 2968185.482 | KA15: =Contraprestação!KA45*$F15*$G15 -> 2968185.482 | KB15: =Contraprestação!KB45*$F15*$G15 -> 2968185.482 | KC15: =Contraprestação!KC45*$F15*$G15 -> 2968185.482 | KD15: =Contraprestação!KD45*$F15*$G15 -> 2968185.482 | KE15: =Contraprestação!KE45*$F15*$G15 -> 2968185.482 | KF15: =Contraprestação!KF45*$F15*$G15 -> 2968185.482 | KG15: =Contraprestação!KG45*$F15*$G15 -> 2968185.482 | KH15: =Contraprestação!KH45*$F15*$G15 -> 2968185.482 | KI15: =Contraprestação!KI45*$F15*$G15 -> 2968185.482 | KJ15: =Contraprestação!KJ45*$F15*$G15 -> 2968185.482 | KK15: =Contraprestação!KK45*$F15*$G15 -> 2968185.482 | KL15: =Contraprestação!KL45*$F15*$G15 -> 2968185.482 | KM15: =Contraprestação!KM45*$F15*$G15 -> 2968185.482 | KN15: =Contraprestação!KN45*$F15*$G15 -> 2968185.482 | KO15: =Contraprestação!KO45*$F15*$G15 -> 2968185.482 | KP15: =Contraprestação!KP45*$F15*$G15 -> 2968185.482 | KQ15: =Contraprestação!KQ45*$F15*$G15 -> 2968185.482 | KR15: =Contraprestação!KR45*$F15*$G15 -> 2968185.482 | KS15: =Contraprestação!KS45*$F15*$G15 -> 2968185.482 | KT15: =Contraprestação!KT45*$F15*$G15 -> 2968185.482 | KU15: =Contraprestação!KU45*$F15*$G15 -> 2968185.482 | KV15: =Contraprestação!KV45*$F15*$G15 -> 2968185.482 | KW15: =Contraprestação!KW45*$F15*$G15 -> 2968185.482 | KX15: =Contraprestação!KX45*$F15*$G15 -> 2968185.482 | KY15: =Contraprestação!KY45*$F15*$G15 -> 2968185.482 | KZ15: =Contraprestação!KZ45*$F15*$G15 -> 2968185.482 | LA15: =Contraprestação!LA45*$F15*$G15 -> 2968185.482 | LB15: =Contraprestação!LB45*$F15*$G15 -> 2968185.482 | LC15: =Contraprestação!LC45*$F15*$G15 -> 2968185.482 | LD15: =Contraprestação!LD45*$F15*$G15 -> 2968185.482 | LE15: =Contraprestação!LE45*$F15*$G15 -> 2968185.482 | LF15: =Contraprestação!LF45*$F15*$G15 -> 2968185.482 | LG15: =Contraprestação!LG45*$F15*$G15 -> 2968185.482 | LH15: =Contraprestação!LH45*$F15*$G15 -> 2968185.482 | LI15: =Contraprestação!LI45*$F15*$G15 -> 2968185.482 | LJ15: =Contraprestação!LJ45*$F15*$G15 -> 2968185.482 | LK15: =Contraprestação!LK45*$F15*$G15 -> 2968185.482 | LL15: =Contraprestação!LL45*$F15*$G15 -> 2968185.482 | LM15: =Contraprestação!LM45*$F15*$G15 -> 2968185.482 | LN15: =Contraprestação!LN45*$F15*$G15 -> 2968185.482 | LO15: =Contraprestação!LO45*$F15*$G15 -> 2968185.482 | LP15: =Contraprestação!LP45*$F15*$G15 -> 2968185.482 | LQ15: =Contraprestação!LQ45*$F15*$G15 -> 2968185.482 | LR15: =Contraprestação!LR45*$F15*$G15 -> 2968185.482 | LS15: =Contraprestação!LS45*$F15*$G15 -> 2968185.482 | LT15: =Contraprestação!LT45*$F15*$G15 -> 2968185.482 | LU15: =Contraprestação!LU45*$F15*$G15 -> 2968185.482 | LV15: =Contraprestação!LV45*$F15*$G15 -> 2968185.482 | LW15: =Contraprestação!LW45*$F15*$G15 -> 2968185.482 | LX15: =Contraprestação!LX45*$F15*$G15 -> 2968185.482 | LY15: =Contraprestação!LY45*$F15*$G15 -> 2968185.482 | LZ15: =Contraprestação!LZ45*$F15*$G15 -> 2968185.482 | MA15: =Contraprestação!MA45*$F15*$G15 -> 2968185.482 | MB15: =Contraprestação!MB45*$F15*$G15 -> 2968185.482 | MC15: =Contraprestação!MC45*$F15*$G15 -> 2968185.482 | MD15: =Contraprestação!MD45*$F15*$G15 -> 2968185.482 | ME15: =Contraprestação!ME45*$F15*$G15 -> 2968185.482 | MF15: =Contraprestação!MF45*$F15*$G15 -> 2968185.482 | MG15: =Contraprestação!MG45*$F15*$G15 -> 2968185.482 | MH15: =Contraprestação!MH45*$F15*$G15 -> 2968185.482 | MI15: =Contraprestação!MI45*$F15*$G15 -> 2968185.482 | MJ15: =Contraprestação!MJ45*$F15*$G15 -> 2968185.482 | MK15: =Contraprestação!MK45*$F15*$G15 -> 2968185.482 | ML15: =Contraprestação!ML45*$F15*$G15 -> 2968185.482 | MM15: =Contraprestação!MM45*$F15*$G15 -> 2968185.482 | MN15: =Contraprestação!MN45*$F15*$G15 -> 2968185.482 | MO15: =Contraprestação!MO45*$F15*$G15 -> 2968185.482 | MP15: =Contraprestação!MP45*$F15*$G15 -> 2968185.482 | MQ15: =Contraprestação!MQ45*$F15*$G15 -> 2968185.482 | MR15: =Contraprestação!MR45*$F15*$G15 -> 2968185.482 | MS15: =Contraprestação!MS45*$F15*$G15 -> 2968185.482 | MT15: =Contraprestação!MT45*$F15*$G15 -> 2968185.482 | MU15: =Contraprestação!MU45*$F15*$G15 -> 2968185.482 | MV15: =Contraprestação!MV45*$F15*$G15 -> 2968185.482 | MW15: =Contraprestação!MW45*$F15*$G15 -> 2968185.482 | MX15: =Contraprestação!MX45*$F15*$G15 -> 2968185.482 | MY15: =Contraprestação!MY45*$F15*$G15 -> 2968185.482 | MZ15: =Contraprestação!MZ45*$F15*$G15 -> 2968185.482 | NA15: =Contraprestação!NA45*$F15*$G15 -> 2968185.482 | NB15: =Contraprestação!NB45*$F15*$G15 -> 2968185.482 | NC15: =Contraprestação!NC45*$F15*$G15 -> 2968185.482 | ND15: =Contraprestação!ND45*$F15*$G15 -> 2968185.482 | NE15: =Contraprestação!NE45*$F15*$G15 -> 2968185.482 | NF15: =Contraprestação!NF45*$F15*$G15 -> 2968185.482 | NG15: =Contraprestação!NG45*$F15*$G15 -> 2968185.482 | NH15: =Contraprestação!NH45*$F15*$G15 -> 2968185.482 | NI15: =Contraprestação!NI45*$F15*$G15 -> 2968185.482 | NJ15: =Contraprestação!NJ45*$F15*$G15 -> 2968185.482 | NK15: =Contraprestação!NK45*$F15*$G15 -> 2968185.482 | NL15: =Contraprestação!NL45*$F15*$G15 -> 2968185.482 | NM15: =Contraprestação!NM45*$F15*$G15 -> 2968185.482 | NN15: =Contraprestação!NN45*$F15*$G15 -> 2968185.482 | NO15: =Contraprestação!NO45*$F15*$G15 -> 2968185.482 | NP15: =Contraprestação!NP45*$F15*$G15 -> 2968185.482 | NQ15: =Contraprestação!NQ45*$F15*$G15 -> 2968185.482 | NR15: =Contraprestação!NR45*$F15*$G15 -> 2968185.482 | NS15: =Contraprestação!NS45*$F15*$G15 -> 2968185.482 | NT15: =Contraprestação!NT45*$F15*$G15 -> 2968185.482 | NU15: =Contraprestação!NU45*$F15*$G15 -> 2968185.482 | NV15: =Contraprestação!NV45*$F15*$G15 -> 2968185.482 | NW15: =Contraprestação!NW45*$F15*$G15 -> 2968185.482 | NX15: =Contraprestação!NX45*$F15*$G15 -> 2968185.482 | NY15: =Contraprestação!NY45*$F15*$G15 -> 2968185.482 | NZ15: =Contraprestação!NZ45*$F15*$G15 -> 2968185.482 | OA15: =Contraprestação!OA45*$F15*$G15 -> 2968185.482 | OB15: =Contraprestação!OB45*$F15*$G15 -> 2968185.482 | OC15: =Contraprestação!OC45*$F15*$G15 -> 2968185.482 | OD15: =Contraprestação!OD45*$F15*$G15 -> 2968185.482 | OE15: =Contraprestação!OE45*$F15*$G15 -> 2968185.482 | OF15: =Contraprestação!OF45*$F15*$G15 -> 2968185.482 | OG15: =Contraprestação!OG45*$F15*$G15 -> 2968185.482 | OH15: =Contraprestação!OH45*$F15*$G15 -> 2968185.482 | OI15: =Contraprestação!OI45*$F15*$G15 -> 2968185.482 | OJ15: =Contraprestação!OJ45*$F15*$G15 -> 2968185.482 | OK15: =Contraprestação!OK45*$F15*$G15 -> 2968185.482 | OL15: =Contraprestação!OL45*$F15*$G15 -> 2968185.482 | OM15: =Contraprestação!OM45*$F15*$G15 -> 2968185.482 | ON15: =Contraprestação!ON45*$F15*$G15 -> 2968185.482 | OO15: =Contraprestação!OO45*$F15*$G15 -> 2968185.482 | OP15: =Contraprestação!OP45*$F15*$G15 -> 2968185.482 | OQ15: =Contraprestação!OQ45*$F15*$G15 -> 2968185.482 | OR15: =Contraprestação!OR45*$F15*$G15 -> 2968185.482 | OS15: =Contraprestação!OS45*$F15*$G15 -> 2968185.482 | OT15: =Contraprestação!OT45*$F15*$G15 -> 2968185.482 | OU15: =Contraprestação!OU45*$F15*$G15 -> 2968185.482 | OV15: =Contraprestação!OV45*$F15*$G15 -> 2968185.482 | OW15: =Contraprestação!OW45*$F15*$G15 -> 2968185.482 | OX15: =Contraprestação!OX45*$F15*$G15 -> 2968185.482 | OY15: =Contraprestação!OY45*$F15*$G15 -> 2968185.482 | OZ15: =Contraprestação!OZ45*$F15*$G15 -> 2968185.482 | PA15: =Contraprestação!PA45*$F15*$G15 -> 2968185.482 | PB15: =Contraprestação!PB45*$F15*$G15 -> 2968185.482 | PC15: =Contraprestação!PC45*$F15*$G15 -> 2968185.482 | PD15: =Contraprestação!PD45*$F15*$G15 -> 2968185.482 | PE15: =Contraprestação!PE45*$F15*$G15 -> 2968185.482 | PF15: =Contraprestação!PF45*$F15*$G15 -> 2968185.482 | PG15: =Contraprestação!PG45*$F15*$G15 -> 2968185.482 | PH15: =Contraprestação!PH45*$F15*$G15 -> 2968185.482 | PI15: =Contraprestação!PI45*$F15*$G15 -> 2968185.482 | PJ15: =Contraprestação!PJ45*$F15*$G15 -> 2968185.482 | PK15: =Contraprestação!PK45*$F15*$G15 -> 2968185.482 | PL15: =Contraprestação!PL45*$F15*$G15 -> 2968185.482 | PM15: =Contraprestação!PM45*$F15*$G15 -> 2968185.482 | PN15: 0
C16: Aporte de Recursos (Lei 11.079/04) * | D16: 0 | E16: =NPV(PainelControle!$D$8,$K16:$PM16)+J16 -> 0 | J16: =DRE!J34*PainelControle!$E$10 -> 0 | K16: =DRE!K34*PainelControle!$E$10 -> 0 | L16: =DRE!L34*PainelControle!$E$10 -> 0 | M16: =DRE!M34*PainelControle!$E$10 -> 0 | N16: =DRE!N34*PainelControle!$E$10 -> 0 | O16: =DRE!O34*PainelControle!$E$10 -> 0 | P16: =DRE!P34*PainelControle!$E$10 -> 0 | Q16: =DRE!Q34*PainelControle!$E$10 -> 0 | R16: =DRE!R34*PainelControle!$E$10 -> 0 | S16: =DRE!S34*PainelControle!$E$10 -> 0 | T16: =DRE!T34*PainelControle!$E$10 -> 0 | U16: =DRE!U34*PainelControle!$E$10 -> 0 | V16: =DRE!V34*PainelControle!$E$10 -> 0 | W16: =DRE!W34*PainelControle!$E$10 -> 0 | X16: =DRE!X34*PainelControle!$E$10 -> 0 | Y16: =DRE!Y34*PainelControle!$E$10 -> 0 | Z16: =DRE!Z34*PainelControle!$E$10 -> 0 | AA16: =DRE!AA34*PainelControle!$E$10 -> 0 | AB16: =DRE!AB34*PainelControle!$E$10 -> 0 | AC16: =DRE!AC34*PainelControle!$E$10 -> 0 | AD16: =DRE!AD34*PainelControle!$E$10 -> 0 | AE16: =DRE!AE34*PainelControle!$E$10 -> 0 | AF16: =DRE!AF34*PainelControle!$E$10 -> 0 | AG16: =DRE!AG34*PainelControle!$E$10 -> 0 | AH16: =DRE!AH34*PainelControle!$E$10 -> 0 | AI16: =DRE!AI34*PainelControle!$E$10 -> 0 | AJ16: =DRE!AJ34*PainelControle!$E$10 -> 0 | AK16: =DRE!AK34*PainelControle!$E$10 -> 0 | AL16: =DRE!AL34*PainelControle!$E$10 -> 0 | AM16: =DRE!AM34*PainelControle!$E$10 -> 0 | AN16: =DRE!AN34*PainelControle!$E$10 -> 0 | AO16: =DRE!AO34*PainelControle!$E$10 -> 0 | AP16: =DRE!AP34*PainelControle!$E$10 -> 0 | AQ16: =DRE!AQ34*PainelControle!$E$10 -> 0 | AR16: =DRE!AR34*PainelControle!$E$10 -> 0 | AS16: =DRE!AS34*PainelControle!$E$10 -> 0 | AT16: =DRE!AT34*PainelControle!$E$10 -> 0 | AU16: =DRE!AU34*PainelControle!$E$10 -> 0 | AV16: =DRE!AV34*PainelControle!$E$10 -> 0 | AW16: =DRE!AW34*PainelControle!$E$10 -> 0 | AX16: =DRE!AX34*PainelControle!$E$10 -> 0 | AY16: =DRE!AY34*PainelControle!$E$10 -> 0 | AZ16: =DRE!AZ34*PainelControle!$E$10 -> 0 | BA16: =DRE!BA34*PainelControle!$E$10 -> 0 | BB16: =DRE!BB34*PainelControle!$E$10 -> 0 | BC16: =DRE!BC34*PainelControle!$E$10 -> 0 | BD16: =DRE!BD34*PainelControle!$E$10 -> 0 | BE16: =DRE!BE34*PainelControle!$E$10 -> 0 | BF16: =DRE!BF34*PainelControle!$E$10 -> 0 | BG16: =DRE!BG34*PainelControle!$E$10 -> 0 | BH16: =DRE!BH34*PainelControle!$E$10 -> 0 | BI16: =DRE!BI34*PainelControle!$E$10 -> 0 | BJ16: =DRE!BJ34*PainelControle!$E$10 -> 0 | BK16: =DRE!BK34*PainelControle!$E$10 -> 0 | BL16: =DRE!BL34*PainelControle!$E$10 -> 0 | BM16: =DRE!BM34*PainelControle!$E$10 -> 0 | BN16: =DRE!BN34*PainelControle!$E$10 -> 0 | BO16: =DRE!BO34*PainelControle!$E$10 -> 0 | BP16: =DRE!BP34*PainelControle!$E$10 -> 0 | BQ16: =DRE!BQ34*PainelControle!$E$10 -> 0 | BR16: =DRE!BR34*PainelControle!$E$10 -> 0 | BS16: =DRE!BS34*PainelControle!$E$10 -> 0 | BT16: =DRE!BT34*PainelControle!$E$10 -> 0 | BU16: =DRE!BU34*PainelControle!$E$10 -> 0 | BV16: =DRE!BV34*PainelControle!$E$10 -> 0 | BW16: =DRE!BW34*PainelControle!$E$10 -> 0 | BX16: =DRE!BX34*PainelControle!$E$10 -> 0 | BY16: =DRE!BY34*PainelControle!$E$10 -> 0 | BZ16: =DRE!BZ34*PainelControle!$E$10 -> 0 | CA16: =DRE!CA34*PainelControle!$E$10 -> 0 | CB16: =DRE!CB34*PainelControle!$E$10 -> 0 | CC16: =DRE!CC34*PainelControle!$E$10 -> 0 | CD16: =DRE!CD34*PainelControle!$E$10 -> 0 | CE16: =DRE!CE34*PainelControle!$E$10 -> 0 | CF16: =DRE!CF34*PainelControle!$E$10 -> 0 | CG16: =DRE!CG34*PainelControle!$E$10 -> 0 | CH16: =DRE!CH34*PainelControle!$E$10 -> 0 | CI16: =DRE!CI34*PainelControle!$E$10 -> 0 | CJ16: =DRE!CJ34*PainelControle!$E$10 -> 0 | CK16: =DRE!CK34*PainelControle!$E$10 -> 0 | CL16: =DRE!CL34*PainelControle!$E$10 -> 0 | CM16: =DRE!CM34*PainelControle!$E$10 -> 0 | CN16: =DRE!CN34*PainelControle!$E$10 -> 0 | CO16: =DRE!CO34*PainelControle!$E$10 -> 0 | CP16: =DRE!CP34*PainelControle!$E$10 -> 0 | CQ16: =DRE!CQ34*PainelControle!$E$10 -> 0 | CR16: =DRE!CR34*PainelControle!$E$10 -> 0 | CS16: =DRE!CS34*PainelControle!$E$10 -> 0 | CT16: =DRE!CT34*PainelControle!$E$10 -> 0 | CU16: =DRE!CU34*PainelControle!$E$10 -> 0 | CV16: =DRE!CV34*PainelControle!$E$10 -> 0 | CW16: =DRE!CW34*PainelControle!$E$10 -> 0 | CX16: =DRE!CX34*PainelControle!$E$10 -> 0 | CY16: =DRE!CY34*PainelControle!$E$10 -> 0 | CZ16: =DRE!CZ34*PainelControle!$E$10 -> 0 | DA16: =DRE!DA34*PainelControle!$E$10 -> 0 | DB16: =DRE!DB34*PainelControle!$E$10 -> 0 | DC16: =DRE!DC34*PainelControle!$E$10 -> 0 | DD16: =DRE!DD34*PainelControle!$E$10 -> 0 | DE16: =DRE!DE34*PainelControle!$E$10 -> 0 | DF16: =DRE!DF34*PainelControle!$E$10 -> 0 | DG16: =DRE!DG34*PainelControle!$E$10 -> 0 | DH16: =DRE!DH34*PainelControle!$E$10 -> 0 | DI16: =DRE!DI34*PainelControle!$E$10 -> 0 | DJ16: =DRE!DJ34*PainelControle!$E$10 -> 0 | DK16: =DRE!DK34*PainelControle!$E$10 -> 0 | DL16: =DRE!DL34*PainelControle!$E$10 -> 0 | DM16: =DRE!DM34*PainelControle!$E$10 -> 0 | DN16: =DRE!DN34*PainelControle!$E$10 -> 0 | DO16: =DRE!DO34*PainelControle!$E$10 -> 0 | DP16: =DRE!DP34*PainelControle!$E$10 -> 0 | DQ16: =DRE!DQ34*PainelControle!$E$10 -> 0 | DR16: =DRE!DR34*PainelControle!$E$10 -> 0 | DS16: =DRE!DS34*PainelControle!$E$10 -> 0 | DT16: =DRE!DT34*PainelControle!$E$10 -> 0 | DU16: =DRE!DU34*PainelControle!$E$10 -> 0 | DV16: =DRE!DV34*PainelControle!$E$10 -> 0 | DW16: =DRE!DW34*PainelControle!$E$10 -> 0 | DX16: =DRE!DX34*PainelControle!$E$10 -> 0 | DY16: =DRE!DY34*PainelControle!$E$10 -> 0 | DZ16: =DRE!DZ34*PainelControle!$E$10 -> 0 | EA16: =DRE!EA34*PainelControle!$E$10 -> 0 | EB16: =DRE!EB34*PainelControle!$E$10 -> 0 | EC16: =DRE!EC34*PainelControle!$E$10 -> 0 | ED16: =DRE!ED34*PainelControle!$E$10 -> 0 | EE16: =DRE!EE34*PainelControle!$E$10 -> 0 | EF16: =DRE!EF34*PainelControle!$E$10 -> 0 | EG16: =DRE!EG34*PainelControle!$E$10 -> 0 | EH16: =DRE!EH34*PainelControle!$E$10 -> 0 | EI16: =DRE!EI34*PainelControle!$E$10 -> 0 | EJ16: =DRE!EJ34*PainelControle!$E$10 -> 0 | EK16: =DRE!EK34*PainelControle!$E$10 -> 0 | EL16: =DRE!EL34*PainelControle!$E$10 -> 0 | EM16: =DRE!EM34*PainelControle!$E$10 -> 0 | EN16: =DRE!EN34*PainelControle!$E$10 -> 0 | EO16: =DRE!EO34*PainelControle!$E$10 -> 0 | EP16: =DRE!EP34*PainelControle!$E$10 -> 0 | EQ16: =DRE!EQ34*PainelControle!$E$10 -> 0 | ER16: =DRE!ER34*PainelControle!$E$10 -> 0 | ES16: =DRE!ES34*PainelControle!$E$10 -> 0 | ET16: =DRE!ET34*PainelControle!$E$10 -> 0 | EU16: =DRE!EU34*PainelControle!$E$10 -> 0 | EV16: =DRE!EV34*PainelControle!$E$10 -> 0 | EW16: =DRE!EW34*PainelControle!$E$10 -> 0 | EX16: =DRE!EX34*PainelControle!$E$10 -> 0 | EY16: =DRE!EY34*PainelControle!$E$10 -> 0 | EZ16: =DRE!EZ34*PainelControle!$E$10 -> 0 | FA16: =DRE!FA34*PainelControle!$E$10 -> 0 | FB16: =DRE!FB34*PainelControle!$E$10 -> 0 | FC16: =DRE!FC34*PainelControle!$E$10 -> 0 | FD16: =DRE!FD34*PainelControle!$E$10 -> 0 | FE16: =DRE!FE34*PainelControle!$E$10 -> 0 | FF16: =DRE!FF34*PainelControle!$E$10 -> 0 | FG16: =DRE!FG34*PainelControle!$E$10 -> 0 | FH16: =DRE!FH34*PainelControle!$E$10 -> 0 | FI16: =DRE!FI34*PainelControle!$E$10 -> 0 | FJ16: =DRE!FJ34*PainelControle!$E$10 -> 0 | FK16: =DRE!FK34*PainelControle!$E$10 -> 0 | FL16: =DRE!FL34*PainelControle!$E$10 -> 0 | FM16: =DRE!FM34*PainelControle!$E$10 -> 0 | FN16: =DRE!FN34*PainelControle!$E$10 -> 0 | FO16: =DRE!FO34*PainelControle!$E$10 -> 0 | FP16: =DRE!FP34*PainelControle!$E$10 -> 0 | FQ16: =DRE!FQ34*PainelControle!$E$10 -> 0 | FR16: =DRE!FR34*PainelControle!$E$10 -> 0 | FS16: =DRE!FS34*PainelControle!$E$10 -> 0 | FT16: =DRE!FT34*PainelControle!$E$10 -> 0 | FU16: =DRE!FU34*PainelControle!$E$10 -> 0 | FV16: =DRE!FV34*PainelControle!$E$10 -> 0 | FW16: =DRE!FW34*PainelControle!$E$10 -> 0 | FX16: =DRE!FX34*PainelControle!$E$10 -> 0 | FY16: =DRE!FY34*PainelControle!$E$10 -> 0 | FZ16: =DRE!FZ34*PainelControle!$E$10 -> 0 | GA16: =DRE!GA34*PainelControle!$E$10 -> 0 | GB16: =DRE!GB34*PainelControle!$E$10 -> 0 | GC16: =DRE!GC34*PainelControle!$E$10 -> 0 | GD16: =DRE!GD34*PainelControle!$E$10 -> 0 | GE16: =DRE!GE34*PainelControle!$E$10 -> 0 | GF16: =DRE!GF34*PainelControle!$E$10 -> 0 | GG16: =DRE!GG34*PainelControle!$E$10 -> 0 | GH16: =DRE!GH34*PainelControle!$E$10 -> 0 | GI16: =DRE!GI34*PainelControle!$E$10 -> 0 | GJ16: =DRE!GJ34*PainelControle!$E$10 -> 0 | GK16: =DRE!GK34*PainelControle!$E$10 -> 0 | GL16: =DRE!GL34*PainelControle!$E$10 -> 0 | GM16: =DRE!GM34*PainelControle!$E$10 -> 0 | GN16: =DRE!GN34*PainelControle!$E$10 -> 0 | GO16: =DRE!GO34*PainelControle!$E$10 -> 0 | GP16: =DRE!GP34*PainelControle!$E$10 -> 0 | GQ16: =DRE!GQ34*PainelControle!$E$10 -> 0 | GR16: =DRE!GR34*PainelControle!$E$10 -> 0 | GS16: =DRE!GS34*PainelControle!$E$10 -> 0 | GT16: =DRE!GT34*PainelControle!$E$10 -> 0 | GU16: =DRE!GU34*PainelControle!$E$10 -> 0 | GV16: =DRE!GV34*PainelControle!$E$10 -> 0 | GW16: =DRE!GW34*PainelControle!$E$10 -> 0 | GX16: =DRE!GX34*PainelControle!$E$10 -> 0 | GY16: =DRE!GY34*PainelControle!$E$10 -> 0 | GZ16: =DRE!GZ34*PainelControle!$E$10 -> 0 | HA16: =DRE!HA34*PainelControle!$E$10 -> 0 | HB16: =DRE!HB34*PainelControle!$E$10 -> 0 | HC16: =DRE!HC34*PainelControle!$E$10 -> 0 | HD16: =DRE!HD34*PainelControle!$E$10 -> 0 | HE16: =DRE!HE34*PainelControle!$E$10 -> 0 | HF16: =DRE!HF34*PainelControle!$E$10 -> 0 | HG16: =DRE!HG34*PainelControle!$E$10 -> 0 | HH16: =DRE!HH34*PainelControle!$E$10 -> 0 | HI16: =DRE!HI34*PainelControle!$E$10 -> 0 | HJ16: =DRE!HJ34*PainelControle!$E$10 -> 0 | HK16: =DRE!HK34*PainelControle!$E$10 -> 0 | HL16: =DRE!HL34*PainelControle!$E$10 -> 0 | HM16: =DRE!HM34*PainelControle!$E$10 -> 0 | HN16: =DRE!HN34*PainelControle!$E$10 -> 0 | HO16: =DRE!HO34*PainelControle!$E$10 -> 0 | HP16: =DRE!HP34*PainelControle!$E$10 -> 0 | HQ16: =DRE!HQ34*PainelControle!$E$10 -> 0 | HR16: =DRE!HR34*PainelControle!$E$10 -> 0 | HS16: =DRE!HS34*PainelControle!$E$10 -> 0 | HT16: =DRE!HT34*PainelControle!$E$10 -> 0 | HU16: =DRE!HU34*PainelControle!$E$10 -> 0 | HV16: =DRE!HV34*PainelControle!$E$10 -> 0 | HW16: =DRE!HW34*PainelControle!$E$10 -> 0 | HX16: =DRE!HX34*PainelControle!$E$10 -> 0 | HY16: =DRE!HY34*PainelControle!$E$10 -> 0 | HZ16: =DRE!HZ34*PainelControle!$E$10 -> 0 | IA16: =DRE!IA34*PainelControle!$E$10 -> 0 | IB16: =DRE!IB34*PainelControle!$E$10 -> 0 | IC16: =DRE!IC34*PainelControle!$E$10 -> 0 | ID16: =DRE!ID34*PainelControle!$E$10 -> 0 | IE16: =DRE!IE34*PainelControle!$E$10 -> 0 | IF16: =DRE!IF34*PainelControle!$E$10 -> 0 | IG16: =DRE!IG34*PainelControle!$E$10 -> 0 | IH16: =DRE!IH34*PainelControle!$E$10 -> 0 | II16: =DRE!II34*PainelControle!$E$10 -> 0 | IJ16: =DRE!IJ34*PainelControle!$E$10 -> 0 | IK16: =DRE!IK34*PainelControle!$E$10 -> 0 | IL16: =DRE!IL34*PainelControle!$E$10 -> 0 | IM16: =DRE!IM34*PainelControle!$E$10 -> 0 | IN16: =DRE!IN34*PainelControle!$E$10 -> 0 | IO16: =DRE!IO34*PainelControle!$E$10 -> 0 | IP16: =DRE!IP34*PainelControle!$E$10 -> 0 | IQ16: =DRE!IQ34*PainelControle!$E$10 -> 0 | IR16: =DRE!IR34*PainelControle!$E$10 -> 0 | IS16: =DRE!IS34*PainelControle!$E$10 -> 0 | IT16: =DRE!IT34*PainelControle!$E$10 -> 0 | IU16: =DRE!IU34*PainelControle!$E$10 -> 0 | IV16: =DRE!IV34*PainelControle!$E$10 -> 0 | IW16: =DRE!IW34*PainelControle!$E$10 -> 0 | IX16: =DRE!IX34*PainelControle!$E$10 -> 0 | IY16: =DRE!IY34*PainelControle!$E$10 -> 0 | IZ16: =DRE!IZ34*PainelControle!$E$10 -> 0 | JA16: =DRE!JA34*PainelControle!$E$10 -> 0 | JB16: =DRE!JB34*PainelControle!$E$10 -> 0 | JC16: =DRE!JC34*PainelControle!$E$10 -> 0 | JD16: =DRE!JD34*PainelControle!$E$10 -> 0 | JE16: =DRE!JE34*PainelControle!$E$10 -> 0 | JF16: =DRE!JF34*PainelControle!$E$10 -> 0 | JG16: =DRE!JG34*PainelControle!$E$10 -> 0 | JH16: =DRE!JH34*PainelControle!$E$10 -> 0 | JI16: =DRE!JI34*PainelControle!$E$10 -> 0 | JJ16: =DRE!JJ34*PainelControle!$E$10 -> 0 | JK16: =DRE!JK34*PainelControle!$E$10 -> 0 | JL16: =DRE!JL34*PainelControle!$E$10 -> 0 | JM16: =DRE!JM34*PainelControle!$E$10 -> 0 | JN16: =DRE!JN34*PainelControle!$E$10 -> 0 | JO16: =DRE!JO34*PainelControle!$E$10 -> 0 | JP16: =DRE!JP34*PainelControle!$E$10 -> 0 | JQ16: =DRE!JQ34*PainelControle!$E$10 -> 0 | JR16: =DRE!JR34*PainelControle!$E$10 -> 0 | JS16: =DRE!JS34*PainelControle!$E$10 -> 0 | JT16: =DRE!JT34*PainelControle!$E$10 -> 0 | JU16: =DRE!JU34*PainelControle!$E$10 -> 0 | JV16: =DRE!JV34*PainelControle!$E$10 -> 0 | JW16: =DRE!JW34*PainelControle!$E$10 -> 0 | JX16: =DRE!JX34*PainelControle!$E$10 -> 0 | JY16: =DRE!JY34*PainelControle!$E$10 -> 0 | JZ16: =DRE!JZ34*PainelControle!$E$10 -> 0 | KA16: =DRE!KA34*PainelControle!$E$10 -> 0 | KB16: =DRE!KB34*PainelControle!$E$10 -> 0 | KC16: =DRE!KC34*PainelControle!$E$10 -> 0 | KD16: =DRE!KD34*PainelControle!$E$10 -> 0 | KE16: =DRE!KE34*PainelControle!$E$10 -> 0 | KF16: =DRE!KF34*PainelControle!$E$10 -> 0 | KG16: =DRE!KG34*PainelControle!$E$10 -> 0 | KH16: =DRE!KH34*PainelControle!$E$10 -> 0 | KI16: =DRE!KI34*PainelControle!$E$10 -> 0 | KJ16: =DRE!KJ34*PainelControle!$E$10 -> 0 | KK16: =DRE!KK34*PainelControle!$E$10 -> 0 | KL16: =DRE!KL34*PainelControle!$E$10 -> 0 | KM16: =DRE!KM34*PainelControle!$E$10 -> 0 | KN16: =DRE!KN34*PainelControle!$E$10 -> 0 | KO16: =DRE!KO34*PainelControle!$E$10 -> 0 | KP16: =DRE!KP34*PainelControle!$E$10 -> 0 | KQ16: =DRE!KQ34*PainelControle!$E$10 -> 0 | KR16: =DRE!KR34*PainelControle!$E$10 -> 0 | KS16: =DRE!KS34*PainelControle!$E$10 -> 0 | KT16: =DRE!KT34*PainelControle!$E$10 -> 0 | KU16: =DRE!KU34*PainelControle!$E$10 -> 0 | KV16: =DRE!KV34*PainelControle!$E$10 -> 0 | KW16: =DRE!KW34*PainelControle!$E$10 -> 0 | KX16: =DRE!KX34*PainelControle!$E$10 -> 0 | KY16: =DRE!KY34*PainelControle!$E$10 -> 0 | KZ16: =DRE!KZ34*PainelControle!$E$10 -> 0 | LA16: =DRE!LA34*PainelControle!$E$10 -> 0 | LB16: =DRE!LB34*PainelControle!$E$10 -> 0 | LC16: =DRE!LC34*PainelControle!$E$10 -> 0 | LD16: =DRE!LD34*PainelControle!$E$10 -> 0 | LE16: =DRE!LE34*PainelControle!$E$10 -> 0 | LF16: =DRE!LF34*PainelControle!$E$10 -> 0 | LG16: =DRE!LG34*PainelControle!$E$10 -> 0 | LH16: =DRE!LH34*PainelControle!$E$10 -> 0 | LI16: =DRE!LI34*PainelControle!$E$10 -> 0 | LJ16: =DRE!LJ34*PainelControle!$E$10 -> 0 | LK16: =DRE!LK34*PainelControle!$E$10 -> 0 | LL16: =DRE!LL34*PainelControle!$E$10 -> 0 | LM16: =DRE!LM34*PainelControle!$E$10 -> 0 | LN16: =DRE!LN34*PainelControle!$E$10 -> 0 | LO16: =DRE!LO34*PainelControle!$E$10 -> 0 | LP16: =DRE!LP34*PainelControle!$E$10 -> 0 | LQ16: =DRE!LQ34*PainelControle!$E$10 -> 0 | LR16: =DRE!LR34*PainelControle!$E$10 -> 0 | LS16: =DRE!LS34*PainelControle!$E$10 -> 0 | LT16: =DRE!LT34*PainelControle!$E$10 -> 0 | LU16: =DRE!LU34*PainelControle!$E$10 -> 0 | LV16: =DRE!LV34*PainelControle!$E$10 -> 0 | LW16: =DRE!LW34*PainelControle!$E$10 -> 0 | LX16: =DRE!LX34*PainelControle!$E$10 -> 0 | LY16: =DRE!LY34*PainelControle!$E$10 -> 0 | LZ16: =DRE!LZ34*PainelControle!$E$10 -> 0 | MA16: =DRE!MA34*PainelControle!$E$10 -> 0 | MB16: =DRE!MB34*PainelControle!$E$10 -> 0 | MC16: =DRE!MC34*PainelControle!$E$10 -> 0 | MD16: =DRE!MD34*PainelControle!$E$10 -> 0 | ME16: =DRE!ME34*PainelControle!$E$10 -> 0 | MF16: =DRE!MF34*PainelControle!$E$10 -> 0 | MG16: =DRE!MG34*PainelControle!$E$10 -> 0 | MH16: =DRE!MH34*PainelControle!$E$10 -> 0 | MI16: =DRE!MI34*PainelControle!$E$10 -> 0 | MJ16: =DRE!MJ34*PainelControle!$E$10 -> 0 | MK16: =DRE!MK34*PainelControle!$E$10 -> 0 | ML16: =DRE!ML34*PainelControle!$E$10 -> 0 | MM16: =DRE!MM34*PainelControle!$E$10 -> 0 | MN16: =DRE!MN34*PainelControle!$E$10 -> 0 | MO16: =DRE!MO34*PainelControle!$E$10 -> 0 | MP16: =DRE!MP34*PainelControle!$E$10 -> 0 | MQ16: =DRE!MQ34*PainelControle!$E$10 -> 0 | MR16: =DRE!MR34*PainelControle!$E$10 -> 0 | MS16: =DRE!MS34*PainelControle!$E$10 -> 0 | MT16: =DRE!MT34*PainelControle!$E$10 -> 0 | MU16: =DRE!MU34*PainelControle!$E$10 -> 0 | MV16: =DRE!MV34*PainelControle!$E$10 -> 0 | MW16: =DRE!MW34*PainelControle!$E$10 -> 0 | MX16: =DRE!MX34*PainelControle!$E$10 -> 0 | MY16: =DRE!MY34*PainelControle!$E$10 -> 0 | MZ16: =DRE!MZ34*PainelControle!$E$10 -> 0 | NA16: =DRE!NA34*PainelControle!$E$10 -> 0 | NB16: =DRE!NB34*PainelControle!$E$10 -> 0 | NC16: =DRE!NC34*PainelControle!$E$10 -> 0 | ND16: =DRE!ND34*PainelControle!$E$10 -> 0 | NE16: =DRE!NE34*PainelControle!$E$10 -> 0 | NF16: =DRE!NF34*PainelControle!$E$10 -> 0 | NG16: =DRE!NG34*PainelControle!$E$10 -> 0 | NH16: =DRE!NH34*PainelControle!$E$10 -> 0 | NI16: =DRE!NI34*PainelControle!$E$10 -> 0 | NJ16: =DRE!NJ34*PainelControle!$E$10 -> 0 | NK16: =DRE!NK34*PainelControle!$E$10 -> 0 | NL16: =DRE!NL34*PainelControle!$E$10 -> 0 | NM16: =DRE!NM34*PainelControle!$E$10 -> 0 | NN16: =DRE!NN34*PainelControle!$E$10 -> 0 | NO16: =DRE!NO34*PainelControle!$E$10 -> 0 | NP16: =DRE!NP34*PainelControle!$E$10 -> 0 | NQ16: =DRE!NQ34*PainelControle!$E$10 -> 0 | NR16: =DRE!NR34*PainelControle!$E$10 -> 0 | NS16: =DRE!NS34*PainelControle!$E$10 -> 0 | NT16: =DRE!NT34*PainelControle!$E$10 -> 0 | NU16: =DRE!NU34*PainelControle!$E$10 -> 0 | NV16: =DRE!NV34*PainelControle!$E$10 -> 0 | NW16: =DRE!NW34*PainelControle!$E$10 -> 0 | NX16: =DRE!NX34*PainelControle!$E$10 -> 0 | NY16: =DRE!NY34*PainelControle!$E$10 -> 0 | NZ16: =DRE!NZ34*PainelControle!$E$10 -> 0 | OA16: =DRE!OA34*PainelControle!$E$10 -> 0 | OB16: =DRE!OB34*PainelControle!$E$10 -> 0 | OC16: =DRE!OC34*PainelControle!$E$10 -> 0 | OD16: =DRE!OD34*PainelControle!$E$10 -> 0 | OE16: =DRE!OE34*PainelControle!$E$10 -> 0 | OF16: =DRE!OF34*PainelControle!$E$10 -> 0 | OG16: =DRE!OG34*PainelControle!$E$10 -> 0 | OH16: =DRE!OH34*PainelControle!$E$10 -> 0 | OI16: =DRE!OI34*PainelControle!$E$10 -> 0 | OJ16: =DRE!OJ34*PainelControle!$E$10 -> 0 | OK16: =DRE!OK34*PainelControle!$E$10 -> 0 | OL16: =DRE!OL34*PainelControle!$E$10 -> 0 | OM16: =DRE!OM34*PainelControle!$E$10 -> 0 | ON16: =DRE!ON34*PainelControle!$E$10 -> 0 | OO16: =DRE!OO34*PainelControle!$E$10 -> 0 | OP16: =DRE!OP34*PainelControle!$E$10 -> 0 | OQ16: =DRE!OQ34*PainelControle!$E$10 -> 0 | OR16: =DRE!OR34*PainelControle!$E$10 -> 0 | OS16: =DRE!OS34*PainelControle!$E$10 -> 0 | OT16: =DRE!OT34*PainelControle!$E$10 -> 0 | OU16: =DRE!OU34*PainelControle!$E$10 -> 0 | OV16: =DRE!OV34*PainelControle!$E$10 -> 0 | OW16: =DRE!OW34*PainelControle!$E$10 -> 0 | OX16: =DRE!OX34*PainelControle!$E$10 -> 0 | OY16: =DRE!OY34*PainelControle!$E$10 -> 0 | OZ16: =DRE!OZ34*PainelControle!$E$10 -> 0 | PA16: =DRE!PA34*PainelControle!$E$10 -> 0 | PB16: =DRE!PB34*PainelControle!$E$10 -> 0 | PC16: =DRE!PC34*PainelControle!$E$10 -> 0 | PD16: =DRE!PD34*PainelControle!$E$10 -> 0 | PE16: =DRE!PE34*PainelControle!$E$10 -> 0 | PF16: =DRE!PF34*PainelControle!$E$10 -> 0 | PG16: =DRE!PG34*PainelControle!$E$10 -> 0 | PH16: =DRE!PH34*PainelControle!$E$10 -> 0 | PI16: =DRE!PI34*PainelControle!$E$10 -> 0 | PJ16: =DRE!PJ34*PainelControle!$E$10 -> 0 | PK16: =DRE!PK34*PainelControle!$E$10 -> 0 | PL16: =DRE!PL34*PainelControle!$E$10 -> 0 | PM16: =DRE!PM34*PainelControle!$E$10 -> 0 | PN16: 0
C17: Receitas Acessórias | D17: 1.117992143e+10 | E17: =NPV(PainelControle!$D$8,$K17:$PM17)+J17 -> 2159531400 | J17: =RECEITAS!J12*J$9 -> 1099664 | K17: =RECEITAS!K12*K$9 -> 1099664 | L17: =RECEITAS!L12*L$9 -> 1099664 | M17: =RECEITAS!M12*M$9 -> 1099664 | N17: =RECEITAS!N12*N$9 -> 1099664 | O17: =RECEITAS!O12*O$9 -> 1099664 | P17: =RECEITAS!P12*P$9 -> 1099664 | Q17: =RECEITAS!Q12*Q$9 -> 1099664 | R17: =RECEITAS!R12*R$9 -> 1099664 | S17: =RECEITAS!S12*S$9 -> 1099664 | T17: =RECEITAS!T12*T$9 -> 1099664 | U17: =RECEITAS!U12*U$9 -> 1099664 | V17: =RECEITAS!V12*V$9 -> 1099664 | W17: =RECEITAS!W12*W$9 -> 1099664 | X17: =RECEITAS!X12*X$9 -> 1099664 | Y17: =RECEITAS!Y12*Y$9 -> 1099664 | Z17: =RECEITAS!Z12*Z$9 -> 1099664 | AA17: =RECEITAS!AA12*AA$9 -> 1099664 | AB17: =RECEITAS!AB12*AB$9 -> 1099664 | AC17: =RECEITAS!AC12*AC$9 -> 1099664 | AD17: =RECEITAS!AD12*AD$9 -> 1177624 | AE17: =RECEITAS!AE12*AE$9 -> 1177624 | AF17: =RECEITAS!AF12*AF$9 -> 1177624 | AG17: =RECEITAS!AG12*AG$9 -> 1177624 | AH17: =RECEITAS!AH12*AH$9 -> 1177624 | AI17: =RECEITAS!AI12*AI$9 -> 1177624 | AJ17: =RECEITAS!AJ12*AJ$9 -> 1177624 | AK17: =RECEITAS!AK12*AK$9 -> 1264264 | AL17: =RECEITAS!AL12*AL$9 -> 1264264 | AM17: =RECEITAS!AM12*AM$9 -> 1264264 | AN17: =RECEITAS!AN12*AN$9 -> 2430940 | AO17: =RECEITAS!AO12*AO$9 -> 2430940 | AP17: =RECEITAS!AP12*AP$9 -> 2430940 | AQ17: =RECEITAS!AQ12*AQ$9 -> 2430940 | AR17: =RECEITAS!AR12*AR$9 -> 2542256 | AS17: =RECEITAS!AS12*AS$9 -> 2542256 | AT17: =RECEITAS!AT12*AT$9 -> 7761646.5 | AU17: =RECEITAS!AU12*AU$9 -> 7761646.5 | AV17: =RECEITAS!AV12*AV$9 -> 7761646.5 | AW17: =RECEITAS!AW12*AW$9 -> 7788946.5 | AX17: =RECEITAS!AX12*AX$9 -> 7788946.5 | AY17: =RECEITAS!AY12*AY$9 -> 7788946.5 | AZ17: =RECEITAS!AZ12*AZ$9 -> 21099040.6 | BA17: =RECEITAS!BA12*BA$9 -> 21099040.6 | BB17: =RECEITAS!BB12*BB$9 -> 21099040.6 | BC17: =RECEITAS!BC12*BC$9 -> 21099040.6 | BD17: =RECEITAS!BD12*BD$9 -> 21099040.6 | BE17: =RECEITAS!BE12*BE$9 -> 21099040.6 | BF17: =RECEITAS!BF12*BF$9 -> 25143289.3 | BG17: =RECEITAS!BG12*BG$9 -> 25143289.3 | BH17: =RECEITAS!BH12*BH$9 -> 25143289.3 | BI17: =RECEITAS!BI12*BI$9 -> 25143289.3 | BJ17: =RECEITAS!BJ12*BJ$9 -> 25143289.3 | BK17: =RECEITAS!BK12*BK$9 -> 25143289.3 | BL17: =RECEITAS!BL12*BL$9 -> 26206567.8 | BM17: =RECEITAS!BM12*BM$9 -> 26206567.8 | BN17: =RECEITAS!BN12*BN$9 -> 26206567.8 | BO17: =RECEITAS!BO12*BO$9 -> 26206567.8 | BP17: =RECEITAS!BP12*BP$9 -> 26206567.8 | BQ17: =RECEITAS!BQ12*BQ$9 -> 26206567.8 | BR17: =RECEITAS!BR12*BR$9 -> 29582607.1 | BS17: =RECEITAS!BS12*BS$9 -> 29582607.1 | BT17: =RECEITAS!BT12*BT$9 -> 29582607.1 | BU17: =RECEITAS!BU12*BU$9 -> 29582607.1 | BV17: =RECEITAS!BV12*BV$9 -> 29582607.1 | BW17: =RECEITAS!BW12*BW$9 -> 29582607.1 | BX17: =RECEITAS!BX12*BX$9 -> 29582607.1 | BY17: =RECEITAS!BY12*BY$9 -> 29582607.1 | BZ17: =RECEITAS!BZ12*BZ$9 -> 29582607.1 | CA17: =RECEITAS!CA12*CA$9 -> 29582607.1 | CB17: =RECEITAS!CB12*CB$9 -> 29582607.1 | CC17: =RECEITAS!CC12*CC$9 -> 29582607.1 | CD17: =RECEITAS!CD12*CD$9 -> 29582607.1 | CE17: =RECEITAS!CE12*CE$9 -> 29582607.1 | CF17: =RECEITAS!CF12*CF$9 -> 29582607.1 | CG17: =RECEITAS!CG12*CG$9 -> 29582607.1 | CH17: =RECEITAS!CH12*CH$9 -> 29582607.1 | CI17: =RECEITAS!CI12*CI$9 -> 29582607.1 | CJ17: =RECEITAS!CJ12*CJ$9 -> 29582607.1 | CK17: =RECEITAS!CK12*CK$9 -> 29582607.1 | CL17: =RECEITAS!CL12*CL$9 -> 29582607.1 | CM17: =RECEITAS!CM12*CM$9 -> 29582607.1 | CN17: =RECEITAS!CN12*CN$9 -> 29582607.1 | CO17: =RECEITAS!CO12*CO$9 -> 29582607.1 | CP17: =RECEITAS!CP12*CP$9 -> 29582607.1 | CQ17: =RECEITAS!CQ12*CQ$9 -> 29582607.1 | CR17: =RECEITAS!CR12*CR$9 -> 29582607.1 | CS17: =RECEITAS!CS12*CS$9 -> 29582607.1 | CT17: =RECEITAS!CT12*CT$9 -> 29582607.1 | CU17: =RECEITAS!CU12*CU$9 -> 29582607.1 | CV17: =RECEITAS!CV12*CV$9 -> 29582607.1 | CW17: =RECEITAS!CW12*CW$9 -> 29582607.1 | CX17: =RECEITAS!CX12*CX$9 -> 29582607.1 | CY17: =RECEITAS!CY12*CY$9 -> 29582607.1 | CZ17: =RECEITAS!CZ12*CZ$9 -> 29582607.1 | DA17: =RECEITAS!DA12*DA$9 -> 29582607.1 | DB17: =RECEITAS!DB12*DB$9 -> 29582607.1 | DC17: =RECEITAS!DC12*DC$9 -> 29582607.1 | DD17: =RECEITAS!DD12*DD$9 -> 29582607.1 | DE17: =RECEITAS!DE12*DE$9 -> 29582607.1 | DF17: =RECEITAS!DF12*DF$9 -> 29582607.1 | DG17: =RECEITAS!DG12*DG$9 -> 29582607.1 | DH17: =RECEITAS!DH12*DH$9 -> 29582607.1 | DI17: =RECEITAS!DI12*DI$9 -> 29582607.1 | DJ17: =RECEITAS!DJ12*DJ$9 -> 29582607.1 | DK17: =RECEITAS!DK12*DK$9 -> 29582607.1 | DL17: =RECEITAS!DL12*DL$9 -> 29582607.1 | DM17: =RECEITAS!DM12*DM$9 -> 29582607.1 | DN17: =RECEITAS!DN12*DN$9 -> 29582607.1 | DO17: =RECEITAS!DO12*DO$9 -> 29582607.1 | DP17: =RECEITAS!DP12*DP$9 -> 29582607.1 | DQ17: =RECEITAS!DQ12*DQ$9 -> 29582607.1 | DR17: =RECEITAS!DR12*DR$9 -> 29582607.1 | DS17: =RECEITAS!DS12*DS$9 -> 29582607.1 | DT17: =RECEITAS!DT12*DT$9 -> 29582607.1 | DU17: =RECEITAS!DU12*DU$9 -> 29582607.1 | DV17: =RECEITAS!DV12*DV$9 -> 29582607.1 | DW17: =RECEITAS!DW12*DW$9 -> 29582607.1 | DX17: =RECEITAS!DX12*DX$9 -> 29582607.1 | DY17: =RECEITAS!DY12*DY$9 -> 29582607.1 | DZ17: =RECEITAS!DZ12*DZ$9 -> 29582607.1 | EA17: =RECEITAS!EA12*EA$9 -> 29582607.1 | EB17: =RECEITAS!EB12*EB$9 -> 29582607.1 | EC17: =RECEITAS!EC12*EC$9 -> 29582607.1 | ED17: =RECEITAS!ED12*ED$9 -> 29582607.1 | EE17: =RECEITAS!EE12*EE$9 -> 29582607.1 | EF17: =RECEITAS!EF12*EF$9 -> 29582607.1 | EG17: =RECEITAS!EG12*EG$9 -> 29582607.1 | EH17: =RECEITAS!EH12*EH$9 -> 29582607.1 | EI17: =RECEITAS!EI12*EI$9 -> 29582607.1 | EJ17: =RECEITAS!EJ12*EJ$9 -> 29582607.1 | EK17: =RECEITAS!EK12*EK$9 -> 29582607.1 | EL17: =RECEITAS!EL12*EL$9 -> 29582607.1 | EM17: =RECEITAS!EM12*EM$9 -> 29582607.1 | EN17: =RECEITAS!EN12*EN$9 -> 29582607.1 | EO17: =RECEITAS!EO12*EO$9 -> 29582607.1 | EP17: =RECEITAS!EP12*EP$9 -> 29582607.1 | EQ17: =RECEITAS!EQ12*EQ$9 -> 29582607.1 | ER17: =RECEITAS!ER12*ER$9 -> 29582607.1 | ES17: =RECEITAS!ES12*ES$9 -> 29582607.1 | ET17: =RECEITAS!ET12*ET$9 -> 29582607.1 | EU17: =RECEITAS!EU12*EU$9 -> 29582607.1 | EV17: =RECEITAS!EV12*EV$9 -> 29582607.1 | EW17: =RECEITAS!EW12*EW$9 -> 29582607.1 | EX17: =RECEITAS!EX12*EX$9 -> 29582607.1 | EY17: =RECEITAS!EY12*EY$9 -> 29582607.1 | EZ17: =RECEITAS!EZ12*EZ$9 -> 29582607.1 | FA17: =RECEITAS!FA12*FA$9 -> 29582607.1 | FB17: =RECEITAS!FB12*FB$9 -> 29582607.1 | FC17: =RECEITAS!FC12*FC$9 -> 29582607.1 | FD17: =RECEITAS!FD12*FD$9 -> 29582607.1 | FE17: =RECEITAS!FE12*FE$9 -> 29582607.1 | FF17: =RECEITAS!FF12*FF$9 -> 29582607.1 | FG17: =RECEITAS!FG12*FG$9 -> 29582607.1 | FH17: =RECEITAS!FH12*FH$9 -> 29582607.1 | FI17: =RECEITAS!FI12*FI$9 -> 29582607.1 | FJ17: =RECEITAS!FJ12*FJ$9 -> 29582607.1 | FK17: =RECEITAS!FK12*FK$9 -> 29582607.1 | FL17: =RECEITAS!FL12*FL$9 -> 29582607.1 | FM17: =RECEITAS!FM12*FM$9 -> 29582607.1 | FN17: =RECEITAS!FN12*FN$9 -> 29582607.1 | FO17: =RECEITAS!FO12*FO$9 -> 29582607.1 | FP17: =RECEITAS!FP12*FP$9 -> 29582607.1 | FQ17: =RECEITAS!FQ12*FQ$9 -> 29582607.1 | FR17: =RECEITAS!FR12*FR$9 -> 29582607.1 | FS17: =RECEITAS!FS12*FS$9 -> 29582607.1 | FT17: =RECEITAS!FT12*FT$9 -> 29582607.1 | FU17: =RECEITAS!FU12*FU$9 -> 29582607.1 | FV17: =RECEITAS!FV12*FV$9 -> 29582607.1 | FW17: =RECEITAS!FW12*FW$9 -> 29582607.1 | FX17: =RECEITAS!FX12*FX$9 -> 29582607.1 | FY17: =RECEITAS!FY12*FY$9 -> 29582607.1 | FZ17: =RECEITAS!FZ12*FZ$9 -> 29582607.1 | GA17: =RECEITAS!GA12*GA$9 -> 29582607.1 | GB17: =RECEITAS!GB12*GB$9 -> 29582607.1 | GC17: =RECEITAS!GC12*GC$9 -> 29582607.1 | GD17: =RECEITAS!GD12*GD$9 -> 29582607.1 | GE17: =RECEITAS!GE12*GE$9 -> 29582607.1 | GF17: =RECEITAS!GF12*GF$9 -> 29582607.1 | GG17: =RECEITAS!GG12*GG$9 -> 29582607.1 | GH17: =RECEITAS!GH12*GH$9 -> 29582607.1 | GI17: =RECEITAS!GI12*GI$9 -> 29582607.1 | GJ17: =RECEITAS!GJ12*GJ$9 -> 29582607.1 | GK17: =RECEITAS!GK12*GK$9 -> 29582607.1 | GL17: =RECEITAS!GL12*GL$9 -> 29582607.1 | GM17: =RECEITAS!GM12*GM$9 -> 29582607.1 | GN17: =RECEITAS!GN12*GN$9 -> 29582607.1 | GO17: =RECEITAS!GO12*GO$9 -> 29582607.1 | GP17: =RECEITAS!GP12*GP$9 -> 29582607.1 | GQ17: =RECEITAS!GQ12*GQ$9 -> 29582607.1 | GR17: =RECEITAS!GR12*GR$9 -> 29582607.1 | GS17: =RECEITAS!GS12*GS$9 -> 29582607.1 | GT17: =RECEITAS!GT12*GT$9 -> 29582607.1 | GU17: =RECEITAS!GU12*GU$9 -> 29582607.1 | GV17: =RECEITAS!GV12*GV$9 -> 29582607.1 | GW17: =RECEITAS!GW12*GW$9 -> 29582607.1 | GX17: =RECEITAS!GX12*GX$9 -> 29582607.1 | GY17: =RECEITAS!GY12*GY$9 -> 29582607.1 | GZ17: =RECEITAS!GZ12*GZ$9 -> 29582607.1 | HA17: =RECEITAS!HA12*HA$9 -> 29582607.1 | HB17: =RECEITAS!HB12*HB$9 -> 29582607.1 | HC17: =RECEITAS!HC12*HC$9 -> 29582607.1 | HD17: =RECEITAS!HD12*HD$9 -> 29582607.1 | HE17: =RECEITAS!HE12*HE$9 -> 29582607.1 | HF17: =RECEITAS!HF12*HF$9 -> 29582607.1 | HG17: =RECEITAS!HG12*HG$9 -> 29582607.1 | HH17: =RECEITAS!HH12*HH$9 -> 29582607.1 | HI17: =RECEITAS!HI12*HI$9 -> 29582607.1 | HJ17: =RECEITAS!HJ12*HJ$9 -> 29582607.1 | HK17: =RECEITAS!HK12*HK$9 -> 29582607.1 | HL17: =RECEITAS!HL12*HL$9 -> 29582607.1 | HM17: =RECEITAS!HM12*HM$9 -> 29582607.1 | HN17: =RECEITAS!HN12*HN$9 -> 29582607.1 | HO17: =RECEITAS!HO12*HO$9 -> 29582607.1 | HP17: =RECEITAS!HP12*HP$9 -> 29582607.1 | HQ17: =RECEITAS!HQ12*HQ$9 -> 29582607.1 | HR17: =RECEITAS!HR12*HR$9 -> 29582607.1 | HS17: =RECEITAS!HS12*HS$9 -> 29582607.1 | HT17: =RECEITAS!HT12*HT$9 -> 29582607.1 | HU17: =RECEITAS!HU12*HU$9 -> 29582607.1 | HV17: =RECEITAS!HV12*HV$9 -> 29582607.1 | HW17: =RECEITAS!HW12*HW$9 -> 29582607.1 | HX17: =RECEITAS!HX12*HX$9 -> 29582607.1 | HY17: =RECEITAS!HY12*HY$9 -> 29582607.1 | HZ17: =RECEITAS!HZ12*HZ$9 -> 29582607.1 | IA17: =RECEITAS!IA12*IA$9 -> 29582607.1 | IB17: =RECEITAS!IB12*IB$9 -> 29582607.1 | IC17: =RECEITAS!IC12*IC$9 -> 29582607.1 | ID17: =RECEITAS!ID12*ID$9 -> 29582607.1 | IE17: =RECEITAS!IE12*IE$9 -> 29582607.1 | IF17: =RECEITAS!IF12*IF$9 -> 29582607.1 | IG17: =RECEITAS!IG12*IG$9 -> 29582607.1 | IH17: =RECEITAS!IH12*IH$9 -> 29582607.1 | II17: =RECEITAS!II12*II$9 -> 29582607.1 | IJ17: =RECEITAS!IJ12*IJ$9 -> 29582607.1 | IK17: =RECEITAS!IK12*IK$9 -> 29582607.1 | IL17: =RECEITAS!IL12*IL$9 -> 29582607.1 | IM17: =RECEITAS!IM12*IM$9 -> 29582607.1 | IN17: =RECEITAS!IN12*IN$9 -> 29582607.1 | IO17: =RECEITAS!IO12*IO$9 -> 29582607.1 | IP17: =RECEITAS!IP12*IP$9 -> 29582607.1 | IQ17: =RECEITAS!IQ12*IQ$9 -> 29582607.1 | IR17: =RECEITAS!IR12*IR$9 -> 29582607.1 | IS17: =RECEITAS!IS12*IS$9 -> 29582607.1 | IT17: =RECEITAS!IT12*IT$9 -> 29582607.1 | IU17: =RECEITAS!IU12*IU$9 -> 29582607.1 | IV17: =RECEITAS!IV12*IV$9 -> 29582607.1 | IW17: =RECEITAS!IW12*IW$9 -> 29582607.1 | IX17: =RECEITAS!IX12*IX$9 -> 29582607.1 | IY17: =RECEITAS!IY12*IY$9 -> 29582607.1 | IZ17: =RECEITAS!IZ12*IZ$9 -> 29582607.1 | JA17: =RECEITAS!JA12*JA$9 -> 29582607.1 | JB17: =RECEITAS!JB12*JB$9 -> 29582607.1 | JC17: =RECEITAS!JC12*JC$9 -> 29582607.1 | JD17: =RECEITAS!JD12*JD$9 -> 29582607.1 | JE17: =RECEITAS!JE12*JE$9 -> 29582607.1 | JF17: =RECEITAS!JF12*JF$9 -> 29582607.1 | JG17: =RECEITAS!JG12*JG$9 -> 29582607.1 | JH17: =RECEITAS!JH12*JH$9 -> 29582607.1 | JI17: =RECEITAS!JI12*JI$9 -> 29582607.1 | JJ17: =RECEITAS!JJ12*JJ$9 -> 29582607.1 | JK17: =RECEITAS!JK12*JK$9 -> 29582607.1 | JL17: =RECEITAS!JL12*JL$9 -> 29582607.1 | JM17: =RECEITAS!JM12*JM$9 -> 29582607.1 | JN17: =RECEITAS!JN12*JN$9 -> 29582607.1 | JO17: =RECEITAS!JO12*JO$9 -> 29582607.1 | JP17: =RECEITAS!JP12*JP$9 -> 29582607.1 | JQ17: =RECEITAS!JQ12*JQ$9 -> 29582607.1 | JR17: =RECEITAS!JR12*JR$9 -> 29582607.1 | JS17: =RECEITAS!JS12*JS$9 -> 29582607.1 | JT17: =RECEITAS!JT12*JT$9 -> 29582607.1 | JU17: =RECEITAS!JU12*JU$9 -> 29582607.1 | JV17: =RECEITAS!JV12*JV$9 -> 29582607.1 | JW17: =RECEITAS!JW12*JW$9 -> 29582607.1 | JX17: =RECEITAS!JX12*JX$9 -> 29582607.1 | JY17: =RECEITAS!JY12*JY$9 -> 29582607.1 | JZ17: =RECEITAS!JZ12*JZ$9 -> 29582607.1 | KA17: =RECEITAS!KA12*KA$9 -> 29582607.1 | KB17: =RECEITAS!KB12*KB$9 -> 29582607.1 | KC17: =RECEITAS!KC12*KC$9 -> 29582607.1 | KD17: =RECEITAS!KD12*KD$9 -> 29582607.1 | KE17: =RECEITAS!KE12*KE$9 -> 29582607.1 | KF17: =RECEITAS!KF12*KF$9 -> 29582607.1 | KG17: =RECEITAS!KG12*KG$9 -> 29582607.1 | KH17: =RECEITAS!KH12*KH$9 -> 29582607.1 | KI17: =RECEITAS!KI12*KI$9 -> 29582607.1 | KJ17: =RECEITAS!KJ12*KJ$9 -> 29582607.1 | KK17: =RECEITAS!KK12*KK$9 -> 29582607.1 | KL17: =RECEITAS!KL12*KL$9 -> 29582607.1 | KM17: =RECEITAS!KM12*KM$9 -> 29582607.1 | KN17: =RECEITAS!KN12*KN$9 -> 29582607.1 | KO17: =RECEITAS!KO12*KO$9 -> 29582607.1 | KP17: =RECEITAS!KP12*KP$9 -> 29582607.1 | KQ17: =RECEITAS!KQ12*KQ$9 -> 29582607.1 | KR17: =RECEITAS!KR12*KR$9 -> 29582607.1 | KS17: =RECEITAS!KS12*KS$9 -> 29582607.1 | KT17: =RECEITAS!KT12*KT$9 -> 29582607.1 | KU17: =RECEITAS!KU12*KU$9 -> 29582607.1 | KV17: =RECEITAS!KV12*KV$9 -> 29582607.1 | KW17: =RECEITAS!KW12*KW$9 -> 29582607.1 | KX17: =RECEITAS!KX12*KX$9 -> 29582607.1 | KY17: =RECEITAS!KY12*KY$9 -> 29582607.1 | KZ17: =RECEITAS!KZ12*KZ$9 -> 29582607.1 | LA17: =RECEITAS!LA12*LA$9 -> 29582607.1 | LB17: =RECEITAS!LB12*LB$9 -> 29582607.1 | LC17: =RECEITAS!LC12*LC$9 -> 29582607.1 | LD17: =RECEITAS!LD12*LD$9 -> 29582607.1 | LE17: =RECEITAS!LE12*LE$9 -> 29582607.1 | LF17: =RECEITAS!LF12*LF$9 -> 29582607.1 | LG17: =RECEITAS!LG12*LG$9 -> 29582607.1 | LH17: =RECEITAS!LH12*LH$9 -> 29582607.1 | LI17: =RECEITAS!LI12*LI$9 -> 29582607.1 | LJ17: =RECEITAS!LJ12*LJ$9 -> 29582607.1 | LK17: =RECEITAS!LK12*LK$9 -> 29582607.1 | LL17: =RECEITAS!LL12*LL$9 -> 29582607.1 | LM17: =RECEITAS!LM12*LM$9 -> 29582607.1 | LN17: =RECEITAS!LN12*LN$9 -> 29582607.1 | LO17: =RECEITAS!LO12*LO$9 -> 29582607.1 | LP17: =RECEITAS!LP12*LP$9 -> 29582607.1 | LQ17: =RECEITAS!LQ12*LQ$9 -> 29582607.1 | LR17: =RECEITAS!LR12*LR$9 -> 29582607.1 | LS17: =RECEITAS!LS12*LS$9 -> 29582607.1 | LT17: =RECEITAS!LT12*LT$9 -> 29582607.1 | LU17: =RECEITAS!LU12*LU$9 -> 29582607.1 | LV17: =RECEITAS!LV12*LV$9 -> 29582607.1 | LW17: =RECEITAS!LW12*LW$9 -> 29582607.1 | LX17: =RECEITAS!LX12*LX$9 -> 29582607.1 | LY17: =RECEITAS!LY12*LY$9 -> 29582607.1 | LZ17: =RECEITAS!LZ12*LZ$9 -> 29582607.1 | MA17: =RECEITAS!MA12*MA$9 -> 29582607.1 | MB17: =RECEITAS!MB12*MB$9 -> 29582607.1 | MC17: =RECEITAS!MC12*MC$9 -> 29582607.1 | MD17: =RECEITAS!MD12*MD$9 -> 29582607.1 | ME17: =RECEITAS!ME12*ME$9 -> 29582607.1 | MF17: =RECEITAS!MF12*MF$9 -> 29582607.1 | MG17: =RECEITAS!MG12*MG$9 -> 29582607.1 | MH17: =RECEITAS!MH12*MH$9 -> 29582607.1 | MI17: =RECEITAS!MI12*MI$9 -> 29582607.1 | MJ17: =RECEITAS!MJ12*MJ$9 -> 29582607.1 | MK17: =RECEITAS!MK12*MK$9 -> 29582607.1 | ML17: =RECEITAS!ML12*ML$9 -> 29582607.1 | MM17: =RECEITAS!MM12*MM$9 -> 29582607.1 | MN17: =RECEITAS!MN12*MN$9 -> 29582607.1 | MO17: =RECEITAS!MO12*MO$9 -> 29582607.1 | MP17: =RECEITAS!MP12*MP$9 -> 29582607.1 | MQ17: =RECEITAS!MQ12*MQ$9 -> 29582607.1 | MR17: =RECEITAS!MR12*MR$9 -> 29582607.1 | MS17: =RECEITAS!MS12*MS$9 -> 29582607.1 | MT17: =RECEITAS!MT12*MT$9 -> 29582607.1 | MU17: =RECEITAS!MU12*MU$9 -> 29582607.1 | MV17: =RECEITAS!MV12*MV$9 -> 29582607.1 | MW17: =RECEITAS!MW12*MW$9 -> 29582607.1 | MX17: =RECEITAS!MX12*MX$9 -> 29582607.1 | MY17: =RECEITAS!MY12*MY$9 -> 29582607.1 | MZ17: =RECEITAS!MZ12*MZ$9 -> 29582607.1 | NA17: =RECEITAS!NA12*NA$9 -> 29582607.1 | NB17: =RECEITAS!NB12*NB$9 -> 29582607.1 | NC17: =RECEITAS!NC12*NC$9 -> 29582607.1 | ND17: =RECEITAS!ND12*ND$9 -> 29582607.1 | NE17: =RECEITAS!NE12*NE$9 -> 29582607.1 | NF17: =RECEITAS!NF12*NF$9 -> 29582607.1 | NG17: =RECEITAS!NG12*NG$9 -> 29582607.1 | NH17: =RECEITAS!NH12*NH$9 -> 29582607.1 | NI17: =RECEITAS!NI12*NI$9 -> 29582607.1 | NJ17: =RECEITAS!NJ12*NJ$9 -> 29582607.1 | NK17: =RECEITAS!NK12*NK$9 -> 29582607.1 | NL17: =RECEITAS!NL12*NL$9 -> 29582607.1 | NM17: =RECEITAS!NM12*NM$9 -> 29582607.1 | NN17: =RECEITAS!NN12*NN$9 -> 29582607.1 | NO17: =RECEITAS!NO12*NO$9 -> 29582607.1 | NP17: =RECEITAS!NP12*NP$9 -> 29582607.1 | NQ17: =RECEITAS!NQ12*NQ$9 -> 29582607.1 | NR17: =RECEITAS!NR12*NR$9 -> 29582607.1 | NS17: =RECEITAS!NS12*NS$9 -> 29582607.1 | NT17: =RECEITAS!NT12*NT$9 -> 29582607.1 | NU17: =RECEITAS!NU12*NU$9 -> 29582607.1 | NV17: =RECEITAS!NV12*NV$9 -> 29582607.1 | NW17: =RECEITAS!NW12*NW$9 -> 29582607.1 | NX17: =RECEITAS!NX12*NX$9 -> 29582607.1 | NY17: =RECEITAS!NY12*NY$9 -> 29582607.1 | NZ17: =RECEITAS!NZ12*NZ$9 -> 29582607.1 | OA17: =RECEITAS!OA12*OA$9 -> 29582607.1 | OB17: =RECEITAS!OB12*OB$9 -> 29582607.1 | OC17: =RECEITAS!OC12*OC$9 -> 29582607.1 | OD17: =RECEITAS!OD12*OD$9 -> 29582607.1 | OE17: =RECEITAS!OE12*OE$9 -> 29582607.1 | OF17: =RECEITAS!OF12*OF$9 -> 29582607.1 | OG17: =RECEITAS!OG12*OG$9 -> 29582607.1 | OH17: =RECEITAS!OH12*OH$9 -> 29582607.1 | OI17: =RECEITAS!OI12*OI$9 -> 29582607.1 | OJ17: =RECEITAS!OJ12*OJ$9 -> 29582607.1 | OK17: =RECEITAS!OK12*OK$9 -> 29582607.1 | OL17: =RECEITAS!OL12*OL$9 -> 29582607.1 | OM17: =RECEITAS!OM12*OM$9 -> 29582607.1 | ON17: =RECEITAS!ON12*ON$9 -> 29582607.1 | OO17: =RECEITAS!OO12*OO$9 -> 29582607.1 | OP17: =RECEITAS!OP12*OP$9 -> 29582607.1 | OQ17: =RECEITAS!OQ12*OQ$9 -> 29582607.1 | OR17: =RECEITAS!OR12*OR$9 -> 29582607.1 | OS17: =RECEITAS!OS12*OS$9 -> 29582607.1 | OT17: =RECEITAS!OT12*OT$9 -> 29582607.1 | OU17: =RECEITAS!OU12*OU$9 -> 29582607.1 | OV17: =RECEITAS!OV12*OV$9 -> 29582607.1 | OW17: =RECEITAS!OW12*OW$9 -> 29582607.1 | OX17: =RECEITAS!OX12*OX$9 -> 29582607.1 | OY17: =RECEITAS!OY12*OY$9 -> 29582607.1 | OZ17: =RECEITAS!OZ12*OZ$9 -> 29582607.1 | PA17: =RECEITAS!PA12*PA$9 -> 29582607.1 | PB17: =RECEITAS!PB12*PB$9 -> 29582607.1 | PC17: =RECEITAS!PC12*PC$9 -> 29582607.1 | PD17: =RECEITAS!PD12*PD$9 -> 29582607.1 | PE17: =RECEITAS!PE12*PE$9 -> 29582607.1 | PF17: =RECEITAS!PF12*PF$9 -> 29582607.1 | PG17: =RECEITAS!PG12*PG$9 -> 29582607.1 | PH17: =RECEITAS!PH12*PH$9 -> 29582607.1 | PI17: =RECEITAS!PI12*PI$9 -> 29582607.1 | PJ17: =RECEITAS!PJ12*PJ$9 -> 29582607.1 | PK17: =RECEITAS!PK12*PK$9 -> 29582607.1 | PL17: =RECEITAS!PL12*PL$9 -> 29582607.1 | PM17: =RECEITAS!PM12*PM$9 -> 29582607.1 | PN17: 0
D18: 0 | E18: =NPV(PainelControle!$D$8,$K18:$PM18)+J18 -> 0 | PN18: 0
B19: (-) DEDUÇÕES DAS RECEITAS | D19: 1300889210 | E19: =NPV(PainelControle!$D$8,$K19:$PM19)+J19 -> 340144317.9 | J19: =SUM(J20:J23) -> 2043984.911 | K19: 2100847.101 | L19: 2100533.191 | M19: 2100219.281 | N19: 2099905.371 | O19: 2099591.461 | P19: 2099277.55 | Q19: 2098963.64 | R19: 2098649.73 | S19: 2098335.82 | T19: 2096653.851 | U19: 2094583.052 | V19: 2035305.529 | W19: 2089907.546 | X19: 2086977.991 | Y19: 2083379.716 | Z19: 2079422.868 | AA19: 2074235.577 | AB19: 2063172.483 | AC19: 2059905.51 | AD19: 2177855.994 | AE19: 2172861.501 | AF19: 2167245.264 | AG19: 2159557.229 | AH19: 2093085.436 | AI19: 2133774.571 | AJ19: 2122392.166 | AK19: 2169575.919 | AL19: 2155270.599 | AM19: 2138308.811 | AN19: 2228367.828 | AO19: 2209247.214 | AP19: 2173910.64 | AQ19: 2155305.913 | AR19: 2302711.847 | AS19: 2284257.824 | AT19: 2694415.414 | AU19: 2713556.43 | AV19: 2698668.894 | AW19: 2799738.983 | AX19: 2788310.125 | AY19: 2782446.047 | AZ19: 4030712.402 | BA19: 4024900.571 | BB19: 4019462.755 | BC19: 4014951.293 | BD19: 4010819.323 | BE19: 4008453.42 | BF19: 3968169.398 | BG19: 4015900.596 | BH19: 4013101.505 | BI19: 4010087.263 | BJ19: 4006856.703 | BK19: 4004349.538 | BL19: 4076274.044 | BM19: 4074068.253 | BN19: 4072172.381 | BO19: 4070588.136 | BP19: 4069317.239 | BQ19: 4069317.239 | BR19: 4145324.076 | BS19: 4194774.576 | BT19: 4194774.576 | BU19: 4194774.576 | BV19: =SUM(BV20:BV23) -> 4194774.576 | BW19: 4194774.576 | BX19: 4194774.576 | BY19: 4194774.576 | BZ19: 4194774.576 | CA19: 4194774.576 | CB19: 4195449.136 | CC19: 4196220.062 | CD19: 4035374.798 | CE19: 4085885.321 | CF19: 4087041.71 | CG19: 4088390.83 | CH19: 4089836.316 | CI19: 4091185.436 | CJ19: 4098591.601 | CK19: 4098591.601 | CL19: 4098591.601 | CM19: 4098591.601 | CN19: 4098591.601 | CO19: 4098591.601 | CP19: 3936879.045 | CQ19: 3992216.081 | CR19: 3992216.081 | CS19: 3992216.081 | CT19: 3992216.081 | CU19: 3992216.081 | CV19: 3992216.081 | CW19: 3992216.081 | CX19: 4007483.752 | CY19: 4007483.752 | CZ19: 4007483.752 | DA19: 4007483.752 | DB19: 3845771.196 | DC19: 3911927.97 | DD19: 3911927.97 | DE19: 3911927.97 | DF19: 3911927.97 | DG19: 3911927.97 | DH19: 3911927.97 | DI19: 3911927.97 | DJ19: 3911927.97 | DK19: 3911927.97 | DL19: 3911927.97 | DM19: 3911927.97 | DN19: 3750215.414 | DO19: 3799665.914 | DP19: 3799665.914 | DQ19: 3799665.914 | DR19: 3799665.914 | DS19: 3799665.914 | DT19: 3799665.914 | DU19: 3799665.914 | DV19: 3799665.914 | DW19: 3799665.914 | DX19: 3799665.914 | DY19: 3799665.914 | DZ19: 3637953.358 | EA19: 3687403.858 | EB19: 3687403.858 | EC19: 3687403.858 | ED19: 3687403.858 | EE19: 3687403.858 | EF19: 3687403.858 | EG19: 3687403.858 | EH19: =SUM(EH20:EH23) -> 3687403.858 | EI19: 3687403.858 | EJ19: 3687403.858 | EK19: 3687403.858 | EL19: 3525691.303 | EM19: 3575141.803 | EN19: 3575141.803 | EO19: 3575141.803 | EP19: 3575141.803 | EQ19: 3575141.803 | ER19: 3575141.803 | ES19: 3575141.803 | ET19: 3575141.803 | EU19: 3575141.803 | EV19: 3575141.803 | EW19: 3575141.803 | EX19: 3413429.247 | EY19: 3462879.747 | EZ19: 3462879.747 | FA19: 3462879.747 | FB19: 3462879.747 | FC19: 3462879.747 | FD19: 3462879.747 | FE19: 3462879.747 | FF19: 3462879.747 | FG19: 3462879.747 | FH19: 3462879.747 | FI19: 3462879.747 | FJ19: 3301167.191 | FK19: 3350617.691 | FL19: 3350617.691 | FM19: 3350617.691 | FN19: 3350617.691 | FO19: 3350617.691 | FP19: 3350617.691 | FQ19: 3350617.691 | FR19: 3350617.691 | FS19: 3350617.691 | FT19: 3350617.691 | FU19: 3350617.691 | FV19: 3188905.135 | FW19: 3238355.635 | FX19: 3238355.635 | FY19: 3238355.635 | FZ19: 3238355.635 | GA19: 3238355.635 | GB19: 3238355.635 | GC19: 3238355.635 | GD19: 3238355.635 | GE19: 3238355.635 | GF19: 3238355.635 | GG19: 3238355.635 | GH19: 3126873.933 | GI19: 3126873.933 | GJ19: 3126873.933 | GK19: 3126873.933 | GL19: 3126873.933 | GM19: 3126873.933 | GN19: 3126873.933 | GO19: 3126873.933 | GP19: 3126873.933 | GQ19: 3126873.933 | GR19: 3126873.933 | GS19: 3126873.933 | GT19: =SUM(GT20:GT23) -> 3087483.738 | GU19: 3087483.738 | GV19: 3087483.738 | GW19: 3087483.738 | GX19: 3087483.738 | GY19: 3087483.738 | GZ19: 3087483.738 | HA19: 3087483.738 | HB19: 3087483.738 | HC19: 3087483.738 | HD19: 3087483.738 | HE19: 3087483.738 | HF19: 3048093.543 | HG19: 3048093.543 | HH19: 3048093.543 | HI19: 3048093.543 | HJ19: 3048093.543 | HK19: 3048093.543 | HL19: 3048093.543 | HM19: 3048093.543 | HN19: 3048093.543 | HO19: 3048093.543 | HP19: 3048093.543 | HQ19: 3048093.543 | HR19: 3008703.348 | HS19: 3008703.348 | HT19: 3008703.348 | HU19: 3008703.348 | HV19: 3008703.348 | HW19: 3008703.348 | HX19: 3008703.348 | HY19: 3008703.348 | HZ19: 3008703.348 | IA19: 3008703.348 | IB19: 3008703.348 | IC19: 3008703.348 | ID19: 2969313.153 | IE19: 2969313.153 | IF19: 2969313.153 | IG19: 2969313.153 | IH19: 2969313.153 | II19: 2969313.153 | IJ19: 2969313.153 | IK19: 2969313.153 | IL19: 2969313.153 | IM19: 2969313.153 | IN19: 2969313.153 | IO19: 2969313.153 | IP19: 2929922.958 | IQ19: 2929922.958 | IR19: 2929922.958 | IS19: 2929922.958 | IT19: 2929922.958 | IU19: 2929922.958 | IV19: 2929922.958 | IW19: 2929922.958 | IX19: 2929922.958 | IY19: 2929922.958 | IZ19: 2929922.958 | JA19: 2929922.958 | JB19: 2890532.763 | JC19: 2890532.763 | JD19: 2890532.763 | JE19: 2890532.763 | JF19: =SUM(JF20:JF23) -> 2890532.763 | JG19: 2890532.763 | JH19: 2890532.763 | JI19: 2890532.763 | JJ19: 2890532.763 | JK19: 2890532.763 | JL19: 2890532.763 | JM19: 2890532.763 | JN19: 2851142.568 | JO19: 2851142.568 | JP19: 2851142.568 | JQ19: 2851142.568 | JR19: 2851142.568 | JS19: 2851142.568 | JT19: 2851142.568 | JU19: 2851142.568 | JV19: 2851142.568 | JW19: 2851142.568 | JX19: 2851142.568 | JY19: 2851142.568 | JZ19: 2811752.373 | KA19: 2811752.373 | KB19: 2811752.373 | KC19: 2811752.373 | KD19: 2811752.373 | KE19: 2811752.373 | KF19: 2811752.373 | KG19: 2811752.373 | KH19: 2811752.373 | KI19: 2811752.373 | KJ19: 2811752.373 | KK19: 2811752.373 | KL19: 2783322.457 | KM19: 2783322.457 | KN19: 2783322.457 | KO19: 2783322.457 | KP19: 2783322.457 | KQ19: 2783322.457 | KR19: 2783322.457 | KS19: 2783322.457 | KT19: 2783322.457 | KU19: 2783322.457 | KV19: 2783322.457 | KW19: 2783322.457 | KX19: 2783322.457 | KY19: 2783322.457 | KZ19: 2783322.457 | LA19: 2783322.457 | LB19: 2783322.457 | LC19: 2783322.457 | LD19: 2783322.457 | LE19: 2783322.457 | LF19: 2783322.457 | LG19: 2783322.457 | LH19: 2783322.457 | LI19: 2783322.457 | LJ19: 2783322.457 | LK19: 2783322.457 | LL19: 2783322.457 | LM19: 2783322.457 | LN19: 2783322.457 | LO19: 2783322.457 | LP19: 2783322.457 | LQ19: 2783322.457 | LR19: =SUM(LR20:LR23) -> 2783322.457 | LS19: 2783322.457 | LT19: 2783322.457 | LU19: 2783322.457 | LV19: 2783322.457 | LW19: 2783322.457 | LX19: 2783322.457 | LY19: 2783322.457 | LZ19: 2783322.457 | MA19: 2783322.457 | MB19: 2783322.457 | MC19: 2783322.457 | MD19: 2783322.457 | ME19: 2783322.457 | MF19: 2783322.457 | MG19: 2783322.457 | MH19: 2783322.457 | MI19: 2783322.457 | MJ19: 2783322.457 | MK19: 2783322.457 | ML19: 2783322.457 | MM19: 2783322.457 | MN19: 2783322.457 | MO19: 2783322.457 | MP19: 2783322.457 | MQ19: 2783322.457 | MR19: 2783322.457 | MS19: 2783322.457 | MT19: 2783322.457 | MU19: 2783322.457 | MV19: 2783322.457 | MW19: 2783322.457 | MX19: 2783322.457 | MY19: 2783322.457 | MZ19: 2783322.457 | NA19: 2783322.457 | NB19: 2783322.457 | NC19: 2783322.457 | ND19: 2783322.457 | NE19: 2783322.457 | NF19: 2783322.457 | NG19: 2783322.457 | NH19: 2783322.457 | NI19: 2783322.457 | NJ19: 2783322.457 | NK19: 2783322.457 | NL19: 2783322.457 | NM19: 2783322.457 | NN19: 2783322.457 | NO19: 2783322.457 | NP19: 2783322.457 | NQ19: 2783322.457 | NR19: 2783322.457 | NS19: 2783322.457 | NT19: 2783322.457 | NU19: 2783322.457 | NV19: 2783322.457 | NW19: 2783322.457 | NX19: 2783322.457 | NY19: 2783322.457 | NZ19: 2783322.457 | OA19: 2783322.457 | OB19: 2783322.457 | OC19: 2783322.457 | OD19: =SUM(OD20:OD23) -> 2783322.457 | OE19: 2783322.457 | OF19: 2783322.457 | OG19: 2783322.457 | OH19: 2783322.457 | OI19: 2783322.457 | OJ19: 2783322.457 | OK19: 2783322.457 | OL19: 2783322.457 | OM19: 2783322.457 | ON19: 2783322.457 | OO19: 2783322.457 | OP19: 2783322.457 | OQ19: 2783322.457 | OR19: 2783322.457 | OS19: 2783322.457 | OT19: 2783322.457 | OU19: 2783322.457 | OV19: 2783322.457 | OW19: 2783322.457 | OX19: 2783322.457 | OY19: 2783322.457 | OZ19: 2783322.457 | PA19: 2783322.457 | PB19: 2783322.457 | PC19: 2783322.457 | PD19: 2783322.457 | PE19: 2783322.457 | PF19: 2783322.457 | PG19: 2783322.457 | PH19: 2783322.457 | PI19: 2783322.457 | PJ19: 2783322.457 | PK19: 2783322.457 | PL19: 2783322.457 | PM19: 2783322.457 | PN19: 0
C20: ISS | D20: 155215188.6 | E20: =NPV(PainelControle!$D$8,$K20:$PM20)+J20 -> 70102323.84 | J20: =TRIBUTOS!J21 -> 790823.9 | K20: =TRIBUTOS!K21 -> 790823.9 | L20: =TRIBUTOS!L21 -> 790823.9 | M20: =TRIBUTOS!M21 -> 790823.9 | N20: =TRIBUTOS!N21 -> 790823.9 | O20: =TRIBUTOS!O21 -> 790823.9 | P20: =TRIBUTOS!P21 -> 790823.9 | Q20: =TRIBUTOS!Q21 -> 790823.9 | R20: =TRIBUTOS!R21 -> 790823.9 | S20: =TRIBUTOS!S21 -> 790823.9 | T20: =TRIBUTOS!T21 -> 790823.9 | U20: =TRIBUTOS!U21 -> 790823.9 | V20: =TRIBUTOS!V21 -> 790823.9 | W20: =TRIBUTOS!W21 -> 790823.9 | X20: =TRIBUTOS!X21 -> 790823.9 | Y20: =TRIBUTOS!Y21 -> 790823.9 | Z20: =TRIBUTOS!Z21 -> 790823.9 | AA20: =TRIBUTOS!AA21 -> 790823.9 | AB20: =TRIBUTOS!AB21 -> 790823.9 | AC20: =TRIBUTOS!AC21 -> 790823.9 | AD20: =TRIBUTOS!AD21 -> 830760.2649 | AE20: =TRIBUTOS!AE21 -> 830760.2649 | AF20: =TRIBUTOS!AF21 -> 830760.2649 | AG20: =TRIBUTOS!AG21 -> 830760.2649 | AH20: =TRIBUTOS!AH21 -> 830760.2649 | AI20: =TRIBUTOS!AI21 -> 830760.2649 | AJ20: =TRIBUTOS!AJ21 -> 830760.2649 | AK20: =TRIBUTOS!AK21 -> 848666.1968 | AL20: =TRIBUTOS!AL21 -> 848666.1968 | AM20: =TRIBUTOS!AM21 -> 848666.1968 | AN20: =TRIBUTOS!AN21 -> 848666.1968 | AO20: =TRIBUTOS!AO21 -> 848666.1968 | AP20: =TRIBUTOS!AP21 -> 848666.1968 | AQ20: =TRIBUTOS!AQ21 -> 848666.1968 | AR20: =TRIBUTOS!AR21 -> 900545.2707 | AS20: =TRIBUTOS!AS21 -> 900545.2707 | AT20: =TRIBUTOS!AT21 -> 900545.2707 | AU20: =TRIBUTOS!AU21 -> 900545.2707 | AV20: =TRIBUTOS!AV21 -> 900545.2707 | AW20: =TRIBUTOS!AW21 -> 939233.1741 | AX20: =TRIBUTOS!AX21 -> 939233.1741 | AY20: =TRIBUTOS!AY21 -> 939233.1741 | AZ20: =TRIBUTOS!AZ21 -> 982059.6741 | BA20: =TRIBUTOS!BA21 -> 982059.6741 | BB20: =TRIBUTOS!BB21 -> 982059.6741 | BC20: =TRIBUTOS!BC21 -> 982059.6741 | BD20: =TRIBUTOS!BD21 -> 982059.6741 | BE20: =TRIBUTOS!BE21 -> 982059.6741 | BF20: =TRIBUTOS!BF21 -> 855985.0044 | BG20: =TRIBUTOS!BG21 -> 855985.0044 | BH20: =TRIBUTOS!BH21 -> 855985.0044 | BI20: =TRIBUTOS!BI21 -> 855985.0044 | BJ20: =TRIBUTOS!BJ21 -> 855985.0044 | BK20: =TRIBUTOS!BK21 -> 855985.0044 | BL20: =TRIBUTOS!BL21 -> 848010.4156 | BM20: =TRIBUTOS!BM21 -> 848010.4156 | BN20: =TRIBUTOS!BN21 -> 848010.4156 | BO20: =TRIBUTOS!BO21 -> 848010.4156 | BP20: =TRIBUTOS!BP21 -> 848010.4156 | BQ20: =TRIBUTOS!BQ21 -> 848010.4156 | BR20: =TRIBUTOS!BR21 -> 784384.7259 | BS20: =TRIBUTOS!BS21 -> 784384.7259 | BT20: =TRIBUTOS!BT21 -> 784384.7259 | BU20: =TRIBUTOS!BU21 -> 784384.7259 | BV20: =TRIBUTOS!BV21 -> 784384.7259 | BW20: =TRIBUTOS!BW21 -> 784384.7259 | BX20: =TRIBUTOS!BX21 -> 784384.7259 | BY20: =TRIBUTOS!BY21 -> 784384.7259 | BZ20: =TRIBUTOS!BZ21 -> 784384.7259 | CA20: =TRIBUTOS!CA21 -> 784384.7259 | CB20: =TRIBUTOS!CB21 -> 784384.7259 | CC20: =TRIBUTOS!CC21 -> 784384.7259 | CD20: =TRIBUTOS!CD21 -> 744994.5309 | CE20: =TRIBUTOS!CE21 -> 744994.5309 | CF20: =TRIBUTOS!CF21 -> 744994.5309 | CG20: =TRIBUTOS!CG21 -> 744994.5309 | CH20: =TRIBUTOS!CH21 -> 744994.5309 | CI20: =TRIBUTOS!CI21 -> 744994.5309 | CJ20: =TRIBUTOS!CJ21 -> 744994.5309 | CK20: =TRIBUTOS!CK21 -> 744994.5309 | CL20: =TRIBUTOS!CL21 -> 744994.5309 | CM20: =TRIBUTOS!CM21 -> 744994.5309 | CN20: =TRIBUTOS!CN21 -> 744994.5309 | CO20: =TRIBUTOS!CO21 -> 744994.5309 | CP20: =TRIBUTOS!CP21 -> 705604.3359 | CQ20: =TRIBUTOS!CQ21 -> 705604.3359 | CR20: =TRIBUTOS!CR21 -> 705604.3359 | CS20: =TRIBUTOS!CS21 -> 705604.3359 | CT20: =TRIBUTOS!CT21 -> 705604.3359 | CU20: =TRIBUTOS!CU21 -> 705604.3359 | CV20: =TRIBUTOS!CV21 -> 705604.3359 | CW20: =TRIBUTOS!CW21 -> 705604.3359 | CX20: =TRIBUTOS!CX21 -> 705604.3359 | CY20: =TRIBUTOS!CY21 -> 705604.3359 | CZ20: =TRIBUTOS!CZ21 -> 705604.3359 | DA20: =TRIBUTOS!DA21 -> 705604.3359 | DB20: =TRIBUTOS!DB21 -> 666214.1409 | DC20: =TRIBUTOS!DC21 -> 666214.1409 | DD20: =TRIBUTOS!DD21 -> 666214.1409 | DE20: =TRIBUTOS!DE21 -> 666214.1409 | DF20: =TRIBUTOS!DF21 -> 666214.1409 | DG20: =TRIBUTOS!DG21 -> 666214.1409 | DH20: =TRIBUTOS!DH21 -> 666214.1409 | DI20: =TRIBUTOS!DI21 -> 666214.1409 | DJ20: =TRIBUTOS!DJ21 -> 666214.1409 | DK20: =TRIBUTOS!DK21 -> 666214.1409 | DL20: =TRIBUTOS!DL21 -> 666214.1409 | DM20: =TRIBUTOS!DM21 -> 666214.1409 | DN20: =TRIBUTOS!DN21 -> 626823.9459 | DO20: =TRIBUTOS!DO21 -> 626823.9459 | DP20: =TRIBUTOS!DP21 -> 626823.9459 | DQ20: =TRIBUTOS!DQ21 -> 626823.9459 | DR20: =TRIBUTOS!DR21 -> 626823.9459 | DS20: =TRIBUTOS!DS21 -> 626823.9459 | DT20: =TRIBUTOS!DT21 -> 626823.9459 | DU20: =TRIBUTOS!DU21 -> 626823.9459 | DV20: =TRIBUTOS!DV21 -> 626823.9459 | DW20: =TRIBUTOS!DW21 -> 626823.9459 | DX20: =TRIBUTOS!DX21 -> 626823.9459 | DY20: =TRIBUTOS!DY21 -> 626823.9459 | DZ20: =TRIBUTOS!DZ21 -> 587433.7509 | EA20: =TRIBUTOS!EA21 -> 587433.7509 | EB20: =TRIBUTOS!EB21 -> 587433.7509 | EC20: =TRIBUTOS!EC21 -> 587433.7509 | ED20: =TRIBUTOS!ED21 -> 587433.7509 | EE20: =TRIBUTOS!EE21 -> 587433.7509 | EF20: =TRIBUTOS!EF21 -> 587433.7509 | EG20: =TRIBUTOS!EG21 -> 587433.7509 | EH20: =TRIBUTOS!EH21 -> 587433.7509 | EI20: =TRIBUTOS!EI21 -> 587433.7509 | EJ20: =TRIBUTOS!EJ21 -> 587433.7509 | EK20: =TRIBUTOS!EK21 -> 587433.7509 | EL20: =TRIBUTOS!EL21 -> 548043.5559 | EM20: =TRIBUTOS!EM21 -> 548043.5559 | EN20: =TRIBUTOS!EN21 -> 548043.5559 | EO20: =TRIBUTOS!EO21 -> 548043.5559 | EP20: =TRIBUTOS!EP21 -> 548043.5559 | EQ20: =TRIBUTOS!EQ21 -> 548043.5559 | ER20: =TRIBUTOS!ER21 -> 548043.5559 | ES20: =TRIBUTOS!ES21 -> 548043.5559 | ET20: =TRIBUTOS!ET21 -> 548043.5559 | EU20: =TRIBUTOS!EU21 -> 548043.5559 | EV20: =TRIBUTOS!EV21 -> 548043.5559 | EW20: =TRIBUTOS!EW21 -> 548043.5559 | EX20: =TRIBUTOS!EX21 -> 508653.3609 | EY20: =TRIBUTOS!EY21 -> 508653.3609 | EZ20: =TRIBUTOS!EZ21 -> 508653.3609 | FA20: =TRIBUTOS!FA21 -> 508653.3609 | FB20: =TRIBUTOS!FB21 -> 508653.3609 | FC20: =TRIBUTOS!FC21 -> 508653.3609 | FD20: =TRIBUTOS!FD21 -> 508653.3609 | FE20: =TRIBUTOS!FE21 -> 508653.3609 | FF20: =TRIBUTOS!FF21 -> 508653.3609 | FG20: =TRIBUTOS!FG21 -> 508653.3609 | FH20: =TRIBUTOS!FH21 -> 508653.3609 | FI20: =TRIBUTOS!FI21 -> 508653.3609 | FJ20: =TRIBUTOS!FJ21 -> 469263.1659 | FK20: =TRIBUTOS!FK21 -> 469263.1659 | FL20: =TRIBUTOS!FL21 -> 469263.1659 | FM20: =TRIBUTOS!FM21 -> 469263.1659 | FN20: =TRIBUTOS!FN21 -> 469263.1659 | FO20: =TRIBUTOS!FO21 -> 469263.1659 | FP20: =TRIBUTOS!FP21 -> 469263.1659 | FQ20: =TRIBUTOS!FQ21 -> 469263.1659 | FR20: =TRIBUTOS!FR21 -> 469263.1659 | FS20: =TRIBUTOS!FS21 -> 469263.1659 | FT20: =TRIBUTOS!FT21 -> 469263.1659 | FU20: =TRIBUTOS!FU21 -> 469263.1659 | FV20: =TRIBUTOS!FV21 -> 429872.9709 | FW20: =TRIBUTOS!FW21 -> 429872.9709 | FX20: =TRIBUTOS!FX21 -> 429872.9709 | FY20: =TRIBUTOS!FY21 -> 429872.9709 | FZ20: =TRIBUTOS!FZ21 -> 429872.9709 | GA20: =TRIBUTOS!GA21 -> 429872.9709 | GB20: =TRIBUTOS!GB21 -> 429872.9709 | GC20: =TRIBUTOS!GC21 -> 429872.9709 | GD20: =TRIBUTOS!GD21 -> 429872.9709 | GE20: =TRIBUTOS!GE21 -> 429872.9709 | GF20: =TRIBUTOS!GF21 -> 429872.9709 | GG20: =TRIBUTOS!GG21 -> 429872.9709 | GH20: =TRIBUTOS!GH21 -> 390482.7759 | GI20: =TRIBUTOS!GI21 -> 390482.7759 | GJ20: =TRIBUTOS!GJ21 -> 390482.7759 | GK20: =TRIBUTOS!GK21 -> 390482.7759 | GL20: =TRIBUTOS!GL21 -> 390482.7759 | GM20: =TRIBUTOS!GM21 -> 390482.7759 | GN20: =TRIBUTOS!GN21 -> 390482.7759 | GO20: =TRIBUTOS!GO21 -> 390482.7759 | GP20: =TRIBUTOS!GP21 -> 390482.7759 | GQ20: =TRIBUTOS!GQ21 -> 390482.7759 | GR20: =TRIBUTOS!GR21 -> 390482.7759 | GS20: =TRIBUTOS!GS21 -> 390482.7759 | GT20: =TRIBUTOS!GT21 -> 351092.5809 | GU20: =TRIBUTOS!GU21 -> 351092.5809 | GV20: =TRIBUTOS!GV21 -> 351092.5809 | GW20: =TRIBUTOS!GW21 -> 351092.5809 | GX20: =TRIBUTOS!GX21 -> 351092.5809 | GY20: =TRIBUTOS!GY21 -> 351092.5809 | GZ20: =TRIBUTOS!GZ21 -> 351092.5809 | HA20: =TRIBUTOS!HA21 -> 351092.5809 | HB20: =TRIBUTOS!HB21 -> 351092.5809 | HC20: =TRIBUTOS!HC21 -> 351092.5809 | HD20: =TRIBUTOS!HD21 -> 351092.5809 | HE20: =TRIBUTOS!HE21 -> 351092.5809 | HF20: =TRIBUTOS!HF21 -> 311702.3859 | HG20: =TRIBUTOS!HG21 -> 311702.3859 | HH20: =TRIBUTOS!HH21 -> 311702.3859 | HI20: =TRIBUTOS!HI21 -> 311702.3859 | HJ20: =TRIBUTOS!HJ21 -> 311702.3859 | HK20: =TRIBUTOS!HK21 -> 311702.3859 | HL20: =TRIBUTOS!HL21 -> 311702.3859 | HM20: =TRIBUTOS!HM21 -> 311702.3859 | HN20: =TRIBUTOS!HN21 -> 311702.3859 | HO20: =TRIBUTOS!HO21 -> 311702.3859 | HP20: =TRIBUTOS!HP21 -> 311702.3859 | HQ20: =TRIBUTOS!HQ21 -> 311702.3859 | HR20: =TRIBUTOS!HR21 -> 272312.1909 | HS20: =TRIBUTOS!HS21 -> 272312.1909 | HT20: =TRIBUTOS!HT21 -> 272312.1909 | HU20: =TRIBUTOS!HU21 -> 272312.1909 | HV20: =TRIBUTOS!HV21 -> 272312.1909 | HW20: =TRIBUTOS!HW21 -> 272312.1909 | HX20: =TRIBUTOS!HX21 -> 272312.1909 | HY20: =TRIBUTOS!HY21 -> 272312.1909 | HZ20: =TRIBUTOS!HZ21 -> 272312.1909 | IA20: =TRIBUTOS!IA21 -> 272312.1909 | IB20: =TRIBUTOS!IB21 -> 272312.1909 | IC20: =TRIBUTOS!IC21 -> 272312.1909 | ID20: =TRIBUTOS!ID21 -> 232921.9959 | IE20: =TRIBUTOS!IE21 -> 232921.9959 | IF20: =TRIBUTOS!IF21 -> 232921.9959 | IG20: =TRIBUTOS!IG21 -> 232921.9959 | IH20: =TRIBUTOS!IH21 -> 232921.9959 | II20: =TRIBUTOS!II21 -> 232921.9959 | IJ20: =TRIBUTOS!IJ21 -> 232921.9959 | IK20: =TRIBUTOS!IK21 -> 232921.9959 | IL20: =TRIBUTOS!IL21 -> 232921.9959 | IM20: =TRIBUTOS!IM21 -> 232921.9959 | IN20: =TRIBUTOS!IN21 -> 232921.9959 | IO20: =TRIBUTOS!IO21 -> 232921.9959 | IP20: =TRIBUTOS!IP21 -> 193531.8009 | IQ20: =TRIBUTOS!IQ21 -> 193531.8009 | IR20: =TRIBUTOS!IR21 -> 193531.8009 | IS20: =TRIBUTOS!IS21 -> 193531.8009 | IT20: =TRIBUTOS!IT21 -> 193531.8009 | IU20: =TRIBUTOS!IU21 -> 193531.8009 | IV20: =TRIBUTOS!IV21 -> 193531.8009 | IW20: =TRIBUTOS!IW21 -> 193531.8009 | IX20: =TRIBUTOS!IX21 -> 193531.8009 | IY20: =TRIBUTOS!IY21 -> 193531.8009 | IZ20: =TRIBUTOS!IZ21 -> 193531.8009 | JA20: =TRIBUTOS!JA21 -> 193531.8009 | JB20: =TRIBUTOS!JB21 -> 154141.6059 | JC20: =TRIBUTOS!JC21 -> 154141.6059 | JD20: =TRIBUTOS!JD21 -> 154141.6059 | JE20: =TRIBUTOS!JE21 -> 154141.6059 | JF20: =TRIBUTOS!JF21 -> 154141.6059 | JG20: =TRIBUTOS!JG21 -> 154141.6059 | JH20: =TRIBUTOS!JH21 -> 154141.6059 | JI20: =TRIBUTOS!JI21 -> 154141.6059 | JJ20: =TRIBUTOS!JJ21 -> 154141.6059 | JK20: =TRIBUTOS!JK21 -> 154141.6059 | JL20: =TRIBUTOS!JL21 -> 154141.6059 | JM20: =TRIBUTOS!JM21 -> 154141.6059 | JN20: =TRIBUTOS!JN21 -> 114751.4109 | JO20: =TRIBUTOS!JO21 -> 114751.4109 | JP20: =TRIBUTOS!JP21 -> 114751.4109 | JQ20: =TRIBUTOS!JQ21 -> 114751.4109 | JR20: =TRIBUTOS!JR21 -> 114751.4109 | JS20: =TRIBUTOS!JS21 -> 114751.4109 | JT20: =TRIBUTOS!JT21 -> 114751.4109 | JU20: =TRIBUTOS!JU21 -> 114751.4109 | JV20: =TRIBUTOS!JV21 -> 114751.4109 | JW20: =TRIBUTOS!JW21 -> 114751.4109 | JX20: =TRIBUTOS!JX21 -> 114751.4109 | JY20: =TRIBUTOS!JY21 -> 114751.4109 | JZ20: =TRIBUTOS!JZ21 -> 75361.21586 | KA20: =TRIBUTOS!KA21 -> 75361.21586 | KB20: =TRIBUTOS!KB21 -> 75361.21586 | KC20: =TRIBUTOS!KC21 -> 75361.21586 | KD20: =TRIBUTOS!KD21 -> 75361.21586 | KE20: =TRIBUTOS!KE21 -> 75361.21586 | KF20: =TRIBUTOS!KF21 -> 75361.21586 | KG20: =TRIBUTOS!KG21 -> 75361.21586 | KH20: =TRIBUTOS!KH21 -> 75361.21586 | KI20: =TRIBUTOS!KI21 -> 75361.21586 | KJ20: =TRIBUTOS!KJ21 -> 75361.21586 | KK20: =TRIBUTOS!KK21 -> 75361.21586 | KL20: =TRIBUTOS!KL21 -> 46931.3 | KM20: =TRIBUTOS!KM21 -> 46931.3 | KN20: =TRIBUTOS!KN21 -> 46931.3 | KO20: =TRIBUTOS!KO21 -> 46931.3 | KP20: =TRIBUTOS!KP21 -> 46931.3 | KQ20: =TRIBUTOS!KQ21 -> 46931.3 | KR20: =TRIBUTOS!KR21 -> 46931.3 | KS20: =TRIBUTOS!KS21 -> 46931.3 | KT20: =TRIBUTOS!KT21 -> 46931.3 | KU20: =TRIBUTOS!KU21 -> 46931.3 | KV20: =TRIBUTOS!KV21 -> 46931.3 | KW20: =TRIBUTOS!KW21 -> 46931.3 | KX20: =TRIBUTOS!KX21 -> 46931.3 | KY20: =TRIBUTOS!KY21 -> 46931.3 | KZ20: =TRIBUTOS!KZ21 -> 46931.3 | LA20: =TRIBUTOS!LA21 -> 46931.3 | LB20: =TRIBUTOS!LB21 -> 46931.3 | LC20: =TRIBUTOS!LC21 -> 46931.3 | LD20: =TRIBUTOS!LD21 -> 46931.3 | LE20: =TRIBUTOS!LE21 -> 46931.3 | LF20: =TRIBUTOS!LF21 -> 46931.3 | LG20: =TRIBUTOS!LG21 -> 46931.3 | LH20: =TRIBUTOS!LH21 -> 46931.3 | LI20: =TRIBUTOS!LI21 -> 46931.3 | LJ20: =TRIBUTOS!LJ21 -> 46931.3 | LK20: =TRIBUTOS!LK21 -> 46931.3 | LL20: =TRIBUTOS!LL21 -> 46931.3 | LM20: =TRIBUTOS!LM21 -> 46931.3 | LN20: =TRIBUTOS!LN21 -> 46931.3 | LO20: =TRIBUTOS!LO21 -> 46931.3 | LP20: =TRIBUTOS!LP21 -> 46931.3 | LQ20: =TRIBUTOS!LQ21 -> 46931.3 | LR20: =TRIBUTOS!LR21 -> 46931.3 | LS20: =TRIBUTOS!LS21 -> 46931.3 | LT20: =TRIBUTOS!LT21 -> 46931.3 | LU20: =TRIBUTOS!LU21 -> 46931.3 | LV20: =TRIBUTOS!LV21 -> 46931.3 | LW20: =TRIBUTOS!LW21 -> 46931.3 | LX20: =TRIBUTOS!LX21 -> 46931.3 | LY20: =TRIBUTOS!LY21 -> 46931.3 | LZ20: =TRIBUTOS!LZ21 -> 46931.3 | MA20: =TRIBUTOS!MA21 -> 46931.3 | MB20: =TRIBUTOS!MB21 -> 46931.3 | MC20: =TRIBUTOS!MC21 -> 46931.3 | MD20: =TRIBUTOS!MD21 -> 46931.3 | ME20: =TRIBUTOS!ME21 -> 46931.3 | MF20: =TRIBUTOS!MF21 -> 46931.3 | MG20: =TRIBUTOS!MG21 -> 46931.3 | MH20: =TRIBUTOS!MH21 -> 46931.3 | MI20: =TRIBUTOS!MI21 -> 46931.3 | MJ20: =TRIBUTOS!MJ21 -> 46931.3 | MK20: =TRIBUTOS!MK21 -> 46931.3 | ML20: =TRIBUTOS!ML21 -> 46931.3 | MM20: =TRIBUTOS!MM21 -> 46931.3 | MN20: =TRIBUTOS!MN21 -> 46931.3 | MO20: =TRIBUTOS!MO21 -> 46931.3 | MP20: =TRIBUTOS!MP21 -> 46931.3 | MQ20: =TRIBUTOS!MQ21 -> 46931.3 | MR20: =TRIBUTOS!MR21 -> 46931.3 | MS20: =TRIBUTOS!MS21 -> 46931.3 | MT20: =TRIBUTOS!MT21 -> 46931.3 | MU20: =TRIBUTOS!MU21 -> 46931.3 | MV20: =TRIBUTOS!MV21 -> 46931.3 | MW20: =TRIBUTOS!MW21 -> 46931.3 | MX20: =TRIBUTOS!MX21 -> 46931.3 | MY20: =TRIBUTOS!MY21 -> 46931.3 | MZ20: =TRIBUTOS!MZ21 -> 46931.3 | NA20: =TRIBUTOS!NA21 -> 46931.3 | NB20: =TRIBUTOS!NB21 -> 46931.3 | NC20: =TRIBUTOS!NC21 -> 46931.3 | ND20: =TRIBUTOS!ND21 -> 46931.3 | NE20: =TRIBUTOS!NE21 -> 46931.3 | NF20: =TRIBUTOS!NF21 -> 46931.3 | NG20: =TRIBUTOS!NG21 -> 46931.3 | NH20: =TRIBUTOS!NH21 -> 46931.3 | NI20: =TRIBUTOS!NI21 -> 46931.3 | NJ20: =TRIBUTOS!NJ21 -> 46931.3 | NK20: =TRIBUTOS!NK21 -> 46931.3 | NL20: =TRIBUTOS!NL21 -> 46931.3 | NM20: =TRIBUTOS!NM21 -> 46931.3 | NN20: =TRIBUTOS!NN21 -> 46931.3 | NO20: =TRIBUTOS!NO21 -> 46931.3 | NP20: =TRIBUTOS!NP21 -> 46931.3 | NQ20: =TRIBUTOS!NQ21 -> 46931.3 | NR20: =TRIBUTOS!NR21 -> 46931.3 | NS20: =TRIBUTOS!NS21 -> 46931.3 | NT20: =TRIBUTOS!NT21 -> 46931.3 | NU20: =TRIBUTOS!NU21 -> 46931.3 | NV20: =TRIBUTOS!NV21 -> 46931.3 | NW20: =TRIBUTOS!NW21 -> 46931.3 | NX20: =TRIBUTOS!NX21 -> 46931.3 | NY20: =TRIBUTOS!NY21 -> 46931.3 | NZ20: =TRIBUTOS!NZ21 -> 46931.3 | OA20: =TRIBUTOS!OA21 -> 46931.3 | OB20: =TRIBUTOS!OB21 -> 46931.3 | OC20: =TRIBUTOS!OC21 -> 46931.3 | OD20: =TRIBUTOS!OD21 -> 46931.3 | OE20: =TRIBUTOS!OE21 -> 46931.3 | OF20: =TRIBUTOS!OF21 -> 46931.3 | OG20: =TRIBUTOS!OG21 -> 46931.3 | OH20: =TRIBUTOS!OH21 -> 46931.3 | OI20: =TRIBUTOS!OI21 -> 46931.3 | OJ20: =TRIBUTOS!OJ21 -> 46931.3 | OK20: =TRIBUTOS!OK21 -> 46931.3 | OL20: =TRIBUTOS!OL21 -> 46931.3 | OM20: =TRIBUTOS!OM21 -> 46931.3 | ON20: =TRIBUTOS!ON21 -> 46931.3 | OO20: =TRIBUTOS!OO21 -> 46931.3 | OP20: =TRIBUTOS!OP21 -> 46931.3 | OQ20: =TRIBUTOS!OQ21 -> 46931.3 | OR20: =TRIBUTOS!OR21 -> 46931.3 | OS20: =TRIBUTOS!OS21 -> 46931.3 | OT20: =TRIBUTOS!OT21 -> 46931.3 | OU20: =TRIBUTOS!OU21 -> 46931.3 | OV20: =TRIBUTOS!OV21 -> 46931.3 | OW20: =TRIBUTOS!OW21 -> 46931.3 | OX20: =TRIBUTOS!OX21 -> 46931.3 | OY20: =TRIBUTOS!OY21 -> 46931.3 | OZ20: =TRIBUTOS!OZ21 -> 46931.3 | PA20: =TRIBUTOS!PA21 -> 46931.3 | PB20: =TRIBUTOS!PB21 -> 46931.3 | PC20: =TRIBUTOS!PC21 -> 46931.3 | PD20: =TRIBUTOS!PD21 -> 46931.3 | PE20: =TRIBUTOS!PE21 -> 46931.3 | PF20: =TRIBUTOS!PF21 -> 46931.3 | PG20: =TRIBUTOS!PG21 -> 46931.3 | PH20: =TRIBUTOS!PH21 -> 46931.3 | PI20: =TRIBUTOS!PI21 -> 46931.3 | PJ20: =TRIBUTOS!PJ21 -> 46931.3 | PK20: =TRIBUTOS!PK21 -> 46931.3 | PL20: =TRIBUTOS!PL21 -> 46931.3 | PM20: =TRIBUTOS!PM21 -> 46931.3 | PN20: 0
C21: PIS (Débito - Crédito) | D21: 204363474.2 | E21: =NPV(PainelControle!$D$8,$K21:$PM21)+J21 -> 48169652.99 | J21: =TRIBUTOS!J22 -> 223536.8291 | K21: =TRIBUTOS!K22 -> 233679.8143 | L21: =TRIBUTOS!L22 -> 233623.8195 | M21: =TRIBUTOS!M22 -> 233567.8247 | N21: =TRIBUTOS!N22 -> 233511.8299 | O21: =TRIBUTOS!O22 -> 233455.8351 | P21: =TRIBUTOS!P22 -> 233399.8404 | Q21: =TRIBUTOS!Q22 -> 233343.8456 | R21: =TRIBUTOS!R22 -> 233287.8508 | S21: =TRIBUTOS!S22 -> 233231.856 | T21: =TRIBUTOS!T22 -> 232931.8291 | U21: =TRIBUTOS!U22 -> 232562.4434 | V21: =TRIBUTOS!V22 -> 221988.615 | W21: =TRIBUTOS!W22 -> 231728.4341 | X21: =TRIBUTOS!X22 -> 231205.8649 | Y21: =TRIBUTOS!Y22 -> 230564.0105 | Z21: =TRIBUTOS!Z22 -> 229858.1943 | AA21: =TRIBUTOS!AA22 -> 228932.8938 | AB21: =TRIBUTOS!AB22 -> 226959.4769 | AC21: =TRIBUTOS!AC22 -> 226376.7197 | AD21: =TRIBUTOS!AD22 -> 240292.7516 | AE21: =TRIBUTOS!AE22 -> 239401.8421 | AF21: =TRIBUTOS!AF22 -> 238400.0268 | AG21: =TRIBUTOS!AG22 -> 237028.6476 | AH21: =TRIBUTOS!AH22 -> 225171.5171 | AI21: =TRIBUTOS!AI22 -> 232429.5788 | AJ21: =TRIBUTOS!AJ22 -> 230399.204 | AK21: =TRIBUTOS!AK22 -> 235621.7342 | AL21: =TRIBUTOS!AL22 -> 233069.9745 | AM21: =TRIBUTOS!AM22 -> 230044.3582 | AN21: =TRIBUTOS!AN22 -> 246108.9396 | AO21: =TRIBUTOS!AO22 -> 242698.2355 | AP21: =TRIBUTOS!AP22 -> 236394.9547 | AQ21: =TRIBUTOS!AQ22 -> 233076.2737 | AR21: =TRIBUTOS!AR22 -> 250116.2001 | AS21: =TRIBUTOS!AS22 -> 246824.4014 | AT21: =TRIBUTOS!AT22 -> 319987.6471 | AU21: =TRIBUTOS!AU22 -> 323401.9907 | AV21: =TRIBUTOS!AV22 -> 320746.376 | AW21: =TRIBUTOS!AW22 -> 331874.0091 | AX21: =TRIBUTOS!AX22 -> 329835.348 | AY21: =TRIBUTOS!AY22 -> 328789.3232 | AZ21: =TRIBUTOS!AZ22 -> 543813.7298 | BA21: =TRIBUTOS!BA22 -> 542777.0248 | BB21: =TRIBUTOS!BB22 -> 541807.036 | BC21: =TRIBUTOS!BC22 -> 541002.2887 | BD21: =TRIBUTOS!BD22 -> 540265.2346 | BE21: =TRIBUTOS!BE22 -> 539843.2088 | BF21: =TRIBUTOS!BF22 -> 555146.4054 | BG21: =TRIBUTOS!BG22 -> 563660.6191 | BH21: =TRIBUTOS!BH22 -> 563161.3217 | BI21: =TRIBUTOS!BI22 -> 562623.6462 | BJ21: =TRIBUTOS!BJ22 -> 562047.3841 | BK21: =TRIBUTOS!BK22 -> 561600.16 | BL21: =TRIBUTOS!BL22 -> 575852.431 | BM21: =TRIBUTOS!BM22 -> 575458.9656 | BN21: =TRIBUTOS!BN22 -> 575120.7831 | BO21: =TRIBUTOS!BO22 -> 574838.188 | BP21: =TRIBUTOS!BP22 -> 574611.4873 | BQ21: =TRIBUTOS!BQ22 -> 574611.4873 | BR21: =TRIBUTOS!BR22 -> 599518.9111 | BS21: =TRIBUTOS!BS22 -> 608339.8111 | BT21: =TRIBUTOS!BT22 -> 608339.8111 | BU21: =TRIBUTOS!BU22 -> 608339.8111 | BV21: =TRIBUTOS!BV22 -> 608339.8111 | BW21: =TRIBUTOS!BW22 -> 608339.8111 | BX21: =TRIBUTOS!BX22 -> 608339.8111 | BY21: =TRIBUTOS!BY22 -> 608339.8111 | BZ21: =TRIBUTOS!BZ22 -> 608339.8111 | CA21: =TRIBUTOS!CA22 -> 608339.8111 | CB21: =TRIBUTOS!CB22 -> 608460.1381 | CC21: =TRIBUTOS!CC22 -> 608597.6546 | CD21: =TRIBUTOS!CD22 -> 586932.6963 | CE21: =TRIBUTOS!CE22 -> 595942.6815 | CF21: =TRIBUTOS!CF22 -> 596148.9562 | CG21: =TRIBUTOS!CG22 -> 596389.6101 | CH21: =TRIBUTOS!CH22 -> 596647.4535 | CI21: =TRIBUTOS!CI22 -> 596888.1074 | CJ21: =TRIBUTOS!CJ22 -> 598209.2071 | CK21: =TRIBUTOS!CK22 -> 598209.2071 | CL21: =TRIBUTOS!CL22 -> 598209.2071 | CM21: =TRIBUTOS!CM22 -> 598209.2071 | CN21: =TRIBUTOS!CN22 -> 598209.2071 | CO21: =TRIBUTOS!CO22 -> 598209.2071 | CP21: =TRIBUTOS!CP22 -> 576389.5427 | CQ21: =TRIBUTOS!CQ22 -> 586260.4734 | CR21: =TRIBUTOS!CR22 -> 586260.4734 | CS21: =TRIBUTOS!CS22 -> 586260.4734 | CT21: =TRIBUTOS!CT22 -> 586260.4734 | CU21: =TRIBUTOS!CU22 -> 586260.4734 | CV21: =TRIBUTOS!CV22 -> 586260.4734 | CW21: =TRIBUTOS!CW22 -> 586260.4734 | CX21: =TRIBUTOS!CX22 -> 588983.8958 | CY21: =TRIBUTOS!CY22 -> 588983.8958 | CZ21: =TRIBUTOS!CZ22 -> 588983.8958 | DA21: =TRIBUTOS!DA22 -> 588983.8958 | DB21: =TRIBUTOS!DB22 -> 567164.2314 | DC21: =TRIBUTOS!DC22 -> 578965.1695 | DD21: =TRIBUTOS!DD22 -> 578965.1695 | DE21: =TRIBUTOS!DE22 -> 578965.1695 | DF21: =TRIBUTOS!DF22 -> 578965.1695 | DG21: =TRIBUTOS!DG22 -> 578965.1695 | DH21: =TRIBUTOS!DH22 -> 578965.1695 | DI21: =TRIBUTOS!DI22 -> 578965.1695 | DJ21: =TRIBUTOS!DJ22 -> 578965.1695 | DK21: =TRIBUTOS!DK22 -> 578965.1695 | DL21: =TRIBUTOS!DL22 -> 578965.1695 | DM21: =TRIBUTOS!DM22 -> 578965.1695 | DN21: =TRIBUTOS!DN22 -> 557145.5051 | DO21: =TRIBUTOS!DO22 -> 565966.4051 | DP21: =TRIBUTOS!DP22 -> 565966.4051 | DQ21: =TRIBUTOS!DQ22 -> 565966.4051 | DR21: =TRIBUTOS!DR22 -> 565966.4051 | DS21: =TRIBUTOS!DS22 -> 565966.4051 | DT21: =TRIBUTOS!DT22 -> 565966.4051 | DU21: =TRIBUTOS!DU22 -> 565966.4051 | DV21: =TRIBUTOS!DV22 -> 565966.4051 | DW21: =TRIBUTOS!DW22 -> 565966.4051 | DX21: =TRIBUTOS!DX22 -> 565966.4051 | DY21: =TRIBUTOS!DY22 -> 565966.4051 | DZ21: =TRIBUTOS!DZ22 -> 544146.7408 | EA21: =TRIBUTOS!EA22 -> 552967.6408 | EB21: =TRIBUTOS!EB22 -> 552967.6408 | EC21: =TRIBUTOS!EC22 -> 552967.6408 | ED21: =TRIBUTOS!ED22 -> 552967.6408 | EE21: =TRIBUTOS!EE22 -> 552967.6408 | EF21: =TRIBUTOS!EF22 -> 552967.6408 | EG21: =TRIBUTOS!EG22 -> 552967.6408 | EH21: =TRIBUTOS!EH22 -> 552967.6408 | EI21: =TRIBUTOS!EI22 -> 552967.6408 | EJ21: =TRIBUTOS!EJ22 -> 552967.6408 | EK21: =TRIBUTOS!EK22 -> 552967.6408 | EL21: =TRIBUTOS!EL22 -> 531147.9764 | EM21: =TRIBUTOS!EM22 -> 539968.8764 | EN21: =TRIBUTOS!EN22 -> 539968.8764 | EO21: =TRIBUTOS!EO22 -> 539968.8764 | EP21: =TRIBUTOS!EP22 -> 539968.8764 | EQ21: =TRIBUTOS!EQ22 -> 539968.8764 | ER21: =TRIBUTOS!ER22 -> 539968.8764 | ES21: =TRIBUTOS!ES22 -> 539968.8764 | ET21: =TRIBUTOS!ET22 -> 539968.8764 | EU21: =TRIBUTOS!EU22 -> 539968.8764 | EV21: =TRIBUTOS!EV22 -> 539968.8764 | EW21: =TRIBUTOS!EW22 -> 539968.8764 | EX21: =TRIBUTOS!EX22 -> 518149.2121 | EY21: =TRIBUTOS!EY22 -> 526970.1121 | EZ21: =TRIBUTOS!EZ22 -> 526970.1121 | FA21: =TRIBUTOS!FA22 -> 526970.1121 | FB21: =TRIBUTOS!FB22 -> 526970.1121 | FC21: =TRIBUTOS!FC22 -> 526970.1121 | FD21: =TRIBUTOS!FD22 -> 526970.1121 | FE21: =TRIBUTOS!FE22 -> 526970.1121 | FF21: =TRIBUTOS!FF22 -> 526970.1121 | FG21: =TRIBUTOS!FG22 -> 526970.1121 | FH21: =TRIBUTOS!FH22 -> 526970.1121 | FI21: =TRIBUTOS!FI22 -> 526970.1121 | FJ21: =TRIBUTOS!FJ22 -> 505150.4477 | FK21: =TRIBUTOS!FK22 -> 513971.3477 | FL21: =TRIBUTOS!FL22 -> 513971.3477 | FM21: =TRIBUTOS!FM22 -> 513971.3477 | FN21: =TRIBUTOS!FN22 -> 513971.3477 | FO21: =TRIBUTOS!FO22 -> 513971.3477 | FP21: =TRIBUTOS!FP22 -> 513971.3477 | FQ21: =TRIBUTOS!FQ22 -> 513971.3477 | FR21: =TRIBUTOS!FR22 -> 513971.3477 | FS21: =TRIBUTOS!FS22 -> 513971.3477 | FT21: =TRIBUTOS!FT22 -> 513971.3477 | FU21: =TRIBUTOS!FU22 -> 513971.3477 | FV21: =TRIBUTOS!FV22 -> 492151.6834 | FW21: =TRIBUTOS!FW22 -> 500972.5834 | FX21: =TRIBUTOS!FX22 -> 500972.5834 | FY21: =TRIBUTOS!FY22 -> 500972.5834 | FZ21: =TRIBUTOS!FZ22 -> 500972.5834 | GA21: =TRIBUTOS!GA22 -> 500972.5834 | GB21: =TRIBUTOS!GB22 -> 500972.5834 | GC21: =TRIBUTOS!GC22 -> 500972.5834 | GD21: =TRIBUTOS!GD22 -> 500972.5834 | GE21: =TRIBUTOS!GE22 -> 500972.5834 | GF21: =TRIBUTOS!GF22 -> 500972.5834 | GG21: =TRIBUTOS!GG22 -> 500972.5834 | GH21: =TRIBUTOS!GH22 -> 488113.0172 | GI21: =TRIBUTOS!GI22 -> 488113.0172 | GJ21: =TRIBUTOS!GJ22 -> 488113.0172 | GK21: =TRIBUTOS!GK22 -> 488113.0172 | GL21: =TRIBUTOS!GL22 -> 488113.0172 | GM21: =TRIBUTOS!GM22 -> 488113.0172 | GN21: =TRIBUTOS!GN22 -> 488113.0172 | GO21: =TRIBUTOS!GO22 -> 488113.0172 | GP21: =TRIBUTOS!GP22 -> 488113.0172 | GQ21: =TRIBUTOS!GQ22 -> 488113.0172 | GR21: =TRIBUTOS!GR22 -> 488113.0172 | GS21: =TRIBUTOS!GS22 -> 488113.0172 | GT21: =TRIBUTOS!GT22 -> 488113.0172 | GU21: =TRIBUTOS!GU22 -> 488113.0172 | GV21: =TRIBUTOS!GV22 -> 488113.0172 | GW21: =TRIBUTOS!GW22 -> 488113.0172 | GX21: =TRIBUTOS!GX22 -> 488113.0172 | GY21: =TRIBUTOS!GY22 -> 488113.0172 | GZ21: =TRIBUTOS!GZ22 -> 488113.0172 | HA21: =TRIBUTOS!HA22 -> 488113.0172 | HB21: =TRIBUTOS!HB22 -> 488113.0172 | HC21: =TRIBUTOS!HC22 -> 488113.0172 | HD21: =TRIBUTOS!HD22 -> 488113.0172 | HE21: =TRIBUTOS!HE22 -> 488113.0172 | HF21: =TRIBUTOS!HF22 -> 488113.0172 | HG21: =TRIBUTOS!HG22 -> 488113.0172 | HH21: =TRIBUTOS!HH22 -> 488113.0172 | HI21: =TRIBUTOS!HI22 -> 488113.0172 | HJ21: =TRIBUTOS!HJ22 -> 488113.0172 | HK21: =TRIBUTOS!HK22 -> 488113.0172 | HL21: =TRIBUTOS!HL22 -> 488113.0172 | HM21: =TRIBUTOS!HM22 -> 488113.0172 | HN21: =TRIBUTOS!HN22 -> 488113.0172 | HO21: =TRIBUTOS!HO22 -> 488113.0172 | HP21: =TRIBUTOS!HP22 -> 488113.0172 | HQ21: =TRIBUTOS!HQ22 -> 488113.0172 | HR21: =TRIBUTOS!HR22 -> 488113.0172 | HS21: =TRIBUTOS!HS22 -> 488113.0172 | HT21: =TRIBUTOS!HT22 -> 488113.0172 | HU21: =TRIBUTOS!HU22 -> 488113.0172 | HV21: =TRIBUTOS!HV22 -> 488113.0172 | HW21: =TRIBUTOS!HW22 -> 488113.0172 | HX21: =TRIBUTOS!HX22 -> 488113.0172 | HY21: =TRIBUTOS!HY22 -> 488113.0172 | HZ21: =TRIBUTOS!HZ22 -> 488113.0172 | IA21: =TRIBUTOS!IA22 -> 488113.0172 | IB21: =TRIBUTOS!IB22 -> 488113.0172 | IC21: =TRIBUTOS!IC22 -> 488113.0172 | ID21: =TRIBUTOS!ID22 -> 488113.0172 | IE21: =TRIBUTOS!IE22 -> 488113.0172 | IF21: =TRIBUTOS!IF22 -> 488113.0172 | IG21: =TRIBUTOS!IG22 -> 488113.0172 | IH21: =TRIBUTOS!IH22 -> 488113.0172 | II21: =TRIBUTOS!II22 -> 488113.0172 | IJ21: =TRIBUTOS!IJ22 -> 488113.0172 | IK21: =TRIBUTOS!IK22 -> 488113.0172 | IL21: =TRIBUTOS!IL22 -> 488113.0172 | IM21: =TRIBUTOS!IM22 -> 488113.0172 | IN21: =TRIBUTOS!IN22 -> 488113.0172 | IO21: =TRIBUTOS!IO22 -> 488113.0172 | IP21: =TRIBUTOS!IP22 -> 488113.0172 | IQ21: =TRIBUTOS!IQ22 -> 488113.0172 | IR21: =TRIBUTOS!IR22 -> 488113.0172 | IS21: =TRIBUTOS!IS22 -> 488113.0172 | IT21: =TRIBUTOS!IT22 -> 488113.0172 | IU21: =TRIBUTOS!IU22 -> 488113.0172 | IV21: =TRIBUTOS!IV22 -> 488113.0172 | IW21: =TRIBUTOS!IW22 -> 488113.0172 | IX21: =TRIBUTOS!IX22 -> 488113.0172 | IY21: =TRIBUTOS!IY22 -> 488113.0172 | IZ21: =TRIBUTOS!IZ22 -> 488113.0172 | JA21: =TRIBUTOS!JA22 -> 488113.0172 | JB21: =TRIBUTOS!JB22 -> 488113.0172 | JC21: =TRIBUTOS!JC22 -> 488113.0172 | JD21: =TRIBUTOS!JD22 -> 488113.0172 | JE21: =TRIBUTOS!JE22 -> 488113.0172 | JF21: =TRIBUTOS!JF22 -> 488113.0172 | JG21: =TRIBUTOS!JG22 -> 488113.0172 | JH21: =TRIBUTOS!JH22 -> 488113.0172 | JI21: =TRIBUTOS!JI22 -> 488113.0172 | JJ21: =TRIBUTOS!JJ22 -> 488113.0172 | JK21: =TRIBUTOS!JK22 -> 488113.0172 | JL21: =TRIBUTOS!JL22 -> 488113.0172 | JM21: =TRIBUTOS!JM22 -> 488113.0172 | JN21: =TRIBUTOS!JN22 -> 488113.0172 | JO21: =TRIBUTOS!JO22 -> 488113.0172 | JP21: =TRIBUTOS!JP22 -> 488113.0172 | JQ21: =TRIBUTOS!JQ22 -> 488113.0172 | JR21: =TRIBUTOS!JR22 -> 488113.0172 | JS21: =TRIBUTOS!JS22 -> 488113.0172 | JT21: =TRIBUTOS!JT22 -> 488113.0172 | JU21: =TRIBUTOS!JU22 -> 488113.0172 | JV21: =TRIBUTOS!JV22 -> 488113.0172 | JW21: =TRIBUTOS!JW22 -> 488113.0172 | JX21: =TRIBUTOS!JX22 -> 488113.0172 | JY21: =TRIBUTOS!JY22 -> 488113.0172 | JZ21: =TRIBUTOS!JZ22 -> 488113.0172 | KA21: =TRIBUTOS!KA22 -> 488113.0172 | KB21: =TRIBUTOS!KB22 -> 488113.0172 | KC21: =TRIBUTOS!KC22 -> 488113.0172 | KD21: =TRIBUTOS!KD22 -> 488113.0172 | KE21: =TRIBUTOS!KE22 -> 488113.0172 | KF21: =TRIBUTOS!KF22 -> 488113.0172 | KG21: =TRIBUTOS!KG22 -> 488113.0172 | KH21: =TRIBUTOS!KH22 -> 488113.0172 | KI21: =TRIBUTOS!KI22 -> 488113.0172 | KJ21: =TRIBUTOS!KJ22 -> 488113.0172 | KK21: =TRIBUTOS!KK22 -> 488113.0172 | KL21: =TRIBUTOS!KL22 -> 488113.0172 | KM21: =TRIBUTOS!KM22 -> 488113.0172 | KN21: =TRIBUTOS!KN22 -> 488113.0172 | KO21: =TRIBUTOS!KO22 -> 488113.0172 | KP21: =TRIBUTOS!KP22 -> 488113.0172 | KQ21: =TRIBUTOS!KQ22 -> 488113.0172 | KR21: =TRIBUTOS!KR22 -> 488113.0172 | KS21: =TRIBUTOS!KS22 -> 488113.0172 | KT21: =TRIBUTOS!KT22 -> 488113.0172 | KU21: =TRIBUTOS!KU22 -> 488113.0172 | KV21: =TRIBUTOS!KV22 -> 488113.0172 | KW21: =TRIBUTOS!KW22 -> 488113.0172 | KX21: =TRIBUTOS!KX22 -> 488113.0172 | KY21: =TRIBUTOS!KY22 -> 488113.0172 | KZ21: =TRIBUTOS!KZ22 -> 488113.0172 | LA21: =TRIBUTOS!LA22 -> 488113.0172 | LB21: =TRIBUTOS!LB22 -> 488113.0172 | LC21: =TRIBUTOS!LC22 -> 488113.0172 | LD21: =TRIBUTOS!LD22 -> 488113.0172 | LE21: =TRIBUTOS!LE22 -> 488113.0172 | LF21: =TRIBUTOS!LF22 -> 488113.0172 | LG21: =TRIBUTOS!LG22 -> 488113.0172 | LH21: =TRIBUTOS!LH22 -> 488113.0172 | LI21: =TRIBUTOS!LI22 -> 488113.0172 | LJ21: =TRIBUTOS!LJ22 -> 488113.0172 | LK21: =TRIBUTOS!LK22 -> 488113.0172 | LL21: =TRIBUTOS!LL22 -> 488113.0172 | LM21: =TRIBUTOS!LM22 -> 488113.0172 | LN21: =TRIBUTOS!LN22 -> 488113.0172 | LO21: =TRIBUTOS!LO22 -> 488113.0172 | LP21: =TRIBUTOS!LP22 -> 488113.0172 | LQ21: =TRIBUTOS!LQ22 -> 488113.0172 | LR21: =TRIBUTOS!LR22 -> 488113.0172 | LS21: =TRIBUTOS!LS22 -> 488113.0172 | LT21: =TRIBUTOS!LT22 -> 488113.0172 | LU21: =TRIBUTOS!LU22 -> 488113.0172 | LV21: =TRIBUTOS!LV22 -> 488113.0172 | LW21: =TRIBUTOS!LW22 -> 488113.0172 | LX21: =TRIBUTOS!LX22 -> 488113.0172 | LY21: =TRIBUTOS!LY22 -> 488113.0172 | LZ21: =TRIBUTOS!LZ22 -> 488113.0172 | MA21: =TRIBUTOS!MA22 -> 488113.0172 | MB21: =TRIBUTOS!MB22 -> 488113.0172 | MC21: =TRIBUTOS!MC22 -> 488113.0172 | MD21: =TRIBUTOS!MD22 -> 488113.0172 | ME21: =TRIBUTOS!ME22 -> 488113.0172 | MF21: =TRIBUTOS!MF22 -> 488113.0172 | MG21: =TRIBUTOS!MG22 -> 488113.0172 | MH21: =TRIBUTOS!MH22 -> 488113.0172 | MI21: =TRIBUTOS!MI22 -> 488113.0172 | MJ21: =TRIBUTOS!MJ22 -> 488113.0172 | MK21: =TRIBUTOS!MK22 -> 488113.0172 | ML21: =TRIBUTOS!ML22 -> 488113.0172 | MM21: =TRIBUTOS!MM22 -> 488113.0172 | MN21: =TRIBUTOS!MN22 -> 488113.0172 | MO21: =TRIBUTOS!MO22 -> 488113.0172 | MP21: =TRIBUTOS!MP22 -> 488113.0172 | MQ21: =TRIBUTOS!MQ22 -> 488113.0172 | MR21: =TRIBUTOS!MR22 -> 488113.0172 | MS21: =TRIBUTOS!MS22 -> 488113.0172 | MT21: =TRIBUTOS!MT22 -> 488113.0172 | MU21: =TRIBUTOS!MU22 -> 488113.0172 | MV21: =TRIBUTOS!MV22 -> 488113.0172 | MW21: =TRIBUTOS!MW22 -> 488113.0172 | MX21: =TRIBUTOS!MX22 -> 488113.0172 | MY21: =TRIBUTOS!MY22 -> 488113.0172 | MZ21: =TRIBUTOS!MZ22 -> 488113.0172 | NA21: =TRIBUTOS!NA22 -> 488113.0172 | NB21: =TRIBUTOS!NB22 -> 488113.0172 | NC21: =TRIBUTOS!NC22 -> 488113.0172 | ND21: =TRIBUTOS!ND22 -> 488113.0172 | NE21: =TRIBUTOS!NE22 -> 488113.0172 | NF21: =TRIBUTOS!NF22 -> 488113.0172 | NG21: =TRIBUTOS!NG22 -> 488113.0172 | NH21: =TRIBUTOS!NH22 -> 488113.0172 | NI21: =TRIBUTOS!NI22 -> 488113.0172 | NJ21: =TRIBUTOS!NJ22 -> 488113.0172 | NK21: =TRIBUTOS!NK22 -> 488113.0172 | NL21: =TRIBUTOS!NL22 -> 488113.0172 | NM21: =TRIBUTOS!NM22 -> 488113.0172 | NN21: =TRIBUTOS!NN22 -> 488113.0172 | NO21: =TRIBUTOS!NO22 -> 488113.0172 | NP21: =TRIBUTOS!NP22 -> 488113.0172 | NQ21: =TRIBUTOS!NQ22 -> 488113.0172 | NR21: =TRIBUTOS!NR22 -> 488113.0172 | NS21: =TRIBUTOS!NS22 -> 488113.0172 | NT21: =TRIBUTOS!NT22 -> 488113.0172 | NU21: =TRIBUTOS!NU22 -> 488113.0172 | NV21: =TRIBUTOS!NV22 -> 488113.0172 | NW21: =TRIBUTOS!NW22 -> 488113.0172 | NX21: =TRIBUTOS!NX22 -> 488113.0172 | NY21: =TRIBUTOS!NY22 -> 488113.0172 | NZ21: =TRIBUTOS!NZ22 -> 488113.0172 | OA21: =TRIBUTOS!OA22 -> 488113.0172 | OB21: =TRIBUTOS!OB22 -> 488113.0172 | OC21: =TRIBUTOS!OC22 -> 488113.0172 | OD21: =TRIBUTOS!OD22 -> 488113.0172 | OE21: =TRIBUTOS!OE22 -> 488113.0172 | OF21: =TRIBUTOS!OF22 -> 488113.0172 | OG21: =TRIBUTOS!OG22 -> 488113.0172 | OH21: =TRIBUTOS!OH22 -> 488113.0172 | OI21: =TRIBUTOS!OI22 -> 488113.0172 | OJ21: =TRIBUTOS!OJ22 -> 488113.0172 | OK21: =TRIBUTOS!OK22 -> 488113.0172 | OL21: =TRIBUTOS!OL22 -> 488113.0172 | OM21: =TRIBUTOS!OM22 -> 488113.0172 | ON21: =TRIBUTOS!ON22 -> 488113.0172 | OO21: =TRIBUTOS!OO22 -> 488113.0172 | OP21: =TRIBUTOS!OP22 -> 488113.0172 | OQ21: =TRIBUTOS!OQ22 -> 488113.0172 | OR21: =TRIBUTOS!OR22 -> 488113.0172 | OS21: =TRIBUTOS!OS22 -> 488113.0172 | OT21: =TRIBUTOS!OT22 -> 488113.0172 | OU21: =TRIBUTOS!OU22 -> 488113.0172 | OV21: =TRIBUTOS!OV22 -> 488113.0172 | OW21: =TRIBUTOS!OW22 -> 488113.0172 | OX21: =TRIBUTOS!OX22 -> 488113.0172 | OY21: =TRIBUTOS!OY22 -> 488113.0172 | OZ21: =TRIBUTOS!OZ22 -> 488113.0172 | PA21: =TRIBUTOS!PA22 -> 488113.0172 | PB21: =TRIBUTOS!PB22 -> 488113.0172 | PC21: =TRIBUTOS!PC22 -> 488113.0172 | PD21: =TRIBUTOS!PD22 -> 488113.0172 | PE21: =TRIBUTOS!PE22 -> 488113.0172 | PF21: =TRIBUTOS!PF22 -> 488113.0172 | PG21: =TRIBUTOS!PG22 -> 488113.0172 | PH21: =TRIBUTOS!PH22 -> 488113.0172 | PI21: =TRIBUTOS!PI22 -> 488113.0172 | PJ21: =TRIBUTOS!PJ22 -> 488113.0172 | PK21: =TRIBUTOS!PK22 -> 488113.0172 | PL21: =TRIBUTOS!PL22 -> 488113.0172 | PM21: =TRIBUTOS!PM22 -> 488113.0172 | PN21: 0
C22: COFINS (Débito - Crédito) | D22: 941310547.6 | E22: =NPV(PainelControle!$D$8,$K22:$PM22)+J22 -> 221872341.1 | J22: =TRIBUTOS!J23 -> 1029624.182 | K22: =TRIBUTOS!K23 -> 1076343.387 | L22: =TRIBUTOS!L23 -> 1076085.472 | M22: =TRIBUTOS!M23 -> 1075827.556 | N22: =TRIBUTOS!N23 -> 1075569.641 | O22: =TRIBUTOS!O23 -> 1075311.725 | P22: =TRIBUTOS!P23 -> 1075053.81 | Q22: =TRIBUTOS!Q23 -> 1074795.895 | R22: =TRIBUTOS!R23 -> 1074537.979 | S22: =TRIBUTOS!S23 -> 1074280.064 | T22: =TRIBUTOS!T23 -> 1072898.122 | U22: =TRIBUTOS!U23 -> 1071196.709 | V22: =TRIBUTOS!V23 -> 1022493.014 | W22: =TRIBUTOS!W23 -> 1067355.212 | X22: =TRIBUTOS!X23 -> 1064948.226 | Y22: =TRIBUTOS!Y23 -> 1061991.806 | Z22: =TRIBUTOS!Z23 -> 1058740.774 | AA22: =TRIBUTOS!AA23 -> 1054478.783 | AB22: =TRIBUTOS!AB23 -> 1045389.106 | AC22: =TRIBUTOS!AC23 -> 1042704.891 | AD22: =TRIBUTOS!AD23 -> 1106802.977 | AE22: =TRIBUTOS!AE23 -> 1102699.394 | AF22: =TRIBUTOS!AF23 -> 1098084.972 | AG22: =TRIBUTOS!AG23 -> 1091768.316 | AH22: =TRIBUTOS!AH23 -> 1037153.654 | AI22: =TRIBUTOS!AI23 -> 1070584.727 | AJ22: =TRIBUTOS!AJ23 -> 1061232.697 | AK22: =TRIBUTOS!AK23 -> 1085287.988 | AL22: =TRIBUTOS!AL23 -> 1073534.428 | AM22: =TRIBUTOS!AM23 -> 1059598.256 | AN22: =TRIBUTOS!AN23 -> 1133592.692 | AO22: =TRIBUTOS!AO23 -> 1117882.782 | AP22: =TRIBUTOS!AP23 -> 1088849.488 | AQ22: =TRIBUTOS!AQ23 -> 1073563.442 | AR22: =TRIBUTOS!AR23 -> 1152050.376 | AS22: =TRIBUTOS!AS23 -> 1136888.152 | AT22: =TRIBUTOS!AT23 -> 1473882.496 | AU22: =TRIBUTOS!AU23 -> 1489609.169 | AV22: =TRIBUTOS!AV23 -> 1477377.247 | AW22: =TRIBUTOS!AW23 -> 1528631.799 | AX22: =TRIBUTOS!AX23 -> 1519241.603 | AY22: =TRIBUTOS!AY23 -> 1514423.549 | AZ22: =TRIBUTOS!AZ23 -> 2504838.998 | BA22: =TRIBUTOS!BA23 -> 2500063.872 | BB22: =TRIBUTOS!BB23 -> 2495596.045 | BC22: =TRIBUTOS!BC23 -> 2491889.33 | BD22: =TRIBUTOS!BD23 -> 2488494.414 | BE22: =TRIBUTOS!BE23 -> 2486550.537 | BF22: =TRIBUTOS!BF23 -> 2557037.988 | BG22: =TRIBUTOS!BG23 -> 2596254.973 | BH22: =TRIBUTOS!BH23 -> 2593955.179 | BI22: =TRIBUTOS!BI23 -> 2591478.613 | BJ22: =TRIBUTOS!BJ23 -> 2588824.315 | BK22: =TRIBUTOS!BK23 -> 2586764.373 | BL22: =TRIBUTOS!BL23 -> 2652411.197 | BM22: =TRIBUTOS!BM23 -> 2650598.872 | BN22: =TRIBUTOS!BN23 -> 2649041.183 | BO22: =TRIBUTOS!BO23 -> 2647739.532 | BP22: =TRIBUTOS!BP23 -> 2646695.336 | BQ22: =TRIBUTOS!BQ23 -> 2646695.336 | BR22: =TRIBUTOS!BR23 -> 2761420.439 | BS22: =TRIBUTOS!BS23 -> 2802050.039 | BT22: =TRIBUTOS!BT23 -> 2802050.039 | BU22: =TRIBUTOS!BU23 -> 2802050.039 | BV22: =TRIBUTOS!BV23 -> 2802050.039 | BW22: =TRIBUTOS!BW23 -> 2802050.039 | BX22: =TRIBUTOS!BX23 -> 2802050.039 | BY22: =TRIBUTOS!BY23 -> 2802050.039 | BZ22: =TRIBUTOS!BZ23 -> 2802050.039 | CA22: =TRIBUTOS!CA23 -> 2802050.039 | CB22: =TRIBUTOS!CB23 -> 2802604.272 | CC22: =TRIBUTOS!CC23 -> 2803237.682 | CD22: =TRIBUTOS!CD23 -> 2703447.571 | CE22: =TRIBUTOS!CE23 -> 2744948.109 | CF22: =TRIBUTOS!CF23 -> 2745898.223 | CG22: =TRIBUTOS!CG23 -> 2747006.689 | CH22: =TRIBUTOS!CH23 -> 2748194.331 | CI22: =TRIBUTOS!CI23 -> 2749302.798 | CJ22: =TRIBUTOS!CJ23 -> 2755387.863 | CK22: =TRIBUTOS!CK23 -> 2755387.863 | CL22: =TRIBUTOS!CL23 -> 2755387.863 | CM22: =TRIBUTOS!CM23 -> 2755387.863 | CN22: =TRIBUTOS!CN23 -> 2755387.863 | CO22: =TRIBUTOS!CO23 -> 2755387.863 | CP22: =TRIBUTOS!CP23 -> 2654885.166 | CQ22: =TRIBUTOS!CQ23 -> 2700351.272 | CR22: =TRIBUTOS!CR23 -> 2700351.272 | CS22: =TRIBUTOS!CS23 -> 2700351.272 | CT22: =TRIBUTOS!CT23 -> 2700351.272 | CU22: =TRIBUTOS!CU23 -> 2700351.272 | CV22: =TRIBUTOS!CV23 -> 2700351.272 | CW22: =TRIBUTOS!CW23 -> 2700351.272 | CX22: =TRIBUTOS!CX23 -> 2712895.52 | CY22: =TRIBUTOS!CY23 -> 2712895.52 | CZ22: =TRIBUTOS!CZ23 -> 2712895.52 | DA22: =TRIBUTOS!DA23 -> 2712895.52 | DB22: =TRIBUTOS!DB23 -> 2612392.824 | DC22: =TRIBUTOS!DC23 -> 2666748.659 | DD22: =TRIBUTOS!DD23 -> 2666748.659 | DE22: =TRIBUTOS!DE23 -> 2666748.659 | DF22: =TRIBUTOS!DF23 -> 2666748.659 | DG22: =TRIBUTOS!DG23 -> 2666748.659 | DH22: =TRIBUTOS!DH23 -> 2666748.659 | DI22: =TRIBUTOS!DI23 -> 2666748.659 | DJ22: =TRIBUTOS!DJ23 -> 2666748.659 | DK22: =TRIBUTOS!DK23 -> 2666748.659 | DL22: =TRIBUTOS!DL23 -> 2666748.659 | DM22: =TRIBUTOS!DM23 -> 2666748.659 | DN22: =TRIBUTOS!DN23 -> 2566245.963 | DO22: =TRIBUTOS!DO23 -> 2606875.563 | DP22: =TRIBUTOS!DP23 -> 2606875.563 | DQ22: =TRIBUTOS!DQ23 -> 2606875.563 | DR22: =TRIBUTOS!DR23 -> 2606875.563 | DS22: =TRIBUTOS!DS23 -> 2606875.563 | DT22: =TRIBUTOS!DT23 -> 2606875.563 | DU22: =TRIBUTOS!DU23 -> 2606875.563 | DV22: =TRIBUTOS!DV23 -> 2606875.563 | DW22: =TRIBUTOS!DW23 -> 2606875.563 | DX22: =TRIBUTOS!DX23 -> 2606875.563 | DY22: =TRIBUTOS!DY23 -> 2606875.563 | DZ22: =TRIBUTOS!DZ23 -> 2506372.867 | EA22: =TRIBUTOS!EA23 -> 2547002.467 | EB22: =TRIBUTOS!EB23 -> 2547002.467 | EC22: =TRIBUTOS!EC23 -> 2547002.467 | ED22: =TRIBUTOS!ED23 -> 2547002.467 | EE22: =TRIBUTOS!EE23 -> 2547002.467 | EF22: =TRIBUTOS!EF23 -> 2547002.467 | EG22: =TRIBUTOS!EG23 -> 2547002.467 | EH22: =TRIBUTOS!EH23 -> 2547002.467 | EI22: =TRIBUTOS!EI23 -> 2547002.467 | EJ22: =TRIBUTOS!EJ23 -> 2547002.467 | EK22: =TRIBUTOS!EK23 -> 2547002.467 | EL22: =TRIBUTOS!EL23 -> 2446499.77 | EM22: =TRIBUTOS!EM23 -> 2487129.37 | EN22: =TRIBUTOS!EN23 -> 2487129.37 | EO22: =TRIBUTOS!EO23 -> 2487129.37 | EP22: =TRIBUTOS!EP23 -> 2487129.37 | EQ22: =TRIBUTOS!EQ23 -> 2487129.37 | ER22: =TRIBUTOS!ER23 -> 2487129.37 | ES22: =TRIBUTOS!ES23 -> 2487129.37 | ET22: =TRIBUTOS!ET23 -> 2487129.37 | EU22: =TRIBUTOS!EU23 -> 2487129.37 | EV22: =TRIBUTOS!EV23 -> 2487129.37 | EW22: =TRIBUTOS!EW23 -> 2487129.37 | EX22: =TRIBUTOS!EX23 -> 2386626.674 | EY22: =TRIBUTOS!EY23 -> 2427256.274 | EZ22: =TRIBUTOS!EZ23 -> 2427256.274 | FA22: =TRIBUTOS!FA23 -> 2427256.274 | FB22: =TRIBUTOS!FB23 -> 2427256.274 | FC22: =TRIBUTOS!FC23 -> 2427256.274 | FD22: =TRIBUTOS!FD23 -> 2427256.274 | FE22: =TRIBUTOS!FE23 -> 2427256.274 | FF22: =TRIBUTOS!FF23 -> 2427256.274 | FG22: =TRIBUTOS!FG23 -> 2427256.274 | FH22: =TRIBUTOS!FH23 -> 2427256.274 | FI22: =TRIBUTOS!FI23 -> 2427256.274 | FJ22: =TRIBUTOS!FJ23 -> 2326753.577 | FK22: =TRIBUTOS!FK23 -> 2367383.177 | FL22: =TRIBUTOS!FL23 -> 2367383.177 | FM22: =TRIBUTOS!FM23 -> 2367383.177 | FN22: =TRIBUTOS!FN23 -> 2367383.177 | FO22: =TRIBUTOS!FO23 -> 2367383.177 | FP22: =TRIBUTOS!FP23 -> 2367383.177 | FQ22: =TRIBUTOS!FQ23 -> 2367383.177 | FR22: =TRIBUTOS!FR23 -> 2367383.177 | FS22: =TRIBUTOS!FS23 -> 2367383.177 | FT22: =TRIBUTOS!FT23 -> 2367383.177 | FU22: =TRIBUTOS!FU23 -> 2367383.177 | FV22: =TRIBUTOS!FV23 -> 2266880.481 | FW22: =TRIBUTOS!FW23 -> 2307510.081 | FX22: =TRIBUTOS!FX23 -> 2307510.081 | FY22: =TRIBUTOS!FY23 -> 2307510.081 | FZ22: =TRIBUTOS!FZ23 -> 2307510.081 | GA22: =TRIBUTOS!GA23 -> 2307510.081 | GB22: =TRIBUTOS!GB23 -> 2307510.081 | GC22: =TRIBUTOS!GC23 -> 2307510.081 | GD22: =TRIBUTOS!GD23 -> 2307510.081 | GE22: =TRIBUTOS!GE23 -> 2307510.081 | GF22: =TRIBUTOS!GF23 -> 2307510.081 | GG22: =TRIBUTOS!GG23 -> 2307510.081 | GH22: =TRIBUTOS!GH23 -> 2248278.14 | GI22: =TRIBUTOS!GI23 -> 2248278.14 | GJ22: =TRIBUTOS!GJ23 -> 2248278.14 | GK22: =TRIBUTOS!GK23 -> 2248278.14 | GL22: =TRIBUTOS!GL23 -> 2248278.14 | GM22: =TRIBUTOS!GM23 -> 2248278.14 | GN22: =TRIBUTOS!GN23 -> 2248278.14 | GO22: =TRIBUTOS!GO23 -> 2248278.14 | GP22: =TRIBUTOS!GP23 -> 2248278.14 | GQ22: =TRIBUTOS!GQ23 -> 2248278.14 | GR22: =TRIBUTOS!GR23 -> 2248278.14 | GS22: =TRIBUTOS!GS23 -> 2248278.14 | GT22: =TRIBUTOS!GT23 -> 2248278.14 | GU22: =TRIBUTOS!GU23 -> 2248278.14 | GV22: =TRIBUTOS!GV23 -> 2248278.14 | GW22: =TRIBUTOS!GW23 -> 2248278.14 | GX22: =TRIBUTOS!GX23 -> 2248278.14 | GY22: =TRIBUTOS!GY23 -> 2248278.14 | GZ22: =TRIBUTOS!GZ23 -> 2248278.14 | HA22: =TRIBUTOS!HA23 -> 2248278.14 | HB22: =TRIBUTOS!HB23 -> 2248278.14 | HC22: =TRIBUTOS!HC23 -> 2248278.14 | HD22: =TRIBUTOS!HD23 -> 2248278.14 | HE22: =TRIBUTOS!HE23 -> 2248278.14 | HF22: =TRIBUTOS!HF23 -> 2248278.14 | HG22: =TRIBUTOS!HG23 -> 2248278.14 | HH22: =TRIBUTOS!HH23 -> 2248278.14 | HI22: =TRIBUTOS!HI23 -> 2248278.14 | HJ22: =TRIBUTOS!HJ23 -> 2248278.14 | HK22: =TRIBUTOS!HK23 -> 2248278.14 | HL22: =TRIBUTOS!HL23 -> 2248278.14 | HM22: =TRIBUTOS!HM23 -> 2248278.14 | HN22: =TRIBUTOS!HN23 -> 2248278.14 | HO22: =TRIBUTOS!HO23 -> 2248278.14 | HP22: =TRIBUTOS!HP23 -> 2248278.14 | HQ22: =TRIBUTOS!HQ23 -> 2248278.14 | HR22: =TRIBUTOS!HR23 -> 2248278.14 | HS22: =TRIBUTOS!HS23 -> 2248278.14 | HT22: =TRIBUTOS!HT23 -> 2248278.14 | HU22: =TRIBUTOS!HU23 -> 2248278.14 | HV22: =TRIBUTOS!HV23 -> 2248278.14 | HW22: =TRIBUTOS!HW23 -> 2248278.14 | HX22: =TRIBUTOS!HX23 -> 2248278.14 | HY22: =TRIBUTOS!HY23 -> 2248278.14 | HZ22: =TRIBUTOS!HZ23 -> 2248278.14 | IA22: =TRIBUTOS!IA23 -> 2248278.14 | IB22: =TRIBUTOS!IB23 -> 2248278.14 | IC22: =TRIBUTOS!IC23 -> 2248278.14 | ID22: =TRIBUTOS!ID23 -> 2248278.14 | IE22: =TRIBUTOS!IE23 -> 2248278.14 | IF22: =TRIBUTOS!IF23 -> 2248278.14 | IG22: =TRIBUTOS!IG23 -> 2248278.14 | IH22: =TRIBUTOS!IH23 -> 2248278.14 | II22: =TRIBUTOS!II23 -> 2248278.14 | IJ22: =TRIBUTOS!IJ23 -> 2248278.14 | IK22: =TRIBUTOS!IK23 -> 2248278.14 | IL22: =TRIBUTOS!IL23 -> 2248278.14 | IM22: =TRIBUTOS!IM23 -> 2248278.14 | IN22: =TRIBUTOS!IN23 -> 2248278.14 | IO22: =TRIBUTOS!IO23 -> 2248278.14 | IP22: =TRIBUTOS!IP23 -> 2248278.14 | IQ22: =TRIBUTOS!IQ23 -> 2248278.14 | IR22: =TRIBUTOS!IR23 -> 2248278.14 | IS22: =TRIBUTOS!IS23 -> 2248278.14 | IT22: =TRIBUTOS!IT23 -> 2248278.14 | IU22: =TRIBUTOS!IU23 -> 2248278.14 | IV22: =TRIBUTOS!IV23 -> 2248278.14 | IW22: =TRIBUTOS!IW23 -> 2248278.14 | IX22: =TRIBUTOS!IX23 -> 2248278.14 | IY22: =TRIBUTOS!IY23 -> 2248278.14 | IZ22: =TRIBUTOS!IZ23 -> 2248278.14 | JA22: =TRIBUTOS!JA23 -> 2248278.14 | JB22: =TRIBUTOS!JB23 -> 2248278.14 | JC22: =TRIBUTOS!JC23 -> 2248278.14 | JD22: =TRIBUTOS!JD23 -> 2248278.14 | JE22: =TRIBUTOS!JE23 -> 2248278.14 | JF22: =TRIBUTOS!JF23 -> 2248278.14 | JG22: =TRIBUTOS!JG23 -> 2248278.14 | JH22: =TRIBUTOS!JH23 -> 2248278.14 | JI22: =TRIBUTOS!JI23 -> 2248278.14 | JJ22: =TRIBUTOS!JJ23 -> 2248278.14 | JK22: =TRIBUTOS!JK23 -> 2248278.14 | JL22: =TRIBUTOS!JL23 -> 2248278.14 | JM22: =TRIBUTOS!JM23 -> 2248278.14 | JN22: =TRIBUTOS!JN23 -> 2248278.14 | JO22: =TRIBUTOS!JO23 -> 2248278.14 | JP22: =TRIBUTOS!JP23 -> 2248278.14 | JQ22: =TRIBUTOS!JQ23 -> 2248278.14 | JR22: =TRIBUTOS!JR23 -> 2248278.14 | JS22: =TRIBUTOS!JS23 -> 2248278.14 | JT22: =TRIBUTOS!JT23 -> 2248278.14 | JU22: =TRIBUTOS!JU23 -> 2248278.14 | JV22: =TRIBUTOS!JV23 -> 2248278.14 | JW22: =TRIBUTOS!JW23 -> 2248278.14 | JX22: =TRIBUTOS!JX23 -> 2248278.14 | JY22: =TRIBUTOS!JY23 -> 2248278.14 | JZ22: =TRIBUTOS!JZ23 -> 2248278.14 | KA22: =TRIBUTOS!KA23 -> 2248278.14 | KB22: =TRIBUTOS!KB23 -> 2248278.14 | KC22: =TRIBUTOS!KC23 -> 2248278.14 | KD22: =TRIBUTOS!KD23 -> 2248278.14 | KE22: =TRIBUTOS!KE23 -> 2248278.14 | KF22: =TRIBUTOS!KF23 -> 2248278.14 | KG22: =TRIBUTOS!KG23 -> 2248278.14 | KH22: =TRIBUTOS!KH23 -> 2248278.14 | KI22: =TRIBUTOS!KI23 -> 2248278.14 | KJ22: =TRIBUTOS!KJ23 -> 2248278.14 | KK22: =TRIBUTOS!KK23 -> 2248278.14 | KL22: =TRIBUTOS!KL23 -> 2248278.14 | KM22: =TRIBUTOS!KM23 -> 2248278.14 | KN22: =TRIBUTOS!KN23 -> 2248278.14 | KO22: =TRIBUTOS!KO23 -> 2248278.14 | KP22: =TRIBUTOS!KP23 -> 2248278.14 | KQ22: =TRIBUTOS!KQ23 -> 2248278.14 | KR22: =TRIBUTOS!KR23 -> 2248278.14 | KS22: =TRIBUTOS!KS23 -> 2248278.14 | KT22: =TRIBUTOS!KT23 -> 2248278.14 | KU22: =TRIBUTOS!KU23 -> 2248278.14 | KV22: =TRIBUTOS!KV23 -> 2248278.14 | KW22: =TRIBUTOS!KW23 -> 2248278.14 | KX22: =TRIBUTOS!KX23 -> 2248278.14 | KY22: =TRIBUTOS!KY23 -> 2248278.14 | KZ22: =TRIBUTOS!KZ23 -> 2248278.14 | LA22: =TRIBUTOS!LA23 -> 2248278.14 | LB22: =TRIBUTOS!LB23 -> 2248278.14 | LC22: =TRIBUTOS!LC23 -> 2248278.14 | LD22: =TRIBUTOS!LD23 -> 2248278.14 | LE22: =TRIBUTOS!LE23 -> 2248278.14 | LF22: =TRIBUTOS!LF23 -> 2248278.14 | LG22: =TRIBUTOS!LG23 -> 2248278.14 | LH22: =TRIBUTOS!LH23 -> 2248278.14 | LI22: =TRIBUTOS!LI23 -> 2248278.14 | LJ22: =TRIBUTOS!LJ23 -> 2248278.14 | LK22: =TRIBUTOS!LK23 -> 2248278.14 | LL22: =TRIBUTOS!LL23 -> 2248278.14 | LM22: =TRIBUTOS!LM23 -> 2248278.14 | LN22: =TRIBUTOS!LN23 -> 2248278.14 | LO22: =TRIBUTOS!LO23 -> 2248278.14 | LP22: =TRIBUTOS!LP23 -> 2248278.14 | LQ22: =TRIBUTOS!LQ23 -> 2248278.14 | LR22: =TRIBUTOS!LR23 -> 2248278.14 | LS22: =TRIBUTOS!LS23 -> 2248278.14 | LT22: =TRIBUTOS!LT23 -> 2248278.14 | LU22: =TRIBUTOS!LU23 -> 2248278.14 | LV22: =TRIBUTOS!LV23 -> 2248278.14 | LW22: =TRIBUTOS!LW23 -> 2248278.14 | LX22: =TRIBUTOS!LX23 -> 2248278.14 | LY22: =TRIBUTOS!LY23 -> 2248278.14 | LZ22: =TRIBUTOS!LZ23 -> 2248278.14 | MA22: =TRIBUTOS!MA23 -> 2248278.14 | MB22: =TRIBUTOS!MB23 -> 2248278.14 | MC22: =TRIBUTOS!MC23 -> 2248278.14 | MD22: =TRIBUTOS!MD23 -> 2248278.14 | ME22: =TRIBUTOS!ME23 -> 2248278.14 | MF22: =TRIBUTOS!MF23 -> 2248278.14 | MG22: =TRIBUTOS!MG23 -> 2248278.14 | MH22: =TRIBUTOS!MH23 -> 2248278.14 | MI22: =TRIBUTOS!MI23 -> 2248278.14 | MJ22: =TRIBUTOS!MJ23 -> 2248278.14 | MK22: =TRIBUTOS!MK23 -> 2248278.14 | ML22: =TRIBUTOS!ML23 -> 2248278.14 | MM22: =TRIBUTOS!MM23 -> 2248278.14 | MN22: =TRIBUTOS!MN23 -> 2248278.14 | MO22: =TRIBUTOS!MO23 -> 2248278.14 | MP22: =TRIBUTOS!MP23 -> 2248278.14 | MQ22: =TRIBUTOS!MQ23 -> 2248278.14 | MR22: =TRIBUTOS!MR23 -> 2248278.14 | MS22: =TRIBUTOS!MS23 -> 2248278.14 | MT22: =TRIBUTOS!MT23 -> 2248278.14 | MU22: =TRIBUTOS!MU23 -> 2248278.14 | MV22: =TRIBUTOS!MV23 -> 2248278.14 | MW22: =TRIBUTOS!MW23 -> 2248278.14 | MX22: =TRIBUTOS!MX23 -> 2248278.14 | MY22: =TRIBUTOS!MY23 -> 2248278.14 | MZ22: =TRIBUTOS!MZ23 -> 2248278.14 | NA22: =TRIBUTOS!NA23 -> 2248278.14 | NB22: =TRIBUTOS!NB23 -> 2248278.14 | NC22: =TRIBUTOS!NC23 -> 2248278.14 | ND22: =TRIBUTOS!ND23 -> 2248278.14 | NE22: =TRIBUTOS!NE23 -> 2248278.14 | NF22: =TRIBUTOS!NF23 -> 2248278.14 | NG22: =TRIBUTOS!NG23 -> 2248278.14 | NH22: =TRIBUTOS!NH23 -> 2248278.14 | NI22: =TRIBUTOS!NI23 -> 2248278.14 | NJ22: =TRIBUTOS!NJ23 -> 2248278.14 | NK22: =TRIBUTOS!NK23 -> 2248278.14 | NL22: =TRIBUTOS!NL23 -> 2248278.14 | NM22: =TRIBUTOS!NM23 -> 2248278.14 | NN22: =TRIBUTOS!NN23 -> 2248278.14 | NO22: =TRIBUTOS!NO23 -> 2248278.14 | NP22: =TRIBUTOS!NP23 -> 2248278.14 | NQ22: =TRIBUTOS!NQ23 -> 2248278.14 | NR22: =TRIBUTOS!NR23 -> 2248278.14 | NS22: =TRIBUTOS!NS23 -> 2248278.14 | NT22: =TRIBUTOS!NT23 -> 2248278.14 | NU22: =TRIBUTOS!NU23 -> 2248278.14 | NV22: =TRIBUTOS!NV23 -> 2248278.14 | NW22: =TRIBUTOS!NW23 -> 2248278.14 | NX22: =TRIBUTOS!NX23 -> 2248278.14 | NY22: =TRIBUTOS!NY23 -> 2248278.14 | NZ22: =TRIBUTOS!NZ23 -> 2248278.14 | OA22: =TRIBUTOS!OA23 -> 2248278.14 | OB22: =TRIBUTOS!OB23 -> 2248278.14 | OC22: =TRIBUTOS!OC23 -> 2248278.14 | OD22: =TRIBUTOS!OD23 -> 2248278.14 | OE22: =TRIBUTOS!OE23 -> 2248278.14 | OF22: =TRIBUTOS!OF23 -> 2248278.14 | OG22: =TRIBUTOS!OG23 -> 2248278.14 | OH22: =TRIBUTOS!OH23 -> 2248278.14 | OI22: =TRIBUTOS!OI23 -> 2248278.14 | OJ22: =TRIBUTOS!OJ23 -> 2248278.14 | OK22: =TRIBUTOS!OK23 -> 2248278.14 | OL22: =TRIBUTOS!OL23 -> 2248278.14 | OM22: =TRIBUTOS!OM23 -> 2248278.14 | ON22: =TRIBUTOS!ON23 -> 2248278.14 | OO22: =TRIBUTOS!OO23 -> 2248278.14 | OP22: =TRIBUTOS!OP23 -> 2248278.14 | OQ22: =TRIBUTOS!OQ23 -> 2248278.14 | OR22: =TRIBUTOS!OR23 -> 2248278.14 | OS22: =TRIBUTOS!OS23 -> 2248278.14 | OT22: =TRIBUTOS!OT23 -> 2248278.14 | OU22: =TRIBUTOS!OU23 -> 2248278.14 | OV22: =TRIBUTOS!OV23 -> 2248278.14 | OW22: =TRIBUTOS!OW23 -> 2248278.14 | OX22: =TRIBUTOS!OX23 -> 2248278.14 | OY22: =TRIBUTOS!OY23 -> 2248278.14 | OZ22: =TRIBUTOS!OZ23 -> 2248278.14 | PA22: =TRIBUTOS!PA23 -> 2248278.14 | PB22: =TRIBUTOS!PB23 -> 2248278.14 | PC22: =TRIBUTOS!PC23 -> 2248278.14 | PD22: =TRIBUTOS!PD23 -> 2248278.14 | PE22: =TRIBUTOS!PE23 -> 2248278.14 | PF22: =TRIBUTOS!PF23 -> 2248278.14 | PG22: =TRIBUTOS!PG23 -> 2248278.14 | PH22: =TRIBUTOS!PH23 -> 2248278.14 | PI22: =TRIBUTOS!PI23 -> 2248278.14 | PJ22: =TRIBUTOS!PJ23 -> 2248278.14 | PK22: =TRIBUTOS!PK23 -> 2248278.14 | PL22: =TRIBUTOS!PL23 -> 2248278.14 | PM22: =TRIBUTOS!PM23 -> 2248278.14 | PN22: 0
C23: CPRB | D23: 0 | E23: =NPV(PainelControle!$D$8,$K23:$PM23)+J23 -> 0 | J23: =TRIBUTOS!J24 -> 0 | K23: =TRIBUTOS!K24 -> 0 | L23: =TRIBUTOS!L24 -> 0 | M23: =TRIBUTOS!M24 -> 0 | N23: =TRIBUTOS!N24 -> 0 | O23: =TRIBUTOS!O24 -> 0 | P23: =TRIBUTOS!P24 -> 0 | Q23: =TRIBUTOS!Q24 -> 0 | R23: =TRIBUTOS!R24 -> 0 | S23: =TRIBUTOS!S24 -> 0 | T23: =TRIBUTOS!T24 -> 0 | U23: =TRIBUTOS!U24 -> 0 | V23: =TRIBUTOS!V24 -> 0 | W23: =TRIBUTOS!W24 -> 0 | X23: =TRIBUTOS!X24 -> 0 | Y23: =TRIBUTOS!Y24 -> 0 | Z23: =TRIBUTOS!Z24 -> 0 | AA23: =TRIBUTOS!AA24 -> 0 | AB23: =TRIBUTOS!AB24 -> 0 | AC23: =TRIBUTOS!AC24 -> 0 | AD23: =TRIBUTOS!AD24 -> 0 | AE23: =TRIBUTOS!AE24 -> 0 | AF23: =TRIBUTOS!AF24 -> 0 | AG23: =TRIBUTOS!AG24 -> 0 | AH23: =TRIBUTOS!AH24 -> 0 | AI23: =TRIBUTOS!AI24 -> 0 | AJ23: =TRIBUTOS!AJ24 -> 0 | AK23: =TRIBUTOS!AK24 -> 0 | AL23: =TRIBUTOS!AL24 -> 0 | AM23: =TRIBUTOS!AM24 -> 0 | AN23: =TRIBUTOS!AN24 -> 0 | AO23: =TRIBUTOS!AO24 -> 0 | AP23: =TRIBUTOS!AP24 -> 0 | AQ23: =TRIBUTOS!AQ24 -> 0 | AR23: =TRIBUTOS!AR24 -> 0 | AS23: =TRIBUTOS!AS24 -> 0 | AT23: =TRIBUTOS!AT24 -> 0 | AU23: =TRIBUTOS!AU24 -> 0 | AV23: =TRIBUTOS!AV24 -> 0 | AW23: =TRIBUTOS!AW24 -> 0 | AX23: =TRIBUTOS!AX24 -> 0 | AY23: =TRIBUTOS!AY24 -> 0 | AZ23: =TRIBUTOS!AZ24 -> 0 | BA23: =TRIBUTOS!BA24 -> 0 | BB23: =TRIBUTOS!BB24 -> 0 | BC23: =TRIBUTOS!BC24 -> 0 | BD23: =TRIBUTOS!BD24 -> 0 | BE23: =TRIBUTOS!BE24 -> 0 | BF23: =TRIBUTOS!BF24 -> 0 | BG23: =TRIBUTOS!BG24 -> 0 | BH23: =TRIBUTOS!BH24 -> 0 | BI23: =TRIBUTOS!BI24 -> 0 | BJ23: =TRIBUTOS!BJ24 -> 0 | BK23: =TRIBUTOS!BK24 -> 0 | BL23: =TRIBUTOS!BL24 -> 0 | BM23: =TRIBUTOS!BM24 -> 0 | BN23: =TRIBUTOS!BN24 -> 0 | BO23: =TRIBUTOS!BO24 -> 0 | BP23: =TRIBUTOS!BP24 -> 0 | BQ23: =TRIBUTOS!BQ24 -> 0 | BR23: =TRIBUTOS!BR24 -> 0 | BS23: =TRIBUTOS!BS24 -> 0 | BT23: =TRIBUTOS!BT24 -> 0 | BU23: =TRIBUTOS!BU24 -> 0 | BV23: =TRIBUTOS!BV24 -> 0 | BW23: =TRIBUTOS!BW24 -> 0 | BX23: =TRIBUTOS!BX24 -> 0 | BY23: =TRIBUTOS!BY24 -> 0 | BZ23: =TRIBUTOS!BZ24 -> 0 | CA23: =TRIBUTOS!CA24 -> 0 | CB23: =TRIBUTOS!CB24 -> 0 | CC23: =TRIBUTOS!CC24 -> 0 | CD23: =TRIBUTOS!CD24 -> 0 | CE23: =TRIBUTOS!CE24 -> 0 | CF23: =TRIBUTOS!CF24 -> 0 | CG23: =TRIBUTOS!CG24 -> 0 | CH23: =TRIBUTOS!CH24 -> 0 | CI23: =TRIBUTOS!CI24 -> 0 | CJ23: =TRIBUTOS!CJ24 -> 0 | CK23: =TRIBUTOS!CK24 -> 0 | CL23: =TRIBUTOS!CL24 -> 0 | CM23: =TRIBUTOS!CM24 -> 0 | CN23: =TRIBUTOS!CN24 -> 0 | CO23: =TRIBUTOS!CO24 -> 0 | CP23: =TRIBUTOS!CP24 -> 0 | CQ23: =TRIBUTOS!CQ24 -> 0 | CR23: =TRIBUTOS!CR24 -> 0 | CS23: =TRIBUTOS!CS24 -> 0 | CT23: =TRIBUTOS!CT24 -> 0 | CU23: =TRIBUTOS!CU24 -> 0 | CV23: =TRIBUTOS!CV24 -> 0 | CW23: =TRIBUTOS!CW24 -> 0 | CX23: =TRIBUTOS!CX24 -> 0 | CY23: =TRIBUTOS!CY24 -> 0 | CZ23: =TRIBUTOS!CZ24 -> 0 | DA23: =TRIBUTOS!DA24 -> 0 | DB23: =TRIBUTOS!DB24 -> 0 | DC23: =TRIBUTOS!DC24 -> 0 | DD23: =TRIBUTOS!DD24 -> 0 | DE23: =TRIBUTOS!DE24 -> 0 | DF23: =TRIBUTOS!DF24 -> 0 | DG23: =TRIBUTOS!DG24 -> 0 | DH23: =TRIBUTOS!DH24 -> 0 | DI23: =TRIBUTOS!DI24 -> 0 | DJ23: =TRIBUTOS!DJ24 -> 0 | DK23: =TRIBUTOS!DK24 -> 0 | DL23: =TRIBUTOS!DL24 -> 0 | DM23: =TRIBUTOS!DM24 -> 0 | DN23: =TRIBUTOS!DN24 -> 0 | DO23: =TRIBUTOS!DO24 -> 0 | DP23: =TRIBUTOS!DP24 -> 0 | DQ23: =TRIBUTOS!DQ24 -> 0 | DR23: =TRIBUTOS!DR24 -> 0 | DS23: =TRIBUTOS!DS24 -> 0 | DT23: =TRIBUTOS!DT24 -> 0 | DU23: =TRIBUTOS!DU24 -> 0 | DV23: =TRIBUTOS!DV24 -> 0 | DW23: =TRIBUTOS!DW24 -> 0 | DX23: =TRIBUTOS!DX24 -> 0 | DY23: =TRIBUTOS!DY24 -> 0 | DZ23: =TRIBUTOS!DZ24 -> 0 | EA23: =TRIBUTOS!EA24 -> 0 | EB23: =TRIBUTOS!EB24 -> 0 | EC23: =TRIBUTOS!EC24 -> 0 | ED23: =TRIBUTOS!ED24 -> 0 | EE23: =TRIBUTOS!EE24 -> 0 | EF23: =TRIBUTOS!EF24 -> 0 | EG23: =TRIBUTOS!EG24 -> 0 | EH23: =TRIBUTOS!EH24 -> 0 | EI23: =TRIBUTOS!EI24 -> 0 | EJ23: =TRIBUTOS!EJ24 -> 0 | EK23: =TRIBUTOS!EK24 -> 0 | EL23: =TRIBUTOS!EL24 -> 0 | EM23: =TRIBUTOS!EM24 -> 0 | EN23: =TRIBUTOS!EN24 -> 0 | EO23: =TRIBUTOS!EO24 -> 0 | EP23: =TRIBUTOS!EP24 -> 0 | EQ23: =TRIBUTOS!EQ24 -> 0 | ER23: =TRIBUTOS!ER24 -> 0 | ES23: =TRIBUTOS!ES24 -> 0 | ET23: =TRIBUTOS!ET24 -> 0 | EU23: =TRIBUTOS!EU24 -> 0 | EV23: =TRIBUTOS!EV24 -> 0 | EW23: =TRIBUTOS!EW24 -> 0 | EX23: =TRIBUTOS!EX24 -> 0 | EY23: =TRIBUTOS!EY24 -> 0 | EZ23: =TRIBUTOS!EZ24 -> 0 | FA23: =TRIBUTOS!FA24 -> 0 | FB23: =TRIBUTOS!FB24 -> 0 | FC23: =TRIBUTOS!FC24 -> 0 | FD23: =TRIBUTOS!FD24 -> 0 | FE23: =TRIBUTOS!FE24 -> 0 | FF23: =TRIBUTOS!FF24 -> 0 | FG23: =TRIBUTOS!FG24 -> 0 | FH23: =TRIBUTOS!FH24 -> 0 | FI23: =TRIBUTOS!FI24 -> 0 | FJ23: =TRIBUTOS!FJ24 -> 0 | FK23: =TRIBUTOS!FK24 -> 0 | FL23: =TRIBUTOS!FL24 -> 0 | FM23: =TRIBUTOS!FM24 -> 0 | FN23: =TRIBUTOS!FN24 -> 0 | FO23: =TRIBUTOS!FO24 -> 0 | FP23: =TRIBUTOS!FP24 -> 0 | FQ23: =TRIBUTOS!FQ24 -> 0 | FR23: =TRIBUTOS!FR24 -> 0 | FS23: =TRIBUTOS!FS24 -> 0 | FT23: =TRIBUTOS!FT24 -> 0 | FU23: =TRIBUTOS!FU24 -> 0 | FV23: =TRIBUTOS!FV24 -> 0 | FW23: =TRIBUTOS!FW24 -> 0 | FX23: =TRIBUTOS!FX24 -> 0 | FY23: =TRIBUTOS!FY24 -> 0 | FZ23: =TRIBUTOS!FZ24 -> 0 | GA23: =TRIBUTOS!GA24 -> 0 | GB23: =TRIBUTOS!GB24 -> 0 | GC23: =TRIBUTOS!GC24 -> 0 | GD23: =TRIBUTOS!GD24 -> 0 | GE23: =TRIBUTOS!GE24 -> 0 | GF23: =TRIBUTOS!GF24 -> 0 | GG23: =TRIBUTOS!GG24 -> 0 | GH23: =TRIBUTOS!GH24 -> 0 | GI23: =TRIBUTOS!GI24 -> 0 | GJ23: =TRIBUTOS!GJ24 -> 0 | GK23: =TRIBUTOS!GK24 -> 0 | GL23: =TRIBUTOS!GL24 -> 0 | GM23: =TRIBUTOS!GM24 -> 0 | GN23: =TRIBUTOS!GN24 -> 0 | GO23: =TRIBUTOS!GO24 -> 0 | GP23: =TRIBUTOS!GP24 -> 0 | GQ23: =TRIBUTOS!GQ24 -> 0 | GR23: =TRIBUTOS!GR24 -> 0 | GS23: =TRIBUTOS!GS24 -> 0 | GT23: =TRIBUTOS!GT24 -> 0 | GU23: =TRIBUTOS!GU24 -> 0 | GV23: =TRIBUTOS!GV24 -> 0 | GW23: =TRIBUTOS!GW24 -> 0 | GX23: =TRIBUTOS!GX24 -> 0 | GY23: =TRIBUTOS!GY24 -> 0 | GZ23: =TRIBUTOS!GZ24 -> 0 | HA23: =TRIBUTOS!HA24 -> 0 | HB23: =TRIBUTOS!HB24 -> 0 | HC23: =TRIBUTOS!HC24 -> 0 | HD23: =TRIBUTOS!HD24 -> 0 | HE23: =TRIBUTOS!HE24 -> 0 | HF23: =TRIBUTOS!HF24 -> 0 | HG23: =TRIBUTOS!HG24 -> 0 | HH23: =TRIBUTOS!HH24 -> 0 | HI23: =TRIBUTOS!HI24 -> 0 | HJ23: =TRIBUTOS!HJ24 -> 0 | HK23: =TRIBUTOS!HK24 -> 0 | HL23: =TRIBUTOS!HL24 -> 0 | HM23: =TRIBUTOS!HM24 -> 0 | HN23: =TRIBUTOS!HN24 -> 0 | HO23: =TRIBUTOS!HO24 -> 0 | HP23: =TRIBUTOS!HP24 -> 0 | HQ23: =TRIBUTOS!HQ24 -> 0 | HR23: =TRIBUTOS!HR24 -> 0 | HS23: =TRIBUTOS!HS24 -> 0 | HT23: =TRIBUTOS!HT24 -> 0 | HU23: =TRIBUTOS!HU24 -> 0 | HV23: =TRIBUTOS!HV24 -> 0 | HW23: =TRIBUTOS!HW24 -> 0 | HX23: =TRIBUTOS!HX24 -> 0 | HY23: =TRIBUTOS!HY24 -> 0 | HZ23: =TRIBUTOS!HZ24 -> 0 | IA23: =TRIBUTOS!IA24 -> 0 | IB23: =TRIBUTOS!IB24 -> 0 | IC23: =TRIBUTOS!IC24 -> 0 | ID23: =TRIBUTOS!ID24 -> 0 | IE23: =TRIBUTOS!IE24 -> 0 | IF23: =TRIBUTOS!IF24 -> 0 | IG23: =TRIBUTOS!IG24 -> 0 | IH23: =TRIBUTOS!IH24 -> 0 | II23: =TRIBUTOS!II24 -> 0 | IJ23: =TRIBUTOS!IJ24 -> 0 | IK23: =TRIBUTOS!IK24 -> 0 | IL23: =TRIBUTOS!IL24 -> 0 | IM23: =TRIBUTOS!IM24 -> 0 | IN23: =TRIBUTOS!IN24 -> 0 | IO23: =TRIBUTOS!IO24 -> 0 | IP23: =TRIBUTOS!IP24 -> 0 | IQ23: =TRIBUTOS!IQ24 -> 0 | IR23: =TRIBUTOS!IR24 -> 0 | IS23: =TRIBUTOS!IS24 -> 0 | IT23: =TRIBUTOS!IT24 -> 0 | IU23: =TRIBUTOS!IU24 -> 0 | IV23: =TRIBUTOS!IV24 -> 0 | IW23: =TRIBUTOS!IW24 -> 0 | IX23: =TRIBUTOS!IX24 -> 0 | IY23: =TRIBUTOS!IY24 -> 0 | IZ23: =TRIBUTOS!IZ24 -> 0 | JA23: =TRIBUTOS!JA24 -> 0 | JB23: =TRIBUTOS!JB24 -> 0 | JC23: =TRIBUTOS!JC24 -> 0 | JD23: =TRIBUTOS!JD24 -> 0 | JE23: =TRIBUTOS!JE24 -> 0 | JF23: =TRIBUTOS!JF24 -> 0 | JG23: =TRIBUTOS!JG24 -> 0 | JH23: =TRIBUTOS!JH24 -> 0 | JI23: =TRIBUTOS!JI24 -> 0 | JJ23: =TRIBUTOS!JJ24 -> 0 | JK23: =TRIBUTOS!JK24 -> 0 | JL23: =TRIBUTOS!JL24 -> 0 | JM23: =TRIBUTOS!JM24 -> 0 | JN23: =TRIBUTOS!JN24 -> 0 | JO23: =TRIBUTOS!JO24 -> 0 | JP23: =TRIBUTOS!JP24 -> 0 | JQ23: =TRIBUTOS!JQ24 -> 0 | JR23: =TRIBUTOS!JR24 -> 0 | JS23: =TRIBUTOS!JS24 -> 0 | JT23: =TRIBUTOS!JT24 -> 0 | JU23: =TRIBUTOS!JU24 -> 0 | JV23: =TRIBUTOS!JV24 -> 0 | JW23: =TRIBUTOS!JW24 -> 0 | JX23: =TRIBUTOS!JX24 -> 0 | JY23: =TRIBUTOS!JY24 -> 0 | JZ23: =TRIBUTOS!JZ24 -> 0 | KA23: =TRIBUTOS!KA24 -> 0 | KB23: =TRIBUTOS!KB24 -> 0 | KC23: =TRIBUTOS!KC24 -> 0 | KD23: =TRIBUTOS!KD24 -> 0 | KE23: =TRIBUTOS!KE24 -> 0 | KF23: =TRIBUTOS!KF24 -> 0 | KG23: =TRIBUTOS!KG24 -> 0 | KH23: =TRIBUTOS!KH24 -> 0 | KI23: =TRIBUTOS!KI24 -> 0 | KJ23: =TRIBUTOS!KJ24 -> 0 | KK23: =TRIBUTOS!KK24 -> 0 | KL23: =TRIBUTOS!KL24 -> 0 | KM23: =TRIBUTOS!KM24 -> 0 | KN23: =TRIBUTOS!KN24 -> 0 | KO23: =TRIBUTOS!KO24 -> 0 | KP23: =TRIBUTOS!KP24 -> 0 | KQ23: =TRIBUTOS!KQ24 -> 0 | KR23: =TRIBUTOS!KR24 -> 0 | KS23: =TRIBUTOS!KS24 -> 0 | KT23: =TRIBUTOS!KT24 -> 0 | KU23: =TRIBUTOS!KU24 -> 0 | KV23: =TRIBUTOS!KV24 -> 0 | KW23: =TRIBUTOS!KW24 -> 0 | KX23: =TRIBUTOS!KX24 -> 0 | KY23: =TRIBUTOS!KY24 -> 0 | KZ23: =TRIBUTOS!KZ24 -> 0 | LA23: =TRIBUTOS!LA24 -> 0 | LB23: =TRIBUTOS!LB24 -> 0 | LC23: =TRIBUTOS!LC24 -> 0 | LD23: =TRIBUTOS!LD24 -> 0 | LE23: =TRIBUTOS!LE24 -> 0 | LF23: =TRIBUTOS!LF24 -> 0 | LG23: =TRIBUTOS!LG24 -> 0 | LH23: =TRIBUTOS!LH24 -> 0 | LI23: =TRIBUTOS!LI24 -> 0 | LJ23: =TRIBUTOS!LJ24 -> 0 | LK23: =TRIBUTOS!LK24 -> 0 | LL23: =TRIBUTOS!LL24 -> 0 | LM23: =TRIBUTOS!LM24 -> 0 | LN23: =TRIBUTOS!LN24 -> 0 | LO23: =TRIBUTOS!LO24 -> 0 | LP23: =TRIBUTOS!LP24 -> 0 | LQ23: =TRIBUTOS!LQ24 -> 0 | LR23: =TRIBUTOS!LR24 -> 0 | LS23: =TRIBUTOS!LS24 -> 0 | LT23: =TRIBUTOS!LT24 -> 0 | LU23: =TRIBUTOS!LU24 -> 0 | LV23: =TRIBUTOS!LV24 -> 0 | LW23: =TRIBUTOS!LW24 -> 0 | LX23: =TRIBUTOS!LX24 -> 0 | LY23: =TRIBUTOS!LY24 -> 0 | LZ23: =TRIBUTOS!LZ24 -> 0 | MA23: =TRIBUTOS!MA24 -> 0 | MB23: =TRIBUTOS!MB24 -> 0 | MC23: =TRIBUTOS!MC24 -> 0 | MD23: =TRIBUTOS!MD24 -> 0 | ME23: =TRIBUTOS!ME24 -> 0 | MF23: =TRIBUTOS!MF24 -> 0 | MG23: =TRIBUTOS!MG24 -> 0 | MH23: =TRIBUTOS!MH24 -> 0 | MI23: =TRIBUTOS!MI24 -> 0 | MJ23: =TRIBUTOS!MJ24 -> 0 | MK23: =TRIBUTOS!MK24 -> 0 | ML23: =TRIBUTOS!ML24 -> 0 | MM23: =TRIBUTOS!MM24 -> 0 | MN23: =TRIBUTOS!MN24 -> 0 | MO23: =TRIBUTOS!MO24 -> 0 | MP23: =TRIBUTOS!MP24 -> 0 | MQ23: =TRIBUTOS!MQ24 -> 0 | MR23: =TRIBUTOS!MR24 -> 0 | MS23: =TRIBUTOS!MS24 -> 0 | MT23: =TRIBUTOS!MT24 -> 0 | MU23: =TRIBUTOS!MU24 -> 0 | MV23: =TRIBUTOS!MV24 -> 0 | MW23: =TRIBUTOS!MW24 -> 0 | MX23: =TRIBUTOS!MX24 -> 0 | MY23: =TRIBUTOS!MY24 -> 0 | MZ23: =TRIBUTOS!MZ24 -> 0 | NA23: =TRIBUTOS!NA24 -> 0 | NB23: =TRIBUTOS!NB24 -> 0 | NC23: =TRIBUTOS!NC24 -> 0 | ND23: =TRIBUTOS!ND24 -> 0 | NE23: =TRIBUTOS!NE24 -> 0 | NF23: =TRIBUTOS!NF24 -> 0 | NG23: =TRIBUTOS!NG24 -> 0 | NH23: =TRIBUTOS!NH24 -> 0 | NI23: =TRIBUTOS!NI24 -> 0 | NJ23: =TRIBUTOS!NJ24 -> 0 | NK23: =TRIBUTOS!NK24 -> 0 | NL23: =TRIBUTOS!NL24 -> 0 | NM23: =TRIBUTOS!NM24 -> 0 | NN23: =TRIBUTOS!NN24 -> 0 | NO23: =TRIBUTOS!NO24 -> 0 | NP23: =TRIBUTOS!NP24 -> 0 | NQ23: =TRIBUTOS!NQ24 -> 0 | NR23: =TRIBUTOS!NR24 -> 0 | NS23: =TRIBUTOS!NS24 -> 0 | NT23: =TRIBUTOS!NT24 -> 0 | NU23: =TRIBUTOS!NU24 -> 0 | NV23: =TRIBUTOS!NV24 -> 0 | NW23: =TRIBUTOS!NW24 -> 0 | NX23: =TRIBUTOS!NX24 -> 0 | NY23: =TRIBUTOS!NY24 -> 0 | NZ23: =TRIBUTOS!NZ24 -> 0 | OA23: =TRIBUTOS!OA24 -> 0 | OB23: =TRIBUTOS!OB24 -> 0 | OC23: =TRIBUTOS!OC24 -> 0 | OD23: =TRIBUTOS!OD24 -> 0 | OE23: =TRIBUTOS!OE24 -> 0 | OF23: =TRIBUTOS!OF24 -> 0 | OG23: =TRIBUTOS!OG24 -> 0 | OH23: =TRIBUTOS!OH24 -> 0 | OI23: =TRIBUTOS!OI24 -> 0 | OJ23: =TRIBUTOS!OJ24 -> 0 | OK23: =TRIBUTOS!OK24 -> 0 | OL23: =TRIBUTOS!OL24 -> 0 | OM23: =TRIBUTOS!OM24 -> 0 | ON23: =TRIBUTOS!ON24 -> 0 | OO23: =TRIBUTOS!OO24 -> 0 | OP23: =TRIBUTOS!OP24 -> 0 | OQ23: =TRIBUTOS!OQ24 -> 0 | OR23: =TRIBUTOS!OR24 -> 0 | OS23: =TRIBUTOS!OS24 -> 0 | OT23: =TRIBUTOS!OT24 -> 0 | OU23: =TRIBUTOS!OU24 -> 0 | OV23: =TRIBUTOS!OV24 -> 0 | OW23: =TRIBUTOS!OW24 -> 0 | OX23: =TRIBUTOS!OX24 -> 0 | OY23: =TRIBUTOS!OY24 -> 0 | OZ23: =TRIBUTOS!OZ24 -> 0 | PA23: =TRIBUTOS!PA24 -> 0 | PB23: =TRIBUTOS!PB24 -> 0 | PC23: =TRIBUTOS!PC24 -> 0 | PD23: =TRIBUTOS!PD24 -> 0 | PE23: =TRIBUTOS!PE24 -> 0 | PF23: =TRIBUTOS!PF24 -> 0 | PG23: =TRIBUTOS!PG24 -> 0 | PH23: =TRIBUTOS!PH24 -> 0 | PI23: =TRIBUTOS!PI24 -> 0 | PJ23: =TRIBUTOS!PJ24 -> 0 | PK23: =TRIBUTOS!PK24 -> 0 | PL23: =TRIBUTOS!PL24 -> 0 | PM23: =TRIBUTOS!PM24 -> 0 | PN23: 0
D24: 0 | E24: =NPV(PainelControle!$D$8,$K24:$PM24)+J24 -> 0 | PN24: 0
B25: (=) ENTRADA DE CAIXA LÍQUIDA | D25: 1.377612961e+10 | E25: =NPV(PainelControle!$D$8,$K25:$PM25)+J25 -> 3364603132 | J25: =J12-J19 -> 14811757.09 | K25: 14754894.9 | L25: 14755208.81 | M25: 14755522.72 | N25: 14755836.63 | O25: 14756150.54 | P25: 14756464.45 | Q25: 14756778.36 | R25: 14757092.27 | S25: 14757406.18 | T25: 14759088.15 | U25: 14761158.95 | V25: 14820436.47 | W25: 14765834.45 | X25: 14768764.01 | Y25: 14772362.28 | Z25: 14776319.13 | AA25: 14781506.42 | AB25: 14792569.52 | AC25: 14795836.49 | AD25: 15554573.3 | AE25: 15559567.8 | AF25: 15565184.03 | AG25: 15572872.07 | AH25: 15639343.86 | AI25: 15598654.73 | AJ25: 15610037.13 | AK25: 16007612.02 | AL25: 16021917.34 | AM25: 16038879.13 | AN25: 17115496.11 | AO25: 17134616.72 | AP25: 17169953.3 | AQ25: 17188558.02 | AR25: 18190049.57 | AS25: 18208503.59 | AT25: 23017736.5 | AU25: 22998595.48 | AV25: 23013483.02 | AW25: 23713471 | AX25: 23724899.86 | AY25: 23730763.94 | AZ25: 35792591.68 | BA25: 35798403.51 | BB25: 35803841.33 | BC25: 35808352.79 | BD25: 35812484.76 | BE25: 35814850.66 | BF25: 39899383.38 | BG25: 39851652.19 | BH25: 39854451.28 | BI25: 39857465.52 | BJ25: 39860696.08 | BK25: 39863203.24 | BL25: 40854557.24 | BM25: 40856763.03 | BN25: 40858658.9 | BO25: 40860243.15 | BP25: 40861514.04 | BQ25: 40861514.04 | BR25: 43373742.61 | BS25: 43324292.11 | BT25: 43324292.11 | BU25: 43324292.11 | BV25: =BV12-BV19 -> 43324292.11 | BW25: 43324292.11 | BX25: 43324292.11 | BY25: 43324292.11 | BZ25: 43324292.11 | CA25: 43324292.11 | CB25: 43323617.55 | CC25: 43322846.62 | CD25: 42695887.98 | CE25: 42645377.46 | CF25: 42644221.07 | CG25: 42642871.95 | CH25: 42641426.47 | CI25: 42640077.35 | CJ25: 42632671.18 | CK25: 42632671.18 | CL25: 42632671.18 | CM25: 42632671.18 | CN25: 42632671.18 | CO25: 42632671.18 | CP25: 42006579.84 | CQ25: 41951242.8 | CR25: 41951242.8 | CS25: 41951242.8 | CT25: 41951242.8 | CU25: 41951242.8 | CV25: 41951242.8 | CW25: 41951242.8 | CX25: 41935975.13 | CY25: 41935975.13 | CZ25: 41935975.13 | DA25: 41935975.13 | DB25: 41309883.79 | DC25: 41243727.01 | DD25: 41243727.01 | DE25: 41243727.01 | DF25: 41243727.01 | DG25: 41243727.01 | DH25: 41243727.01 | DI25: 41243727.01 | DJ25: 41243727.01 | DK25: 41243727.01 | DL25: 41243727.01 | DM25: 41243727.01 | DN25: 40617635.67 | DO25: 40568185.17 | DP25: 40568185.17 | DQ25: 40568185.17 | DR25: 40568185.17 | DS25: 40568185.17 | DT25: 40568185.17 | DU25: 40568185.17 | DV25: 40568185.17 | DW25: 40568185.17 | DX25: 40568185.17 | DY25: 40568185.17 | DZ25: 39942093.82 | EA25: 39892643.32 | EB25: 39892643.32 | EC25: 39892643.32 | ED25: 39892643.32 | EE25: 39892643.32 | EF25: 39892643.32 | EG25: 39892643.32 | EH25: =EH12-EH19 -> 39892643.32 | EI25: 39892643.32 | EJ25: 39892643.32 | EK25: 39892643.32 | EL25: 39266551.98 | EM25: 39217101.48 | EN25: 39217101.48 | EO25: 39217101.48 | EP25: 39217101.48 | EQ25: 39217101.48 | ER25: 39217101.48 | ES25: 39217101.48 | ET25: 39217101.48 | EU25: 39217101.48 | EV25: 39217101.48 | EW25: 39217101.48 | EX25: 38591010.14 | EY25: 38541559.64 | EZ25: 38541559.64 | FA25: 38541559.64 | FB25: 38541559.64 | FC25: 38541559.64 | FD25: 38541559.64 | FE25: 38541559.64 | FF25: 38541559.64 | FG25: 38541559.64 | FH25: 38541559.64 | FI25: 38541559.64 | FJ25: 37915468.29 | FK25: 37866017.79 | FL25: 37866017.79 | FM25: 37866017.79 | FN25: 37866017.79 | FO25: 37866017.79 | FP25: 37866017.79 | FQ25: 37866017.79 | FR25: 37866017.79 | FS25: 37866017.79 | FT25: 37866017.79 | FU25: 37866017.79 | FV25: 37239926.45 | FW25: 37190475.95 | FX25: 37190475.95 | FY25: 37190475.95 | FZ25: 37190475.95 | GA25: 37190475.95 | GB25: 37190475.95 | GC25: 37190475.95 | GD25: 37190475.95 | GE25: 37190475.95 | GF25: 37190475.95 | GG25: 37190475.95 | GH25: 36514153.75 | GI25: 36514153.75 | GJ25: 36514153.75 | GK25: 36514153.75 | GL25: 36514153.75 | GM25: 36514153.75 | GN25: 36514153.75 | GO25: 36514153.75 | GP25: 36514153.75 | GQ25: 36514153.75 | GR25: 36514153.75 | GS25: 36514153.75 | GT25: =GT12-GT19 -> 35765740.04 | GU25: 35765740.04 | GV25: 35765740.04 | GW25: 35765740.04 | GX25: 35765740.04 | GY25: 35765740.04 | GZ25: 35765740.04 | HA25: 35765740.04 | HB25: 35765740.04 | HC25: 35765740.04 | HD25: 35765740.04 | HE25: 35765740.04 | HF25: 35017326.34 | HG25: 35017326.34 | HH25: 35017326.34 | HI25: 35017326.34 | HJ25: 35017326.34 | HK25: 35017326.34 | HL25: 35017326.34 | HM25: 35017326.34 | HN25: 35017326.34 | HO25: 35017326.34 | HP25: 35017326.34 | HQ25: 35017326.34 | HR25: 34268912.63 | HS25: 34268912.63 | HT25: 34268912.63 | HU25: 34268912.63 | HV25: 34268912.63 | HW25: 34268912.63 | HX25: 34268912.63 | HY25: 34268912.63 | HZ25: 34268912.63 | IA25: 34268912.63 | IB25: 34268912.63 | IC25: 34268912.63 | ID25: 33520498.93 | IE25: 33520498.93 | IF25: 33520498.93 | IG25: 33520498.93 | IH25: 33520498.93 | II25: 33520498.93 | IJ25: 33520498.93 | IK25: 33520498.93 | IL25: 33520498.93 | IM25: 33520498.93 | IN25: 33520498.93 | IO25: 33520498.93 | IP25: 32772085.22 | IQ25: 32772085.22 | IR25: 32772085.22 | IS25: 32772085.22 | IT25: 32772085.22 | IU25: 32772085.22 | IV25: 32772085.22 | IW25: 32772085.22 | IX25: 32772085.22 | IY25: 32772085.22 | IZ25: 32772085.22 | JA25: 32772085.22 | JB25: 32023671.52 | JC25: 32023671.52 | JD25: 32023671.52 | JE25: 32023671.52 | JF25: =JF12-JF19 -> 32023671.52 | JG25: 32023671.52 | JH25: 32023671.52 | JI25: 32023671.52 | JJ25: 32023671.52 | JK25: 32023671.52 | JL25: 32023671.52 | JM25: 32023671.52 | JN25: 31275257.81 | JO25: 31275257.81 | JP25: 31275257.81 | JQ25: 31275257.81 | JR25: 31275257.81 | JS25: 31275257.81 | JT25: 31275257.81 | JU25: 31275257.81 | JV25: 31275257.81 | JW25: 31275257.81 | JX25: 31275257.81 | JY25: 31275257.81 | JZ25: 30526844.11 | KA25: 30526844.11 | KB25: 30526844.11 | KC25: 30526844.11 | KD25: 30526844.11 | KE25: 30526844.11 | KF25: 30526844.11 | KG25: 30526844.11 | KH25: 30526844.11 | KI25: 30526844.11 | KJ25: 30526844.11 | KK25: 30526844.11 | KL25: 29767470.13 | KM25: 29767470.13 | KN25: 29767470.13 | KO25: 29767470.13 | KP25: 29767470.13 | KQ25: 29767470.13 | KR25: 29767470.13 | KS25: 29767470.13 | KT25: 29767470.13 | KU25: 29767470.13 | KV25: 29767470.13 | KW25: 29767470.13 | KX25: 29767470.13 | KY25: 29767470.13 | KZ25: 29767470.13 | LA25: 29767470.13 | LB25: 29767470.13 | LC25: 29767470.13 | LD25: 29767470.13 | LE25: 29767470.13 | LF25: 29767470.13 | LG25: 29767470.13 | LH25: 29767470.13 | LI25: 29767470.13 | LJ25: 29767470.13 | LK25: 29767470.13 | LL25: 29767470.13 | LM25: 29767470.13 | LN25: 29767470.13 | LO25: 29767470.13 | LP25: 29767470.13 | LQ25: 29767470.13 | LR25: =LR12-LR19 -> 29767470.13 | LS25: 29767470.13 | LT25: 29767470.13 | LU25: 29767470.13 | LV25: 29767470.13 | LW25: 29767470.13 | LX25: 29767470.13 | LY25: 29767470.13 | LZ25: 29767470.13 | MA25: 29767470.13 | MB25: 29767470.13 | MC25: 29767470.13 | MD25: 29767470.13 | ME25: 29767470.13 | MF25: 29767470.13 | MG25: 29767470.13 | MH25: 29767470.13 | MI25: 29767470.13 | MJ25: 29767470.13 | MK25: 29767470.13 | ML25: 29767470.13 | MM25: 29767470.13 | MN25: 29767470.13 | MO25: 29767470.13 | MP25: 29767470.13 | MQ25: 29767470.13 | MR25: 29767470.13 | MS25: 29767470.13 | MT25: 29767470.13 | MU25: 29767470.13 | MV25: 29767470.13 | MW25: 29767470.13 | MX25: 29767470.13 | MY25: 29767470.13 | MZ25: 29767470.13 | NA25: 29767470.13 | NB25: 29767470.13 | NC25: 29767470.13 | ND25: 29767470.13 | NE25: 29767470.13 | NF25: 29767470.13 | NG25: 29767470.13 | NH25: 29767470.13 | NI25: 29767470.13 | NJ25: 29767470.13 | NK25: 29767470.13 | NL25: 29767470.13 | NM25: 29767470.13 | NN25: 29767470.13 | NO25: 29767470.13 | NP25: 29767470.13 | NQ25: 29767470.13 | NR25: 29767470.13 | NS25: 29767470.13 | NT25: 29767470.13 | NU25: 29767470.13 | NV25: 29767470.13 | NW25: 29767470.13 | NX25: 29767470.13 | NY25: 29767470.13 | NZ25: 29767470.13 | OA25: 29767470.13 | OB25: 29767470.13 | OC25: 29767470.13 | OD25: =OD12-OD19 -> 29767470.13 | OE25: 29767470.13 | OF25: 29767470.13 | OG25: 29767470.13 | OH25: 29767470.13 | OI25: 29767470.13 | OJ25: 29767470.13 | OK25: 29767470.13 | OL25: 29767470.13 | OM25: 29767470.13 | ON25: 29767470.13 | OO25: 29767470.13 | OP25: 29767470.13 | OQ25: 29767470.13 | OR25: 29767470.13 | OS25: 29767470.13 | OT25: 29767470.13 | OU25: 29767470.13 | OV25: 29767470.13 | OW25: 29767470.13 | OX25: 29767470.13 | OY25: 29767470.13 | OZ25: 29767470.13 | PA25: 29767470.13 | PB25: 29767470.13 | PC25: 29767470.13 | PD25: 29767470.13 | PE25: 29767470.13 | PF25: 29767470.13 | PG25: 29767470.13 | PH25: 29767470.13 | PI25: 29767470.13 | PJ25: 29767470.13 | PK25: 29767470.13 | PL25: 29767470.13 | PM25: 29767470.13 | PN25: 0
D26: 0 | E26: =NPV(PainelControle!$D$8,$K26:$PM26)+J26 -> 0 | PN26: 0
B27: (-) DESPESAS OPERACIONAIS | D27: 5585948608 | E27: =NPV(PainelControle!$D$8,$K27:$PM27)+J27 -> 1414882635 | J27: =SUM(J28:J31) -> 13224303.39 | K27: 12606183.39 | L27: 12606183.39 | M27: 12606183.39 | N27: 12606183.39 | O27: 12606183.39 | P27: 12606183.39 | Q27: 12606183.39 | R27: 12606183.39 | S27: 12606183.39 | T27: 12696536.24 | U27: 12629241.39 | V27: 13247361.39 | W27: 12629241.39 | X27: 12629241.39 | Y27: 12629241.39 | Z27: 12629241.39 | AA27: 12680813.33 | AB27: 12642849.39 | AC27: 12642849.39 | AD27: 12768819.81 | AE27: 12768819.81 | AF27: 12768819.81 | AG27: 12768819.81 | AH27: 13554081.01 | AI27: 12797421.81 | AJ27: 12797421.81 | AK27: 12614818.69 | AL27: 12614818.69 | AM27: 12733083.23 | AN27: 12659413.5 | AO27: 12659413.5 | AP27: 12659413.5 | AQ27: 12659413.5 | AR27: 12267212.68 | AS27: 12267212.68 | AT27: 13103549.37 | AU27: 12528989.37 | AV27: 12528989.37 | AW27: 12406116.31 | AX27: 12406116.31 | AY27: 12406116.31 | AZ27: 13007755.48 | BA27: 13007755.48 | BB27: 13007755.48 | BC27: 13007755.48 | BD27: 13007755.48 | BE27: 13007755.48 | BF27: 13942674.44 | BG27: 13398714.44 | BH27: 13398714.44 | BI27: 13398714.44 | BJ27: 13398714.44 | BK27: 13398714.44 | BL27: 13342519.04 | BM27: 13342519.04 | BN27: 13342519.04 | BO27: 13342519.04 | BP27: 13342519.04 | BQ27: 13342519.04 | BR27: 13863481.29 | BS27: 13328881.29 | BT27: 13328881.29 | BU27: 13328881.29 | BV27: =SUM(BV28:BV31) -> 13328881.29 | BW27: 13328881.29 | BX27: 13328881.29 | BY27: 13328881.29 | BZ27: 13328881.29 | CA27: 13328881.29 | CB27: 13328881.29 | CC27: 13328881.29 | CD27: 13863481.29 | CE27: 13328881.29 | CF27: 13328881.29 | CG27: 13328881.29 | CH27: 13328881.29 | CI27: 13328881.29 | CJ27: 13328881.29 | CK27: 13328881.29 | CL27: 13328881.29 | CM27: 13328881.29 | CN27: 13328881.29 | CO27: 13328881.29 | CP27: 13863481.29 | CQ27: 13328881.29 | CR27: 13328881.29 | CS27: 13328881.29 | CT27: 13328881.29 | CU27: 13328881.29 | CV27: 13328881.29 | CW27: 13328881.29 | CX27: 13328881.29 | CY27: 13328881.29 | CZ27: 13328881.29 | DA27: 13328881.29 | DB27: 13863481.29 | DC27: 13328881.29 | DD27: 13328881.29 | DE27: 13328881.29 | DF27: 13328881.29 | DG27: 13328881.29 | DH27: 13328881.29 | DI27: 13328881.29 | DJ27: 13328881.29 | DK27: 13328881.29 | DL27: 13328881.29 | DM27: 13328881.29 | DN27: 13863481.29 | DO27: 13328881.29 | DP27: 13328881.29 | DQ27: 13328881.29 | DR27: 13328881.29 | DS27: 13328881.29 | DT27: 13328881.29 | DU27: 13328881.29 | DV27: 13328881.29 | DW27: 13328881.29 | DX27: 13328881.29 | DY27: 13328881.29 | DZ27: 13863481.29 | EA27: 13328881.29 | EB27: 13328881.29 | EC27: 13328881.29 | ED27: 13328881.29 | EE27: 13328881.29 | EF27: 13328881.29 | EG27: 13328881.29 | EH27: =SUM(EH28:EH31) -> 13328881.29 | EI27: 13328881.29 | EJ27: 13328881.29 | EK27: 13328881.29 | EL27: 13863481.29 | EM27: 13328881.29 | EN27: 13328881.29 | EO27: 13328881.29 | EP27: 13328881.29 | EQ27: 13328881.29 | ER27: 13328881.29 | ES27: 13328881.29 | ET27: 13328881.29 | EU27: 13328881.29 | EV27: 13328881.29 | EW27: 13328881.29 | EX27: 13863481.29 | EY27: 13328881.29 | EZ27: 13328881.29 | FA27: 13328881.29 | FB27: 13328881.29 | FC27: 13328881.29 | FD27: 13328881.29 | FE27: 13328881.29 | FF27: 13328881.29 | FG27: 13328881.29 | FH27: 13328881.29 | FI27: 13328881.29 | FJ27: 13863481.29 | FK27: 13328881.29 | FL27: 13328881.29 | FM27: 13328881.29 | FN27: 13328881.29 | FO27: 13328881.29 | FP27: 13328881.29 | FQ27: 13328881.29 | FR27: 13328881.29 | FS27: 13328881.29 | FT27: 13328881.29 | FU27: 13328881.29 | FV27: 13863481.29 | FW27: 13328881.29 | FX27: 13328881.29 | FY27: 13328881.29 | FZ27: 13328881.29 | GA27: 13328881.29 | GB27: 13328881.29 | GC27: 13328881.29 | GD27: 13328881.29 | GE27: 13328881.29 | GF27: 13328881.29 | GG27: 13328881.29 | GH27: 13863481.29 | GI27: 13328881.29 | GJ27: 13328881.29 | GK27: 13328881.29 | GL27: 13328881.29 | GM27: 13328881.29 | GN27: 13328881.29 | GO27: 13328881.29 | GP27: 13328881.29 | GQ27: 13328881.29 | GR27: 13328881.29 | GS27: 13328881.29 | GT27: =SUM(GT28:GT31) -> 13863481.29 | GU27: 13328881.29 | GV27: 13328881.29 | GW27: 13328881.29 | GX27: 13328881.29 | GY27: 13328881.29 | GZ27: 13328881.29 | HA27: 13328881.29 | HB27: 13328881.29 | HC27: 13328881.29 | HD27: 13328881.29 | HE27: 13328881.29 | HF27: 13863481.29 | HG27: 13328881.29 | HH27: 13328881.29 | HI27: 13328881.29 | HJ27: 13328881.29 | HK27: 13328881.29 | HL27: 13328881.29 | HM27: 13328881.29 | HN27: 13328881.29 | HO27: 13328881.29 | HP27: 13328881.29 | HQ27: 13328881.29 | HR27: 13863481.29 | HS27: 13328881.29 | HT27: 13328881.29 | HU27: 13328881.29 | HV27: 13328881.29 | HW27: 13328881.29 | HX27: 13328881.29 | HY27: 13328881.29 | HZ27: 13328881.29 | IA27: 13328881.29 | IB27: 13328881.29 | IC27: 13328881.29 | ID27: 13863481.29 | IE27: 13328881.29 | IF27: 13328881.29 | IG27: 13328881.29 | IH27: 13328881.29 | II27: 13328881.29 | IJ27: 13328881.29 | IK27: 13328881.29 | IL27: 13328881.29 | IM27: 13328881.29 | IN27: 13328881.29 | IO27: 13328881.29 | IP27: 13863481.29 | IQ27: 13328881.29 | IR27: 13328881.29 | IS27: 13328881.29 | IT27: 13328881.29 | IU27: 13328881.29 | IV27: 13328881.29 | IW27: 13328881.29 | IX27: 13328881.29 | IY27: 13328881.29 | IZ27: 13328881.29 | JA27: 13328881.29 | JB27: 13863481.29 | JC27: 13328881.29 | JD27: 13328881.29 | JE27: 13328881.29 | JF27: =SUM(JF28:JF31) -> 13328881.29 | JG27: 13328881.29 | JH27: 13328881.29 | JI27: 13328881.29 | JJ27: 13328881.29 | JK27: 13328881.29 | JL27: 13328881.29 | JM27: 13328881.29 | JN27: 13863481.29 | JO27: 13328881.29 | JP27: 13328881.29 | JQ27: 13328881.29 | JR27: 13328881.29 | JS27: 13328881.29 | JT27: 13328881.29 | JU27: 13328881.29 | JV27: 13328881.29 | JW27: 13328881.29 | JX27: 13328881.29 | JY27: 13328881.29 | JZ27: 13863481.29 | KA27: 13328881.29 | KB27: 13328881.29 | KC27: 13328881.29 | KD27: 13328881.29 | KE27: 13328881.29 | KF27: 13328881.29 | KG27: 13328881.29 | KH27: 13328881.29 | KI27: 13328881.29 | KJ27: 13328881.29 | KK27: 13328881.29 | KL27: 13863481.29 | KM27: 13328881.29 | KN27: 13328881.29 | KO27: 13328881.29 | KP27: 13328881.29 | KQ27: 13328881.29 | KR27: 13328881.29 | KS27: 13328881.29 | KT27: 13328881.29 | KU27: 13328881.29 | KV27: 13328881.29 | KW27: 13328881.29 | KX27: 13863481.29 | KY27: 13328881.29 | KZ27: 13328881.29 | LA27: 13328881.29 | LB27: 13328881.29 | LC27: 13328881.29 | LD27: 13328881.29 | LE27: 13328881.29 | LF27: 13328881.29 | LG27: 13328881.29 | LH27: 13328881.29 | LI27: 13328881.29 | LJ27: 13863481.29 | LK27: 13328881.29 | LL27: 13328881.29 | LM27: 13328881.29 | LN27: 13328881.29 | LO27: 13328881.29 | LP27: 13328881.29 | LQ27: 13328881.29 | LR27: =SUM(LR28:LR31) -> 13328881.29 | LS27: 13328881.29 | LT27: 13328881.29 | LU27: 13328881.29 | LV27: 13863481.29 | LW27: 13328881.29 | LX27: 13328881.29 | LY27: 13328881.29 | LZ27: 13328881.29 | MA27: 13328881.29 | MB27: 13328881.29 | MC27: 13328881.29 | MD27: 13328881.29 | ME27: 13328881.29 | MF27: 13328881.29 | MG27: 13328881.29 | MH27: 13863481.29 | MI27: 13328881.29 | MJ27: 13328881.29 | MK27: 13328881.29 | ML27: 13328881.29 | MM27: 13328881.29 | MN27: 13328881.29 | MO27: 13328881.29 | MP27: 13328881.29 | MQ27: 13328881.29 | MR27: 13328881.29 | MS27: 13328881.29 | MT27: 13863481.29 | MU27: 13328881.29 | MV27: 13328881.29 | MW27: 13328881.29 | MX27: 13328881.29 | MY27: 13328881.29 | MZ27: 13328881.29 | NA27: 13328881.29 | NB27: 13328881.29 | NC27: 13328881.29 | ND27: 13328881.29 | NE27: 13328881.29 | NF27: 13863481.29 | NG27: 13328881.29 | NH27: 13328881.29 | NI27: 13328881.29 | NJ27: 13328881.29 | NK27: 13328881.29 | NL27: 13328881.29 | NM27: 13328881.29 | NN27: 13328881.29 | NO27: 13328881.29 | NP27: 13328881.29 | NQ27: 13328881.29 | NR27: 13863481.29 | NS27: 13328881.29 | NT27: 13328881.29 | NU27: 13328881.29 | NV27: 13328881.29 | NW27: 13328881.29 | NX27: 13328881.29 | NY27: 13328881.29 | NZ27: 13328881.29 | OA27: 13328881.29 | OB27: 13328881.29 | OC27: 13328881.29 | OD27: =SUM(OD28:OD31) -> 13863481.29 | OE27: 13328881.29 | OF27: 13328881.29 | OG27: 13328881.29 | OH27: 13328881.29 | OI27: 13328881.29 | OJ27: 13328881.29 | OK27: 13328881.29 | OL27: 13328881.29 | OM27: 13328881.29 | ON27: 13328881.29 | OO27: 13328881.29 | OP27: 13863481.29 | OQ27: 13328881.29 | OR27: 13328881.29 | OS27: 13328881.29 | OT27: 13328881.29 | OU27: 13328881.29 | OV27: 13328881.29 | OW27: 13328881.29 | OX27: 13328881.29 | OY27: 13328881.29 | OZ27: 13328881.29 | PA27: 13328881.29 | PB27: 13863481.29 | PC27: 13328881.29 | PD27: 13328881.29 | PE27: 13328881.29 | PF27: 13328881.29 | PG27: 13328881.29 | PH27: 13328881.29 | PI27: 13328881.29 | PJ27: 13328881.29 | PK27: 13328881.29 | PL27: 13328881.29 | PM27: 13328881.29 | PN27: 0
C28: OPEX | D28: 5019055527 | E28: =NPV(PainelControle!$D$8,$K28:$PM28)+J28 -> 1305111474 | F28: =PainelControle!$E$54 -> 1 | J28: =OPEX!J$12*J$9*$F$28 -> 13224303.39 | K28: =OPEX!K$12*K$9*$F$28 -> 12606183.39 | L28: =OPEX!L$12*L$9*$F$28 -> 12606183.39 | M28: =OPEX!M$12*M$9*$F$28 -> 12606183.39 | N28: =OPEX!N$12*N$9*$F$28 -> 12606183.39 | O28: =OPEX!O$12*O$9*$F$28 -> 12606183.39 | P28: =OPEX!P$12*P$9*$F$28 -> 12606183.39 | Q28: =OPEX!Q$12*Q$9*$F$28 -> 12606183.39 | R28: =OPEX!R$12*R$9*$F$28 -> 12606183.39 | S28: =OPEX!S$12*S$9*$F$28 -> 12606183.39 | T28: =OPEX!T$12*T$9*$F$28 -> 12696536.24 | U28: =OPEX!U$12*U$9*$F$28 -> 12629241.39 | V28: =OPEX!V$12*V$9*$F$28 -> 13247361.39 | W28: =OPEX!W$12*W$9*$F$28 -> 12629241.39 | X28: =OPEX!X$12*X$9*$F$28 -> 12629241.39 | Y28: =OPEX!Y$12*Y$9*$F$28 -> 12629241.39 | Z28: =OPEX!Z$12*Z$9*$F$28 -> 12629241.39 | AA28: =OPEX!AA$12*AA$9*$F$28 -> 12680813.33 | AB28: =OPEX!AB$12*AB$9*$F$28 -> 12642849.39 | AC28: =OPEX!AC$12*AC$9*$F$28 -> 12642849.39 | AD28: =OPEX!AD$12*AD$9*$F$28 -> 12768819.81 | AE28: =OPEX!AE$12*AE$9*$F$28 -> 12768819.81 | AF28: =OPEX!AF$12*AF$9*$F$28 -> 12768819.81 | AG28: =OPEX!AG$12*AG$9*$F$28 -> 12768819.81 | AH28: =OPEX!AH$12*AH$9*$F$28 -> 13554081.01 | AI28: =OPEX!AI$12*AI$9*$F$28 -> 12797421.81 | AJ28: =OPEX!AJ$12*AJ$9*$F$28 -> 12797421.81 | AK28: =OPEX!AK$12*AK$9*$F$28 -> 12614818.69 | AL28: =OPEX!AL$12*AL$9*$F$28 -> 12614818.69 | AM28: =OPEX!AM$12*AM$9*$F$28 -> 12733083.23 | AN28: =OPEX!AN$12*AN$9*$F$28 -> 12492745.5 | AO28: =OPEX!AO$12*AO$9*$F$28 -> 12492745.5 | AP28: =OPEX!AP$12*AP$9*$F$28 -> 12492745.5 | AQ28: =OPEX!AQ$12*AQ$9*$F$28 -> 12492745.5 | AR28: =OPEX!AR$12*AR$9*$F$28 -> 12100544.68 | AS28: =OPEX!AS$12*AS$9*$F$28 -> 12100544.68 | AT28: =OPEX!AT$12*AT$9*$F$28 -> 12616382.37 | AU28: =OPEX!AU$12*AU$9*$F$28 -> 12041822.37 | AV28: =OPEX!AV$12*AV$9*$F$28 -> 12041822.37 | AW28: =OPEX!AW$12*AW$9*$F$28 -> 11918949.31 | AX28: =OPEX!AX$12*AX$9*$F$28 -> 11918949.31 | AY28: =OPEX!AY$12*AY$9*$F$28 -> 11918949.31 | AZ28: =OPEX!AZ$12*AZ$9*$F$28 -> 11935415.48 | BA28: =OPEX!BA$12*BA$9*$F$28 -> 11935415.48 | BB28: =OPEX!BB$12*BB$9*$F$28 -> 11935415.48 | BC28: =OPEX!BC$12*BC$9*$F$28 -> 11935415.48 | BD28: =OPEX!BD$12*BD$9*$F$28 -> 11935415.48 | BE28: =OPEX!BE$12*BE$9*$F$28 -> 11935415.48 | BF28: =OPEX!BF$12*BF$9*$F$28 -> 12446609.84 | BG28: =OPEX!BG$12*BG$9*$F$28 -> 11902649.84 | BH28: =OPEX!BH$12*BH$9*$F$28 -> 11902649.84 | BI28: =OPEX!BI$12*BI$9*$F$28 -> 11902649.84 | BJ28: =OPEX!BJ$12*BJ$9*$F$28 -> 11902649.84 | BK28: =OPEX!BK$12*BK$9*$F$28 -> 11902649.84 | BL28: =OPEX!BL$12*BL$9*$F$28 -> 11846454.44 | BM28: =OPEX!BM$12*BM$9*$F$28 -> 11846454.44 | BN28: =OPEX!BN$12*BN$9*$F$28 -> 11846454.44 | BO28: =OPEX!BO$12*BO$9*$F$28 -> 11846454.44 | BP28: =OPEX!BP$12*BP$9*$F$28 -> 11846454.44 | BQ28: =OPEX!BQ$12*BQ$9*$F$28 -> 11846454.44 | BR28: =OPEX!BR$12*BR$9*$F$28 -> 12367416.69 | BS28: =OPEX!BS$12*BS$9*$F$28 -> 11832816.69 | BT28: =OPEX!BT$12*BT$9*$F$28 -> 11832816.69 | BU28: =OPEX!BU$12*BU$9*$F$28 -> 11832816.69 | BV28: =OPEX!BV$12*BV$9*$F$28 -> 11832816.69 | BW28: =OPEX!BW$12*BW$9*$F$28 -> 11832816.69 | BX28: =OPEX!BX$12*BX$9*$F$28 -> 11832816.69 | BY28: =OPEX!BY$12*BY$9*$F$28 -> 11832816.69 | BZ28: =OPEX!BZ$12*BZ$9*$F$28 -> 11832816.69 | CA28: =OPEX!CA$12*CA$9*$F$28 -> 11832816.69 | CB28: =OPEX!CB$12*CB$9*$F$28 -> 11832816.69 | CC28: =OPEX!CC$12*CC$9*$F$28 -> 11832816.69 | CD28: =OPEX!CD$12*CD$9*$F$28 -> 12367416.69 | CE28: =OPEX!CE$12*CE$9*$F$28 -> 11832816.69 | CF28: =OPEX!CF$12*CF$9*$F$28 -> 11832816.69 | CG28: =OPEX!CG$12*CG$9*$F$28 -> 11832816.69 | CH28: =OPEX!CH$12*CH$9*$F$28 -> 11832816.69 | CI28: =OPEX!CI$12*CI$9*$F$28 -> 11832816.69 | CJ28: =OPEX!CJ$12*CJ$9*$F$28 -> 11832816.69 | CK28: =OPEX!CK$12*CK$9*$F$28 -> 11832816.69 | CL28: =OPEX!CL$12*CL$9*$F$28 -> 11832816.69 | CM28: =OPEX!CM$12*CM$9*$F$28 -> 11832816.69 | CN28: =OPEX!CN$12*CN$9*$F$28 -> 11832816.69 | CO28: =OPEX!CO$12*CO$9*$F$28 -> 11832816.69 | CP28: =OPEX!CP$12*CP$9*$F$28 -> 12367416.69 | CQ28: =OPEX!CQ$12*CQ$9*$F$28 -> 11832816.69 | CR28: =OPEX!CR$12*CR$9*$F$28 -> 11832816.69 | CS28: =OPEX!CS$12*CS$9*$F$28 -> 11832816.69 | CT28: =OPEX!CT$12*CT$9*$F$28 -> 11832816.69 | CU28: =OPEX!CU$12*CU$9*$F$28 -> 11832816.69 | CV28: =OPEX!CV$12*CV$9*$F$28 -> 11832816.69 | CW28: =OPEX!CW$12*CW$9*$F$28 -> 11832816.69 | CX28: =OPEX!CX$12*CX$9*$F$28 -> 11832816.69 | CY28: =OPEX!CY$12*CY$9*$F$28 -> 11832816.69 | CZ28: =OPEX!CZ$12*CZ$9*$F$28 -> 11832816.69 | DA28: =OPEX!DA$12*DA$9*$F$28 -> 11832816.69 | DB28: =OPEX!DB$12*DB$9*$F$28 -> 12367416.69 | DC28: =OPEX!DC$12*DC$9*$F$28 -> 11832816.69 | DD28: =OPEX!DD$12*DD$9*$F$28 -> 11832816.69 | DE28: =OPEX!DE$12*DE$9*$F$28 -> 11832816.69 | DF28: =OPEX!DF$12*DF$9*$F$28 -> 11832816.69 | DG28: =OPEX!DG$12*DG$9*$F$28 -> 11832816.69 | DH28: =OPEX!DH$12*DH$9*$F$28 -> 11832816.69 | DI28: =OPEX!DI$12*DI$9*$F$28 -> 11832816.69 | DJ28: =OPEX!DJ$12*DJ$9*$F$28 -> 11832816.69 | DK28: =OPEX!DK$12*DK$9*$F$28 -> 11832816.69 | DL28: =OPEX!DL$12*DL$9*$F$28 -> 11832816.69 | DM28: =OPEX!DM$12*DM$9*$F$28 -> 11832816.69 | DN28: =OPEX!DN$12*DN$9*$F$28 -> 12367416.69 | DO28: =OPEX!DO$12*DO$9*$F$28 -> 11832816.69 | DP28: =OPEX!DP$12*DP$9*$F$28 -> 11832816.69 | DQ28: =OPEX!DQ$12*DQ$9*$F$28 -> 11832816.69 | DR28: =OPEX!DR$12*DR$9*$F$28 -> 11832816.69 | DS28: =OPEX!DS$12*DS$9*$F$28 -> 11832816.69 | DT28: =OPEX!DT$12*DT$9*$F$28 -> 11832816.69 | DU28: =OPEX!DU$12*DU$9*$F$28 -> 11832816.69 | DV28: =OPEX!DV$12*DV$9*$F$28 -> 11832816.69 | DW28: =OPEX!DW$12*DW$9*$F$28 -> 11832816.69 | DX28: =OPEX!DX$12*DX$9*$F$28 -> 11832816.69 | DY28: =OPEX!DY$12*DY$9*$F$28 -> 11832816.69 | DZ28: =OPEX!DZ$12*DZ$9*$F$28 -> 12367416.69 | EA28: =OPEX!EA$12*EA$9*$F$28 -> 11832816.69 | EB28: =OPEX!EB$12*EB$9*$F$28 -> 11832816.69 | EC28: =OPEX!EC$12*EC$9*$F$28 -> 11832816.69 | ED28: =OPEX!ED$12*ED$9*$F$28 -> 11832816.69 | EE28: =OPEX!EE$12*EE$9*$F$28 -> 11832816.69 | EF28: =OPEX!EF$12*EF$9*$F$28 -> 11832816.69 | EG28: =OPEX!EG$12*EG$9*$F$28 -> 11832816.69 | EH28: =OPEX!EH$12*EH$9*$F$28 -> 11832816.69 | EI28: =OPEX!EI$12*EI$9*$F$28 -> 11832816.69 | EJ28: =OPEX!EJ$12*EJ$9*$F$28 -> 11832816.69 | EK28: =OPEX!EK$12*EK$9*$F$28 -> 11832816.69 | EL28: =OPEX!EL$12*EL$9*$F$28 -> 12367416.69 | EM28: =OPEX!EM$12*EM$9*$F$28 -> 11832816.69 | EN28: =OPEX!EN$12*EN$9*$F$28 -> 11832816.69 | EO28: =OPEX!EO$12*EO$9*$F$28 -> 11832816.69 | EP28: =OPEX!EP$12*EP$9*$F$28 -> 11832816.69 | EQ28: =OPEX!EQ$12*EQ$9*$F$28 -> 11832816.69 | ER28: =OPEX!ER$12*ER$9*$F$28 -> 11832816.69 | ES28: =OPEX!ES$12*ES$9*$F$28 -> 11832816.69 | ET28: =OPEX!ET$12*ET$9*$F$28 -> 11832816.69 | EU28: =OPEX!EU$12*EU$9*$F$28 -> 11832816.69 | EV28: =OPEX!EV$12*EV$9*$F$28 -> 11832816.69 | EW28: =OPEX!EW$12*EW$9*$F$28 -> 11832816.69 | EX28: =OPEX!EX$12*EX$9*$F$28 -> 12367416.69 | EY28: =OPEX!EY$12*EY$9*$F$28 -> 11832816.69 | EZ28: =OPEX!EZ$12*EZ$9*$F$28 -> 11832816.69 | FA28: =OPEX!FA$12*FA$9*$F$28 -> 11832816.69 | FB28: =OPEX!FB$12*FB$9*$F$28 -> 11832816.69 | FC28: =OPEX!FC$12*FC$9*$F$28 -> 11832816.69 | FD28: =OPEX!FD$12*FD$9*$F$28 -> 11832816.69 | FE28: =OPEX!FE$12*FE$9*$F$28 -> 11832816.69 | FF28: =OPEX!FF$12*FF$9*$F$28 -> 11832816.69 | FG28: =OPEX!FG$12*FG$9*$F$28 -> 11832816.69 | FH28: =OPEX!FH$12*FH$9*$F$28 -> 11832816.69 | FI28: =OPEX!FI$12*FI$9*$F$28 -> 11832816.69 | FJ28: =OPEX!FJ$12*FJ$9*$F$28 -> 12367416.69 | FK28: =OPEX!FK$12*FK$9*$F$28 -> 11832816.69 | FL28: =OPEX!FL$12*FL$9*$F$28 -> 11832816.69 | FM28: =OPEX!FM$12*FM$9*$F$28 -> 11832816.69 | FN28: =OPEX!FN$12*FN$9*$F$28 -> 11832816.69 | FO28: =OPEX!FO$12*FO$9*$F$28 -> 11832816.69 | FP28: =OPEX!FP$12*FP$9*$F$28 -> 11832816.69 | FQ28: =OPEX!FQ$12*FQ$9*$F$28 -> 11832816.69 | FR28: =OPEX!FR$12*FR$9*$F$28 -> 11832816.69 | FS28: =OPEX!FS$12*FS$9*$F$28 -> 11832816.69 | FT28: =OPEX!FT$12*FT$9*$F$28 -> 11832816.69 | FU28: =OPEX!FU$12*FU$9*$F$28 -> 11832816.69 | FV28: =OPEX!FV$12*FV$9*$F$28 -> 12367416.69 | FW28: =OPEX!FW$12*FW$9*$F$28 -> 11832816.69 | FX28: =OPEX!FX$12*FX$9*$F$28 -> 11832816.69 | FY28: =OPEX!FY$12*FY$9*$F$28 -> 11832816.69 | FZ28: =OPEX!FZ$12*FZ$9*$F$28 -> 11832816.69 | GA28: =OPEX!GA$12*GA$9*$F$28 -> 11832816.69 | GB28: =OPEX!GB$12*GB$9*$F$28 -> 11832816.69 | GC28: =OPEX!GC$12*GC$9*$F$28 -> 11832816.69 | GD28: =OPEX!GD$12*GD$9*$F$28 -> 11832816.69 | GE28: =OPEX!GE$12*GE$9*$F$28 -> 11832816.69 | GF28: =OPEX!GF$12*GF$9*$F$28 -> 11832816.69 | GG28: =OPEX!GG$12*GG$9*$F$28 -> 11832816.69 | GH28: =OPEX!GH$12*GH$9*$F$28 -> 12367416.69 | GI28: =OPEX!GI$12*GI$9*$F$28 -> 11832816.69 | GJ28: =OPEX!GJ$12*GJ$9*$F$28 -> 11832816.69 | GK28: =OPEX!GK$12*GK$9*$F$28 -> 11832816.69 | GL28: =OPEX!GL$12*GL$9*$F$28 -> 11832816.69 | GM28: =OPEX!GM$12*GM$9*$F$28 -> 11832816.69 | GN28: =OPEX!GN$12*GN$9*$F$28 -> 11832816.69 | GO28: =OPEX!GO$12*GO$9*$F$28 -> 11832816.69 | GP28: =OPEX!GP$12*GP$9*$F$28 -> 11832816.69 | GQ28: =OPEX!GQ$12*GQ$9*$F$28 -> 11832816.69 | GR28: =OPEX!GR$12*GR$9*$F$28 -> 11832816.69 | GS28: =OPEX!GS$12*GS$9*$F$28 -> 11832816.69 | GT28: =OPEX!GT$12*GT$9*$F$28 -> 12367416.69 | GU28: =OPEX!GU$12*GU$9*$F$28 -> 11832816.69 | GV28: =OPEX!GV$12*GV$9*$F$28 -> 11832816.69 | GW28: =OPEX!GW$12*GW$9*$F$28 -> 11832816.69 | GX28: =OPEX!GX$12*GX$9*$F$28 -> 11832816.69 | GY28: =OPEX!GY$12*GY$9*$F$28 -> 11832816.69 | GZ28: =OPEX!GZ$12*GZ$9*$F$28 -> 11832816.69 | HA28: =OPEX!HA$12*HA$9*$F$28 -> 11832816.69 | HB28: =OPEX!HB$12*HB$9*$F$28 -> 11832816.69 | HC28: =OPEX!HC$12*HC$9*$F$28 -> 11832816.69 | HD28: =OPEX!HD$12*HD$9*$F$28 -> 11832816.69 | HE28: =OPEX!HE$12*HE$9*$F$28 -> 11832816.69 | HF28: =OPEX!HF$12*HF$9*$F$28 -> 12367416.69 | HG28: =OPEX!HG$12*HG$9*$F$28 -> 11832816.69 | HH28: =OPEX!HH$12*HH$9*$F$28 -> 11832816.69 | HI28: =OPEX!HI$12*HI$9*$F$28 -> 11832816.69 | HJ28: =OPEX!HJ$12*HJ$9*$F$28 -> 11832816.69 | HK28: =OPEX!HK$12*HK$9*$F$28 -> 11832816.69 | HL28: =OPEX!HL$12*HL$9*$F$28 -> 11832816.69 | HM28: =OPEX!HM$12*HM$9*$F$28 -> 11832816.69 | HN28: =OPEX!HN$12*HN$9*$F$28 -> 11832816.69 | HO28: =OPEX!HO$12*HO$9*$F$28 -> 11832816.69 | HP28: =OPEX!HP$12*HP$9*$F$28 -> 11832816.69 | HQ28: =OPEX!HQ$12*HQ$9*$F$28 -> 11832816.69 | HR28: =OPEX!HR$12*HR$9*$F$28 -> 12367416.69 | HS28: =OPEX!HS$12*HS$9*$F$28 -> 11832816.69 | HT28: =OPEX!HT$12*HT$9*$F$28 -> 11832816.69 | HU28: =OPEX!HU$12*HU$9*$F$28 -> 11832816.69 | HV28: =OPEX!HV$12*HV$9*$F$28 -> 11832816.69 | HW28: =OPEX!HW$12*HW$9*$F$28 -> 11832816.69 | HX28: =OPEX!HX$12*HX$9*$F$28 -> 11832816.69 | HY28: =OPEX!HY$12*HY$9*$F$28 -> 11832816.69 | HZ28: =OPEX!HZ$12*HZ$9*$F$28 -> 11832816.69 | IA28: =OPEX!IA$12*IA$9*$F$28 -> 11832816.69 | IB28: =OPEX!IB$12*IB$9*$F$28 -> 11832816.69 | IC28: =OPEX!IC$12*IC$9*$F$28 -> 11832816.69 | ID28: =OPEX!ID$12*ID$9*$F$28 -> 12367416.69 | IE28: =OPEX!IE$12*IE$9*$F$28 -> 11832816.69 | IF28: =OPEX!IF$12*IF$9*$F$28 -> 11832816.69 | IG28: =OPEX!IG$12*IG$9*$F$28 -> 11832816.69 | IH28: =OPEX!IH$12*IH$9*$F$28 -> 11832816.69 | II28: =OPEX!II$12*II$9*$F$28 -> 11832816.69 | IJ28: =OPEX!IJ$12*IJ$9*$F$28 -> 11832816.69 | IK28: =OPEX!IK$12*IK$9*$F$28 -> 11832816.69 | IL28: =OPEX!IL$12*IL$9*$F$28 -> 11832816.69 | IM28: =OPEX!IM$12*IM$9*$F$28 -> 11832816.69 | IN28: =OPEX!IN$12*IN$9*$F$28 -> 11832816.69 | IO28: =OPEX!IO$12*IO$9*$F$28 -> 11832816.69 | IP28: =OPEX!IP$12*IP$9*$F$28 -> 12367416.69 | IQ28: =OPEX!IQ$12*IQ$9*$F$28 -> 11832816.69 | IR28: =OPEX!IR$12*IR$9*$F$28 -> 11832816.69 | IS28: =OPEX!IS$12*IS$9*$F$28 -> 11832816.69 | IT28: =OPEX!IT$12*IT$9*$F$28 -> 11832816.69 | IU28: =OPEX!IU$12*IU$9*$F$28 -> 11832816.69 | IV28: =OPEX!IV$12*IV$9*$F$28 -> 11832816.69 | IW28: =OPEX!IW$12*IW$9*$F$28 -> 11832816.69 | IX28: =OPEX!IX$12*IX$9*$F$28 -> 11832816.69 | IY28: =OPEX!IY$12*IY$9*$F$28 -> 11832816.69 | IZ28: =OPEX!IZ$12*IZ$9*$F$28 -> 11832816.69 | JA28: =OPEX!JA$12*JA$9*$F$28 -> 11832816.69 | JB28: =OPEX!JB$12*JB$9*$F$28 -> 12367416.69 | JC28: =OPEX!JC$12*JC$9*$F$28 -> 11832816.69 | JD28: =OPEX!JD$12*JD$9*$F$28 -> 11832816.69 | JE28: =OPEX!JE$12*JE$9*$F$28 -> 11832816.69 | JF28: =OPEX!JF$12*JF$9*$F$28 -> 11832816.69 | JG28: =OPEX!JG$12*JG$9*$F$28 -> 11832816.69 | JH28: =OPEX!JH$12*JH$9*$F$28 -> 11832816.69 | JI28: =OPEX!JI$12*JI$9*$F$28 -> 11832816.69 | JJ28: =OPEX!JJ$12*JJ$9*$F$28 -> 11832816.69 | JK28: =OPEX!JK$12*JK$9*$F$28 -> 11832816.69 | JL28: =OPEX!JL$12*JL$9*$F$28 -> 11832816.69 | JM28: =OPEX!JM$12*JM$9*$F$28 -> 11832816.69 | JN28: =OPEX!JN$12*JN$9*$F$28 -> 12367416.69 | JO28: =OPEX!JO$12*JO$9*$F$28 -> 11832816.69 | JP28: =OPEX!JP$12*JP$9*$F$28 -> 11832816.69 | JQ28: =OPEX!JQ$12*JQ$9*$F$28 -> 11832816.69 | JR28: =OPEX!JR$12*JR$9*$F$28 -> 11832816.69 | JS28: =OPEX!JS$12*JS$9*$F$28 -> 11832816.69 | JT28: =OPEX!JT$12*JT$9*$F$28 -> 11832816.69 | JU28: =OPEX!JU$12*JU$9*$F$28 -> 11832816.69 | JV28: =OPEX!JV$12*JV$9*$F$28 -> 11832816.69 | JW28: =OPEX!JW$12*JW$9*$F$28 -> 11832816.69 | JX28: =OPEX!JX$12*JX$9*$F$28 -> 11832816.69 | JY28: =OPEX!JY$12*JY$9*$F$28 -> 11832816.69 | JZ28: =OPEX!JZ$12*JZ$9*$F$28 -> 12367416.69 | KA28: =OPEX!KA$12*KA$9*$F$28 -> 11832816.69 | KB28: =OPEX!KB$12*KB$9*$F$28 -> 11832816.69 | KC28: =OPEX!KC$12*KC$9*$F$28 -> 11832816.69 | KD28: =OPEX!KD$12*KD$9*$F$28 -> 11832816.69 | KE28: =OPEX!KE$12*KE$9*$F$28 -> 11832816.69 | KF28: =OPEX!KF$12*KF$9*$F$28 -> 11832816.69 | KG28: =OPEX!KG$12*KG$9*$F$28 -> 11832816.69 | KH28: =OPEX!KH$12*KH$9*$F$28 -> 11832816.69 | KI28: =OPEX!KI$12*KI$9*$F$28 -> 11832816.69 | KJ28: =OPEX!KJ$12*KJ$9*$F$28 -> 11832816.69 | KK28: =OPEX!KK$12*KK$9*$F$28 -> 11832816.69 | KL28: =OPEX!KL$12*KL$9*$F$28 -> 12367416.69 | KM28: =OPEX!KM$12*KM$9*$F$28 -> 11832816.69 | KN28: =OPEX!KN$12*KN$9*$F$28 -> 11832816.69 | KO28: =OPEX!KO$12*KO$9*$F$28 -> 11832816.69 | KP28: =OPEX!KP$12*KP$9*$F$28 -> 11832816.69 | KQ28: =OPEX!KQ$12*KQ$9*$F$28 -> 11832816.69 | KR28: =OPEX!KR$12*KR$9*$F$28 -> 11832816.69 | KS28: =OPEX!KS$12*KS$9*$F$28 -> 11832816.69 | KT28: =OPEX!KT$12*KT$9*$F$28 -> 11832816.69 | KU28: =OPEX!KU$12*KU$9*$F$28 -> 11832816.69 | KV28: =OPEX!KV$12*KV$9*$F$28 -> 11832816.69 | KW28: =OPEX!KW$12*KW$9*$F$28 -> 11832816.69 | KX28: =OPEX!KX$12*KX$9*$F$28 -> 12367416.69 | KY28: =OPEX!KY$12*KY$9*$F$28 -> 11832816.69 | KZ28: =OPEX!KZ$12*KZ$9*$F$28 -> 11832816.69 | LA28: =OPEX!LA$12*LA$9*$F$28 -> 11832816.69 | LB28: =OPEX!LB$12*LB$9*$F$28 -> 11832816.69 | LC28: =OPEX!LC$12*LC$9*$F$28 -> 11832816.69 | LD28: =OPEX!LD$12*LD$9*$F$28 -> 11832816.69 | LE28: =OPEX!LE$12*LE$9*$F$28 -> 11832816.69 | LF28: =OPEX!LF$12*LF$9*$F$28 -> 11832816.69 | LG28: =OPEX!LG$12*LG$9*$F$28 -> 11832816.69 | LH28: =OPEX!LH$12*LH$9*$F$28 -> 11832816.69 | LI28: =OPEX!LI$12*LI$9*$F$28 -> 11832816.69 | LJ28: =OPEX!LJ$12*LJ$9*$F$28 -> 12367416.69 | LK28: =OPEX!LK$12*LK$9*$F$28 -> 11832816.69 | LL28: =OPEX!LL$12*LL$9*$F$28 -> 11832816.69 | LM28: =OPEX!LM$12*LM$9*$F$28 -> 11832816.69 | LN28: =OPEX!LN$12*LN$9*$F$28 -> 11832816.69 | LO28: =OPEX!LO$12*LO$9*$F$28 -> 11832816.69 | LP28: =OPEX!LP$12*LP$9*$F$28 -> 11832816.69 | LQ28: =OPEX!LQ$12*LQ$9*$F$28 -> 11832816.69 | LR28: =OPEX!LR$12*LR$9*$F$28 -> 11832816.69 | LS28: =OPEX!LS$12*LS$9*$F$28 -> 11832816.69 | LT28: =OPEX!LT$12*LT$9*$F$28 -> 11832816.69 | LU28: =OPEX!LU$12*LU$9*$F$28 -> 11832816.69 | LV28: =OPEX!LV$12*LV$9*$F$28 -> 12367416.69 | LW28: =OPEX!LW$12*LW$9*$F$28 -> 11832816.69 | LX28: =OPEX!LX$12*LX$9*$F$28 -> 11832816.69 | LY28: =OPEX!LY$12*LY$9*$F$28 -> 11832816.69 | LZ28: =OPEX!LZ$12*LZ$9*$F$28 -> 11832816.69 | MA28: =OPEX!MA$12*MA$9*$F$28 -> 11832816.69 | MB28: =OPEX!MB$12*MB$9*$F$28 -> 11832816.69 | MC28: =OPEX!MC$12*MC$9*$F$28 -> 11832816.69 | MD28: =OPEX!MD$12*MD$9*$F$28 -> 11832816.69 | ME28: =OPEX!ME$12*ME$9*$F$28 -> 11832816.69 | MF28: =OPEX!MF$12*MF$9*$F$28 -> 11832816.69 | MG28: =OPEX!MG$12*MG$9*$F$28 -> 11832816.69 | MH28: =OPEX!MH$12*MH$9*$F$28 -> 12367416.69 | MI28: =OPEX!MI$12*MI$9*$F$28 -> 11832816.69 | MJ28: =OPEX!MJ$12*MJ$9*$F$28 -> 11832816.69 | MK28: =OPEX!MK$12*MK$9*$F$28 -> 11832816.69 | ML28: =OPEX!ML$12*ML$9*$F$28 -> 11832816.69 | MM28: =OPEX!MM$12*MM$9*$F$28 -> 11832816.69 | MN28: =OPEX!MN$12*MN$9*$F$28 -> 11832816.69 | MO28: =OPEX!MO$12*MO$9*$F$28 -> 11832816.69 | MP28: =OPEX!MP$12*MP$9*$F$28 -> 11832816.69 | MQ28: =OPEX!MQ$12*MQ$9*$F$28 -> 11832816.69 | MR28: =OPEX!MR$12*MR$9*$F$28 -> 11832816.69 | MS28: =OPEX!MS$12*MS$9*$F$28 -> 11832816.69 | MT28: =OPEX!MT$12*MT$9*$F$28 -> 12367416.69 | MU28: =OPEX!MU$12*MU$9*$F$28 -> 11832816.69 | MV28: =OPEX!MV$12*MV$9*$F$28 -> 11832816.69 | MW28: =OPEX!MW$12*MW$9*$F$28 -> 11832816.69 | MX28: =OPEX!MX$12*MX$9*$F$28 -> 11832816.69 | MY28: =OPEX!MY$12*MY$9*$F$28 -> 11832816.69 | MZ28: =OPEX!MZ$12*MZ$9*$F$28 -> 11832816.69 | NA28: =OPEX!NA$12*NA$9*$F$28 -> 11832816.69 | NB28: =OPEX!NB$12*NB$9*$F$28 -> 11832816.69 | NC28: =OPEX!NC$12*NC$9*$F$28 -> 11832816.69 | ND28: =OPEX!ND$12*ND$9*$F$28 -> 11832816.69 | NE28: =OPEX!NE$12*NE$9*$F$28 -> 11832816.69 | NF28: =OPEX!NF$12*NF$9*$F$28 -> 12367416.69 | NG28: =OPEX!NG$12*NG$9*$F$28 -> 11832816.69 | NH28: =OPEX!NH$12*NH$9*$F$28 -> 11832816.69 | NI28: =OPEX!NI$12*NI$9*$F$28 -> 11832816.69 | NJ28: =OPEX!NJ$12*NJ$9*$F$28 -> 11832816.69 | NK28: =OPEX!NK$12*NK$9*$F$28 -> 11832816.69 | NL28: =OPEX!NL$12*NL$9*$F$28 -> 11832816.69 | NM28: =OPEX!NM$12*NM$9*$F$28 -> 11832816.69 | NN28: =OPEX!NN$12*NN$9*$F$28 -> 11832816.69 | NO28: =OPEX!NO$12*NO$9*$F$28 -> 11832816.69 | NP28: =OPEX!NP$12*NP$9*$F$28 -> 11832816.69 | NQ28: =OPEX!NQ$12*NQ$9*$F$28 -> 11832816.69 | NR28: =OPEX!NR$12*NR$9*$F$28 -> 12367416.69 | NS28: =OPEX!NS$12*NS$9*$F$28 -> 11832816.69 | NT28: =OPEX!NT$12*NT$9*$F$28 -> 11832816.69 | NU28: =OPEX!NU$12*NU$9*$F$28 -> 11832816.69 | NV28: =OPEX!NV$12*NV$9*$F$28 -> 11832816.69 | NW28: =OPEX!NW$12*NW$9*$F$28 -> 11832816.69 | NX28: =OPEX!NX$12*NX$9*$F$28 -> 11832816.69 | NY28: =OPEX!NY$12*NY$9*$F$28 -> 11832816.69 | NZ28: =OPEX!NZ$12*NZ$9*$F$28 -> 11832816.69 | OA28: =OPEX!OA$12*OA$9*$F$28 -> 11832816.69 | OB28: =OPEX!OB$12*OB$9*$F$28 -> 11832816.69 | OC28: =OPEX!OC$12*OC$9*$F$28 -> 11832816.69 | OD28: =OPEX!OD$12*OD$9*$F$28 -> 12367416.69 | OE28: =OPEX!OE$12*OE$9*$F$28 -> 11832816.69 | OF28: =OPEX!OF$12*OF$9*$F$28 -> 11832816.69 | OG28: =OPEX!OG$12*OG$9*$F$28 -> 11832816.69 | OH28: =OPEX!OH$12*OH$9*$F$28 -> 11832816.69 | OI28: =OPEX!OI$12*OI$9*$F$28 -> 11832816.69 | OJ28: =OPEX!OJ$12*OJ$9*$F$28 -> 11832816.69 | OK28: =OPEX!OK$12*OK$9*$F$28 -> 11832816.69 | OL28: =OPEX!OL$12*OL$9*$F$28 -> 11832816.69 | OM28: =OPEX!OM$12*OM$9*$F$28 -> 11832816.69 | ON28: =OPEX!ON$12*ON$9*$F$28 -> 11832816.69 | OO28: =OPEX!OO$12*OO$9*$F$28 -> 11832816.69 | OP28: =OPEX!OP$12*OP$9*$F$28 -> 12367416.69 | OQ28: =OPEX!OQ$12*OQ$9*$F$28 -> 11832816.69 | OR28: =OPEX!OR$12*OR$9*$F$28 -> 11832816.69 | OS28: =OPEX!OS$12*OS$9*$F$28 -> 11832816.69 | OT28: =OPEX!OT$12*OT$9*$F$28 -> 11832816.69 | OU28: =OPEX!OU$12*OU$9*$F$28 -> 11832816.69 | OV28: =OPEX!OV$12*OV$9*$F$28 -> 11832816.69 | OW28: =OPEX!OW$12*OW$9*$F$28 -> 11832816.69 | OX28: =OPEX!OX$12*OX$9*$F$28 -> 11832816.69 | OY28: =OPEX!OY$12*OY$9*$F$28 -> 11832816.69 | OZ28: =OPEX!OZ$12*OZ$9*$F$28 -> 11832816.69 | PA28: =OPEX!PA$12*PA$9*$F$28 -> 11832816.69 | PB28: =OPEX!PB$12*PB$9*$F$28 -> 12367416.69 | PC28: =OPEX!PC$12*PC$9*$F$28 -> 11832816.69 | PD28: =OPEX!PD$12*PD$9*$F$28 -> 11832816.69 | PE28: =OPEX!PE$12*PE$9*$F$28 -> 11832816.69 | PF28: =OPEX!PF$12*PF$9*$F$28 -> 11832816.69 | PG28: =OPEX!PG$12*PG$9*$F$28 -> 11832816.69 | PH28: =OPEX!PH$12*PH$9*$F$28 -> 11832816.69 | PI28: =OPEX!PI$12*PI$9*$F$28 -> 11832816.69 | PJ28: =OPEX!PJ$12*PJ$9*$F$28 -> 11832816.69 | PK28: =OPEX!PK$12*PK$9*$F$28 -> 11832816.69 | PL28: =OPEX!PL$12*PL$9*$F$28 -> 11832816.69 | PM28: =OPEX!PM$12*PM$9*$F$28 -> 11832816.69 | PN28: 0
C29: Gestão dos Empreendimentos Comerciais | D29: =SUM(J29:PM29) -> 0 | E29: =NPV(PainelControle!$D$8,$K29:$PM29)+J29 -> 0 | J29: 0 | K29: 0 | L29: 0 | M29: 0 | N29: 0 | O29: 0 | P29: 0 | Q29: 0 | R29: 0 | S29: 0 | T29: 0 | U29: 0 | V29: 0 | W29: 0 | X29: 0 | Y29: 0 | Z29: 0 | AA29: 0 | AB29: 0 | AC29: 0 | AD29: 0 | AE29: 0 | AF29: 0 | AG29: 0 | AH29: 0 | AI29: 0 | AJ29: 0 | AK29: 0 | AL29: 0 | AM29: 0 | AN29: 0 | AO29: 0 | AP29: 0 | AQ29: 0 | AR29: 0 | AS29: 0 | AT29: 0 | AU29: 0 | AV29: 0 | AW29: 0 | AX29: 0 | AY29: 0 | AZ29: 0 | BA29: 0 | BB29: 0 | BC29: 0 | BD29: 0 | BE29: 0 | BF29: 0 | BG29: 0 | BH29: 0 | BI29: 0 | BJ29: 0 | BK29: 0 | BL29: 0 | BM29: 0 | BN29: 0 | BO29: 0 | BP29: 0 | BQ29: 0 | BR29: 0 | BS29: 0 | BT29: 0 | BU29: 0 | BV29: 0 | BW29: 0 | BX29: 0 | BY29: 0 | BZ29: 0 | CA29: 0 | CB29: 0 | CC29: 0 | CD29: 0 | CE29: 0 | CF29: 0 | CG29: 0 | CH29: 0 | CI29: 0 | CJ29: 0 | CK29: 0 | CL29: 0 | CM29: 0 | CN29: 0 | CO29: 0 | CP29: 0 | CQ29: 0 | CR29: 0 | CS29: 0 | CT29: 0 | CU29: 0 | CV29: 0 | CW29: 0 | CX29: 0 | CY29: 0 | CZ29: 0 | DA29: 0 | DB29: 0 | DC29: 0 | DD29: 0 | DE29: 0 | DF29: 0 | DG29: 0 | DH29: 0 | DI29: 0 | DJ29: 0 | DK29: 0 | DL29: 0 | DM29: 0 | DN29: 0 | DO29: 0 | DP29: 0 | DQ29: 0 | DR29: 0 | DS29: 0 | DT29: 0 | DU29: 0 | DV29: 0 | DW29: 0 | DX29: 0 | DY29: 0 | DZ29: 0 | EA29: 0 | EB29: 0 | EC29: 0 | ED29: 0 | EE29: 0 | EF29: 0 | EG29: 0 | EH29: 0 | EI29: 0 | EJ29: 0 | EK29: 0 | EL29: 0 | EM29: 0 | EN29: 0 | EO29: 0 | EP29: 0 | EQ29: 0 | ER29: 0 | ES29: 0 | ET29: 0 | EU29: 0 | EV29: 0 | EW29: 0 | EX29: 0 | EY29: 0 | EZ29: 0 | FA29: 0 | FB29: 0 | FC29: 0 | FD29: 0 | FE29: 0 | FF29: 0 | FG29: 0 | FH29: 0 | FI29: 0 | FJ29: 0 | FK29: 0 | FL29: 0 | FM29: 0 | FN29: 0 | FO29: 0 | FP29: 0 | FQ29: 0 | FR29: 0 | FS29: 0 | FT29: 0 | FU29: 0 | FV29: 0 | FW29: 0 | FX29: 0 | FY29: 0 | FZ29: 0 | GA29: 0 | GB29: 0 | GC29: 0 | GD29: 0 | GE29: 0 | GF29: 0 | GG29: 0 | GH29: 0 | GI29: 0 | GJ29: 0 | GK29: 0 | GL29: 0 | GM29: 0 | GN29: 0 | GO29: 0 | GP29: 0 | GQ29: 0 | GR29: 0 | GS29: 0 | GT29: 0 | GU29: 0 | GV29: 0 | GW29: 0 | GX29: 0 | GY29: 0 | GZ29: 0 | HA29: 0 | HB29: 0 | HC29: 0 | HD29: 0 | HE29: 0 | HF29: 0 | HG29: 0 | HH29: 0 | HI29: 0 | HJ29: 0 | HK29: 0 | HL29: 0 | HM29: 0 | HN29: 0 | HO29: 0 | HP29: 0 | HQ29: 0 | HR29: 0 | HS29: 0 | HT29: 0 | HU29: 0 | HV29: 0 | HW29: 0 | HX29: 0 | HY29: 0 | HZ29: 0 | IA29: 0 | IB29: 0 | IC29: 0 | ID29: 0 | IE29: 0 | IF29: 0 | IG29: 0 | IH29: 0 | II29: 0 | IJ29: 0 | IK29: 0 | IL29: 0 | IM29: 0 | IN29: 0 | IO29: 0 | IP29: 0 | IQ29: 0 | IR29: 0 | IS29: 0 | IT29: 0 | IU29: 0 | IV29: 0 | IW29: 0 | IX29: 0 | IY29: 0 | IZ29: 0 | JA29: 0 | JB29: 0 | JC29: 0 | JD29: 0 | JE29: 0 | JF29: 0 | JG29: 0 | JH29: 0 | JI29: 0 | JJ29: 0 | JK29: 0 | JL29: 0 | JM29: 0 | JN29: 0 | JO29: 0 | JP29: 0 | JQ29: 0 | JR29: 0 | JS29: 0 | JT29: 0 | JU29: 0 | JV29: 0 | JW29: 0 | JX29: 0 | JY29: 0 | JZ29: 0 | KA29: 0 | KB29: 0 | KC29: 0 | KD29: 0 | KE29: 0 | KF29: 0 | KG29: 0 | KH29: 0 | KI29: 0 | KJ29: 0 | KK29: 0 | KL29: 0 | KM29: 0 | KN29: 0 | KO29: 0 | KP29: 0 | KQ29: 0 | KR29: 0 | KS29: 0 | KT29: 0 | KU29: 0 | KV29: 0 | KW29: 0 | KX29: 0 | KY29: 0 | KZ29: 0 | LA29: 0 | LB29: 0 | LC29: 0 | LD29: 0 | LE29: 0 | LF29: 0 | LG29: 0 | LH29: 0 | LI29: 0 | LJ29: 0 | LK29: 0 | LL29: 0 | LM29: 0 | LN29: 0 | LO29: 0 | LP29: 0 | LQ29: 0 | LR29: 0 | LS29: 0 | LT29: 0 | LU29: 0 | LV29: 0 | LW29: 0 | LX29: 0 | LY29: 0 | LZ29: 0 | MA29: 0 | MB29: 0 | MC29: 0 | MD29: 0 | ME29: 0 | MF29: 0 | MG29: 0 | MH29: 0 | MI29: 0 | MJ29: 0 | MK29: 0 | ML29: 0 | MM29: 0 | MN29: 0 | MO29: 0 | MP29: 0 | MQ29: 0 | MR29: 0 | MS29: 0 | MT29: 0 | MU29: 0 | MV29: 0 | MW29: 0 | MX29: 0 | MY29: 0 | MZ29: 0 | NA29: 0 | NB29: 0 | NC29: 0 | ND29: 0 | NE29: 0 | NF29: 0 | NG29: 0 | NH29: 0 | NI29: 0 | NJ29: 0 | NK29: 0 | NL29: 0 | NM29: 0 | NN29: 0 | NO29: 0 | NP29: 0 | NQ29: 0 | NR29: 0 | NS29: 0 | NT29: 0 | NU29: 0 | NV29: 0 | NW29: 0 | NX29: 0 | NY29: 0 | NZ29: 0 | OA29: 0 | OB29: 0 | OC29: 0 | OD29: 0 | OE29: 0 | OF29: 0 | OG29: 0 | OH29: 0 | OI29: 0 | OJ29: 0 | OK29: 0 | OL29: 0 | OM29: 0 | ON29: 0 | OO29: 0 | OP29: 0 | OQ29: 0 | OR29: 0 | OS29: 0 | OT29: 0 | OU29: 0 | OV29: 0 | OW29: 0 | OX29: 0 | OY29: 0 | OZ29: 0 | PA29: 0 | PB29: 0 | PC29: 0 | PD29: 0 | PE29: 0 | PF29: 0 | PG29: 0 | PH29: 0 | PI29: 0 | PJ29: 0 | PK29: 0 | PL29: 0 | PM29: 0 | PN29: 0
